Workbook

Sheet Contact Info and Instructions (hidden)
B1: NADAC Reimbursement Quarterly Report | E1: rowsheets
B2: REPORT QUARTER | C2: Quarter 4 October-December (Due January 31st) | E2: Iowa_Retail_Pharmacies,All_Other_Pharmacies
B3: Date of Submission | C3: 2026-01-30
B4: PBM Company Name | C4: Smith Health, Inc.
B5: PBM Doing Business As Name (DBA)
B6: Iowa TPA Registration # | C6: 3003029967
B7: PBM National Producer Number (NPN) | C7: 18415799
B8: PBM Company Address | C8: 300 Brannan Street Suite 601 San Francisco CA 94107 United States
B9: PBM Contact Name | C9: Beau Lacey
B10: PBM Contact E-mail | C10: compliance@smithrx.com
B11: Person Completing Report | C11: Beau Lacey
B12: Person Completing Report E-mail | C12: compliance@smithrx.com
B13: Person Completing Report Phone | C13: (844) 454-0123
B14: Link to PBM Website where this report will be kept | C14: https://www.smithrx.com/state-specific-reports
B16: Instructions
B18: A pharmacy benefits manager must provide to the Iowa Insurance Division a quarterly report of all claims reimbursed at 10% below and 10% above the National Average Drug Acquisition Cost.
B20: A PBM must submit the data requested in each tab of this file to the Division. Data fields left blank will result in an incomplete submission of this required report.
B22: Filling in the tabs labeled as 'Iowa_Retail_Pharmacies' and 'All_Other_Pharmacies' will auto-populate the corresponding 'Web' versions of these tabs.
B24: PBMs are required to publish the 'Web' tabs, which are the last 2 tabs of this spreadsheet, on their website for 24 months after submitting the report to the Division. Those tabs are labeled as 'Iowa Retail Pharmacies_Web' and 'All Other Pharmacies_Web.'
B26: A PBM may 'hide' the 'Contact Info and Instructions' tab and the non-Web tabs when publishing the 'Web' tabs on its website. To hide a tab, hover your mouse over each tab, right click, then select 'Hide.' To unhide, right click on any other tab, select 'Unhide,' hightlight the hidden tab, and click 'OK.'
B28: If additional rows are needed, please contact optinsmktg@naic.org for assistance.
B30: Definitions
B31: Product NDC # | C31: National Drug Code | D31: 11-digit number assigned by FDA for each drug sold in the United States
B32: Product Name | C32: The NDC description | D32: The complete name of the drug/medication associated with NDC#
B33: Prescription claim date | C33: Date the prescription was filled | D33: MM-DD-YYYY
B34: Quantity of Drug Dispensed | C34: Quantity in metric decimal units | D34: # of tablets/capsules, Grams, Mililiters, etc.
B35: Pharmacy name | C35: Identification of the unique pharmacy who filled prescription | D35: Name may include store #
B36: Pharmacy NPI # | C36: National Provider Identifier assigned to pharmacy | D36: 10-digit number issued to pharmacy by CMS
B37: Amount Pharmacy Was Reimburesed $ | C37: The dollar amount per Unit, Not to include the member's cost share amount | D37: In U.S Currency (ex: $1.00)
B38: Dispensing Fee Paid To Pharmacy $ | C38: The dollar amount paid to pharmacy for dispensing fee only | D38: In U.S Currency (ex: $1.00)
B39: Member Cost Share Amount $ | C39: The dollar amount paid by member at the point of sale | D39: In U.S Currency (ex: $1.00)
B40: NADAC Per Unit $ | C40: The dollar amount per unit of the National Average Drug Acquisition Cost | D40: In U.S Currency (ex: $1.00)
B41: NADAC Report Date | C41: Date of CMS report used to determine NADAC rate | D41: MM-DD-YYYY
B42: Actual Percentage Reimbursement at 10% and Below | C42: The actual percentage amount calculated at 10% and below the NADAC | D42: Percentage to two decimals (Ex:10.25%)
B43: Pharmacy Chain | C43: An entity that has twenty (20) or more pharmacies under common ownershiop or control, located in at least twenty (20) or more states.
B44: Retail Pharmacy | C44: A pharmacy that is not a pharmacy chain or a publicy traded entity, and that does not exclusively provide mail order dispensing of prescription drugs
B45: Affiliate Pharmacy | C45: Indicate if the dispensing pharmacy is an affiliate of the PBM pursuant to §510b.1(16) | D45: Y=Yes, N=No
B46: Dispensed Pursuant to a Federal, State, Or Local Government Health Plan | C46: Indiciate of the payer is a Federal, State, or local government health plan | D46: Y=Yes, N=No
B48: IA 2025 PBM NADAC Quarterly Report V4 | D48: 2025-11-19
B49: Old
B50: Updated

Sheet Iowa_Retail_Pharmacies (hidden)
A1: Pharmacy Benefits Manager Company Name | B1: Product NDC Number (complete 11 digit number) | C1: Product Name (the complete NDC Description) | D1: Prescription claim date | E1: Quantity of the Drug Dispensed (expressed in metric decimal units) | F1: Pharmacy Name | G1: Pharmacy NPI # | H1: Amount the Pharmacy was Reimbursed $ (per Unit) | I1: Dispensing Fee Paid to Pharmacy $ | J1: Member Cost Share Amount $ | K1: NADAC per unit $ (from CMS survey report as provided by the OIC) | L1: Difference from NADAC (per unit) | M1: NADAC Report Date (date of the CMS Report used to to determine the "NADAC" rate) | N1: Actual Percentage Reimbursement (10% and above) NADAC | O1: Actual Percentage Reimbursement (10% and below) NADAC | P1: Affiliate Pharmacy (Yes / No) | Q1: Dispensed Pursuant to Government Health Plan (Yes / No)
A2: Smith Health, Inc | B2: 72578000801 | C2: METRONIDAZOLE 500 MG TABLET | D2: 2025-12-10 | E2: 15 | F2: ALLEN CLINIC PHARMACY | G2: $1,659,461,572.00 | H2: $0.73 | I2: $10.68 | J2: $5.00 | K2: $0.10 | L2: =H2-K2 -> $0.63 | M2: 2025-11-19 | N2: =IFERROR(IF((L2/K2)>=0.1,L2/K2,""),0) -> 630.00% | O2: =IFERROR(IF((L2/K2)<0.1,L2/K2,""),0) ->  | P2: No | Q2: No
B3: 42858000101 | C3: OXYCODONE HCL (IR) 5 MG TABLET | D3: 2025-10-20 | E3: 10 | F3: ALLEN CLINIC PHARMACY | G3: $1,659,461,572.00 | H3: $0.16 | I3: $10.68 | J3: $12.27 | K3: $0.08 | L3: =H3-K3 -> $0.08 | M3: 2024-04-17 | N3: =IFERROR(IF((L3/K3)>=0.1,L3/K3,""),0) -> 100.00% | O3: =IFERROR(IF((L3/K3)<0.1,L3/K3,""),0) ->  | P3: No | Q3: No
B4: 59651071999 | C4: DICYCLOMINE 10 MG CAPSULE | D4: 2025-10-13 | E4: 56 | F4: ALLEN CLINIC PHARMACY | G4: $1,659,461,572.00 | H4: $0.14 | I4: $10.68 | J4: $5.00 | K4: $0.08 | L4: $0.06 | M4: 2025-09-17 | N4: 75.00% | P4: No | Q4: No
B5: 67877087920 | C5: CEFPODOXIME 200 MG TABLET | D5: 2025-12-10 | E5: 10 | F5: ALLEN CLINIC PHARMACY | G5: $1,659,461,572.00 | H5: $3.24 | I5: $10.68 | J5: $5.00 | K5: $1.67 | L5: $1.57 | M5: 2025-11-19 | N5: 94.01% | P5: No | Q5: No
B6: 57237007710 | C6: ONDANSETRON ODT 4 MG TABLET | D6: 2025-10-13 | E6: 15 | F6: ALLEN CLINIC PHARMACY | G6: $1,659,461,572.00 | H6: $0.57 | I6: $10.68 | J6: $5.00 | K6: $0.16 | L6: $0.41 | M6: 2025-09-17 | N6: 256.25% | P6: No | Q6: No
B7: 65862056099 | C7: PANTOPRAZOLE SOD DR 40 MG TAB | D7: 2025-12-10 | E7: 30 | F7: ALLEN CLINIC PHARMACY | G7: $1,659,461,572.00 | H7: $0.30 | I7: $10.68 | J7: $5.00 | K7: $0.04 | L7: $0.26 | M7: 2025-11-19 | N7: 650.00% | P7: No | Q7: No
B8: 65162004710 | C8: OXYCODONE HCL (IR) 5 MG TABLET | D8: 2025-12-10 | E8: 12 | F8: ALLEN CLINIC PHARMACY | G8: $1,659,461,572.00 | H8: $0.54 | I8: $10.68 | J8: $5.00 | K8: $0.09 | L8: $0.45 | M8: 2025-11-19 | N8: 500.00% | P8: No | Q8: No
B9: 16714035904 | C9: FALMINA-28 TABLET | D9: 2025-12-29 | E9: 84 | F9: AMICARE PHARMACY | G9: $1,114,934,239.00 | H9: $0.25 | I9: $10.68 | J9: $0.00 | K9: $0.17 | L9: $0.08 | M9: 2025-12-17 | N9: 47.06% | P9: No | Q9: No
B10: 31722077705 | C10: ACYCLOVIR 400 MG TABLET | D10: 2025-11-07 | E10: 60 | F10: AMICARE PHARMACY | G10: $1,114,934,239.00 | H10: $0.15 | I10: $10.68 | J10: $10.00 | K10: $0.09 | L10: $0.06 | M10: 2025-10-22 | N10: =IFERROR(IF((L10/K10)>=0.1,L10/K10,""),0) -> 66.67% | P10: No | Q10: No
B11: 65862067805 | C11: ALPRAZOLAM 1 MG TABLET | D11: 2025-12-08 | E11: 90 | F11: AMICARE PHARMACY | G11: $1,114,934,239.00 | H11: $0.08 | I11: $10.68 | J11: $10.00 | K11: $0.03 | L11: $0.05 | M11: 2025-11-19 | N11: =IFERROR(IF((L11/K11)>=0.1,L11/K11,""),0) -> 166.67% | P11: No | Q11: No
B12: 65862067805 | C12: ALPRAZOLAM 1 MG TABLET | D12: 2025-10-03 | E12: 90 | F12: AMICARE PHARMACY | G12: $1,114,934,239.00 | H12: $0.08 | I12: $10.68 | J12: $10.00 | K12: $0.03 | L12: $0.05 | M12: 2025-09-17 | N12: 166.67% | P12: No | Q12: No
B13: 31722077705 | C13: ACYCLOVIR 400 MG TABLET | D13: 2025-10-03 | E13: 60 | F13: AMICARE PHARMACY | G13: $1,114,934,239.00 | H13: $0.15 | I13: $10.68 | J13: $10.00 | K13: $0.09 | L13: $0.06 | M13: 2025-09-17 | N13: 66.67% | P13: No | Q13: No
B14: 16714061305 | C14: SERTRALINE HCL 100 MG TABLET | D14: 2025-11-07 | E14: 45 | F14: AMICARE PHARMACY | G14: $1,114,934,239.00 | H14: $0.30 | I14: $10.68 | J14: $10.00 | K14: $0.05 | L14: $0.25 | M14: 2025-10-22 | N14: 500.00% | P14: No | Q14: No
B15: 68180097903 | C15: LISINOPRIL 40 MG TABLET | D15: 2025-11-10 | E15: 90 | F15: AMICARE PHARMACY | G15: $1,114,934,239.00 | H15: $0.11 | I15: $10.68 | J15: $20.16 | K15: $0.05 | L15: $0.06 | M15: 2025-10-22 | N15: 120.00% | P15: No | Q15: No
B16: 68180072103 | C16: AMLODIPINE BESYLATE 10 MG TAB | D16: 2025-12-18 | E16: 90 | F16: AMICARE PHARMACY | G16: $1,114,934,239.00 | H16: $0.27 | I16: $10.68 | J16: $30.00 | K16: $0.02 | L16: $0.25 | M16: 2025-12-17 | N16: 1250.00% | P16: No | Q16: No
B17: 50228011610 | C17: ROSUVASTATIN CALCIUM 5 MG TAB | D17: 2025-10-03 | E17: 30 | F17: AMICARE PHARMACY | G17: $1,114,934,239.00 | H17: $0.31 | I17: $10.68 | J17: $0.00 | K17: $0.04 | L17: $0.27 | M17: 2025-09-17 | N17: 675.00% | P17: No | Q17: No
B18: 72603031203 | C18: CYCLOBENZAPRINE 10 MG TABLET | D18: 2025-12-08 | E18: 30 | F18: AMICARE PHARMACY | G18: $1,114,934,239.00 | H18: $0.09 | I18: $10.68 | J18: $10.00 | K18: $0.02 | L18: $0.07 | M18: 2025-11-19 | N18: 350.00% | P18: No | Q18: No
B19: 72603066402 | C19: LEVOTHYROXINE 100 MCG TABLET | D19: 2025-12-08 | E19: 30 | F19: AMICARE PHARMACY | G19: $1,114,934,239.00 | H19: $0.16 | I19: $10.68 | J19: $10.00 | K19: $0.06 | L19: $0.10 | M19: 2025-11-19 | N19: 166.67% | P19: No | Q19: No
B20: 31722070210 | C20: LOSARTAN POTASSIUM 100 MG TAB | D20: 2025-10-10 | E20: 30 | F20: AMICARE PHARMACY | G20: $1,114,934,239.00 | H20: $0.31 | I20: $10.68 | J20: $10.00 | K20: $0.04 | L20: $0.27 | M20: 2025-09-17 | N20: 675.00% | P20: No | Q20: No
B21: 16714061305 | C21: SERTRALINE HCL 100 MG TABLET | D21: 2025-12-08 | E21: 45 | F21: AMICARE PHARMACY | G21: $1,114,934,239.00 | H21: $0.30 | I21: $10.68 | J21: $10.00 | K21: $0.05 | L21: $0.25 | M21: 2025-11-19 | N21: 500.00% | P21: No | Q21: No
B22: 16714035904 | C22: FALMINA-28 TABLET | D22: 2025-10-04 | E22: 84 | F22: AMICARE PHARMACY | G22: $1,114,934,239.00 | H22: $0.25 | I22: $10.68 | J22: $0.00 | K22: $0.16 | L22: $0.09 | M22: 2025-09-17 | N22: 56.25% | P22: No | Q22: No
B23: 70010003401 | C23: DEXTROAMP-AMPHET ER 30 MG CAP | D23: 2025-10-10 | E23: 30 | F23: AMICARE PHARMACY | G23: $1,114,934,239.00 | H23: $0.96 | I23: $10.68 | J23: $39.48 | K23: $0.56 | L23: $0.40 | M23: 2025-09-17 | N23: 71.43% | P23: No | Q23: No
B24: 68180051303 | C24: LISINOPRIL 5 MG TABLET | D24: 2025-10-10 | E24: 90 | F24: AMICARE PHARMACY | G24: $1,114,934,239.00 | H24: $0.67 | I24: $10.68 | J24: $0.00 | K24: $0.01 | L24: $0.66 | M24: 2025-09-17 | N24: 6600.00% | P24: No | Q24: No
B25: 65862001305 | C25: SERTRALINE HCL 100 MG TABLET | D25: 2025-10-03 | E25: 45 | F25: AMICARE PHARMACY | G25: $1,114,934,239.00 | H25: $0.30 | I25: $10.68 | J25: $10.00 | K25: $0.05 | L25: $0.25 | M25: 2025-09-17 | N25: 500.00% | P25: No | Q25: No
B26: 555901467 | C26: LESSINA-28 TABLET | D26: 2025-12-06 | E26: 84 | F26: AMICARE PHARMACY | G26: $1,114,934,239.00 | H26: $0.25 | I26: $10.68 | J26: $0.00 | K26: $0.17 | L26: $0.08 | M26: 2025-11-19 | N26: 47.06% | P26: No | Q26: No
B27: 16571075610 | C27: ESCITALOPRAM 10 MG TABLET | D27: 2025-10-01 | E27: 90 | F27: AMICARE PHARMACY | G27: $1,114,934,239.00 | H27: $0.30 | I27: $10.68 | J27: $30.00 | K27: $0.04 | L27: $0.26 | M27: 2025-09-17 | N27: 650.00% | P27: No | Q27: No
B28: 70010003401 | C28: DEXTROAMP-AMPHET ER 30 MG CAP | D28: 2025-11-10 | E28: 30 | F28: AMICARE PHARMACY | G28: $1,114,934,239.00 | H28: $0.96 | I28: $10.68 | J28: $39.48 | K28: $0.49 | L28: $0.47 | M28: 2025-10-22 | N28: 95.92% | P28: No | Q28: No
B29: 72603066402 | C29: LEVOTHYROXINE 100 MCG TABLET | D29: 2025-11-07 | E29: 30 | F29: AMICARE PHARMACY | G29: $1,114,934,239.00 | H29: $0.16 | I29: $10.68 | J29: $10.00 | K29: $0.06 | L29: $0.10 | M29: 2025-10-22 | N29: 166.67% | P29: No | Q29: No
B30: 72888015205 | C30: CLONAZEPAM 0.5 MG TABLET | D30: 2025-12-09 | E30: 60 | F30: AMICARE PHARMACY | G30: $1,114,934,239.00 | H30: $0.11 | I30: $10.68 | J30: $0.00 | K30: $0.02 | L30: $0.09 | M30: 2025-11-19 | N30: 450.00% | P30: No | Q30: No
B31: 16714029701 | C31: AMOX-CLAV 875-125 MG TABLET | D31: 2025-10-13 | E31: 20 | F31: AMICARE PHARMACY | G31: $1,114,934,239.00 | H31: $0.51 | I31: $10.68 | J31: $10.00 | K31: $0.29 | L31: $0.22 | M31: 2025-09-17 | N31: 75.86% | P31: No | Q31: No
B32: 59746027910 | C32: ESCITALOPRAM 5 MG TABLET | D32: 2025-10-14 | E32: 90 | F32: AMICARE PHARMACY | G32: $1,114,934,239.00 | H32: $0.08 | I32: $10.68 | J32: $0.00 | K32: $0.04 | L32: $0.04 | M32: 2025-09-17 | N32: 100.00% | P32: No | Q32: No
B33: 68382080510 | C33: TRAZODONE 50 MG TABLET | D33: 2025-10-14 | E33: 30 | F33: AMICARE PHARMACY | G33: $1,114,934,239.00 | H33: $0.11 | I33: $10.68 | J33: $0.00 | K33: $0.03 | L33: $0.08 | M33: 2025-09-17 | N33: 266.67% | P33: No | Q33: No
B34: 72888015205 | C34: CLONAZEPAM 0.5 MG TABLET | D34: 2025-10-10 | E34: 60 | F34: AMICARE PHARMACY | G34: $1,114,934,239.00 | H34: $0.11 | I34: $10.68 | J34: $17.15 | K34: $0.02 | L34: $0.09 | M34: 2025-09-17 | N34: 450.00% | P34: No | Q34: No
B35: 23155075805 | C35: SERTRALINE HCL 50 MG TABLET | D35: 2025-10-07 | E35: 90 | F35: AMICARE PHARMACY | G35: $1,114,934,239.00 | H35: $0.30 | I35: $10.68 | J35: $0.00 | K35: $0.04 | L35: $0.26 | M35: 2025-09-17 | N35: 650.00% | P35: No | Q35: No
B36: 50228017505 | C36: BUPROPION HCL SR 150 MG TABLET | D36: 2025-10-03 | E36: 30 | F36: AMICARE PHARMACY | G36: $1,114,934,239.00 | H36: $0.15 | I36: $10.68 | J36: $10.00 | K36: $0.08 | L36: $0.07 | M36: 2025-09-17 | N36: 87.50% | P36: No | Q36: No
B37: 68180098603 | C37: SERTRALINE HCL 50 MG TABLET | D37: 2025-12-29 | E37: 90 | F37: AMICARE PHARMACY | G37: $1,114,934,239.00 | H37: $0.30 | I37: $10.68 | J37: $0.00 | K37: $0.04 | L37: $0.26 | M37: 2025-12-17 | N37: 650.00% | P37: No | Q37: No
B38: 50228018010 | C38: GABAPENTIN 300 MG CAPSULE | D38: 2025-11-07 | E38: 60 | F38: AMICARE PHARMACY | G38: $1,114,934,239.00 | H38: $0.07 | I38: $10.68 | J38: $10.00 | K38: $0.03 | L38: $0.04 | M38: 2025-10-22 | N38: 133.33% | P38: No | Q38: No
B39: 72603031203 | C39: CYCLOBENZAPRINE 10 MG TABLET | D39: 2025-10-03 | E39: 30 | F39: AMICARE PHARMACY | G39: $1,114,934,239.00 | H39: $0.09 | I39: $10.68 | J39: $10.00 | K39: $0.02 | L39: $0.07 | M39: 2025-09-17 | N39: 350.00% | P39: No | Q39: No
B40: 31722070210 | C40: LOSARTAN POTASSIUM 100 MG TAB | D40: 2025-11-05 | E40: 90 | F40: AMICARE PHARMACY | G40: $1,114,934,239.00 | H40: $0.31 | I40: $10.68 | J40: $30.00 | K40: $0.04 | L40: $0.27 | M40: 2025-10-22 | N40: 675.00% | P40: No | Q40: No
B41: 68180096903 | C41: LEVOTHYROXINE 100 MCG TABLET | D41: 2025-10-03 | E41: 30 | F41: AMICARE PHARMACY | G41: $1,114,934,239.00 | H41: $0.16 | I41: $10.68 | J41: $10.00 | K41: $0.05 | L41: $0.11 | M41: 2025-09-17 | N41: 220.00% | P41: No | Q41: No
B42: 50228011610 | C42: ROSUVASTATIN CALCIUM 5 MG TAB | D42: 2025-12-08 | E42: 30 | F42: AMICARE PHARMACY | G42: $1,114,934,239.00 | H42: $0.31 | I42: $10.68 | J42: $0.00 | K42: $0.04 | L42: $0.27 | M42: 2025-11-19 | N42: 675.00% | P42: No | Q42: No
B43: 31722077705 | C43: ACYCLOVIR 400 MG TABLET | D43: 2025-12-08 | E43: 60 | F43: AMICARE PHARMACY | G43: $1,114,934,239.00 | H43: $0.15 | I43: $10.68 | J43: $10.00 | K43: $0.09 | L43: $0.06 | M43: 2025-11-19 | N43: 66.67% | P43: No | Q43: No
B44: 50228018010 | C44: GABAPENTIN 300 MG CAPSULE | D44: 2025-12-08 | E44: 60 | F44: AMICARE PHARMACY | G44: $1,114,934,239.00 | H44: $0.07 | I44: $10.68 | J44: $10.00 | K44: $0.03 | L44: $0.04 | M44: 2025-11-19 | N44: 133.33% | P44: No | Q44: No
B45: 50228018010 | C45: GABAPENTIN 300 MG CAPSULE | D45: 2025-10-14 | E45: 60 | F45: AMICARE PHARMACY | G45: $1,114,934,239.00 | H45: $0.07 | I45: $10.68 | J45: $10.00 | K45: $0.04 | L45: $0.03 | M45: 2025-09-17 | N45: 75.00% | P45: No | Q45: No
B46: 70010003401 | C46: DEXTROAMP-AMPHET ER 30 MG CAP | D46: 2025-12-11 | E46: 30 | F46: AMICARE PHARMACY | G46: $1,114,934,239.00 | H46: $0.96 | I46: $10.68 | J46: $0.00 | K46: $0.47 | L46: $0.49 | M46: 2025-11-19 | N46: 104.26% | P46: No | Q46: No
B47: 57237004105 | C47: PENICILLIN VK 500 MG TABLET | D47: 2025-10-03 | E47: 60 | F47: AMICARE PHARMACY | G47: $1,114,934,239.00 | H47: $0.22 | I47: $10.68 | J47: $10.00 | K47: $0.10 | L47: $0.12 | M47: 2025-09-17 | N47: 120.00% | P47: No | Q47: No
B48: 29300041910 | C48: AMITRIPTYLINE HCL 10 MG TAB | D48: 2025-10-10 | E48: 360 | F48: AMICARE PHARMACY | G48: $1,114,934,239.00 | H48: $0.14 | I48: $10.68 | J48: $0.00 | K48: $0.04 | L48: $0.10 | M48: 2025-09-17 | N48: 250.00% | P48: No | Q48: No
B49: 50228011610 | C49: ROSUVASTATIN CALCIUM 5 MG TAB | D49: 2025-11-07 | E49: 30 | F49: AMICARE PHARMACY | G49: $1,114,934,239.00 | H49: $0.31 | I49: $10.68 | J49: $0.00 | K49: $0.04 | L49: $0.27 | M49: 2025-10-22 | N49: 675.00% | P49: No | Q49: No
B50: 31722042505 | C50: ATORVASTATIN 20 MG TABLET | D50: 2025-12-09 | E50: 90 | F50: AMICARE PHARMACY | G50: $1,114,934,239.00 | H50: $0.29 | I50: $10.68 | J50: $0.00 | K50: $0.03 | L50: $0.26 | M50: 2025-11-19 | N50: 866.67% | P50: No | Q50: No
B51: 31722042610 | C51: ATORVASTATIN 40 MG TABLET | D51: 2025-10-14 | E51: 90 | F51: AMICARE PHARMACY | G51: $1,114,934,239.00 | H51: $0.32 | I51: $10.68 | J51: $0.00 | K51: $0.04 | L51: $0.28 | M51: 2025-09-17 | N51: 700.00% | P51: No | Q51: No
B52: 50228017505 | C52: BUPROPION HCL SR 150 MG TABLET | D52: 2025-12-08 | E52: 30 | F52: AMICARE PHARMACY | G52: $1,114,934,239.00 | H52: $0.15 | I52: $10.68 | J52: $10.00 | K52: $0.08 | L52: $0.07 | M52: 2025-11-19 | N52: 87.50% | P52: No | Q52: No
B53: 50228017505 | C53: BUPROPION HCL SR 150 MG TABLET | D53: 2025-11-07 | E53: 30 | F53: AMICARE PHARMACY | G53: $1,114,934,239.00 | H53: $0.15 | I53: $10.68 | J53: $10.00 | K53: $0.08 | L53: $0.07 | M53: 2025-10-22 | N53: 87.50% | P53: No | Q53: No
B54: 33342039644 | C54: LEVOTHYROXINE 88 MCG TABLET | D54: 2025-10-14 | E54: 90 | F54: AMICARE PHARMACY | G54: $1,114,934,239.00 | H54: $0.16 | I54: $10.68 | J54: $25.27 | K54: $0.06 | L54: $0.10 | M54: 2025-09-17 | N54: 166.67% | P54: No | Q54: No
B55: 69367038110 | C55: METFORMIN HCL 500 MG TABLET | D55: 2025-12-09 | E55: 360 | F55: AMICARE PHARMACY | G55: $1,114,934,239.00 | H55: $0.07 | I55: $10.68 | J55: $0.00 | K55: $0.01 | L55: $0.06 | M55: 2025-11-19 | N55: 600.00% | P55: No | Q55: No
B56: 72888015205 | C56: CLONAZEPAM 0.5 MG TABLET | D56: 2025-11-10 | E56: 60 | F56: AMICARE PHARMACY | G56: $1,114,934,239.00 | H56: $0.11 | I56: $10.68 | J56: $17.15 | K56: $0.02 | L56: $0.09 | M56: 2025-10-22 | N56: 450.00% | P56: No | Q56: No
B57: 60505257908 | C57: ATORVASTATIN 20 MG TABLET | D57: 2025-12-09 | E57: 90 | F57: BCHC OELWEIN PHARMACY | G57: $1,588,274,302.00 | H57: $0.28 | I57: $0.00 | J57: $0.00 | K57: $0.03 | L57: $0.25 | M57: 2025-11-19 | N57: 833.33% | P57: No | Q57: No
B58: 68180098003 | C58: LISINOPRIL 10 MG TABLET | D58: 2025-12-26 | E58: 90 | F58: BCHC OELWEIN PHARMACY | G58: $1,588,274,302.00 | H58: $0.07 | I58: $10.68 | J58: $15.00 | K58: $0.02 | L58: $0.05 | M58: 2025-12-17 | N58: 250.00% | P58: No | Q58: No
B59: 65862019399 | C59: FLUOXETINE HCL 20 MG CAPSULE | D59: 2025-10-09 | E59: 90 | F59: BCHC OELWEIN PHARMACY | G59: $1,588,274,302.00 | H59: $0.11 | I59: $0.00 | J59: $10.00 | K59: $0.03 | L59: $0.08 | M59: 2025-09-17 | N59: 266.67% | P59: No | Q59: No
B60: 68180097101 | C60: LEVOTHYROXINE 125 MCG TABLET | D60: 2025-12-09 | E60: 90 | F60: BCHC OELWEIN PHARMACY | G60: $1,588,274,302.00 | H60: $0.07 | I60: $10.68 | J60: $15.00 | K60: $0.07 | L60: $0.00 | M60: 2025-11-19 | O60: 0.00% | P60: No | Q60: No
B61: 59651027530 | C61: ROFLUMILAST 500 MCG TABLET | D61: 2025-10-03 | E61: 90 | F61: BOOTH PHARMACY INC | G61: $1,952,343,485.00 | H61: $0.71 | I61: $10.68 | J61: $0.00 | K61: $0.31 | L61: $0.40 | M61: 2025-09-17 | N61: 129.03% | P61: No | Q61: No
B62: 64380078507 | C62: PREDNISONE 20 MG TABLET | D62: 2025-12-09 | E62: 10 | F62: BOOTH PHARMACY INC | G62: $1,952,343,485.00 | H62: $0.66 | I62: $10.68 | J62: $3.45 | K62: $0.08 | L62: $0.58 | M62: 2025-11-19 | N62: 725.00% | P62: No | Q62: No
B63: 68180096301 | C63: ALBUTEROL HFA 90 MCG INHALER | D63: 2025-10-03 | E63: 8.5 | F63: BOOTH PHARMACY INC | G63: $1,952,343,485.00 | H63: $2.52 | I63: $0.00 | J63: $0.00 | K63: $1.93 | L63: $0.59 | M63: 2025-09-17 | N63: 30.57% | P63: No | Q63: No
B64: 21922001604 | C64: CLOBETASOL 0.05% CREAM | D64: 2025-12-09 | E64: 15 | F64: CARROLL APOTHECARY | G64: $1,073,506,366.00 | H64: $0.44 | I64: $10.68 | J64: $17.28 | K64: $0.18 | L64: $0.26 | M64: 2025-11-19 | N64: 144.44% | P64: No | Q64: No
B65: 68001013100 | C65: AMLODIPINE-BENAZEPRIL 10-40 MG | D65: 2025-12-09 | E65: 90 | F65: CARROLL APOTHECARY | G65: $1,073,506,366.00 | H65: $0.24 | I65: $10.68 | J65: $0.00 | K65: $0.15 | L65: $0.09 | M65: 2025-11-19 | N65: 60.00% | P65: No | Q65: No
B66: 27241017456 | C66: VARENICLINE 1 MG TABLET | D66: 2025-12-09 | E66: 56 | F66: CARROLL APOTHECARY | G66: $1,073,506,366.00 | H66: $2.05 | I66: $10.68 | J66: $0.00 | K66: $0.44 | L66: $1.61 | M66: 2025-11-19 | N66: 365.91% | P66: No | Q66: No
B67: 60219234807 | C67: TRAMADOL HCL 50 MG TABLET | D67: 2025-12-16 | E67: 10 | F67: CARROLL APOTHECARY | G67: $1,073,506,366.00 | H67: $0.08 | I67: $10.68 | J67: $0.00 | K67: $0.02 | L67: =H67-K67 -> $0.06 | M67: 2025-11-19 | N67: =IFERROR(IF((L67/K67)>=0.1,L67/K67,""),0) -> 300.00% | O67: =IFERROR(IF((L67/K67)<0.1,L67/K67,""),0) ->  | P67: No | Q67: No
B68: 50228014605 | C68: HYDROCHLOROTHIAZIDE 12.5 MG CP | D68: 2025-12-09 | E68: 90 | F68: CARROLL APOTHECARY | G68: $1,073,506,366.00 | H68: $0.09 | I68: $10.68 | J68: $0.00 | K68: $0.03 | L68: $0.06 | M68: 2025-11-19 | N68: 200.00% | P68: No | Q68: No
B69: 70010006305 | C69: METFORMIN HCL 500 MG TABLET | D69: 2025-10-31 | E69: 180 | F69: CASS HEALTH PHARMACY | G69: $1,023,755,097.00 | H69: $0.07 | I69: $10.68 | J69: $4.79 | K69: $0.01 | L69: $0.06 | M69: 2025-10-22 | N69: 600.00% | P69: No | Q69: No
B70: 68180088673 | C70: NIKKI 3 MG-0.02 MG TABLET | D70: 2025-10-01 | E70: 84 | F70: CASS HEALTH PHARMACY | G70: $1,023,755,097.00 | H70: $0.28 | I70: $10.68 | J70: $0.00 | K70: $0.16 | L70: $0.12 | M70: 2025-09-17 | N70: 75.00% | P70: No | Q70: No
B71: 70700028922 | C71: TESTOSTERONE CYP 200 MG/ML | D71: 2025-12-16 | E71: 2 | F71: CASS HEALTH PHARMACY | G71: $1,023,755,097.00 | H71: $14.31 | I71: $10.68 | J71: $15.00 | K71: $11.59 | L71: $2.72 | M71: 2025-11-19 | N71: 23.47% | P71: No | Q71: No
B72: 33342006410 | C72: VALSARTAN 160 MG TABLET | D72: 2025-10-01 | E72: 90 | F72: CASS HEALTH PHARMACY | G72: $1,023,755,097.00 | H72: $0.26 | I72: $10.68 | J72: $34.44 | K72: $0.15 | L72: $0.11 | M72: 2025-09-17 | N72: 73.33% | P72: No | Q72: No
B73: 555901858 | C73: TRI-SPRINTEC TABLET | D73: 2025-12-15 | E73: 28 | F73: CASS HEALTH PHARMACY | G73: $1,023,755,097.00 | H73: $0.23 | I73: $10.68 | J73: $0.00 | K73: $0.13 | L73: $0.10 | M73: 2025-11-19 | N73: 76.92% | P73: No | Q73: No
B74: 68462039701 | C74: OMEPRAZOLE DR 40 MG CAPSULE | D74: 2025-12-08 | E74: 90 | F74: CASS HEALTH PHARMACY | G74: $1,023,755,097.00 | H74: $0.32 | I74: $10.68 | J74: $39.07 | K74: $0.05 | L74: $0.27 | M74: 2025-11-19 | N74: 540.00% | P74: No | Q74: No
B75: 65862047090 | C75: LOSARTAN-HYDROCHLOROTHIAZIDE 100-25 MG TAB | D75: 2025-10-30 | E75: 90 | F75: CASS HEALTH PHARMACY | G75: $1,023,755,097.00 | H75: $0.14 | I75: $10.68 | J75: $4.73 | K75: $0.09 | L75: $0.05 | M75: 2025-10-22 | N75: 55.56% | P75: No | Q75: No
B76: 62332008090 | C76: VALSARTAN-HYDROCHLOROTHIAZIDE 160-12.5 MG TAB | D76: 2025-11-26 | E76: 90 | F76: CASS HEALTH PHARMACY | G76: $1,023,755,097.00 | H76: $0.27 | I76: $10.68 | J76: $34.68 | K76: $0.14 | L76: $0.13 | M76: 2025-11-19 | N76: 92.86% | P76: No | Q76: No
B77: 70700028922 | C77: TESTOSTERONE CYP 200 MG/ML | D77: 2025-11-13 | E77: 2 | F77: CASS HEALTH PHARMACY | G77: $1,023,755,097.00 | H77: $14.31 | I77: $10.68 | J77: $15.00 | K77: $11.76 | L77: $2.55 | M77: 2025-10-22 | N77: 21.68% | P77: No | Q77: No
B78: 68462043890 | C78: OLMESARTAN MEDOXOMIL 40 MG TAB | D78: 2025-12-08 | E78: 90 | F78: CASS HEALTH PHARMACY | G78: $1,023,755,097.00 | H78: $0.43 | I78: $10.68 | J78: $9.85 | K78: $0.12 | L78: $0.31 | M78: 2025-11-19 | N78: 258.33% | P78: No | Q78: No
B79: 555901858 | C79: TRI-SPRINTEC TABLET | D79: 2025-11-21 | E79: 28 | F79: CASS HEALTH PHARMACY | G79: $1,023,755,097.00 | H79: $0.23 | I79: $10.68 | J79: $0.00 | K79: $0.13 | L79: $0.10 | M79: 2025-11-19 | N79: 76.92% | P79: No | Q79: No
B80: 67877027590 | C80: LANSOPRAZOLE DR 30 MG CAPSULE | D80: 2025-12-17 | E80: 90 | F80: CASS HEALTH PHARMACY | G80: $1,023,755,097.00 | H80: $0.19 | I80: $10.68 | J80: $27.78 | K80: $0.11 | L80: $0.08 | M80: 2025-11-19 | N80: 72.73% | P80: No | Q80: No
B81: 68180088673 | C81: NIKKI 3 MG-0.02 MG TABLET | D81: 2025-12-04 | E81: 28 | F81: CASS HEALTH PHARMACY | G81: $1,023,755,097.00 | H81: $0.28 | I81: $10.68 | J81: $0.00 | K81: $0.15 | L81: $0.13 | M81: 2025-11-19 | N81: 86.67% | P81: No | Q81: No
B82: 43547042309 | C82: LOSARTAN-HYDROCHLOROTHIAZIDE 50-12.5 MG TAB | D82: 2025-12-02 | E82: 180 | F82: CHEROKEE MAIN STREET PHARMACY | G82: $1,124,268,396.00 | H82: $0.15 | I82: $10.68 | J82: $25.00 | K82: $0.08 | L82: $0.07 | M82: 2025-11-19 | N82: 87.50% | P82: No | Q82: No
B83: 55111052030 | C83: ATOMOXETINE HCL 18 MG CAPSULE | D83: 2025-10-24 | E83: 30 | F83: CHEROKEE MAIN STREET PHARMACY | G83: $1,124,268,396.00 | H83: $1.57 | I83: $10.68 | J83: $20.00 | K83: $0.47 | L83: $1.10 | M83: 2025-10-22 | N83: 234.04% | P83: No | Q83: No
B84: 68001050103 | C84: METOPROLOL SUCC ER 50 MG TAB | D84: 2025-11-15 | E84: 90 | F84: CHEROKEE MAIN STREET PHARMACY | G84: $1,124,268,396.00 | H84: $0.14 | I84: $10.68 | J84: $23.39 | K84: $0.06 | L84: $0.08 | M84: 2025-10-22 | N84: 133.33% | P84: No | Q84: No
B85: 68001013100 | C85: AMLODIPINE-BENAZEPRIL 10-40 MG | D85: 2025-10-06 | E85: 30 | F85: CHEROKEE MAIN STREET PHARMACY | G85: $1,124,268,396.00 | H85: $0.24 | I85: $10.68 | J85: $0.00 | K85: $0.15 | L85: $0.09 | M85: 2025-09-17 | N85: 60.00% | P85: No | Q85: No
B86: 60219234805 | C86: TRAMADOL HCL 50 MG TABLET | D86: 2025-12-16 | E86: 20 | F86: CHEROKEE MAIN STREET PHARMACY | G86: $1,124,268,396.00 | H86: $0.08 | I86: $10.68 | J86: $12.30 | K86: $0.02 | L86: $0.06 | M86: 2025-11-19 | N86: 300.00% | P86: No | Q86: No
B87: 68462039710 | C87: OMEPRAZOLE DR 40 MG CAPSULE | D87: 2025-11-28 | E87: 90 | F87: CHEROKEE MAIN STREET PHARMACY | G87: $1,124,268,396.00 | H87: $0.32 | I87: $10.68 | J87: $3.91 | K87: $0.05 | L87: $0.27 | M87: 2025-11-19 | N87: 540.00% | P87: No | Q87: No
B88: 68001061403 | C88: BUPROPION HCL XL 300 MG TABLET | D88: 2025-12-16 | E88: 90 | F88: CHEROKEE MAIN STREET PHARMACY | G88: $1,124,268,396.00 | H88: $0.27 | I88: $10.68 | J88: $25.00 | K88: $0.14 | L88: $0.13 | M88: 2025-11-19 | N88: 92.86% | P88: No | Q88: No
B89: 68001062401 | C89: METHYLPREDNISOLONE 4 MG DOSEPK | D89: 2025-10-08 | E89: 21 | F89: CHEROKEE MAIN STREET PHARMACY | G89: $1,124,268,396.00 | H89: $0.35 | I89: $10.68 | J89: $0.00 | K89: $0.13 | L89: $0.22 | M89: 2025-09-17 | N89: 169.23% | P89: No | Q89: No
B90: 68001061403 | C90: BUPROPION HCL XL 300 MG TABLET | D90: 2025-11-11 | E90: 30 | F90: CHEROKEE MAIN STREET PHARMACY | G90: $1,124,268,396.00 | H90: $0.27 | I90: $10.68 | J90: $10.00 | K90: $0.14 | L90: $0.13 | M90: 2025-10-22 | N90: 92.86% | P90: No | Q90: No
B91: 69452029030 | C91: ACYCLOVIR 400 MG TABLET | D91: 2025-10-06 | E91: 60 | F91: CHEROKEE MAIN STREET PHARMACY | G91: $1,124,268,396.00 | H91: $0.15 | I91: $10.68 | J91: $19.56 | K91: $0.09 | L91: $0.06 | M91: 2025-09-17 | N91: 66.67% | P91: No | Q91: No
B92: 31722095201 | C92: METHYLPHENIDATE ER 18 MG TAB | D92: 2025-10-21 | E92: 30 | F92: CHEROKEE MAIN STREET PHARMACY | G92: $1,124,268,396.00 | H92: $1.19 | I92: $10.68 | J92: $20.00 | K92: $0.70 | L92: $0.49 | M92: 2025-09-17 | N92: 70.00% | P92: No | Q92: No
B93: 16729045117 | C93: LEVOTHYROXINE 100 MCG TABLET | D93: 2025-12-18 | E93: 90 | F93: CHEROKEE MAIN STREET PHARMACY | G93: $1,124,268,396.00 | H93: $0.16 | I93: $10.68 | J93: $25.45 | K93: $0.06 | L93: $0.10 | M93: 2025-12-17 | N93: 166.67% | P93: No | Q93: No
B94: 75834025501 | C94: ATORVASTATIN 10 MG TABLET | D94: 2025-11-15 | E94: 30 | F94: CHEROKEE MAIN STREET PHARMACY | G94: $1,124,268,396.00 | H94: $0.29 | I94: $10.68 | J94: $0.00 | K94: $0.02 | L94: $0.27 | M94: 2025-10-22 | N94: 1350.00% | P94: No | Q94: No
B95: 52817033200 | C95: CYCLOBENZAPRINE 10 MG TABLET | D95: 2025-10-29 | E95: 30 | F95: CHEROKEE MAIN STREET PHARMACY | G95: $1,124,268,396.00 | H95: $0.09 | I95: $10.68 | J95: $1.35 | K95: $0.02 | L95: $0.07 | M95: 2025-10-22 | N95: 350.00% | P95: No | Q95: No
B96: 68001028103 | C96: DICLOFENAC SOD DR 75 MG TAB | D96: 2025-10-08 | E96: 28 | F96: CHEROKEE MAIN STREET PHARMACY | G96: $1,124,268,396.00 | H96: $0.18 | I96: $10.68 | J96: $0.00 | K96: $0.08 | L96: $0.10 | M96: 2025-09-17 | N96: 125.00% | P96: No | Q96: No
B97: 31722095201 | C97: METHYLPHENIDATE ER 18 MG TAB | D97: 2025-11-20 | E97: 30 | F97: CHEROKEE MAIN STREET PHARMACY | G97: $1,124,268,396.00 | H97: $1.19 | I97: $10.68 | J97: $20.00 | K97: $0.68 | L97: $0.51 | M97: 2025-11-19 | N97: 75.00% | P97: No | Q97: No
B98: 68001013100 | C98: AMLODIPINE-BENAZEPRIL 10-40 MG | D98: 2025-11-04 | E98: 30 | F98: CHEROKEE MAIN STREET PHARMACY | G98: $1,124,268,396.00 | H98: $0.24 | I98: $10.68 | J98: $0.00 | K98: $0.15 | L98: $0.09 | M98: 2025-10-22 | N98: 60.00% | P98: No | Q98: No
B99: 13811070810 | C99: METHYLPHENIDATE ER 36 MG TAB | D99: 2025-10-06 | E99: 30 | F99: CHEROKEE MAIN STREET PHARMACY | G99: $1,124,268,396.00 | H99: $1.31 | I99: $10.68 | J99: $20.00 | K99: $0.74 | L99: $0.57 | M99: 2025-09-17 | N99: 77.03% | P99: No | Q99: No
B100: 68001041103 | C100: GABAPENTIN 600 MG TABLET | D100: 2025-11-28 | E100: 90 | F100: CHEROKEE MAIN STREET PHARMACY | G100: $1,124,268,396.00 | H100: $0.13 | I100: $10.68 | J100: $0.00 | K100: $0.07 | L100: $0.06 | M100: 2025-11-19 | N100: 85.71% | P100: No | Q100: No
B101: 50742061710 | C101: METOPROLOL SUCC ER 100 MG TAB | D101: 2025-10-06 | E101: 30 | F101: CHEROKEE MAIN STREET PHARMACY | G101: $1,124,268,396.00 | H101: $0.16 | I101: $10.68 | J101: $0.00 | K101: $0.09 | L101: $0.07 | M101: 2025-09-17 | N101: 77.78% | P101: No | Q101: No
B102: 31722070530 | C102: VALACYCLOVIR HCL 1 GRAM TABLET | D102: 2025-10-06 | E102: 21 | F102: CHEROKEE MAIN STREET PHARMACY | G102: $1,124,268,396.00 | H102: $0.63 | I102: $10.68 | J102: $20.00 | K102: $0.41 | L102: $0.22 | M102: 2025-09-17 | N102: 53.66% | P102: No | Q102: No
B103: 72516003201 | C103: METOPROLOL SUCC ER 100 MG TAB | D103: 2025-11-04 | E103: 30 | F103: CHEROKEE MAIN STREET PHARMACY | G103: $1,124,268,396.00 | H103: $0.16 | I103: $10.68 | J103: $0.00 | K103: $0.09 | L103: $0.07 | M103: 2025-10-22 | N103: 77.78% | P103: No | Q103: No
B104: 59651005205 | C104: EZETIMIBE 10 MG TABLET | D104: 2025-11-28 | E104: 90 | F104: CHEROKEE MAIN STREET PHARMACY | G104: $1,124,268,396.00 | H104: $0.42 | I104: $10.68 | J104: $25.00 | K104: $0.07 | L104: $0.35 | M104: 2025-11-19 | N104: 500.00% | P104: No | Q104: No
B105: 60219234805 | C105: TRAMADOL HCL 50 MG TABLET | D105: 2025-12-10 | E105: 20 | F105: CHEROKEE MAIN STREET PHARMACY | G105: $1,124,268,396.00 | H105: $0.08 | I105: $10.68 | J105: $12.30 | K105: $0.02 | L105: $0.06 | M105: 2025-11-19 | N105: 300.00% | P105: No | Q105: No
B106: 65862050320 | C106: AMOX-CLAV 875-125 MG TABLET | D106: 2025-10-13 | E106: 20 | F106: CHEROKEE MAIN STREET PHARMACY | G106: $1,124,268,396.00 | H106: $0.51 | I106: $10.68 | J106: $20.00 | K106: $0.29 | L106: $0.22 | M106: 2025-09-17 | N106: 75.86% | P106: No | Q106: No
B107: 50228011890 | C107: ROSUVASTATIN CALCIUM 20 MG TAB | D107: 2025-11-28 | E107: 90 | F107: CHEROKEE MAIN STREET PHARMACY | G107: $1,124,268,396.00 | H107: $0.34 | I107: $10.68 | J107: $0.00 | K107: $0.05 | L107: $0.29 | M107: 2025-11-19 | N107: 580.00% | P107: No | Q107: No
B108: 65862056099 | C108: PANTOPRAZOLE SOD DR 40 MG TAB | D108: 2025-11-03 | E108: 90 | F108: CHEROKEE MAIN STREET PHARMACY | G108: $1,124,268,396.00 | H108: $0.30 | I108: $10.68 | J108: $37.44 | K108: $0.04 | L108: $0.26 | M108: 2025-10-22 | N108: 650.00% | P108: No | Q108: No
B109: 68001061403 | C109: BUPROPION HCL XL 300 MG TABLET | D109: 2025-10-13 | E109: 30 | F109: CHEROKEE MAIN STREET PHARMACY | G109: $1,124,268,396.00 | H109: $0.27 | I109: $10.68 | J109: $10.00 | K109: $0.15 | L109: $0.12 | M109: 2025-09-17 | N109: 80.00% | P109: No | Q109: No
B110: 70010023110 | C110: TRAZODONE 50 MG TABLET | D110: 2025-11-11 | E110: 60 | F110: CHEROKEE MAIN STREET PHARMACY | G110: $1,124,268,396.00 | H110: $0.11 | I110: $10.68 | J110: $10.00 | K110: $0.03 | L110: $0.08 | M110: 2025-10-22 | N110: 266.67% | P110: No | Q110: No
B111: 68462026190 | C111: ROSUVASTATIN CALCIUM 5 MG TAB | D111: 2025-12-18 | E111: 30 | F111: CHEROKEE MAIN STREET PHARMACY | G111: $1,124,268,396.00 | H111: $0.31 | I111: $10.68 | J111: $0.00 | K111: $0.04 | L111: $0.27 | M111: 2025-12-17 | N111: 675.00% | P111: No | Q111: No
B112: 68001059208 | C112: ESCITALOPRAM 10 MG TABLET | D112: 2025-11-15 | E112: 90 | F112: CHEROKEE MAIN STREET PHARMACY | G112: $1,124,268,396.00 | H112: $0.30 | I112: $10.68 | J112: $25.00 | K112: $0.04 | L112: $0.26 | M112: 2025-10-22 | N112: 650.00% | P112: No | Q112: No
B113: 31722095401 | C113: METHYLPHENIDATE ER 36 MG TAB | D113: 2025-11-07 | E113: 30 | F113: CHEROKEE MAIN STREET PHARMACY | G113: $1,124,268,396.00 | H113: $1.31 | I113: $10.68 | J113: $20.00 | K113: $0.75 | L113: $0.56 | M113: 2025-10-22 | N113: 74.67% | P113: No | Q113: No
B114: 31722095401 | C114: METHYLPHENIDATE ER 36 MG TAB | D114: 2025-12-08 | E114: 30 | F114: CHEROKEE MAIN STREET PHARMACY | G114: $1,124,268,396.00 | H114: $1.31 | I114: $10.68 | J114: $20.00 | K114: $0.74 | L114: $0.57 | M114: 2025-11-19 | N114: 77.03% | P114: No | Q114: No
B115: 68382079201 | C115: ACYCLOVIR 800 MG TABLET | D115: 2025-10-13 | E115: 30 | F115: CHEROKEE MAIN STREET PHARMACY | G115: $1,124,268,396.00 | H115: $0.26 | I115: $10.68 | J115: $18.41 | K115: $0.16 | L115: $0.10 | M115: 2025-09-17 | N115: 62.50% | P115: No | Q115: No
B116: 65862007930 | C116: TERBINAFINE HCL 250 MG TABLET | D116: 2025-10-29 | E116: 90 | F116: CHEROKEE MAIN STREET PHARMACY | G116: $1,124,268,396.00 | H116: $0.44 | I116: $10.68 | J116: $50.02 | K116: $0.15 | L116: $0.29 | M116: 2025-10-22 | N116: 193.33% | P116: No | Q116: No
B117: 31722017401 | C117: METHYLPHENIDATE 10 MG TABLET | D117: 2025-10-24 | E117: 30 | F117: CHEROKEE MAIN STREET PHARMACY | G117: $1,124,268,396.00 | H117: $0.26 | I117: $10.68 | J117: $18.48 | K117: $0.18 | L117: $0.08 | M117: 2025-10-22 | N117: 44.44% | P117: No | Q117: No
B118: 68382058201 | C118: LIOTHYRONINE SOD 5 MCG TAB | D118: 2025-11-11 | E118: 90 | F118: CHEROKEE MAIN STREET PHARMACY | G118: $1,124,268,396.00 | H118: $0.35 | I118: $10.68 | J118: $42.00 | K118: $0.26 | L118: $0.09 | M118: 2025-10-22 | N118: 34.62% | P118: No | Q118: No
B119: 50228011890 | C119: ROSUVASTATIN CALCIUM 20 MG TAB | D119: 2025-11-15 | E119: 90 | F119: CHEROKEE MAIN STREET PHARMACY | G119: $1,124,268,396.00 | H119: $0.34 | I119: $10.68 | J119: $0.00 | K119: $0.05 | L119: $0.29 | M119: 2025-10-22 | N119: 580.00% | P119: No | Q119: No
B120: 68001061403 | C120: BUPROPION HCL XL 300 MG TABLET | D120: 2025-11-01 | E120: 90 | F120: CHEROKEE MAIN STREET PHARMACY | G120: $1,124,268,396.00 | H120: $0.27 | I120: $10.68 | J120: $25.00 | K120: $0.14 | L120: $0.13 | M120: 2025-10-22 | N120: 92.86% | P120: No | Q120: No
B121: 72516003201 | C121: METOPROLOL SUCC ER 100 MG TAB | D121: 2025-12-17 | E121: 30 | F121: CHEROKEE MAIN STREET PHARMACY | G121: $1,124,268,396.00 | H121: $0.16 | I121: $10.68 | J121: $0.00 | K121: $0.09 | L121: $0.07 | M121: 2025-11-19 | N121: 77.78% | P121: No | Q121: No
B122: 68180098603 | C122: SERTRALINE HCL 50 MG TABLET | D122: 2025-12-03 | E122: 90 | F122: CHEROKEE MAIN STREET PHARMACY | G122: $1,124,268,396.00 | H122: $0.30 | I122: $10.68 | J122: $25.00 | K122: $0.04 | L122: $0.26 | M122: 2025-11-19 | N122: 650.00% | P122: No | Q122: No
B123: 31722017401 | C123: METHYLPHENIDATE 10 MG TABLET | D123: 2025-12-08 | E123: 30 | F123: CHEROKEE MAIN STREET PHARMACY | G123: $1,124,268,396.00 | H123: $0.26 | I123: $10.68 | J123: $18.48 | K123: $0.19 | L123: $0.07 | M123: 2025-11-19 | N123: 36.84% | P123: No | Q123: No
B124: 55111052030 | C124: ATOMOXETINE HCL 18 MG CAPSULE | D124: 2025-11-25 | E124: 30 | F124: CHEROKEE MAIN STREET PHARMACY | G124: $1,124,268,396.00 | H124: $1.57 | I124: $10.68 | J124: $20.00 | K124: $0.49 | L124: $1.08 | M124: 2025-11-19 | N124: 220.41% | P124: No | Q124: No
B125: 42192032701 | C125: NP THYROID 15 MG TABLET | D125: 2025-11-11 | E125: 90 | F125: CHEROKEE MAIN STREET PHARMACY | G125: $1,124,268,396.00 | H125: $0.71 | I125: $10.68 | J125: $50.00 | K125: $0.52 | L125: $0.19 | M125: 2025-10-22 | N125: 36.54% | P125: No | Q125: No
B126: 42192033001 | C126: NP THYROID 60 MG TABLET | D126: 2025-11-11 | E126: 90 | F126: CHEROKEE MAIN STREET PHARMACY | G126: $1,124,268,396.00 | H126: $0.92 | I126: $10.68 | J126: $50.00 | K126: $0.67 | L126: $0.25 | M126: 2025-10-22 | N126: 37.31% | P126: No | Q126: No
B127: 67877019910 | C127: AMLODIPINE BESYLATE 10 MG TAB | D127: 2025-11-28 | E127: 90 | F127: CHEROKEE MAIN STREET PHARMACY | G127: $1,124,268,396.00 | H127: $0.27 | I127: $10.68 | J127: $25.00 | K127: $0.02 | L127: $0.25 | M127: 2025-11-19 | N127: 1250.00% | P127: No | Q127: No
B128: 31722095201 | C128: METHYLPHENIDATE ER 18 MG TAB | D128: 2025-12-22 | E128: 30 | F128: CHEROKEE MAIN STREET PHARMACY | G128: $1,124,268,396.00 | H128: $1.19 | I128: $10.68 | J128: $20.00 | K128: $0.66 | L128: $0.53 | M128: 2025-12-17 | N128: 80.30% | P128: No | Q128: No
B129: 68001013100 | C129: AMLODIPINE-BENAZEPRIL 10-40 MG | D129: 2025-12-17 | E129: 30 | F129: CHEROKEE MAIN STREET PHARMACY | G129: $1,124,268,396.00 | H129: $0.24 | I129: $10.68 | J129: $0.00 | K129: $0.15 | L129: $0.09 | M129: 2025-11-19 | N129: 60.00% | P129: No | Q129: No
B130: 68001041103 | C130: GABAPENTIN 600 MG TABLET | D130: 2025-10-06 | E130: 90 | F130: CHEROKEE MAIN STREET PHARMACY | G130: $1,124,268,396.00 | H130: $0.13 | I130: $10.68 | J130: $0.00 | K130: $0.07 | L130: $0.06 | M130: 2025-09-17 | N130: 85.71% | P130: No | Q130: No
B131: 68180098003 | C131: LISINOPRIL 10 MG TABLET | D131: 2025-10-09 | E131: 90 | F131: CHI HEALTH PHARMACY - VALLEY VIEW | G131: $1,295,293,744.00 | H131: $0.14 | I131: $10.68 | J131: $15.00 | K131: $0.02 | L131: =H131-K131 -> $0.12 | M131: 2025-09-17 | N131: =IFERROR(IF((L131/K131)>=0.1,L131/K131,""),0) -> 600.00% | O131: =IFERROR(IF((L131/K131)<0.1,L131/K131,""),0) ->  | P131: No | Q131: No
B132: 70756040411 | C132: NITROFURANTOIN MONO-MCR 100 MG | D132: 2025-10-22 | E132: 10 | F132: CHI HEALTH PHARMACY - VALLEY VIEW | G132: $1,295,293,744.00 | H132: $0.60 | I132: $10.68 | J132: $5.00 | K132: $0.33 | L132: $0.27 | M132: 2025-09-17 | N132: 81.82% | P132: No | Q132: No
B133: 72205002399 | C133: ATORVASTATIN 20 MG TABLET | D133: 2025-10-22 | E133: 90 | F133: CHI HEALTH PHARMACY - VALLEY VIEW | G133: $1,295,293,744.00 | H133: $0.69 | I133: $10.68 | J133: $0.00 | K133: $0.03 | L133: $0.66 | M133: 2025-09-17 | N133: 2200.00% | P133: No | Q133: No
B134: 65862020399 | C134: LOSARTAN POTASSIUM 100 MG TAB | D134: 2025-11-10 | E134: 90 | F134: CHI HEALTH PHARMACY - VALLEY VIEW | G134: $1,295,293,744.00 | H134: $0.14 | I134: $10.68 | J134: $23.67 | K134: $0.04 | L134: $0.10 | M134: 2025-10-22 | N134: 250.00% | P134: No | Q134: No
B135: 67877015905 | C135: METFORMIN HCL ER 500 MG TABLET | D135: 2025-12-03 | E135: 270 | F135: CHI HEALTH PHARMACY - VALLEY VIEW | G135: $1,295,293,744.00 | H135: $0.07 | I135: $10.68 | J135: $30.27 | K135: $0.03 | L135: $0.04 | M135: 2025-11-19 | N135: 133.33% | P135: No | Q135: No
B136: 43547028111 | C136: ESCITALOPRAM 10 MG TABLET | D136: 2025-12-15 | E136: 30 | F136: CHI HEALTH PHARMACY - WEST BROADWAY | G136: $1,619,396,835.00 | H136: $0.17 | I136: $10.68 | J136: $15.00 | K136: $0.04 | L136: $0.13 | M136: 2025-11-19 | N136: 325.00% | P136: No | Q136: No
B137: 68462015713 | C137: ONDANSETRON ODT 4 MG TABLET | D137: 2025-10-02 | E137: 10 | F137: CHI HEALTH PHARMACY - WEST BROADWAY | G137: $1,619,396,835.00 | H137: $1.39 | I137: $10.68 | J137: $10.00 | K137: $0.16 | L137: $1.23 | M137: 2025-09-17 | N137: 768.75% | P137: No | Q137: No
B138: 59651048805 | C138: PREDNISONE 20 MG TABLET | D138: 2025-12-11 | E138: 10 | F138: CHI HEALTH PHARMACY - WEST BROADWAY | G138: $1,619,396,835.00 | H138: $0.50 | I138: $10.68 | J138: $5.00 | K138: $0.08 | L138: $0.42 | M138: 2025-11-19 | N138: 525.00% | P138: No | Q138: No
B139: 378427677 | C139: VALACYCLOVIR HCL 1 GRAM TABLET | D139: 2025-12-15 | E139: 20 | F139: CHI HEALTH PHARMACY - WEST BROADWAY | G139: $1,619,396,835.00 | H139: $1.39 | I139: $10.68 | J139: $15.00 | K139: $0.41 | L139: $0.98 | M139: 2025-11-19 | N139: 239.02% | P139: No | Q139: No
B140: 16714029904 | C140: AMOXICILLIN 500 MG CAPSULE | D140: 2025-11-04 | E140: 4 | F140: CHI HEALTH PHARMACY - WEST BROADWAY | G140: $1,619,396,835.00 | H140: $1.25 | I140: $10.68 | J140: $0.00 | K140: $0.09 | L140: $1.16 | M140: 2025-10-22 | N140: 1288.89% | P140: No | Q140: No
B141: 10702001801 | C141: OXYCODONE HCL (IR) 5 MG TABLET | D141: 2025-10-02 | E141: 12 | F141: CHI HEALTH PHARMACY - WEST BROADWAY | G141: $1,619,396,835.00 | H141: $0.42 | I141: $10.68 | J141: $10.00 | K141: $0.09 | L141: $0.33 | M141: 2025-09-17 | N141: 366.67% | P141: No | Q141: No
B142: 65862017760 | C142: CEFDINIR 300 MG CAPSULE | D142: 2025-11-13 | E142: 20 | F142: CHI HEALTH PHARMACY - WEST BROADWAY | G142: $1,619,396,835.00 | H142: $0.75 | I142: $10.68 | J142: $0.00 | K142: $0.46 | L142: $0.29 | M142: 2025-10-22 | N142: 63.04% | P142: No | Q142: No
B143: 65862064169 | C143: AZITHROMYCIN 250 MG TABLET | D143: 2025-12-11 | E143: 6 | F143: CHI HEALTH PHARMACY - WEST BROADWAY | G143: $1,619,396,835.00 | H143: $1.00 | I143: $10.68 | J143: $5.00 | K143: $0.33 | L143: $0.67 | M143: 2025-11-19 | N143: 203.03% | P143: No | Q143: No
B144: 70700020793 | C144: LOJAIMIESS 0.1-0.02-0.01 TAB | D144: 2025-12-08 | E144: 91 | F144: CLINIC PHARMACY | G144: $1,194,816,546.00 | H144: $0.32 | I144: $10.68 | J144: $0.00 | K144: $0.19 | L144: $0.13 | M144: 2025-11-19 | N144: 68.42% | P144: No | Q144: No
B145: 555077702 | C145: DEXTROAMP-AMPHETAMIN 15 MG TAB | D145: 2025-12-19 | E145: 60 | F145: CLINIC PHARMACY | G145: $1,194,816,546.00 | H145: $0.36 | I145: $10.68 | J145: $32.28 | K145: $0.28 | L145: $0.08 | M145: 2025-12-17 | N145: 28.57% | P145: No | Q145: No
B146: 555077702 | C146: DEXTROAMP-AMPHETAMIN 15 MG TAB | D146: 2025-11-14 | E146: 60 | F146: CLINIC PHARMACY | G146: $1,194,816,546.00 | H146: $0.36 | I146: $10.68 | J146: $32.28 | K146: $0.25 | L146: $0.11 | M146: 2025-10-22 | N146: 44.00% | P146: No | Q146: No
B147: 781808926 | C147: AZITHROMYCIN 250 MG TABLET | D147: 2025-10-22 | E147: 6 | F147: CMH PHARMACY - NORTH ENGLISH | G147: $1,922,670,751.00 | H147: $0.96 | I147: $10.68 | J147: $16.44 | K147: $0.36 | L147: $0.60 | M147: 2025-09-17 | N147: 166.67% | P147: No | Q147: No
B148: 121077516 | C148: GUAIFEN-CODEINE 100-10 MG/5 ML | D148: 2025-10-24 | E148: 120 | F148: CMH PHARMACY - NORTH ENGLISH | G148: $1,922,670,751.00 | H148: $0.07 | I148: $10.68 | J148: $19.14 | K148: $0.03 | L148: $0.04 | M148: 2025-10-22 | N148: 133.33% | P148: No | Q148: No
B149: 59651084001 | C149: GUANFACINE 1 MG TABLET | D149: 2025-12-10 | E149: 120 | F149: CMH PHARMACY - NORTH ENGLISH | G149: $1,922,670,751.00 | H149: $0.34 | I149: $10.68 | J149: $15.00 | K149: $0.16 | L149: $0.18 | M149: 2025-11-19 | N149: 112.50% | P149: No | Q149: No
B150: 59746017306 | C150: PREDNISONE 10 MG TABLET | D150: 2025-10-20 | E150: 15 | F150: CMH PHARMACY - NORTH ENGLISH | G150: $1,922,670,751.00 | H150: $0.18 | I150: $10.68 | J150: $13.32 | K150: $0.06 | L150: $0.12 | M150: 2025-09-17 | N150: 200.00% | P150: No | Q150: No
B151: 115148601 | C151: DEXTROAMP-AMPHET ER 5 MG CAP | D151: 2025-10-10 | E151: 30 | F151: CMH PHARMACY - NORTH ENGLISH | G151: $1,922,670,751.00 | H151: $0.96 | I151: $10.68 | J151: $39.48 | K151: $0.52 | L151: $0.44 | M151: 2025-09-17 | N151: 84.62% | P151: No | Q151: No
B152: 59651084001 | C152: GUANFACINE 1 MG TABLET | D152: 2025-11-10 | E152: 120 | F152: CMH PHARMACY - NORTH ENGLISH | G152: $1,922,670,751.00 | H152: $0.34 | I152: $10.68 | J152: $15.00 | K152: $0.16 | L152: $0.18 | M152: 2025-10-22 | N152: 112.50% | P152: No | Q152: No
B153: 115148601 | C153: DEXTROAMP-AMPHET ER 5 MG CAP | D153: 2025-11-10 | E153: 30 | F153: CMH PHARMACY - NORTH ENGLISH | G153: $1,922,670,751.00 | H153: $0.96 | I153: $10.68 | J153: $39.48 | K153: $0.47 | L153: $0.49 | M153: 2025-10-22 | N153: 104.26% | P153: No | Q153: No
B154: 68180065208 | C154: DOXYCYCLINE MONO 100 MG CAP | D154: 2025-10-24 | E154: 20 | F154: CMH PHARMACY - NORTH ENGLISH | G154: $1,922,670,751.00 | H154: $0.44 | I154: $10.68 | J154: $19.52 | K154: $0.24 | L154: $0.20 | M154: 2025-10-22 | N154: 83.33% | P154: No | Q154: No
B155: 115148601 | C155: DEXTROAMP-AMPHET ER 5 MG CAP | D155: 2025-12-10 | E155: 30 | F155: CMH PHARMACY - NORTH ENGLISH | G155: $1,922,670,751.00 | H155: $0.96 | I155: $10.68 | J155: $39.48 | K155: $0.44 | L155: $0.52 | M155: 2025-11-19 | N155: 118.18% | P155: No | Q155: No
B156: 59746017306 | C156: PREDNISONE 10 MG TABLET | D156: 2025-10-24 | E156: 30 | F156: CMH PHARMACY - NORTH ENGLISH | G156: $1,922,670,751.00 | H156: $0.18 | I156: $10.68 | J156: $15.96 | K156: $0.06 | L156: $0.12 | M156: 2025-10-22 | N156: 200.00% | P156: No | Q156: No
B157: 64850051101 | C157: DEXTROAMP-AMPHET ER 10 MG CAP | D157: 2025-12-26 | E157: 30 | F157: CMH PHARMACY - NORTH ENGLISH | G157: $1,922,670,751.00 | H157: $1.04 | I157: $10.68 | J157: $41.78 | K157: $0.51 | L157: $0.53 | M157: 2025-12-17 | N157: 103.92% | P157: No | Q157: No
B158: 59651084001 | C158: GUANFACINE 1 MG TABLET | D158: 2025-10-10 | E158: 120 | F158: CMH PHARMACY - NORTH ENGLISH | G158: $1,922,670,751.00 | H158: $0.34 | I158: $10.68 | J158: $15.00 | K158: $0.15 | L158: $0.19 | M158: 2025-09-17 | N158: 126.67% | P158: No | Q158: No
B159: 70700030201 | C159: GUANFACINE 2 MG TABLET | D159: 2025-12-26 | E159: 60 | F159: CMH PHARMACY - NORTH ENGLISH | G159: $1,922,670,751.00 | H159: $0.55 | I159: $10.68 | J159: $15.00 | K159: $0.28 | L159: $0.27 | M159: 2025-12-17 | N159: 96.43% | P159: No | Q159: No
B160: 70710146002 | C160: AZITHROMYCIN 200 MG/5 ML SUSP | D160: 2025-10-29 | E160: 30 | F160: CMH PHARMACY - NORTH ENGLISH | G160: $1,922,670,751.00 | H160: $0.40 | I160: $10.68 | J160: $22.80 | K160: $0.22 | L160: $0.18 | M160: 2025-10-22 | N160: 81.82% | P160: No | Q160: No
B161: 121075908 | C161: PREDNISOLONE 15 MG/5 ML SOLN | D161: 2025-10-29 | E161: 25 | F161: CMH PHARMACY - NORTH ENGLISH | G161: $1,922,670,751.00 | H161: $0.61 | I161: $0.00 | J161: $15.15 | K161: $0.12 | L161: $0.49 | M161: 2025-10-22 | N161: 408.33% | P161: No | Q161: No
B162: 62332003031 | C162: ROPINIROLE HCL 0.25 MG TABLET | D162: 2025-12-01 | E162: 60 | F162: COMMUNITY HEALTH CARE PHARMACY | G162: $1,861,518,276.00 | H162: $0.08 | I162: $10.68 | J162: $5.71 | K162: $0.05 | L162: $0.03 | M162: 2025-11-19 | N162: 60.00% | P162: No | Q162: No
B163: 13668000801 | C163: ZOLPIDEM TARTRATE 10 MG TABLET | D163: 2025-11-05 | E163: 30 | F163: COMMUNITY HEALTH CARE PHARMACY | G163: $1,861,518,276.00 | H163: $0.07 | I163: $10.68 | J163: $8.00 | K163: $0.04 | L163: $0.03 | M163: 2025-10-22 | N163: 75.00% | P163: No | Q163: No
B164: 51672413304 | C164: LAMOTRIGINE 200 MG TABLET | D164: 2025-11-13 | E164: 135 | F164: COMMUNITY HEALTH CARE PHARMACY | G164: $1,861,518,276.00 | H164: $0.23 | I164: $10.68 | J164: $24.00 | K164: $0.08 | L164: $0.15 | M164: 2025-10-22 | N164: 187.50% | P164: No | Q164: No
B165: 93007401 | C165: ZOLPIDEM TARTRATE 10 MG TABLET | D165: 2025-10-06 | E165: 30 | F165: COMMUNITY HEALTH CARE PHARMACY | G165: $1,861,518,276.00 | H165: $0.07 | I165: $10.68 | J165: $8.00 | K165: $0.04 | L165: $0.03 | M165: 2025-09-17 | N165: 75.00% | P165: No | Q165: No
B166: 13668000801 | C166: ZOLPIDEM TARTRATE 10 MG TABLET | D166: 2025-12-31 | E166: 30 | F166: COMMUNITY HEALTH CARE PHARMACY | G166: $1,861,518,276.00 | H166: $0.07 | I166: $10.68 | J166: $8.00 | K166: $0.04 | L166: $0.03 | M166: 2025-12-17 | N166: 75.00% | P166: No | Q166: No
B167: 13668000801 | C167: ZOLPIDEM TARTRATE 10 MG TABLET | D167: 2025-12-03 | E167: 30 | F167: COMMUNITY HEALTH CARE PHARMACY | G167: $1,861,518,276.00 | H167: $0.07 | I167: $10.68 | J167: $8.00 | K167: $0.04 | L167: $0.03 | M167: 2025-11-19 | N167: 75.00% | P167: No | Q167: No
B168: 50111056001 | C168: TRAZODONE 50 MG TABLET | D168: 2025-10-02 | E168: 20 | F168: COMMUNITY PHARMACY OF GOWRIE | G168: $1,780,143,016.00 | H168: $0.13 | I168: $10.68 | J168: $10.00 | K168: $0.03 | L168: $0.10 | M168: 2025-09-17 | N168: 333.33% | P168: No | Q168: No
B169: 16714015901 | C169: ONDANSETRON HCL 4 MG TABLET | D169: 2025-11-24 | E169: 15 | F169: COMMUNITY PHARMACY OF LAKE VIEW | G169: $1,235,698,564.00 | H169: $3.49 | I169: $10.68 | J169: $15.00 | K169: $0.07 | L169: $3.42 | M169: 2025-11-19 | N169: 4885.71% | P169: No | Q169: No
B170: 16714061105 | C170: SERTRALINE HCL 25 MG TABLET | D170: 2025-11-24 | E170: 84 | F170: COMMUNITY PHARMACY OF LAKE VIEW | G170: $1,235,698,564.00 | H170: $0.09 | I170: $10.68 | J170: $0.00 | K170: $0.03 | L170: $0.06 | M170: 2025-11-19 | N170: 200.00% | P170: No | Q170: No
B171: 16714008111 | C171: HYDROXYZINE HCL 10 MG TABLET | D171: 2025-12-29 | E171: 30 | F171: COMMUNITY PHARMACY OF LAKE VIEW | G171: $1,235,698,564.00 | H171: $0.07 | I171: $10.68 | J171: $12.75 | K171: $0.03 | L171: $0.04 | M171: 2025-12-17 | N171: 133.33% | P171: No | Q171: No
B172: 16714008111 | C172: HYDROXYZINE HCL 10 MG TABLET | D172: 2025-11-24 | E172: 30 | F172: COMMUNITY PHARMACY OF LAKE VIEW | G172: $1,235,698,564.00 | H172: $0.09 | I172: $10.68 | J172: $13.35 | K172: $0.03 | L172: $0.06 | M172: 2025-11-19 | N172: 200.00% | P172: No | Q172: No
B173: 68180096301 | C173: ALBUTEROL HFA 90 MCG INHALER | D173: 2025-12-01 | E173: 8.5 | F173: COMMUNITY PHARMACY OF LAKE VIEW | G173: $1,235,698,564.00 | H173: $4.52 | I173: $10.68 | J173: $0.00 | K173: $1.94 | L173: $2.58 | M173: 2025-11-19 | N173: 132.99% | P173: No | Q173: No
B174: 71921021550 | C174: GLIMEPIRIDE 2 MG TABLET | D174: 2025-10-01 | E174: 75 | F174: COMMUNITY PHARMACY OF ROCKWELL CITY | G174: $1,316,406,648.00 | H174: $0.09 | I174: $10.68 | J174: $5.00 | K174: $0.04 | L174: $0.05 | M174: 2025-09-17 | N174: 125.00% | P174: No | Q174: No
B175: 71921021550 | C175: GLIMEPIRIDE 2 MG TABLET | D175: 2025-12-05 | E175: 60 | F175: COMMUNITY PHARMACY OF ROCKWELL CITY | G175: $1,316,406,648.00 | H175: $0.09 | I175: $10.68 | J175: $5.00 | K175: $0.03 | L175: $0.06 | M175: 2025-11-19 | N175: 200.00% | P175: No | Q175: No
B176: 16714061305 | C176: SERTRALINE HCL 100 MG TABLET | D176: 2025-10-30 | E176: 60 | F176: COMMUNITY PHARMACY OF ROCKWELL CITY | G176: $1,316,406,648.00 | H176: $0.41 | I176: $10.68 | J176: $5.00 | K176: $0.05 | L176: $0.36 | M176: 2025-10-22 | N176: 720.00% | P176: No | Q176: No
B177: 42385097711 | C177: METFORMIN HCL ER 500 MG TABLET | D177: 2025-10-30 | E177: 120 | F177: COMMUNITY PHARMACY OF ROCKWELL CITY | G177: $1,316,406,648.00 | H177: $0.12 | I177: $10.68 | J177: $5.00 | K177: $0.03 | L177: $0.09 | M177: 2025-10-22 | N177: 300.00% | P177: No | Q177: No
B178: 43547035411 | C178: LISINOPRIL 20 MG TABLET | D178: 2025-12-05 | E178: 30 | F178: COMMUNITY PHARMACY OF ROCKWELL CITY | G178: $1,316,406,648.00 | H178: $0.07 | I178: $10.68 | J178: $5.00 | K178: $0.03 | L178: $0.04 | M178: 2025-11-19 | N178: 133.33% | P178: No | Q178: No
B179: 43547035411 | C179: LISINOPRIL 20 MG TABLET | D179: 2025-10-01 | E179: 30 | F179: COMMUNITY PHARMACY OF ROCKWELL CITY | G179: $1,316,406,648.00 | H179: $0.17 | I179: $10.68 | J179: $5.00 | K179: $0.03 | L179: $0.14 | M179: 2025-09-17 | N179: 466.67% | P179: No | Q179: No
B180: 29300039710 | C180: AMLODIPINE BESYLATE 5 MG TAB | D180: 2025-12-05 | E180: 30 | F180: COMMUNITY PHARMACY OF ROCKWELL CITY | G180: $1,316,406,648.00 | H180: $0.06 | I180: $10.68 | J180: $5.00 | K180: $0.01 | L180: $0.05 | M180: 2025-11-19 | N180: 500.00% | P180: No | Q180: No
B181: 43547035411 | C181: LISINOPRIL 20 MG TABLET | D181: 2025-10-30 | E181: 30 | F181: COMMUNITY PHARMACY OF ROCKWELL CITY | G181: $1,316,406,648.00 | H181: $0.17 | I181: $10.68 | J181: $5.00 | K181: $0.03 | L181: $0.14 | M181: 2025-10-22 | N181: 466.67% | P181: No | Q181: No
B182: 72603028303 | C182: ATORVASTATIN 20 MG TABLET | D182: 2025-10-30 | E182: 30 | F182: COMMUNITY PHARMACY OF ROCKWELL CITY | G182: $1,316,406,648.00 | H182: $0.85 | I182: $10.68 | J182: $0.00 | K182: $0.03 | L182: $0.82 | M182: 2025-10-22 | N182: 2733.33% | P182: No | Q182: No
B183: 29300039710 | C183: AMLODIPINE BESYLATE 5 MG TAB | D183: 2025-10-01 | E183: 30 | F183: COMMUNITY PHARMACY OF ROCKWELL CITY | G183: $1,316,406,648.00 | H183: $0.27 | I183: $10.68 | J183: $5.00 | K183: $0.01 | L183: $0.26 | M183: 2025-09-17 | N183: 2600.00% | P183: No | Q183: No
B184: 16714061305 | C184: SERTRALINE HCL 100 MG TABLET | D184: 2025-10-01 | E184: 60 | F184: COMMUNITY PHARMACY OF ROCKWELL CITY | G184: $1,316,406,648.00 | H184: $0.41 | I184: $10.68 | J184: $5.00 | K184: $0.05 | L184: $0.36 | M184: 2025-09-17 | N184: 720.00% | P184: No | Q184: No
B185: 16714061305 | C185: SERTRALINE HCL 100 MG TABLET | D185: 2025-12-05 | E185: 60 | F185: COMMUNITY PHARMACY OF ROCKWELL CITY | G185: $1,316,406,648.00 | H185: $0.10 | I185: $10.68 | J185: $5.00 | K185: $0.05 | L185: $0.05 | M185: 2025-11-19 | N185: 100.00% | P185: No | Q185: No
B186: 72603028303 | C186: ATORVASTATIN 20 MG TABLET | D186: 2025-12-05 | E186: 30 | F186: COMMUNITY PHARMACY OF ROCKWELL CITY | G186: $1,316,406,648.00 | H186: $0.80 | I186: $10.68 | J186: $0.00 | K186: $0.03 | L186: $0.77 | M186: 2025-11-19 | N186: 2566.67% | P186: No | Q186: No
B187: 172208380 | C187: HYDROCHLOROTHIAZIDE 25 MG TAB | D187: 2025-10-01 | E187: 30 | F187: COMMUNITY PHARMACY OF ROCKWELL CITY | G187: $1,316,406,648.00 | H187: $0.02 | I187: $10.68 | J187: $5.00 | K187: $0.01 | L187: $0.01 | M187: 2025-09-17 | N187: 100.00% | P187: No | Q187: No
B188: 71921021550 | C188: GLIMEPIRIDE 2 MG TABLET | D188: 2025-10-30 | E188: 60 | F188: COMMUNITY PHARMACY OF ROCKWELL CITY | G188: $1,316,406,648.00 | H188: $0.09 | I188: $10.68 | J188: $5.00 | K188: $0.03 | L188: $0.06 | M188: 2025-10-22 | N188: 200.00% | P188: No | Q188: No
B189: 42385097711 | C189: METFORMIN HCL ER 500 MG TABLET | D189: 2025-12-05 | E189: 120 | F189: COMMUNITY PHARMACY OF ROCKWELL CITY | G189: $1,316,406,648.00 | H189: $0.04 | I189: $10.68 | J189: $5.00 | K189: $0.03 | L189: $0.01 | M189: 2025-11-19 | N189: 33.33% | P189: No | Q189: No
B190: 29300039710 | C190: AMLODIPINE BESYLATE 5 MG TAB | D190: 2025-10-30 | E190: 30 | F190: COMMUNITY PHARMACY OF ROCKWELL CITY | G190: $1,316,406,648.00 | H190: $0.27 | I190: $10.68 | J190: $5.00 | K190: $0.01 | L190: $0.26 | M190: 2025-10-22 | N190: 2600.00% | P190: No | Q190: No
B191: 72603028303 | C191: ATORVASTATIN 20 MG TABLET | D191: 2025-10-01 | E191: 30 | F191: COMMUNITY PHARMACY OF ROCKWELL CITY | G191: $1,316,406,648.00 | H191: $0.85 | I191: $10.68 | J191: $0.00 | K191: $0.03 | L191: $0.82 | M191: 2025-09-17 | N191: 2733.33% | P191: No | Q191: No
B192: 172208380 | C192: HYDROCHLOROTHIAZIDE 25 MG TAB | D192: 2025-10-30 | E192: 30 | F192: COMMUNITY PHARMACY OF ROCKWELL CITY | G192: $1,316,406,648.00 | H192: $0.02 | I192: $10.68 | J192: $5.00 | K192: $0.01 | L192: $0.01 | M192: 2025-10-22 | N192: 100.00% | P192: No | Q192: No
B193: 378427677 | C193: VALACYCLOVIR HCL 1 GRAM TABLET | D193: 2025-12-15 | E193: 4 | F193: CRESCO FAMILY PHARMACY SOUTH | G193: $1,508,442,138.00 | H193: $0.63 | I193: $10.68 | J193: $13.21 | K193: $0.41 | L193: $0.22 | M193: 2025-11-19 | N193: 53.66% | P193: No | Q193: No
B194: 65862050301 | C194: AMOX-CLAV 875-125 MG TABLET | D194: 2025-12-15 | E194: 20 | F194: CRESCO FAMILY PHARMACY SOUTH | G194: $1,508,442,138.00 | H194: $0.51 | I194: $10.68 | J194: $20.82 | K194: $0.31 | L194: $0.20 | M194: 2025-11-19 | N194: 64.52% | P194: No | Q194: No
B195: 42192071506 | C195: CICLOPIROX 8% SOLUTION | D195: 2025-11-10 | E195: 6.6 | F195: CRESCO FAMILY PHARMACY SOUTH | G195: $1,508,442,138.00 | H195: $2.32 | I195: $10.68 | J195: $25.96 | K195: $1.40 | L195: =H195-K195 -> $0.92 | M195: 2025-10-22 | N195: =IFERROR(IF((L195/K195)>=0.1,L195/K195,""),0) -> 65.71% | O195: =IFERROR(IF((L195/K195)<0.1,L195/K195,""),0) ->  | P195: No | Q195: No
B196: 378427677 | C196: VALACYCLOVIR HCL 1 GRAM TABLET | D196: 2025-11-26 | E196: 4 | F196: CRESCO FAMILY PHARMACY SOUTH | G196: $1,508,442,138.00 | H196: $0.63 | I196: $10.68 | J196: $13.21 | K196: $0.41 | L196: $0.22 | M196: 2025-11-19 | N196: 53.66% | P196: No | Q196: No
B197: 68462015713 | C197: ONDANSETRON ODT 4 MG TABLET | D197: 2025-12-19 | E197: 12 | F197: CRESCO FAMILY PHARMACY SOUTH | G197: $1,508,442,138.00 | H197: $0.57 | I197: $10.68 | J197: $17.52 | K197: $0.15 | L197: $0.42 | M197: 2025-12-17 | N197: 280.00% | P197: No | Q197: No
B198: 68180096903 | C198: LEVOTHYROXINE 100 MCG TABLET | D198: 2025-12-26 | E198: 30 | F198: CRESCO FAMILY PHARMACY SOUTH | G198: $1,508,442,138.00 | H198: $0.16 | I198: $10.68 | J198: $15.60 | K198: $0.06 | L198: $0.10 | M198: 2025-12-17 | N198: 166.67% | P198: No | Q198: No
B199: 64380078507 | C199: PREDNISONE 20 MG TABLET | D199: 2025-12-19 | E199: 10 | F199: CRESCO FAMILY PHARMACY SOUTH | G199: $1,508,442,138.00 | H199: $0.18 | I199: $10.68 | J199: $12.48 | K199: $0.08 | L199: $0.10 | M199: 2025-12-17 | N199: 125.00% | P199: No | Q199: No
B200: 68180096903 | C200: LEVOTHYROXINE 100 MCG TABLET | D200: 2025-10-09 | E200: 30 | F200: CRESCO FAMILY PHARMACY SOUTH | G200: $1,508,442,138.00 | H200: $0.16 | I200: $10.68 | J200: $15.60 | K200: $0.05 | L200: $0.11 | M200: 2025-09-17 | N200: 220.00% | P200: No | Q200: No
... 4300 more rows

Sheet All_Other_Pharmacies (hidden)
A1: Pharmacy Benefits Manager Company Name | B1: Product NDC Number (complete 11 digit number) | C1: Product Name (the complete NDC Description) | D1: Prescription claim date | E1: Quantity of the Drug Dispensed (expressed in metric decimal units) | F1: Pharmacy Name | G1: Pharmacy NPI # | H1: Amount the Pharmacy was Reimbursed $ (per Unit) | I1: Dispensing Fee Paid to Pharmacy $ | J1: Member Cost Share Amount $ | K1: NADAC per unit $ (from CMS survey report as provided by the OIC) | L1: Difference from NADAC (per unit) | M1: NADAC Report Date (date of the CMS Report used to to determine the "NADAC" rate) | N1: Actual Percentage Reimbursement (10% and above) NADAC | O1: Actual Percentage Reimbursement (10% and below) NADAC | P1: Affiliate Pharmacy (Yes / No) | Q1: Dispensed Pursuant to Government Health Plan (Yes / No)
A2: Smith Health, Inc | B2: 70010023110 | C2: TRAZODONE 50 MG TABLET | D2: 2025-12-07 | E2: 180 | F2: AMAZON PHARMACY #032 | G2: 1760374508 | H2: $0.09 | I2: $0.00 | J2: $0.00 | K2: $0.03 | L2: =H2-K2 -> $0.06 | M2: 2025-11-19 | N2: =IFERROR((IF((L2/K2)>=0.1,L2/K2,"")),0) -> 200.00% | O2: =IFERROR(IF((L2/K2)<0.1,L2/K2,""),0) ->  | P2: No | Q2: No
B3: 13668072105 | C3: ROSUVASTATIN CALCIUM 10 MG TAB | D3: 2025-12-11 | E3: 90 | F3: AMAZON PHARMACY #032 | G3: 1760374508 | H3: $0.93 | I3: $0.00 | J3: $0.00 | K3: $0.04 | L3: =H3-K3 -> $0.89 | M3: 2025-11-19 | N3: =IFERROR(IF((L3/K3)>=0.1,L3/K3,""),0) -> 2225.00% | O3: =IFERROR(IF((L3/K3)<0.1,L3/K3,""),0) ->  | P3: No | Q3: No
B4: 66993007996 | C4: FLUTICASONE PROPIONATE HFA 110 MCG INHALER | D4: 2025-12-15 | E4: 12 | F4: AMAZON PHARMACY #032 | G4: 1760374508 | H4: $2.61 | I4: $0.00 | J4: $31.37 | K4: $13.58 | L4: -$10.97 | M4: 2025-11-19 | O4: -80.78% | P4: No | Q4: No
B5: 55111032105 | C5: GLIMEPIRIDE 2 MG TABLET | D5: 2025-12-11 | E5: 90 | F5: AMAZON PHARMACY #032 | G5: 1760374508 | H5: $0.07 | I5: $0.00 | J5: $5.86 | K5: $0.03 | L5: $0.04 | M5: 2025-11-19 | N5: 133.33% | P5: No | Q5: No
B6: 68382062301 | C6: BUSPIRONE HCL 7.5 MG TABLET | D6: 2025-12-07 | E6: 270 | F6: AMAZON PHARMACY #032 | G6: 1760374508 | H6: $0.43 | I6: $0.00 | J6: $0.00 | K6: $0.12 | L6: $0.31 | M6: 2025-11-19 | N6: 258.33% | P6: No | Q6: No
B7: 13811071910 | C7: NITROFURANTOIN MONO-MCR 100 MG | D7: 2025-12-09 | E7: 10 | F7: AMAZON PHARMACY #032 | G7: 1760374508 | H7: $1.06 | I7: $0.00 | J7: $5.00 | K7: $0.35 | L7: $0.71 | M7: 2025-11-19 | N7: 202.86% | P7: No | Q7: No
B8: 50228014405 | C8: BUPROPION HCL XL 150 MG TABLET | D8: 2025-12-11 | E8: 90 | F8: AMAZON PHARMACY #032 | G8: 1760374508 | H8: $0.49 | I8: $0.00 | J8: $20.00 | K8: $0.09 | L8: $0.40 | M8: 2025-11-19 | N8: 444.44% | P8: No | Q8: No
B9: 31722042610 | C9: ATORVASTATIN 40 MG TABLET | D9: 2025-12-03 | E9: 90 | F9: AMAZON PHARMACY #032 | G9: 1760374508 | H9: $0.21 | I9: $0.00 | J9: $0.00 | K9: $0.04 | L9: $0.17 | M9: 2025-11-19 | N9: 425.00% | P9: No | Q9: No
B10: 17270074000 | C10: ALBUTEROL HFA 90 MCG INHALER | D10: 2025-12-15 | E10: 8.5 | F10: AMAZON PHARMACY #032 | G10: 1760374508 | H10: $0.67 | I10: $0.00 | J10: $5.70 | K10: $1.94 | L10: -$1.27 | M10: 2025-11-19 | O10: -65.46% | P10: No | Q10: No
B11: 68180096703 | C11: LEVOTHYROXINE 75 MCG TABLET | D11: 2025-12-03 | E11: 90 | F11: AMAZON PHARMACY #032 | G11: 1760374508 | H11: $0.08 | I11: $0.00 | J11: $7.30 | K11: $0.05 | L11: $0.03 | M11: 2025-11-19 | N11: 60.00% | P11: No | Q11: No
B12: 67877043105 | C12: ARIPIPRAZOLE 5 MG TABLET | D12: 2025-12-07 | E12: 90 | F12: AMAZON PHARMACY #032 | G12: 1760374508 | H12: $0.38 | I12: $0.00 | J12: $0.00 | K12: $0.10 | L12: $0.28 | M12: 2025-11-19 | N12: 280.00% | P12: No | Q12: No
B13: 13668072105 | C13: ROSUVASTATIN CALCIUM 10 MG TAB | D13: 2025-12-03 | E13: 90 | F13: AMAZON PHARMACY #032 | G13: 1760374508 | H13: $0.93 | I13: $0.00 | J13: $0.00 | K13: $0.04 | L13: $0.89 | M13: 2025-11-19 | N13: 2225.00% | P13: No | Q13: No
B14: 31722039230 | C14: PRUCALOPRIDE 2 MG TABLET | D14: 2025-12-05 | E14: 90 | F14: AMAZON PHARMACY #032 | G14: 1760374508 | H14: $2.25 | I14: $0.00 | J14: $20.00 | K14: $0.76 | L14: $1.49 | M14: 2025-10-22 | N14: 196.05% | P14: No | Q14: No
B15: 2773701 | C15: INSULIN LISPRO 100 UNIT/ML VL | D15: 2025-12-05 | E15: 60 | F15: AMAZON PHARMACY #032 | G15: 1760374508 | H15: $0.80 | I15: $0.00 | J15: $15.00 | K15: $2.40 | L15: -$1.60 | M15: 2025-11-19 | O15: -66.67% | P15: No | Q15: No
B16: 62332023430 | C16: VILAZODONE HCL 40 MG TABLET | D16: 2025-12-10 | E16: 90 | F16: AMAZON PHARMACY #032 | G16: 1760374508 | H16: $0.81 | I16: $0.00 | J16: $73.20 | K16: $1.20 | L16: -$0.39 | M16: 2025-11-19 | O16: -32.50% | P16: No | Q16: No
B17: 69367038110 | C17: METFORMIN HCL 500 MG TABLET | D17: 2025-12-11 | E17: 90 | F17: AMAZON PHARMACY #032 | G17: 1760374508 | H17: $0.06 | I17: $0.00 | J17: $5.06 | K17: $0.01 | L17: $0.05 | M17: 2025-11-19 | N17: 500.00% | P17: No | Q17: No
B18: 68180087773 | C18: JENCYCLA 0.35 MG TABLET | D18: 2025-12-04 | E18: 84 | F18: AMAZON PHARMACY #032 | G18: 1760374508 | H18: $0.14 | I18: $0.00 | J18: $0.00 | K18: $0.09 | L18: $0.05 | M18: 2025-11-19 | N18: 55.56% | P18: No | Q18: No
B19: 43598000190 | C19: VENLAFAXINE HCL ER 75 MG CAP | D19: 2025-12-15 | E19: 30 | F19: COSTCO PHARMACY #1325 | G19: 1881172146 | H19: $0.35 | I19: $0.80 | J19: $0.00 | K19: $0.09 | L19: $0.26 | M19: 2025-11-19 | N19: 288.89% | P19: No | Q19: No
B20: 68180087673 | C20: NORETHINDRONE 0.35 MG TABLET | D20: 2025-10-17 | E20: 28 | F20: COSTCO PHARMACY #1325 | G20: 1881172146 | H20: $0.18 | I20: $0.80 | J20: $0.00 | K20: $0.09 | L20: $0.09 | M20: 2025-09-17 | N20: 100.00% | P20: No | Q20: No
B21: 65862019301 | C21: FLUOXETINE HCL 20 MG CAPSULE | D21: 2025-11-10 | E21: 30 | F21: COSTCO PHARMACY #1325 | G21: 1881172146 | H21: $0.29 | I21: $0.80 | J21: $9.44 | K21: $0.03 | L21: $0.26 | M21: 2025-10-22 | N21: 866.67% | P21: No | Q21: No
B22: 31722035201 | C22: LISDEXAMFETAMINE 30 MG CAPSULE | D22: 2025-11-12 | E22: 30 | F22: COSTCO PHARMACY #1325 | G22: 1881172146 | H22: $7.65 | I22: $0.80 | J22: $0.00 | K22: $3.46 | L22: $4.19 | M22: 2025-10-22 | N22: 121.10% | P22: No | Q22: No
B23: 60219552209 | C23: FENOFIBRATE 160 MG TABLET | D23: 2025-10-27 | E23: 30 | F23: COSTCO PHARMACY #1325 | G23: 1881172146 | H23: $0.19 | I23: $0.80 | J23: $6.62 | K23: $0.11 | L23: $0.08 | M23: 2025-10-22 | N23: 72.73% | P23: No | Q23: No
B24: 10702007501 | C24: METHYLPHENIDATE ER 10 MG TAB | D24: 2025-11-04 | E24: 30 | F24: COSTCO PHARMACY #1325 | G24: 1881172146 | H24: $0.78 | I24: $0.80 | J24: $10.00 | K24: $0.43 | L24: $0.35 | M24: 2025-10-22 | N24: 81.40% | P24: No | Q24: No
B25: 31722000490 | C25: VENLAFAXINE HCL ER 150 MG CAP | D25: 2025-11-12 | E25: 30 | F25: COSTCO PHARMACY #1325 | G25: 1881172146 | H25: $0.25 | I25: $0.80 | J25: $0.00 | K25: $0.13 | L25: $0.12 | M25: 2025-10-22 | N25: 92.31% | P25: No | Q25: No
B26: 16714095502 | C26: KETOCONAZOLE 2% CREAM | D26: 2025-12-03 | E26: 30 | F26: COSTCO PHARMACY #1325 | G26: 1881172146 | H26: $0.46 | I26: $0.80 | J26: $10.00 | K26: $0.27 | L26: $0.19 | M26: 2025-11-19 | N26: 70.37% | P26: No | Q26: No
B27: 21922006304 | C27: TRIAMCINOLONE 0.1% OINTMENT | D27: 2025-11-22 | E27: 30 | F27: COSTCO PHARMACY #1325 | G27: 1881172146 | H27: $0.13 | I27: $0.80 | J27: $4.76 | K27: $0.12 | L27: $0.01 | M27: 2025-11-19 | O27: 8.33% | P27: No | Q27: No
B28: 31722017301 | C28: METHYLPHENIDATE 5 MG TABLET | D28: 2025-11-04 | E28: 30 | F28: COSTCO PHARMACY #1325 | G28: 1881172146 | H28: $0.26 | I28: $0.80 | J28: $8.46 | K28: $0.14 | L28: $0.12 | M28: 2025-10-22 | N28: 85.71% | P28: No | Q28: No
B29: 2773701 | C29: INSULIN LISPRO 100 UNIT/ML VL | D29: 2025-12-02 | E29: 70 | F29: COSTCO PHARMACY #1325 | G29: 1881172146 | H29: $2.10 | I29: $0.80 | J29: $30.00 | K29: $2.40 | L29: -$0.30 | M29: 2025-11-19 | O29: -12.50% | P29: No | Q29: No
B30: 68462015713 | C30: ONDANSETRON ODT 4 MG TABLET | D30: 2025-11-13 | E30: 15 | F30: COSTCO PHARMACY #1325 | G30: 1881172146 | H30: $0.57 | I30: $0.80 | J30: $9.35 | K30: $0.16 | L30: $0.41 | M30: 2025-10-22 | N30: 256.25% | P30: No | Q30: No
B31: 70010003101 | C31: DEXTROAMP-AMPHET ER 15 MG CAP | D31: 2025-11-26 | E31: 30 | F31: COSTCO PHARMACY #1325 | G31: 1881172146 | H31: $0.96 | I31: $0.80 | J31: $0.00 | K31: $0.51 | L31: $0.45 | M31: 2025-11-19 | N31: 88.24% | P31: No | Q31: No
B32: 43598000190 | C32: VENLAFAXINE HCL ER 75 MG CAP | D32: 2025-10-14 | E32: 30 | F32: COSTCO PHARMACY #1325 | G32: 1881172146 | H32: $0.35 | I32: $0.80 | J32: $0.00 | K32: $0.09 | L32: $0.26 | M32: 2025-09-17 | N32: 288.89% | P32: No | Q32: No
B33: 65862019301 | C33: FLUOXETINE HCL 20 MG CAPSULE | D33: 2025-12-03 | E33: 30 | F33: COSTCO PHARMACY #1325 | G33: 1881172146 | H33: $0.29 | I33: $0.80 | J33: $9.44 | K33: $0.03 | L33: $0.26 | M33: 2025-11-19 | N33: 866.67% | P33: No | Q33: No
B34: 378685677 | C34: LISDEXAMFETAMINE 30 MG CAPSULE | D34: 2025-12-15 | E34: 30 | F34: COSTCO PHARMACY #1325 | G34: 1881172146 | H34: $7.65 | I34: $0.80 | J34: $0.00 | K34: $3.44 | L34: $4.21 | M34: 2025-11-19 | N34: 122.38% | P34: No | Q34: No
B35: 31722035201 | C35: LISDEXAMFETAMINE 30 MG CAPSULE | D35: 2025-10-08 | E35: 30 | F35: COSTCO PHARMACY #1325 | G35: 1881172146 | H35: $7.65 | I35: $0.80 | J35: $0.00 | K35: $3.53 | L35: $4.12 | M35: 2025-09-17 | N35: 116.71% | P35: No | Q35: No
B36: 16714044501 | C36: ENALAPRIL MALEATE 20 MG TAB | D36: 2025-10-27 | E36: 180 | F36: COSTCO PHARMACY #1325 | G36: 1881172146 | H36: $0.03 | I36: $0.00 | J36: $5.03 | K36: $0.11 | L36: -$0.08 | M36: 2025-10-22 | O36: -72.73% | P36: No | Q36: No
B37: 62332074531 | C37: GUANFACINE HCL ER 1 MG TABLET | D37: 2025-10-23 | E37: 30 | F37: COSTCO PHARMACY #1325 | G37: 1881172146 | H37: $1.48 | I37: $0.80 | J37: $10.00 | K37: $0.18 | L37: $1.30 | M37: 2025-10-22 | N37: 722.22% | P37: No | Q37: No
B38: 16714075801 | C38: ATOMOXETINE HCL 40 MG CAPSULE | D38: 2025-12-18 | E38: 30 | F38: COSTCO PHARMACY #1325 | G38: 1881172146 | H38: $0.89 | I38: $0.80 | J38: $10.00 | K38: $0.58 | L38: $0.31 | M38: 2025-12-17 | N38: 53.45% | P38: No | Q38: No
B39: 65862019105 | C39: CYCLOBENZAPRINE 10 MG TABLET | D39: 2025-10-24 | E39: 30 | F39: COSTCO PHARMACY #1325 | G39: 1881172146 | H39: $0.09 | I39: $0.80 | J39: $3.63 | K39: $0.02 | L39: $0.07 | M39: 2025-10-22 | N39: 350.00% | P39: No | Q39: No
B40: 16714008210 | C40: HYDROXYZINE HCL 25 MG TABLET | D40: 2025-11-22 | E40: 30 | F40: COSTCO PHARMACY #1325 | G40: 1881172146 | H40: $0.16 | I40: $0.80 | J40: $5.49 | K40: $0.03 | L40: $0.13 | M40: 2025-11-19 | N40: 433.33% | P40: No | Q40: No
B41: 68180087673 | C41: NORETHINDRONE 0.35 MG TABLET | D41: 2025-12-15 | E41: 28 | F41: COSTCO PHARMACY #1325 | G41: 1881172146 | H41: $0.18 | I41: $0.80 | J41: $0.00 | K41: $0.09 | L41: $0.09 | M41: 2025-11-19 | N41: 100.00% | P41: No | Q41: No
B42: 59651072201 | C42: CLONAZEPAM 0.5 MG TABLET | D42: 2025-12-01 | E42: 270 | F42: COSTCO PHARMACY #1325 | G42: 1881172146 | H42: $0.11 | I42: $0.00 | J42: $29.11 | K42: $0.02 | L42: $0.09 | M42: 2025-11-19 | N42: 450.00% | P42: No | Q42: No
B43: 43598000190 | C43: VENLAFAXINE HCL ER 75 MG CAP | D43: 2025-11-12 | E43: 30 | F43: COSTCO PHARMACY #1325 | G43: 1881172146 | H43: $0.35 | I43: $0.80 | J43: $0.00 | K43: $0.09 | L43: $0.26 | M43: 2025-10-22 | N43: 288.89% | P43: No | Q43: No
B44: 66993008796 | C44: FLUTICASONE-SALMETEROL 115-21 | D44: 2025-12-15 | E44: 12 | F44: COSTCO PHARMACY #1325 | G44: 1881172146 | H44: $4.47 | I44: $0.80 | J44: $10.00 | K44: $20.56 | L44: -$16.09 | M44: 2025-11-19 | O44: -78.26% | P44: No | Q44: No
B45: 65862019201 | C45: FLUOXETINE HCL 10 MG CAPSULE | D45: 2025-10-23 | E45: 30 | F45: COSTCO PHARMACY #1325 | G45: 1881172146 | H45: $0.10 | I45: $0.80 | J45: $3.91 | K45: $0.03 | L45: $0.07 | M45: 2025-10-22 | N45: 233.33% | P45: No | Q45: No
B46: 16714079502 | C46: TERBINAFINE HCL 250 MG TABLET | D46: 2025-11-13 | E46: 14 | F46: COSTCO PHARMACY #1325 | G46: 1881172146 | H46: $0.44 | I46: $0.80 | J46: $6.92 | K46: $0.15 | L46: $0.29 | M46: 2025-10-22 | N46: 193.33% | P46: No | Q46: No
B47: 406895601 | C47: DEXTROAMP-AMPHET ER 30 MG CAP | D47: 2025-10-30 | E47: 30 | F47: COSTCO PHARMACY #1325 | G47: 1881172146 | H47: $0.96 | I47: $0.80 | J47: $10.00 | K47: $0.49 | L47: $0.47 | M47: 2025-10-22 | N47: 95.92% | P47: No | Q47: No
B48: 70010003101 | C48: DEXTROAMP-AMPHET ER 15 MG CAP | D48: 2025-12-23 | E48: 30 | F48: COSTCO PHARMACY #1325 | G48: 1881172146 | H48: $0.96 | I48: $0.80 | J48: $0.00 | K48: $0.54 | L48: $0.42 | M48: 2025-12-17 | N48: 77.78% | P48: No | Q48: No
B49: 65862019301 | C49: FLUOXETINE HCL 20 MG CAPSULE | D49: 2025-11-15 | E49: 30 | F49: COSTCO PHARMACY #1325 | G49: 1881172146 | H49: $0.29 | I49: $0.80 | J49: $9.44 | K49: $0.03 | L49: $0.26 | M49: 2025-10-22 | N49: 866.67% | P49: No | Q49: No
B50: 31722000490 | C50: VENLAFAXINE HCL ER 150 MG CAP | D50: 2025-10-06 | E50: 30 | F50: COSTCO PHARMACY #1325 | G50: 1881172146 | H50: $0.25 | I50: $0.80 | J50: $0.00 | K50: $0.13 | L50: $0.12 | M50: 2025-09-17 | N50: 92.31% | P50: No | Q50: No
B51: 65862019201 | C51: FLUOXETINE HCL 10 MG CAPSULE | D51: 2025-11-15 | E51: 30 | F51: COSTCO PHARMACY #1325 | G51: 1881172146 | H51: $0.10 | I51: $0.80 | J51: $3.91 | K51: $0.03 | L51: $0.07 | M51: 2025-10-22 | N51: 233.33% | P51: No | Q51: No
B52: 60219552209 | C52: FENOFIBRATE 160 MG TABLET | D52: 2025-11-24 | E52: 90 | F52: COSTCO PHARMACY #1325 | G52: 1881172146 | H52: $0.19 | I52: $0.00 | J52: $17.45 | K52: $0.10 | L52: $0.09 | M52: 2025-11-19 | N52: 90.00% | P52: No | Q52: No
B53: 31722000490 | C53: VENLAFAXINE HCL ER 150 MG CAP | D53: 2025-12-29 | E53: 30 | F53: COSTCO PHARMACY #1325 | G53: 1881172146 | H53: $0.25 | I53: $0.80 | J53: $0.00 | K53: $0.13 | L53: $0.12 | M53: 2025-12-17 | N53: 92.31% | P53: No | Q53: No
B54: 16729044310 | C54: BUPROPION HCL XL 150 MG TABLET | D54: 2025-10-29 | E54: 30 | F54: COSTCO PHARMACY #1325 | G54: 1881172146 | H54: $0.23 | I54: $0.80 | J54: $7.58 | K54: $0.10 | L54: $0.13 | M54: 2025-10-22 | N54: 130.00% | P54: No | Q54: No
B55: 406895601 | C55: DEXTROAMP-AMPHET ER 30 MG CAP | D55: 2025-12-01 | E55: 29 | F55: COSTCO PHARMACY #1325 | G55: 1881172146 | H55: $0.96 | I55: $0.80 | J55: $10.00 | K55: $0.47 | L55: $0.49 | M55: 2025-11-19 | N55: 104.26% | P55: No | Q55: No
B56: 65862019301 | C56: FLUOXETINE HCL 20 MG CAPSULE | D56: 2025-10-17 | E56: 30 | F56: COSTCO PHARMACY #1325 | G56: 1881172146 | H56: $0.29 | I56: $0.80 | J56: $9.44 | K56: $0.03 | L56: $0.26 | M56: 2025-09-17 | N56: 866.67% | P56: No | Q56: No
B57: 65862019301 | C57: FLUOXETINE HCL 20 MG CAPSULE | D57: 2025-10-22 | E57: 30 | F57: COSTCO PHARMACY #1325 | G57: 1881172146 | H57: $0.29 | I57: $0.80 | J57: $9.44 | K57: $0.03 | L57: $0.26 | M57: 2025-09-17 | N57: 866.67% | P57: No | Q57: No
B58: 16714079502 | C58: TERBINAFINE HCL 250 MG TABLET | D58: 2025-12-03 | E58: 14 | F58: COSTCO PHARMACY #1325 | G58: 1881172146 | H58: $0.44 | I58: $0.80 | J58: $6.92 | K58: $0.15 | L58: $0.29 | M58: 2025-11-19 | N58: 193.33% | P58: No | Q58: No
B59: 65862037501 | C59: ESCITALOPRAM 20 MG TABLET | D59: 2025-11-24 | E59: 90 | F59: COSTCO PHARMACY #1325 | G59: 1881172146 | H59: $0.36 | I59: $0.00 | J59: $0.00 | K59: $0.06 | L59: $0.30 | M59: 2025-11-19 | N59: 500.00% | P59: No | Q59: No
B60: 66993008796 | C60: FLUTICASONE-SALMETEROL 115-21 | D60: 2025-11-15 | E60: 12 | F60: COSTCO PHARMACY #1325 | G60: 1881172146 | H60: $4.47 | I60: $0.80 | J60: $10.00 | K60: $20.49 | L60: -$16.02 | M60: 2025-10-22 | O60: -78.18% | P60: No | Q60: No
B61: 68180087673 | C61: NORETHINDRONE 0.35 MG TABLET | D61: 2025-10-24 | E61: 84 | F61: COSTCO PHARMACY #1325 | G61: 1881172146 | H61: $0.18 | I61: $0.00 | J61: $0.00 | K61: $0.09 | L61: $0.09 | M61: 2025-10-22 | N61: 100.00% | P61: No | Q61: No
B62: 406895301 | C62: DEXTROAMP-AMPHET ER 15 MG CAP | D62: 2025-10-23 | E62: 30 | F62: COSTCO PHARMACY #1325 | G62: 1881172146 | H62: $0.96 | I62: $0.80 | J62: $0.00 | K62: $0.50 | L62: $0.46 | M62: 2025-10-22 | N62: 92.00% | P62: No | Q62: No
B63: 16714061201 | C63: SERTRALINE HCL 50 MG TABLET | D63: 2025-11-10 | E63: 90 | F63: COSTCO PHARMACY #1325 | G63: 1881172146 | H63: $0.30 | I63: $0.00 | J63: $27.03 | K63: $0.04 | L63: $0.26 | M63: 2025-10-22 | N63: 650.00% | P63: No | Q63: No
B64: 2773701 | C64: INSULIN LISPRO 100 UNIT/ML VL | D64: 2025-11-01 | E64: 70 | F64: COSTCO PHARMACY #1325 | G64: 1881172146 | H64: $2.10 | I64: $0.80 | J64: $30.00 | K64: $2.40 | L64: -$0.30 | M64: 2025-10-22 | O64: -12.50% | P64: No | Q64: No
B65: 68180087673 | C65: NORETHINDRONE 0.35 MG TABLET | D65: 2025-11-15 | E65: 28 | F65: COSTCO PHARMACY #1325 | G65: 1881172146 | H65: $0.18 | I65: $0.80 | J65: $0.00 | K65: $0.09 | L65: $0.09 | M65: 2025-10-22 | N65: 100.00% | P65: No | Q65: No
B66: 31722000490 | C66: VENLAFAXINE HCL ER 150 MG CAP | D66: 2025-12-05 | E66: 30 | F66: COSTCO PHARMACY #1325 | G66: 1881172146 | H66: $0.25 | I66: $0.80 | J66: $0.00 | K66: $0.13 | L66: $0.12 | M66: 2025-11-19 | N66: 92.31% | P66: No | Q66: No
B67: 43547036009 | C67: LOSARTAN POTASSIUM 25 MG TAB | D67: 2025-11-12 | E67: 90 | F67: COSTCO PHARMACY #1325 | G67: 1881172146 | H67: $0.10 | I67: $0.00 | J67: $8.98 | K67: $0.03 | L67: =H67-K67 -> $0.07 | M67: 2025-10-22 | N67: =IFERROR(IF((L67/K67)>=0.1,L67/K67,""),0) -> 233.33% | O67: =IFERROR(IF((L67/K67)<0.1,L67/K67,""),0) ->  | P67: No | Q67: No
B68: 60505625101 | C68: DEXAMETHASONE 1 MG TABLET | D68: 2025-12-17 | E68: 1 | F68: COSTCO PHARMACY #1630 | G68: 1164169090 | H68: $0.21 | I68: $0.80 | J68: $0.00 | K68: $0.17 | L68: $0.04 | M68: 2025-11-19 | N68: 23.53% | P68: No | Q68: No
B69: 69452023320 | C69: PROGESTERONE 100 MG CAPSULE | D69: 2025-12-23 | E69: 90 | F69: COSTCO PHARMACY #1630 | G69: 1164169090 | H69: $0.30 | I69: $0.00 | J69: $0.00 | K69: $0.24 | L69: $0.06 | M69: 2025-12-17 | N69: 25.00% | P69: No | Q69: No
B70: 574403125 | C70: TOBRAMYCIN-DEXAMETH OPHTH SUSP | D70: 2025-10-03 | E70: 5 | F70: COSTCO PHARMACY #1630 | G70: 1164169090 | H70: $7.66 | I70: $0.80 | J70: $0.00 | K70: $6.35 | L70: $1.31 | M70: 2025-09-17 | N70: 20.63% | P70: No | Q70: No
B71: 68001059504 | C71: DULOXETINE HCL DR 30 MG CAP | D71: 2025-11-10 | E71: 60 | F71: COSTCO PHARMACY #788 | G71: 1407966021 | H71: $0.41 | I71: $0.80 | J71: $25.40 | K71: $0.08 | L71: $0.33 | M71: 2025-10-22 | N71: 412.50% | P71: No | Q71: No
B72: 65862037401 | C72: ESCITALOPRAM 10 MG TABLET | D72: 2025-12-01 | E72: 90 | F72: COSTCO PHARMACY #788 | G72: 1407966021 | H72: $0.30 | I72: $0.00 | J72: $0.00 | K72: $0.04 | L72: $0.26 | M72: 2025-11-19 | N72: 650.00% | P72: No | Q72: No
B73: 67877088901 | C73: FAMOTIDINE 40 MG TABLET | D73: 2025-11-07 | E73: 90 | F73: COSTCO PHARMACY #788 | G73: 1407966021 | H73: $0.32 | I73: $0.00 | J73: $28.67 | K73: $0.05 | L73: $0.27 | M73: 2025-10-22 | N73: 540.00% | P73: No | Q73: No
B74: 43547035311 | C74: LISINOPRIL 10 MG TABLET | D74: 2025-10-14 | E74: 30 | F74: COSTCO PHARMACY #788 | G74: 1407966021 | H74: $0.07 | I74: $0.80 | J74: $2.81 | K74: $0.02 | L74: $0.05 | M74: 2025-09-17 | N74: 250.00% | P74: No | Q74: No
B75: 68382005101 | C75: MELOXICAM 15 MG TABLET | D75: 2025-11-07 | E75: 30 | F75: COSTCO PHARMACY #788 | G75: 1407966021 | H75: $0.31 | I75: $0.80 | J75: $10.01 | K75: $0.02 | L75: $0.29 | M75: 2025-10-22 | N75: 1450.00% | P75: No | Q75: No
B76: 42385095330 | C76: EMTRICITABINE-TENOFOVIR DISOPROXIL FUMARATE 200-300 MG TAB | D76: 2025-11-10 | E76: 90 | F76: COSTCO PHARMACY #788 | G76: 1407966021 | H76: $1.12 | I76: $0.00 | J76: $0.00 | K76: $0.58 | L76: $0.54 | M76: 2025-10-22 | N76: 93.10% | P76: No | Q76: No
B77: 72205002390 | C77: ATORVASTATIN 20 MG TABLET | D77: 2025-11-10 | E77: 90 | F77: COSTCO PHARMACY #788 | G77: 1407966021 | H77: $0.29 | I77: $0.00 | J77: $0.00 | K77: $0.03 | L77: $0.26 | M77: 2025-10-22 | N77: 866.67% | P77: No | Q77: No
B78: 68382005101 | C78: MELOXICAM 15 MG TABLET | D78: 2025-12-31 | E78: 30 | F78: COSTCO PHARMACY #788 | G78: 1407966021 | H78: $0.31 | I78: $0.80 | J78: $10.01 | K78: $0.02 | L78: $0.29 | M78: 2025-12-17 | N78: 1450.00% | P78: No | Q78: No
B79: 68001059504 | C79: DULOXETINE HCL DR 30 MG CAP | D79: 2025-12-08 | E79: 60 | F79: COSTCO PHARMACY #788 | G79: 1407966021 | H79: $0.41 | I79: $0.80 | J79: $25.40 | K79: $0.08 | L79: $0.33 | M79: 2025-11-19 | N79: 412.50% | P79: No | Q79: No
B80: 65862059801 | C80: TAMSULOSIN HCL 0.4 MG CAPSULE | D80: 2025-10-16 | E80: 90 | F80: COSTCO PHARMACY #788 | G80: 1407966021 | H80: $0.17 | I80: $0.00 | J80: $0.00 | K80: $0.05 | L80: $0.12 | M80: 2025-09-17 | N80: 240.00% | P80: No | Q80: No
B81: 43547035311 | C81: LISINOPRIL 10 MG TABLET | D81: 2025-11-07 | E81: 30 | F81: COSTCO PHARMACY #788 | G81: 1407966021 | H81: $0.07 | I81: $0.80 | J81: $2.81 | K81: $0.02 | L81: $0.05 | M81: 2025-10-22 | N81: 250.00% | P81: No | Q81: No
B82: 70710171001 | C82: KETOROLAC 10 MG TABLET | D82: 2025-12-15 | E82: 20 | F82: COSTCO PHARMACY #788 | G82: 1407966021 | H82: $0.60 | I82: $0.80 | J82: $3.20 | K82: $0.17 | L82: $0.43 | M82: 2025-11-19 | N82: 252.94% | P82: No | Q82: No
B83: 60219552209 | C83: FENOFIBRATE 160 MG TABLET | D83: 2025-11-22 | E83: 90 | F83: COSTCO PHARMACY #788 | G83: 1407966021 | H83: $0.19 | I83: $0.00 | J83: $0.00 | K83: $0.10 | L83: $0.09 | M83: 2025-11-19 | N83: 90.00% | P83: No | Q83: No
B84: 29300035001 | C84: ALLOPURINOL 300 MG TABLET | D84: 2025-10-08 | E84: 90 | F84: COSTCO PHARMACY #788 | G84: 1407966021 | H84: $0.13 | I84: $0.00 | J84: $2.91 | K84: $0.07 | L84: $0.06 | M84: 2025-09-17 | N84: 85.71% | P84: No | Q84: No
B85: 43547035311 | C85: LISINOPRIL 10 MG TABLET | D85: 2025-12-06 | E85: 30 | F85: COSTCO PHARMACY #788 | G85: 1407966021 | H85: $0.07 | I85: $0.80 | J85: $2.81 | K85: $0.02 | L85: $0.05 | M85: 2025-11-19 | N85: 250.00% | P85: No | Q85: No
B86: 68382005101 | C86: MELOXICAM 15 MG TABLET | D86: 2025-12-06 | E86: 30 | F86: COSTCO PHARMACY #788 | G86: 1407966021 | H86: $0.31 | I86: $0.80 | J86: $10.01 | K86: $0.02 | L86: $0.29 | M86: 2025-11-19 | N86: 1450.00% | P86: No | Q86: No
B87: 27241009809 | C87: DULOXETINE HCL DR 30 MG CAP | D87: 2025-10-14 | E87: 60 | F87: COSTCO PHARMACY #788 | G87: 1407966021 | H87: $0.41 | I87: $0.80 | J87: $25.40 | K87: $0.08 | L87: $0.33 | M87: 2025-09-17 | N87: 412.50% | P87: No | Q87: No
B88: 68382005101 | C88: MELOXICAM 15 MG TABLET | D88: 2025-10-14 | E88: 30 | F88: COSTCO PHARMACY #788 | G88: 1407966021 | H88: $0.31 | I88: $0.80 | J88: $10.01 | K88: $0.02 | L88: $0.29 | M88: 2025-09-17 | N88: 1450.00% | P88: No | Q88: No
B89: 29300012810 | C89: HYDROCHLOROTHIAZIDE 25 MG TAB | D89: 2025-12-11 | E89: 30 | F89: CVS PHARMACY #04816 | G89: 1194020602 | H89: $0.50 | I89: $0.00 | J89: $14.99 | K89: $0.01 | L89: $0.49 | M89: 2025-11-19 | N89: 4900.00% | P89: No | Q89: No
B90: 65862035790 | C90: CLOPIDOGREL 75 MG TABLET | D90: 2025-12-29 | E90: 30 | F90: CVS PHARMACY #04816 | G90: 1194020602 | H90: $0.04 | I90: $17.00 | J90: $10.00 | K90: $0.06 | L90: -$0.02 | M90: 2025-12-17 | O90: -33.33% | P90: No | Q90: No
B91: 70710177200 | C91: ATORVASTATIN 40 MG TABLET | D91: 2025-12-31 | E91: 30 | F91: CVS PHARMACY #04816 | G91: 1194020602 | H91: $0.03 | I91: $17.00 | J91: $0.00 | K91: $0.04 | L91: -$0.01 | M91: 2025-12-17 | O91: -25.00% | P91: No | Q91: No
B92: 68180078004 | C92: ZOLPIDEM TART ER 12.5 MG TAB | D92: 2025-12-09 | E92: 30 | F92: CVS PHARMACY #04816 | G92: 1194020602 | H92: $0.06 | I92: $17.00 | J92: $0.00 | K92: $0.11 | L92: -$0.05 | M92: 2025-11-19 | O92: -45.45% | P92: No | Q92: No
B93: 70010049110 | C93: METFORMIN HCL ER 500 MG TABLET | D93: 2025-12-08 | E93: 60 | F93: CVS PHARMACY #04816 | G93: 1194020602 | H93: $0.02 | I93: $17.00 | J93: $10.00 | K93: $0.03 | L93: -$0.01 | M93: 2025-11-19 | O93: -33.33% | P93: No | Q93: No
B94: 60219165601 | C94: SUCRALFATE 1 GM TABLET | D94: 2025-10-03 | E94: 56 | F94: CVS PHARMACY #04816 | G94: 1194020602 | H94: $0.12 | I94: $17.00 | J94: $5.00 | K94: $0.18 | L94: -$0.06 | M94: 2025-09-17 | O94: -33.33% | P94: No | Q94: No
B95: 33342006707 | C95: OLANZAPINE 2.5 MG TABLET | D95: 2025-11-24 | E95: 30 | F95: CVS PHARMACY #04816 | G95: 1194020602 | H95: $0.04 | I95: $17.00 | J95: $10.00 | K95: $0.08 | L95: -$0.04 | M95: 2025-11-19 | O95: -50.00% | P95: No | Q95: No
B96: 67877019910 | C96: AMLODIPINE BESYLATE 10 MG TAB | D96: 2025-11-14 | E96: 30 | F96: CVS PHARMACY #04816 | G96: 1194020602 | H96: $0.01 | I96: $17.00 | J96: $15.00 | K96: $0.02 | L96: -$0.01 | M96: 2025-10-22 | O96: -50.00% | P96: No | Q96: No
B97: 68180094111 | C97: TESTOSTERONE 1.62% GEL PUMP | D97: 2025-10-27 | E97: 75 | F97: CVS PHARMACY #04816 | G97: 1194020602 | H97: $0.21 | I97: $17.00 | J97: $5.00 | K97: $0.43 | L97: -$0.22 | M97: 2025-10-22 | O97: -51.16% | P97: No | Q97: No
B98: 93330105 | C98: TRAMADOL HCL 50 MG TABLET | D98: 2025-10-04 | E98: 12 | F98: CVS PHARMACY #04816 | G98: 1194020602 | H98: $0.02 | I98: $17.00 | J98: $5.00 | K98: $0.03 | L98: -$0.01 | M98: 2025-09-17 | O98: -33.33% | P98: No | Q98: No
B99: 33342006707 | C99: OLANZAPINE 2.5 MG TABLET | D99: 2025-12-27 | E99: 30 | F99: CVS PHARMACY #04816 | G99: 1194020602 | H99: $0.04 | I99: $17.00 | J99: $10.00 | K99: $0.08 | L99: -$0.04 | M99: 2025-12-17 | O99: -50.00% | P99: No | Q99: No
B100: 47781064010 | C100: LEVOTHYROXINE 25 MCG TABLET | D100: 2025-11-25 | E100: 30 | F100: CVS PHARMACY #04816 | G100: 1194020602 | H100: $0.06 | I100: $17.00 | J100: $10.00 | K100: $0.04 | L100: $0.02 | M100: 2025-11-19 | N100: 50.00% | P100: No | Q100: No
B101: 60505017009 | C101: PRAVASTATIN SODIUM 40 MG TAB | D101: 2025-12-05 | E101: 30 | F101: CVS PHARMACY #04816 | G101: 1194020602 | H101: $0.04 | I101: $17.00 | J101: $0.00 | K101: $0.09 | L101: -$0.05 | M101: 2025-11-19 | O101: -55.56% | P101: No | Q101: No
B102: 65862066130 | C102: ARIPIPRAZOLE 2 MG TABLET | D102: 2025-10-23 | E102: 90 | F102: CVS PHARMACY #04816 | G102: 1194020602 | H102: $0.06 | I102: $25.00 | J102: $15.00 | K102: $0.12 | L102: -$0.06 | M102: 2025-10-22 | O102: -50.00% | P102: No | Q102: No
B103: 72205014190 | C103: LOSARTAN POTASSIUM 25 MG TAB | D103: 2025-10-07 | E103: 90 | F103: CVS PHARMACY #04816 | G103: 1194020602 | H103: $0.01 | I103: $25.00 | J103: $0.00 | K103: $0.03 | L103: -$0.02 | M103: 2025-09-17 | O103: -66.67% | P103: No | Q103: No
B104: 65862035790 | C104: CLOPIDOGREL 75 MG TABLET | D104: 2025-12-02 | E104: 30 | F104: CVS PHARMACY #04816 | G104: 1194020602 | H104: $0.04 | I104: $17.00 | J104: $10.00 | K104: $0.06 | L104: -$0.02 | M104: 2025-11-19 | O104: -33.33% | P104: No | Q104: No
B105: 29300012810 | C105: HYDROCHLOROTHIAZIDE 25 MG TAB | D105: 2025-11-14 | E105: 30 | F105: CVS PHARMACY #04816 | G105: 1194020602 | H105: $0.01 | I105: $17.00 | J105: $15.00 | K105: $0.01 | L105: $0.00 | M105: 2025-10-22 | O105: 0.00% | P105: No | Q105: No
B106: 13668001005 | C106: CITALOPRAM HBR 20 MG TABLET | D106: 2025-12-06 | E106: 30 | F106: CVS PHARMACY #04816 | G106: 1194020602 | H106: $0.02 | I106: $17.00 | J106: $10.00 | K106: $0.03 | L106: -$0.01 | M106: 2025-11-19 | O106: -33.33% | P106: No | Q106: No
B107: 42806041605 | C107: BUPROPION HCL XL 300 MG TABLET | D107: 2025-10-23 | E107: 90 | F107: CVS PHARMACY #04816 | G107: 1194020602 | H107: $0.06 | I107: $25.00 | J107: $0.00 | K107: $0.14 | L107: -$0.08 | M107: 2025-10-22 | O107: -57.14% | P107: No | Q107: No
B108: 72205014190 | C108: LOSARTAN POTASSIUM 25 MG TAB | D108: 2025-11-11 | E108: 30 | F108: CVS PHARMACY #04816 | G108: 1194020602 | H108: $0.01 | I108: $17.00 | J108: $15.00 | K108: $0.03 | L108: -$0.02 | M108: 2025-10-22 | O108: -66.67% | P108: No | Q108: No
B109: 68180051303 | C109: LISINOPRIL 5 MG TABLET | D109: 2025-12-11 | E109: 30 | F109: CVS PHARMACY #04816 | G109: 1194020602 | H109: $0.50 | I109: $0.00 | J109: $14.99 | K109: $0.01 | L109: $0.49 | M109: 2025-11-19 | N109: 4900.00% | P109: No | Q109: No
B110: 21922005351 | C110: CICLOPIROX 8% SOLUTION | D110: 2025-10-26 | E110: 6.6 | F110: CVS PHARMACY #04816 | G110: 1194020602 | H110: $0.49 | I110: $17.00 | J110: $5.00 | K110: $1.40 | L110: -$0.91 | M110: 2025-10-22 | O110: -65.00% | P110: No | Q110: No
B111: 47781064010 | C111: LEVOTHYROXINE 25 MCG TABLET | D111: 2025-10-27 | E111: 30 | F111: CVS PHARMACY #04816 | G111: 1194020602 | H111: $0.06 | I111: $17.00 | J111: $10.00 | K111: $0.04 | L111: $0.02 | M111: 2025-10-22 | N111: 50.00% | P111: No | Q111: No
B112: 72205014190 | C112: LOSARTAN POTASSIUM 25 MG TAB | D112: 2025-10-04 | E112: 30 | F112: CVS PHARMACY #04816 | G112: 1194020602 | H112: $0.01 | I112: $17.00 | J112: $15.00 | K112: $0.03 | L112: -$0.02 | M112: 2025-09-17 | O112: -66.67% | P112: No | Q112: No
B113: 68180078004 | C113: ZOLPIDEM TART ER 12.5 MG TAB | D113: 2025-11-09 | E113: 30 | F113: CVS PHARMACY #04816 | G113: 1194020602 | H113: $0.06 | I113: $17.00 | J113: $5.00 | K113: $0.12 | L113: -$0.06 | M113: 2025-10-22 | O113: -50.00% | P113: No | Q113: No
B114: 29300039805 | C114: AMLODIPINE BESYLATE 10 MG TAB | D114: 2025-12-11 | E114: 30 | F114: CVS PHARMACY #04816 | G114: 1194020602 | H114: $0.01 | I114: $17.00 | J114: $15.00 | K114: $0.02 | L114: -$0.01 | M114: 2025-11-19 | O114: -50.00% | P114: No | Q114: No
B115: 68180078004 | C115: ZOLPIDEM TART ER 12.5 MG TAB | D115: 2025-10-07 | E115: 30 | F115: CVS PHARMACY #04816 | G115: 1194020602 | H115: $0.06 | I115: $17.00 | J115: $5.00 | K115: $0.12 | L115: -$0.06 | M115: 2025-09-17 | O115: -50.00% | P115: No | Q115: No
B116: 33342006707 | C116: OLANZAPINE 2.5 MG TABLET | D116: 2025-10-27 | E116: 30 | F116: CVS PHARMACY #04816 | G116: 1194020602 | H116: $0.04 | I116: $17.00 | J116: $10.00 | K116: $0.08 | L116: -$0.04 | M116: 2025-10-22 | O116: -50.00% | P116: No | Q116: No
B117: 70710177200 | C117: ATORVASTATIN 40 MG TABLET | D117: 2025-10-27 | E117: 30 | F117: CVS PHARMACY #04816 | G117: 1194020602 | H117: $0.03 | I117: $17.00 | J117: $0.00 | K117: $0.04 | L117: -$0.01 | M117: 2025-10-22 | O117: -25.00% | P117: No | Q117: No
B118: 13668013610 | C118: ESCITALOPRAM 10 MG TABLET | D118: 2025-12-15 | E118: 90 | F118: CVS PHARMACY #04816 | G118: 1194020602 | H118: $0.03 | I118: $25.00 | J118: $27.61 | K118: $0.04 | L118: -$0.01 | M118: 2025-11-19 | O118: -25.00% | P118: No | Q118: No
B119: 68180094111 | C119: TESTOSTERONE 1.62% GEL PUMP | D119: 2025-11-25 | E119: 75 | F119: CVS PHARMACY #04816 | G119: 1194020602 | H119: $0.21 | I119: $17.00 | J119: $0.00 | K119: $0.41 | L119: -$0.20 | M119: 2025-11-19 | O119: -48.78% | P119: No | Q119: No
B120: 70710177200 | C120: ATORVASTATIN 40 MG TABLET | D120: 2025-11-27 | E120: 30 | F120: CVS PHARMACY #04816 | G120: 1194020602 | H120: $0.03 | I120: $17.00 | J120: $0.00 | K120: $0.04 | L120: -$0.01 | M120: 2025-11-19 | O120: -25.00% | P120: No | Q120: No
B121: 70710169809 | C121: VENLAFAXINE HCL ER 37.5 MG CAP | D121: 2025-11-14 | E121: 30 | F121: CVS PHARMACY #04816 | G121: 1194020602 | H121: $0.03 | I121: $17.00 | J121: $15.00 | K121: $0.09 | L121: -$0.06 | M121: 2025-10-22 | O121: -66.67% | P121: No | Q121: No
B122: 47781064010 | C122: LEVOTHYROXINE 25 MCG TABLET | D122: 2025-12-28 | E122: 30 | F122: CVS PHARMACY #04816 | G122: 1194020602 | H122: $0.50 | I122: $0.00 | J122: $10.00 | K122: $0.04 | L122: $0.46 | M122: 2025-12-17 | N122: 1150.00% | P122: No | Q122: No
B123: 72205014190 | C123: LOSARTAN POTASSIUM 25 MG TAB | D123: 2025-12-11 | E123: 30 | F123: CVS PHARMACY #04816 | G123: 1194020602 | H123: $0.01 | I123: $17.00 | J123: $15.00 | K123: $0.02 | L123: -$0.01 | M123: 2025-11-19 | O123: -50.00% | P123: No | Q123: No
B124: 70710169809 | C124: VENLAFAXINE HCL ER 37.5 MG CAP | D124: 2025-12-11 | E124: 30 | F124: CVS PHARMACY #04816 | G124: 1194020602 | H124: $0.03 | I124: $17.00 | J124: $15.00 | K124: $0.09 | L124: -$0.06 | M124: 2025-11-19 | O124: -66.67% | P124: No | Q124: No
B125: 68180098103 | C125: LISINOPRIL 20 MG TABLET | D125: 2025-11-06 | E125: 90 | F125: CVS PHARMACY #04816 | G125: 1194020602 | H125: $0.01 | I125: $25.00 | J125: $0.00 | K125: $0.03 | L125: -$0.02 | M125: 2025-10-22 | O125: -66.67% | P125: No | Q125: No
B126: 70710177200 | C126: ATORVASTATIN 40 MG TABLET | D126: 2025-10-24 | E126: 90 | F126: CVS PHARMACY #08443 | G126: 1063790178 | H126: $0.03 | I126: $25.00 | J126: $0.00 | K126: $0.04 | L126: -$0.01 | M126: 2025-10-22 | O126: -25.00% | P126: No | Q126: No
B127: 68180098003 | C127: LISINOPRIL 10 MG TABLET | D127: 2025-11-23 | E127: 180 | F127: CVS PHARMACY #08443 | G127: 1063790178 | H127: $0.01 | I127: $25.00 | J127: $12.50 | K127: $0.02 | L127: -$0.01 | M127: 2025-11-19 | O127: -50.00% | P127: No | Q127: No
B128: 69097083412 | C128: SERTRALINE HCL 50 MG TABLET | D128: 2025-12-05 | E128: 90 | F128: CVS PHARMACY #08443 | G128: 1063790178 | H128: $0.03 | I128: $25.00 | J128: $12.50 | K128: $0.04 | L128: -$0.01 | M128: 2025-11-19 | O128: -25.00% | P128: No | Q128: No
B129: 70710169909 | C129: VENLAFAXINE HCL ER 75 MG CAP | D129: 2025-12-16 | E129: 90 | F129: CVS PHARMACY #08443 | G129: 1063790178 | H129: $0.94 | I129: $1.00 | J129: $0.00 | K129: $0.09 | L129: $0.85 | M129: 2025-11-19 | N129: 944.44% | P129: No | Q129: No
B130: 42858010401 | C130: OXYCODONE-ACETAMINOPHEN 10-325 MG TAB | D130: 2025-11-14 | E130: 30 | F130: CVS PHARMACY #08532 | G130: 1659315026 | H130: $0.14 | I130: $17.00 | J130: $10.00 | K130: $0.25 | L130: -$0.11 | M130: 2025-10-22 | O130: -44.00% | P130: No | Q130: No
B131: 65862019105 | C131: CYCLOBENZAPRINE 10 MG TABLET | D131: 2025-12-09 | E131: 90 | F131: CVS PHARMACY #08532 | G131: 1659315026 | H131: $0.02 | I131: $17.00 | J131: $10.00 | K131: $0.02 | L131: =H131-K131 -> $0.00 | M131: 2025-11-19 | N131: =IFERROR(IF((L131/K131)>=0.1,L131/K131,""),0) ->  | O131: =IFERROR(IF((L131/K131)<0.1,L131/K131,""),0) -> 0.00% | P131: No | Q131: No
B132: 13668000805 | C132: ZOLPIDEM TARTRATE 10 MG TABLET | D132: 2025-11-14 | E132: 30 | F132: CVS PHARMACY #08532 | G132: 1659315026 | H132: $0.03 | I132: $17.00 | J132: $10.00 | K132: $0.04 | L132: -$0.01 | M132: 2025-10-22 | O132: -25.00% | P132: No | Q132: No
B133: 13668000805 | C133: ZOLPIDEM TARTRATE 10 MG TABLET | D133: 2025-12-12 | E133: 30 | F133: CVS PHARMACY #08532 | G133: 1659315026 | H133: $0.03 | I133: $17.00 | J133: $10.00 | K133: $0.04 | L133: -$0.01 | M133: 2025-11-19 | O133: -25.00% | P133: No | Q133: No
B134: 69097094312 | C134: GABAPENTIN 300 MG CAPSULE | D134: 2025-11-20 | E134: 60 | F134: CVS PHARMACY #08532 | G134: 1659315026 | H134: $0.03 | I134: $17.00 | J134: $10.00 | K134: $0.03 | L134: $0.00 | M134: 2025-11-19 | O134: 0.00% | P134: No | Q134: No
B135: 13668000805 | C135: ZOLPIDEM TARTRATE 10 MG TABLET | D135: 2025-10-16 | E135: 30 | F135: CVS PHARMACY #08532 | G135: 1659315026 | H135: $0.03 | I135: $17.00 | J135: $10.00 | K135: $0.04 | L135: -$0.01 | M135: 2025-09-17 | O135: -25.00% | P135: No | Q135: No
B136: 69097040715 | C136: METOPROLOL SUCC ER 50 MG TAB | D136: 2025-11-04 | E136: 90 | F136: CVS PHARMACY #08532 | G136: 1659315026 | H136: $0.03 | I136: $25.00 | J136: $9.00 | K136: $0.06 | L136: -$0.03 | M136: 2025-10-22 | O136: -50.00% | P136: No | Q136: No
B137: 555032402 | C137: HYDROXYZINE PAM 100 MG CAP | D137: 2025-12-12 | E137: 90 | F137: CVS PHARMACY #08532 | G137: 1659315026 | H137: $0.28 | I137: $17.00 | J137: $10.00 | K137: $0.41 | L137: -$0.13 | M137: 2025-11-19 | O137: -31.71% | P137: No | Q137: No
B138: 50228046501 | C138: NABUMETONE 500 MG TABLET | D138: 2025-11-04 | E138: 60 | F138: CVS PHARMACY #08532 | G138: 1659315026 | H138: $0.07 | I138: $17.00 | J138: $10.00 | K138: $0.12 | L138: -$0.05 | M138: 2025-10-22 | O138: -41.67% | P138: No | Q138: No
B139: 70710177000 | C139: ATORVASTATIN 80 MG TABLET | D139: 2025-10-16 | E139: 90 | F139: CVS PHARMACY #08532 | G139: 1659315026 | H139: $0.04 | I139: $25.00 | J139: $0.00 | K139: $0.07 | L139: -$0.03 | M139: 2025-09-17 | O139: -42.86% | P139: No | Q139: No
B140: 59651036205 | C140: IBUPROFEN 800 MG TABLET | D140: 2025-12-12 | E140: 30 | F140: CVS PHARMACY #08532 | G140: 1659315026 | H140: $0.50 | I140: $0.00 | J140: $10.00 | K140: $0.06 | L140: $0.44 | M140: 2025-11-19 | N140: 733.33% | P140: No | Q140: No
B141: 51991074710 | C141: DULOXETINE HCL DR 30 MG CAP | D141: 2025-11-04 | E141: 270 | F141: CVS PHARMACY #08532 | G141: 1659315026 | H141: $0.04 | I141: $25.00 | J141: $9.00 | K141: $0.08 | L141: -$0.04 | M141: 2025-10-22 | O141: -50.00% | P141: No | Q141: No
B142: 42806041605 | C142: BUPROPION HCL XL 300 MG TABLET | D142: 2025-12-16 | E142: 90 | F142: CVS PHARMACY #08532 | G142: 1659315026 | H142: $0.06 | I142: $25.00 | J142: $9.00 | K142: $0.14 | L142: -$0.08 | M142: 2025-11-19 | O142: -57.14% | P142: No | Q142: No
B143: 68180069706 | C143: TRAMADOL HCL ER 100 MG TABLET | D143: 2025-10-16 | E143: 30 | F143: CVS PHARMACY #08532 | G143: 1659315026 | H143: $0.21 | I143: $17.00 | J143: $10.00 | K143: $1.05 | L143: -$0.84 | M143: 2025-09-17 | O143: -80.00% | P143: No | Q143: No
B144: 555032402 | C144: HYDROXYZINE PAM 100 MG CAP | D144: 2025-11-13 | E144: 90 | F144: CVS PHARMACY #08532 | G144: 1659315026 | H144: $0.28 | I144: $17.00 | J144: $10.00 | K144: $0.41 | L144: -$0.13 | M144: 2025-10-22 | O144: -31.71% | P144: No | Q144: No
B145: 65862019105 | C145: CYCLOBENZAPRINE 10 MG TABLET | D145: 2025-11-12 | E145: 90 | F145: CVS PHARMACY #08532 | G145: 1659315026 | H145: $0.02 | I145: $17.00 | J145: $10.00 | K145: $0.02 | L145: $0.00 | M145: 2025-10-22 | O145: 0.00% | P145: No | Q145: No
B146: 13668013610 | C146: ESCITALOPRAM 10 MG TABLET | D146: 2025-12-21 | E146: 90 | F146: CVS PHARMACY #08532 | G146: 1659315026 | H146: $0.03 | I146: $25.00 | J146: $9.00 | K146: $0.04 | L146: -$0.01 | M146: 2025-12-17 | O146: -25.00% | P146: No | Q146: No
B147: 42858010401 | C147: OXYCODONE-ACETAMINOPHEN 10-325 MG TAB | D147: 2025-10-18 | E147: 30 | F147: CVS PHARMACY #08532 | G147: 1659315026 | H147: $0.14 | I147: $17.00 | J147: $10.00 | K147: $0.25 | L147: -$0.11 | M147: 2025-09-17 | O147: -44.00% | P147: No | Q147: No
B148: 69097094312 | C148: GABAPENTIN 300 MG CAPSULE | D148: 2025-12-21 | E148: 180 | F148: CVS PHARMACY #08532 | G148: 1659315026 | H148: $0.03 | I148: $17.00 | J148: $10.00 | K148: $0.03 | L148: $0.00 | M148: 2025-12-17 | O148: 0.00% | P148: No | Q148: No
B149: 68180098003 | C149: LISINOPRIL 10 MG TABLET | D149: 2025-11-26 | E149: 90 | F149: CVS PHARMACY #08532 | G149: 1659315026 | H149: $0.01 | I149: $25.00 | J149: $0.00 | K149: $0.02 | L149: -$0.01 | M149: 2025-11-19 | O149: -50.00% | P149: No | Q149: No
B150: 50228046501 | C150: NABUMETONE 500 MG TABLET | D150: 2025-10-05 | E150: 60 | F150: CVS PHARMACY #08532 | G150: 1659315026 | H150: $0.07 | I150: $17.00 | J150: $10.00 | K150: $0.12 | L150: -$0.05 | M150: 2025-09-17 | O150: -41.67% | P150: No | Q150: No
B151: 68180069706 | C151: TRAMADOL HCL ER 100 MG TABLET | D151: 2025-12-12 | E151: 30 | F151: CVS PHARMACY #08532 | G151: 1659315026 | H151: $0.21 | I151: $17.00 | J151: $10.00 | K151: $1.07 | L151: -$0.86 | M151: 2025-11-19 | O151: -80.37% | P151: No | Q151: No
B152: 42858010401 | C152: OXYCODONE-ACETAMINOPHEN 10-325 MG TAB | D152: 2025-12-12 | E152: 30 | F152: CVS PHARMACY #08532 | G152: 1659315026 | H152: $0.14 | I152: $17.00 | J152: $10.00 | K152: $0.25 | L152: -$0.11 | M152: 2025-11-19 | O152: -44.00% | P152: No | Q152: No
B153: 65862019105 | C153: CYCLOBENZAPRINE 10 MG TABLET | D153: 2025-10-14 | E153: 90 | F153: CVS PHARMACY #08532 | G153: 1659315026 | H153: $0.02 | I153: $17.00 | J153: $10.00 | K153: $0.02 | L153: $0.00 | M153: 2025-09-17 | O153: 0.00% | P153: No | Q153: No
B154: 69452027520 | C154: KETOROLAC 10 MG TABLET | D154: 2025-11-17 | E154: 20 | F154: CVS PHARMACY #08538 | G154: 1568406932 | H154: $0.06 | I154: $17.00 | J154: $5.00 | K154: $0.22 | L154: -$0.16 | M154: 2025-10-22 | O154: -72.73% | P154: No | Q154: No
B155: 54018913 | C155: BUPRENORPHINE-NALOXONE 8-2 MG SL TABLET | D155: 2025-12-15 | E155: 60 | F155: CVS PHARMACY #08538 | G155: 1568406932 | H155: $0.49 | I155: $17.00 | J155: $5.00 | K155: $0.70 | L155: -$0.21 | M155: 2025-11-19 | O155: -30.00% | P155: No | Q155: No
B156: 16571016901 | C156: BACLOFEN 5 MG TABLET | D156: 2025-10-06 | E156: 90 | F156: CVS PHARMACY #08538 | G156: 1568406932 | H156: $0.03 | I156: $17.00 | J156: $5.00 | K156: $0.11 | L156: -$0.08 | M156: 2025-09-17 | O156: -72.73% | P156: No | Q156: No
B157: 69452027520 | C157: KETOROLAC 10 MG TABLET | D157: 2025-10-06 | E157: 20 | F157: CVS PHARMACY #08538 | G157: 1568406932 | H157: $0.06 | I157: $17.00 | J157: $5.00 | K157: $0.25 | L157: -$0.19 | M157: 2025-09-17 | O157: -76.00% | P157: No | Q157: No
B158: 69452027520 | C158: KETOROLAC 10 MG TABLET | D158: 2025-10-13 | E158: 20 | F158: CVS PHARMACY #08538 | G158: 1568406932 | H158: $0.06 | I158: $17.00 | J158: $5.00 | K158: $0.25 | L158: -$0.19 | M158: 2025-09-17 | O158: -76.00% | P158: No | Q158: No
B159: 54018913 | C159: BUPRENORPHINE-NALOXONE 8-2 MG SL TABLET | D159: 2025-11-15 | E159: 60 | F159: CVS PHARMACY #08538 | G159: 1568406932 | H159: $0.49 | I159: $17.00 | J159: $5.00 | K159: $0.70 | L159: -$0.21 | M159: 2025-10-22 | O159: -30.00% | P159: No | Q159: No
B160: 33342006807 | C160: OLANZAPINE 5 MG TABLET | D160: 2025-11-15 | E160: 90 | F160: CVS PHARMACY #08538 | G160: 1568406932 | H160: $0.03 | I160: $25.00 | J160: $15.00 | K160: $0.09 | L160: -$0.06 | M160: 2025-10-22 | O160: -66.67% | P160: No | Q160: No
B161: 55111064410 | C161: OMEPRAZOLE DR 20 MG CAPSULE | D161: 2025-10-10 | E161: 90 | F161: CVS PHARMACY #08538 | G161: 1568406932 | H161: $0.02 | I161: $25.00 | J161: $15.00 | K161: $0.03 | L161: -$0.01 | M161: 2025-09-17 | O161: -33.33% | P161: No | Q161: No
B162: 54018913 | C162: BUPRENORPHINE-NALOXONE 8-2 MG SL TABLET | D162: 2025-10-15 | E162: 60 | F162: CVS PHARMACY #08538 | G162: 1568406932 | H162: $0.49 | I162: $17.00 | J162: $5.00 | K162: $0.71 | L162: -$0.22 | M162: 2025-09-17 | O162: -30.99% | P162: No | Q162: No
B163: 62559019505 | C163: LORAZEPAM 0.5 MG TABLET | D163: 2025-10-10 | E163: 60 | F163: CVS PHARMACY #08538 | G163: 1568406932 | H163: $0.03 | I163: $17.00 | J163: $5.00 | K163: $0.04 | L163: -$0.01 | M163: 2025-09-17 | O163: -25.00% | P163: No | Q163: No
B164: 57237001401 | C164: TAMSULOSIN HCL 0.4 MG CAPSULE | D164: 2025-11-01 | E164: 90 | F164: CVS PHARMACY #08538 | G164: 1568406932 | H164: $0.04 | I164: $25.00 | J164: $15.00 | K164: $0.05 | L164: -$0.01 | M164: 2025-10-22 | O164: -20.00% | P164: No | Q164: No
B165: 13668013610 | C165: ESCITALOPRAM 10 MG TABLET | D165: 2025-11-10 | E165: 30 | F165: CVS PHARMACY #08538 | G165: 1568406932 | H165: $0.03 | I165: $17.00 | J165: $5.00 | K165: $0.04 | L165: -$0.01 | M165: 2025-10-22 | O165: -25.00% | P165: No | Q165: No
B166: 55111064410 | C166: OMEPRAZOLE DR 20 MG CAPSULE | D166: 2025-12-26 | E166: 90 | F166: CVS PHARMACY #08538 | G166: 1568406932 | H166: $0.02 | I166: $25.00 | J166: $15.00 | K166: $0.03 | L166: -$0.01 | M166: 2025-12-17 | O166: -33.33% | P166: No | Q166: No
B167: 70710177200 | C167: ATORVASTATIN 40 MG TABLET | D167: 2025-11-06 | E167: 90 | F167: CVS PHARMACY #08538 | G167: 1568406932 | H167: $0.03 | I167: $25.00 | J167: $0.00 | K167: $0.04 | L167: -$0.01 | M167: 2025-10-22 | O167: -25.00% | P167: No | Q167: No
B168: 47781035803 | C168: BUPRENORPHINE-NALOXONE 12-3 MG SL FILM | D168: 2025-12-11 | E168: 30 | F168: CVS PHARMACY #08538 | G168: 1568406932 | H168: $1.80 | I168: $17.00 | J168: $5.00 | K168: $4.15 | L168: -$2.35 | M168: 2025-11-19 | O168: -56.63% | P168: No | Q168: No
B169: 65862001501 | C169: AMOXICILLIN 875 MG TABLET | D169: 2025-10-06 | E169: 20 | F169: CVS PHARMACY #08538 | G169: 1568406932 | H169: $0.07 | I169: $17.00 | J169: $5.00 | K169: $0.16 | L169: -$0.09 | M169: 2025-09-17 | O169: -56.25% | P169: No | Q169: No
B170: 66993001968 | C170: ALBUTEROL HFA 90 MCG INHALER | D170: 2025-12-18 | E170: 36 | F170: CVS PHARMACY #08538 | G170: 1568406932 | H170: $1.56 | I170: $17.00 | J170: $0.00 | K170: $1.85 | L170: -$0.29 | M170: 2025-12-17 | O170: -15.68% | P170: No | Q170: No
B171: 69452027520 | C171: KETOROLAC 10 MG TABLET | D171: 2025-12-11 | E171: 20 | F171: CVS PHARMACY #08538 | G171: 1568406932 | H171: $0.06 | I171: $17.00 | J171: $5.00 | K171: $0.17 | L171: -$0.11 | M171: 2025-11-19 | O171: -64.71% | P171: No | Q171: No
B172: 310737220 | C172: BUDESONIDE-FORMOTEROL 80-4.5 | D172: 2025-12-18 | E172: 30.6 | F172: CVS PHARMACY #08538 | G172: 1568406932 | H172: $15.55 | I172: $25.00 | J172: $0.00 | K172: $17.48 | L172: -$1.93 | M172: 2025-12-17 | O172: -11.04% | P172: No | Q172: No
B173: 69452027520 | C173: KETOROLAC 10 MG TABLET | D173: 2025-10-28 | E173: 20 | F173: CVS PHARMACY #08538 | G173: 1568406932 | H173: $0.06 | I173: $17.00 | J173: $5.00 | K173: $0.22 | L173: -$0.16 | M173: 2025-10-22 | O173: -72.73% | P173: No | Q173: No
B174: 13668013610 | C174: ESCITALOPRAM 10 MG TABLET | D174: 2025-12-03 | E174: 90 | F174: CVS PHARMACY #08538 | G174: 1568406932 | H174: $0.03 | I174: $25.00 | J174: $15.00 | K174: $0.04 | L174: -$0.01 | M174: 2025-11-19 | O174: -25.00% | P174: No | Q174: No
B175: 47781035803 | C175: BUPRENORPHINE-NALOXONE 12-3 MG SL FILM | D175: 2025-10-25 | E175: 30 | F175: CVS PHARMACY #08538 | G175: 1568406932 | H175: $1.80 | I175: $17.00 | J175: $5.00 | K175: $4.22 | L175: -$2.42 | M175: 2025-10-22 | O175: -57.35% | P175: No | Q175: No
B176: 13668013610 | C176: ESCITALOPRAM 10 MG TABLET | D176: 2025-11-13 | E176: 90 | F176: CVS PHARMACY #08538 | G176: 1568406932 | H176: $0.03 | I176: $25.00 | J176: $15.00 | K176: $0.04 | L176: -$0.01 | M176: 2025-10-22 | O176: -25.00% | P176: No | Q176: No
B177: 16571016901 | C177: BACLOFEN 5 MG TABLET | D177: 2025-10-31 | E177: 270 | F177: CVS PHARMACY #08538 | G177: 1568406932 | H177: $0.03 | I177: $25.00 | J177: $15.00 | K177: $0.10 | L177: -$0.07 | M177: 2025-10-22 | O177: -70.00% | P177: No | Q177: No
B178: 168005646 | C178: BETAMETHASONE DP 0.05% OINT | D178: 2025-11-13 | E178: 45 | F178: CVS PHARMACY #08538 | G178: 1568406932 | H178: $0.24 | I178: $17.00 | J178: $5.00 | K178: $0.47 | L178: -$0.23 | M178: 2025-10-22 | O178: -48.94% | P178: No | Q178: No
B179: 69097083305 | C179: SERTRALINE HCL 25 MG TABLET | D179: 2025-12-14 | E179: 90 | F179: CVS PHARMACY #08539 | G179: 1013951482 | H179: $0.02 | I179: $25.00 | J179: $0.00 | K179: $0.03 | L179: -$0.01 | M179: 2025-11-19 | O179: -33.33% | P179: No | Q179: No
B180: 60505036302 | C180: OFLOXACIN 0.3% EAR DROPS | D180: 2025-10-13 | E180: 10 | F180: CVS PHARMACY #08539 | G180: 1013951482 | H180: $0.49 | I180: $17.00 | J180: $10.00 | K180: $1.23 | L180: -$0.74 | M180: 2025-09-17 | O180: -60.16% | P180: No | Q180: No
B181: 53489011905 | C181: DOXYCYCLINE HYCLATE 100 MG CAP | D181: 2025-12-11 | E181: 60 | F181: CVS PHARMACY #08539 | G181: 1013951482 | H181: $0.06 | I181: $17.00 | J181: $4.10 | K181: $0.12 | L181: -$0.06 | M181: 2025-11-19 | O181: -50.00% | P181: No | Q181: No
B182: 72888021000 | C182: METOPROLOL TARTRATE 50 MG TAB | D182: 2025-10-28 | E182: 30 | F182: CVS PHARMACY #08539 | G182: 1013951482 | H182: $0.01 | I182: $17.00 | J182: $15.00 | K182: $0.02 | L182: -$0.01 | M182: 2025-10-22 | O182: -50.00% | P182: No | Q182: No
B183: 59651000305 | C183: OMEPRAZOLE DR 40 MG CAPSULE | D183: 2025-11-17 | E183: 90 | F183: CVS PHARMACY #08539 | G183: 1013951482 | H183: $0.04 | I183: $25.00 | J183: $0.00 | K183: $0.05 | L183: -$0.01 | M183: 2025-10-22 | O183: -20.00% | P183: No | Q183: No
B184: 115148901 | C184: DEXTROAMP-AMPHET ER 20 MG CAP | D184: 2025-10-03 | E184: 30 | F184: CVS PHARMACY #08539 | G184: 1013951482 | H184: $0.23 | I184: $17.00 | J184: $10.00 | K184: $0.64 | L184: -$0.41 | M184: 2025-09-17 | O184: -64.06% | P184: No | Q184: No
B185: 65862050320 | C185: AMOX-CLAV 875-125 MG TABLET | D185: 2025-10-13 | E185: 14 | F185: CVS PHARMACY #08539 | G185: 1013951482 | H185: $0.16 | I185: $17.00 | J185: $10.00 | K185: $0.29 | L185: -$0.13 | M185: 2025-09-17 | O185: -44.83% | P185: No | Q185: No
B186: 115148901 | C186: DEXTROAMP-AMPHET ER 20 MG CAP | D186: 2025-12-05 | E186: 30 | F186: CVS PHARMACY #08539 | G186: 1013951482 | H186: $0.23 | I186: $17.00 | J186: $10.00 | K186: $0.64 | L186: -$0.41 | M186: 2025-11-19 | O186: -64.06% | P186: No | Q186: No
B187: 480400062 | C187: VESTURA 3 MG-0.02 MG TABLET | D187: 2025-10-18 | E187: 28 | F187: CVS PHARMACY #08539 | G187: 1013951482 | H187: $0.09 | I187: $17.00 | J187: $0.00 | K187: $0.16 | L187: -$0.07 | M187: 2025-09-17 | O187: -43.75% | P187: No | Q187: No
B188: 69097083412 | C188: SERTRALINE HCL 50 MG TABLET | D188: 2025-12-14 | E188: 90 | F188: CVS PHARMACY #08539 | G188: 1013951482 | H188: $0.03 | I188: $25.00 | J188: $15.00 | K188: $0.04 | L188: -$0.01 | M188: 2025-11-19 | O188: -25.00% | P188: No | Q188: No
B189: 68462050329 | C189: HAILEY FE 1.5-30 TABLET | D189: 2025-10-18 | E189: 84 | F189: CVS PHARMACY #08539 | G189: 1013951482 | H189: $0.09 | I189: $25.00 | J189: $0.00 | K189: $0.15 | L189: -$0.06 | M189: 2025-09-17 | O189: -40.00% | P189: No | Q189: No
B190: 13668013501 | C190: ESCITALOPRAM 5 MG TABLET | D190: 2025-10-15 | E190: 30 | F190: CVS PHARMACY #08539 | G190: 1013951482 | H190: $0.02 | I190: $17.00 | J190: $8.00 | K190: $0.04 | L190: -$0.02 | M190: 2025-09-17 | O190: -50.00% | P190: No | Q190: No
B191: 60505056000 | C191: OFLOXACIN 0.3% EYE DROPS | D191: 2025-11-10 | E191: 5 | F191: CVS PHARMACY #08539 | G191: 1013951482 | H191: $0.49 | I191: $17.00 | J191: $19.43 | K191: $1.63 | L191: -$1.14 | M191: 2025-10-22 | O191: -69.94% | P191: No | Q191: No
B192: 93317431 | C192: ALBUTEROL HFA 90 MCG INHALER | D192: 2025-11-19 | E192: 8.5 | F192: CVS PHARMACY #08539 | G192: 1013951482 | H192: $1.15 | I192: $17.00 | J192: $0.00 | K192: $1.92 | L192: -$0.77 | M192: 2025-10-22 | O192: -40.10% | P192: No | Q192: No
B193: 69097083412 | C193: SERTRALINE HCL 50 MG TABLET | D193: 2025-11-16 | E193: 90 | F193: CVS PHARMACY #08539 | G193: 1013951482 | H193: $0.03 | I193: $25.00 | J193: $0.00 | K193: $0.04 | L193: -$0.01 | M193: 2025-10-22 | O193: -25.00% | P193: No | Q193: No
B194: 68462050329 | C194: HAILEY FE 1.5-30 TABLET | D194: 2025-10-17 | E194: 84 | F194: CVS PHARMACY #08539 | G194: 1013951482 | H194: $0.09 | I194: $25.00 | J194: $0.00 | K194: $0.15 | L194: -$0.06 | M194: 2025-09-17 | O194: -40.00% | P194: No | Q194: No
B195: 13107015590 | C195: PAROXETINE HCL 20 MG TABLET | D195: 2025-10-28 | E195: 30 | F195: CVS PHARMACY #08539 | G195: 1013951482 | H195: $0.04 | I195: $17.00 | J195: $15.00 | K195: $0.07 | L195: =H195-K195 -> -$0.03 | M195: 2025-10-22 | N195: =IFERROR(IF((L195/K195)>=0.1,L195/K195,""),0) ->  | O195: =IFERROR(IF((L195/K195)<0.1,L195/K195,""),0) -> -42.86% | P195: No | Q195: No
B196: 53489011905 | C196: DOXYCYCLINE HYCLATE 100 MG CAP | D196: 2025-12-03 | E196: 20 | F196: CVS PHARMACY #08539 | G196: 1013951482 | H196: $0.06 | I196: $17.00 | J196: $3.63 | K196: $0.12 | L196: -$0.06 | M196: 2025-11-19 | O196: -50.00% | P196: No | Q196: No
B197: 480400062 | C197: VESTURA 3 MG-0.02 MG TABLET | D197: 2025-12-03 | E197: 28 | F197: CVS PHARMACY #08539 | G197: 1013951482 | H197: $0.09 | I197: $17.00 | J197: $0.00 | K197: $0.15 | L197: -$0.06 | M197: 2025-11-19 | O197: -40.00% | P197: No | Q197: No
B198: 53489011905 | C198: DOXYCYCLINE HYCLATE 100 MG CAP | D198: 2025-11-10 | E198: 14 | F198: CVS PHARMACY #08539 | G198: 1013951482 | H198: $0.06 | I198: $17.00 | J198: $17.81 | K198: $0.12 | L198: -$0.06 | M198: 2025-10-22 | O198: -50.00% | P198: No | Q198: No
B199: 50111064801 | C199: FLUOXETINE HCL 20 MG CAPSULE | D199: 2025-11-12 | E199: 90 | F199: CVS PHARMACY #08539 | G199: 1013951482 | H199: $0.02 | I199: $25.00 | J199: $0.00 | K199: $0.03 | L199: -$0.01 | M199: 2025-10-22 | O199: -33.33% | P199: No | Q199: No
B200: 185209801 | C200: DEXTROAMP-AMPHETAMINE 5 MG TAB | D200: 2025-12-10 | E200: 30 | F200: CVS PHARMACY #08539 | G200: 1013951482 | H200: $0.07 | I200: $17.00 | J200: $10.00 | K200: $0.24 | L200: -$0.17 | M200: 2025-11-19 | O200: -70.83% | P200: No | Q200: No
... 4300 more rows

Sheet Iowa Retail Pharmacies_Web
A1: Pharmacy Benefits Manager Company Name | B1: Prescription claim date | C1: Quantity of the Drug Dispensed (expressed in metric decimal units) | D1: Amount the Pharmacy was Reimbursed $ (per Unit) | E1: NADAC per unit $ (from CMS survey report as provided by the OIC) | F1: NADAC Report Date (date of the CMS Report used to to determine the "NADAC" rate) | G1: Affiliate Pharmacy (Yes / No) | H1: Dispensed Pursuant to Government Health Plan (Yes / No)
A2: =IF(ISBLANK(Iowa_Retail_Pharmacies!A2),"",Iowa_Retail_Pharmacies!A2) -> Smith Health, Inc | B2: =IF(ISBLANK(Iowa_Retail_Pharmacies!D2),"",Iowa_Retail_Pharmacies!D2) -> 2025-12-10 | C2: =IF(ISBLANK(Iowa_Retail_Pharmacies!E2),"",Iowa_Retail_Pharmacies!E2) -> 15 | D2: =IF(ISBLANK(Iowa_Retail_Pharmacies!H2),"",Iowa_Retail_Pharmacies!H2) -> $0.73 | E2: =IF(ISBLANK(Iowa_Retail_Pharmacies!K2),"",Iowa_Retail_Pharmacies!K2) -> $0.10 | F2: =IF(ISBLANK(Iowa_Retail_Pharmacies!M2),"",Iowa_Retail_Pharmacies!M2) -> 2025-11-19 | G2: =IF(ISBLANK(Iowa_Retail_Pharmacies!P2),"",Iowa_Retail_Pharmacies!P2) -> No | H2: =IF(ISBLANK(Iowa_Retail_Pharmacies!Q2),"",Iowa_Retail_Pharmacies!Q2) -> No
B3: =IF(ISBLANK(Iowa_Retail_Pharmacies!D3),"",Iowa_Retail_Pharmacies!D3) -> 2025-10-20 | C3: =IF(ISBLANK(Iowa_Retail_Pharmacies!E3),"",Iowa_Retail_Pharmacies!E3) -> 10 | D3: =IF(ISBLANK(Iowa_Retail_Pharmacies!H3),"",Iowa_Retail_Pharmacies!H3) -> $0.16 | E3: =IF(ISBLANK(Iowa_Retail_Pharmacies!K3),"",Iowa_Retail_Pharmacies!K3) -> $0.08 | F3: =IF(ISBLANK(Iowa_Retail_Pharmacies!M3),"",Iowa_Retail_Pharmacies!M3) -> 2024-04-17 | G3: =IF(ISBLANK(Iowa_Retail_Pharmacies!P3),"",Iowa_Retail_Pharmacies!P3) -> No | H3: =IF(ISBLANK(Iowa_Retail_Pharmacies!Q3),"",Iowa_Retail_Pharmacies!Q3) -> No
B4: =IF(ISBLANK(Iowa_Retail_Pharmacies!D4),"",Iowa_Retail_Pharmacies!D4) -> 2025-10-13 | C4: =IF(ISBLANK(Iowa_Retail_Pharmacies!E4),"",Iowa_Retail_Pharmacies!E4) -> 56 | D4: =IF(ISBLANK(Iowa_Retail_Pharmacies!H4),"",Iowa_Retail_Pharmacies!H4) -> $0.14 | E4: =IF(ISBLANK(Iowa_Retail_Pharmacies!K4),"",Iowa_Retail_Pharmacies!K4) -> $0.08 | F4: =IF(ISBLANK(Iowa_Retail_Pharmacies!M4),"",Iowa_Retail_Pharmacies!M4) -> 2025-09-17 | G4: =IF(ISBLANK(Iowa_Retail_Pharmacies!P4),"",Iowa_Retail_Pharmacies!P4) -> No | H4: =IF(ISBLANK(Iowa_Retail_Pharmacies!Q4),"",Iowa_Retail_Pharmacies!Q4) -> No
B5: =IF(ISBLANK(Iowa_Retail_Pharmacies!D5),"",Iowa_Retail_Pharmacies!D5) -> 2025-12-10 | C5: =IF(ISBLANK(Iowa_Retail_Pharmacies!E5),"",Iowa_Retail_Pharmacies!E5) -> 10 | D5: =IF(ISBLANK(Iowa_Retail_Pharmacies!H5),"",Iowa_Retail_Pharmacies!H5) -> $3.24 | E5: =IF(ISBLANK(Iowa_Retail_Pharmacies!K5),"",Iowa_Retail_Pharmacies!K5) -> $1.67 | F5: =IF(ISBLANK(Iowa_Retail_Pharmacies!M5),"",Iowa_Retail_Pharmacies!M5) -> 2025-11-19 | G5: =IF(ISBLANK(Iowa_Retail_Pharmacies!P5),"",Iowa_Retail_Pharmacies!P5) -> No | H5: =IF(ISBLANK(Iowa_Retail_Pharmacies!Q5),"",Iowa_Retail_Pharmacies!Q5) -> No
B6: =IF(ISBLANK(Iowa_Retail_Pharmacies!D6),"",Iowa_Retail_Pharmacies!D6) -> 2025-10-13 | C6: =IF(ISBLANK(Iowa_Retail_Pharmacies!E6),"",Iowa_Retail_Pharmacies!E6) -> 15 | D6: =IF(ISBLANK(Iowa_Retail_Pharmacies!H6),"",Iowa_Retail_Pharmacies!H6) -> $0.57 | E6: =IF(ISBLANK(Iowa_Retail_Pharmacies!K6),"",Iowa_Retail_Pharmacies!K6) -> $0.16 | F6: =IF(ISBLANK(Iowa_Retail_Pharmacies!M6),"",Iowa_Retail_Pharmacies!M6) -> 2025-09-17 | G6: =IF(ISBLANK(Iowa_Retail_Pharmacies!P6),"",Iowa_Retail_Pharmacies!P6) -> No | H6: =IF(ISBLANK(Iowa_Retail_Pharmacies!Q6),"",Iowa_Retail_Pharmacies!Q6) -> No
B7: =IF(ISBLANK(Iowa_Retail_Pharmacies!D7),"",Iowa_Retail_Pharmacies!D7) -> 2025-12-10 | C7: =IF(ISBLANK(Iowa_Retail_Pharmacies!E7),"",Iowa_Retail_Pharmacies!E7) -> 30 | D7: =IF(ISBLANK(Iowa_Retail_Pharmacies!H7),"",Iowa_Retail_Pharmacies!H7) -> $0.30 | E7: =IF(ISBLANK(Iowa_Retail_Pharmacies!K7),"",Iowa_Retail_Pharmacies!K7) -> $0.04 | F7: =IF(ISBLANK(Iowa_Retail_Pharmacies!M7),"",Iowa_Retail_Pharmacies!M7) -> 2025-11-19 | G7: =IF(ISBLANK(Iowa_Retail_Pharmacies!P7),"",Iowa_Retail_Pharmacies!P7) -> No | H7: =IF(ISBLANK(Iowa_Retail_Pharmacies!Q7),"",Iowa_Retail_Pharmacies!Q7) -> No
B8: =IF(ISBLANK(Iowa_Retail_Pharmacies!D8),"",Iowa_Retail_Pharmacies!D8) -> 2025-12-10 | C8: =IF(ISBLANK(Iowa_Retail_Pharmacies!E8),"",Iowa_Retail_Pharmacies!E8) -> 12 | D8: =IF(ISBLANK(Iowa_Retail_Pharmacies!H8),"",Iowa_Retail_Pharmacies!H8) -> $0.54 | E8: =IF(ISBLANK(Iowa_Retail_Pharmacies!K8),"",Iowa_Retail_Pharmacies!K8) -> $0.09 | F8: =IF(ISBLANK(Iowa_Retail_Pharmacies!M8),"",Iowa_Retail_Pharmacies!M8) -> 2025-11-19 | G8: =IF(ISBLANK(Iowa_Retail_Pharmacies!P8),"",Iowa_Retail_Pharmacies!P8) -> No | H8: =IF(ISBLANK(Iowa_Retail_Pharmacies!Q8),"",Iowa_Retail_Pharmacies!Q8) -> No
B9: =IF(ISBLANK(Iowa_Retail_Pharmacies!D9),"",Iowa_Retail_Pharmacies!D9) -> 2025-12-29 | C9: =IF(ISBLANK(Iowa_Retail_Pharmacies!E9),"",Iowa_Retail_Pharmacies!E9) -> 84 | D9: =IF(ISBLANK(Iowa_Retail_Pharmacies!H9),"",Iowa_Retail_Pharmacies!H9) -> $0.25 | E9: =IF(ISBLANK(Iowa_Retail_Pharmacies!K9),"",Iowa_Retail_Pharmacies!K9) -> $0.17 | F9: =IF(ISBLANK(Iowa_Retail_Pharmacies!M9),"",Iowa_Retail_Pharmacies!M9) -> 2025-12-17 | G9: =IF(ISBLANK(Iowa_Retail_Pharmacies!P9),"",Iowa_Retail_Pharmacies!P9) -> No | H9: =IF(ISBLANK(Iowa_Retail_Pharmacies!Q9),"",Iowa_Retail_Pharmacies!Q9) -> No
B10: =IF(ISBLANK(Iowa_Retail_Pharmacies!D10),"",Iowa_Retail_Pharmacies!D10) -> 2025-11-07 | C10: =IF(ISBLANK(Iowa_Retail_Pharmacies!E10),"",Iowa_Retail_Pharmacies!E10) -> 60 | D10: =IF(ISBLANK(Iowa_Retail_Pharmacies!H10),"",Iowa_Retail_Pharmacies!H10) -> $0.15 | E10: =IF(ISBLANK(Iowa_Retail_Pharmacies!K10),"",Iowa_Retail_Pharmacies!K10) -> $0.09 | F10: =IF(ISBLANK(Iowa_Retail_Pharmacies!M10),"",Iowa_Retail_Pharmacies!M10) -> 2025-10-22 | G10: =IF(ISBLANK(Iowa_Retail_Pharmacies!P10),"",Iowa_Retail_Pharmacies!P10) -> No | H10: =IF(ISBLANK(Iowa_Retail_Pharmacies!Q10),"",Iowa_Retail_Pharmacies!Q10) -> No
B11: =IF(ISBLANK(Iowa_Retail_Pharmacies!D11),"",Iowa_Retail_Pharmacies!D11) -> 2025-12-08 | C11: =IF(ISBLANK(Iowa_Retail_Pharmacies!E11),"",Iowa_Retail_Pharmacies!E11) -> 90 | D11: =IF(ISBLANK(Iowa_Retail_Pharmacies!H11),"",Iowa_Retail_Pharmacies!H11) -> $0.08 | E11: =IF(ISBLANK(Iowa_Retail_Pharmacies!K11),"",Iowa_Retail_Pharmacies!K11) -> $0.03 | F11: =IF(ISBLANK(Iowa_Retail_Pharmacies!M11),"",Iowa_Retail_Pharmacies!M11) -> 2025-11-19 | G11: =IF(ISBLANK(Iowa_Retail_Pharmacies!P11),"",Iowa_Retail_Pharmacies!P11) -> No | H11: =IF(ISBLANK(Iowa_Retail_Pharmacies!Q11),"",Iowa_Retail_Pharmacies!Q11) -> No
B12: =IF(ISBLANK(Iowa_Retail_Pharmacies!D12),"",Iowa_Retail_Pharmacies!D12) -> 2025-10-03 | C12: =IF(ISBLANK(Iowa_Retail_Pharmacies!E12),"",Iowa_Retail_Pharmacies!E12) -> 90 | D12: =IF(ISBLANK(Iowa_Retail_Pharmacies!H12),"",Iowa_Retail_Pharmacies!H12) -> $0.08 | E12: =IF(ISBLANK(Iowa_Retail_Pharmacies!K12),"",Iowa_Retail_Pharmacies!K12) -> $0.03 | F12: =IF(ISBLANK(Iowa_Retail_Pharmacies!M12),"",Iowa_Retail_Pharmacies!M12) -> 2025-09-17 | G12: =IF(ISBLANK(Iowa_Retail_Pharmacies!P12),"",Iowa_Retail_Pharmacies!P12) -> No | H12: =IF(ISBLANK(Iowa_Retail_Pharmacies!Q12),"",Iowa_Retail_Pharmacies!Q12) -> No
B13: =IF(ISBLANK(Iowa_Retail_Pharmacies!D13),"",Iowa_Retail_Pharmacies!D13) -> 2025-10-03 | C13: =IF(ISBLANK(Iowa_Retail_Pharmacies!E13),"",Iowa_Retail_Pharmacies!E13) -> 60 | D13: =IF(ISBLANK(Iowa_Retail_Pharmacies!H13),"",Iowa_Retail_Pharmacies!H13) -> $0.15 | E13: =IF(ISBLANK(Iowa_Retail_Pharmacies!K13),"",Iowa_Retail_Pharmacies!K13) -> $0.09 | F13: =IF(ISBLANK(Iowa_Retail_Pharmacies!M13),"",Iowa_Retail_Pharmacies!M13) -> 2025-09-17 | G13: =IF(ISBLANK(Iowa_Retail_Pharmacies!P13),"",Iowa_Retail_Pharmacies!P13) -> No | H13: =IF(ISBLANK(Iowa_Retail_Pharmacies!Q13),"",Iowa_Retail_Pharmacies!Q13) -> No
B14: =IF(ISBLANK(Iowa_Retail_Pharmacies!D14),"",Iowa_Retail_Pharmacies!D14) -> 2025-11-07 | C14: =IF(ISBLANK(Iowa_Retail_Pharmacies!E14),"",Iowa_Retail_Pharmacies!E14) -> 45 | D14: =IF(ISBLANK(Iowa_Retail_Pharmacies!H14),"",Iowa_Retail_Pharmacies!H14) -> $0.30 | E14: =IF(ISBLANK(Iowa_Retail_Pharmacies!K14),"",Iowa_Retail_Pharmacies!K14) -> $0.05 | F14: =IF(ISBLANK(Iowa_Retail_Pharmacies!M14),"",Iowa_Retail_Pharmacies!M14) -> 2025-10-22 | G14: =IF(ISBLANK(Iowa_Retail_Pharmacies!P14),"",Iowa_Retail_Pharmacies!P14) -> No | H14: =IF(ISBLANK(Iowa_Retail_Pharmacies!Q14),"",Iowa_Retail_Pharmacies!Q14) -> No
B15: =IF(ISBLANK(Iowa_Retail_Pharmacies!D15),"",Iowa_Retail_Pharmacies!D15) -> 2025-11-10 | C15: =IF(ISBLANK(Iowa_Retail_Pharmacies!E15),"",Iowa_Retail_Pharmacies!E15) -> 90 | D15: =IF(ISBLANK(Iowa_Retail_Pharmacies!H15),"",Iowa_Retail_Pharmacies!H15) -> $0.11 | E15: =IF(ISBLANK(Iowa_Retail_Pharmacies!K15),"",Iowa_Retail_Pharmacies!K15) -> $0.05 | F15: =IF(ISBLANK(Iowa_Retail_Pharmacies!M15),"",Iowa_Retail_Pharmacies!M15) -> 2025-10-22 | G15: =IF(ISBLANK(Iowa_Retail_Pharmacies!P15),"",Iowa_Retail_Pharmacies!P15) -> No | H15: =IF(ISBLANK(Iowa_Retail_Pharmacies!Q15),"",Iowa_Retail_Pharmacies!Q15) -> No
B16: =IF(ISBLANK(Iowa_Retail_Pharmacies!D16),"",Iowa_Retail_Pharmacies!D16) -> 2025-12-18 | C16: =IF(ISBLANK(Iowa_Retail_Pharmacies!E16),"",Iowa_Retail_Pharmacies!E16) -> 90 | D16: =IF(ISBLANK(Iowa_Retail_Pharmacies!H16),"",Iowa_Retail_Pharmacies!H16) -> $0.27 | E16: =IF(ISBLANK(Iowa_Retail_Pharmacies!K16),"",Iowa_Retail_Pharmacies!K16) -> $0.02 | F16: =IF(ISBLANK(Iowa_Retail_Pharmacies!M16),"",Iowa_Retail_Pharmacies!M16) -> 2025-12-17 | G16: =IF(ISBLANK(Iowa_Retail_Pharmacies!P16),"",Iowa_Retail_Pharmacies!P16) -> No | H16: =IF(ISBLANK(Iowa_Retail_Pharmacies!Q16),"",Iowa_Retail_Pharmacies!Q16) -> No
B17: =IF(ISBLANK(Iowa_Retail_Pharmacies!D17),"",Iowa_Retail_Pharmacies!D17) -> 2025-10-03 | C17: =IF(ISBLANK(Iowa_Retail_Pharmacies!E17),"",Iowa_Retail_Pharmacies!E17) -> 30 | D17: =IF(ISBLANK(Iowa_Retail_Pharmacies!H17),"",Iowa_Retail_Pharmacies!H17) -> $0.31 | E17: =IF(ISBLANK(Iowa_Retail_Pharmacies!K17),"",Iowa_Retail_Pharmacies!K17) -> $0.04 | F17: =IF(ISBLANK(Iowa_Retail_Pharmacies!M17),"",Iowa_Retail_Pharmacies!M17) -> 2025-09-17 | G17: =IF(ISBLANK(Iowa_Retail_Pharmacies!P17),"",Iowa_Retail_Pharmacies!P17) -> No | H17: =IF(ISBLANK(Iowa_Retail_Pharmacies!Q17),"",Iowa_Retail_Pharmacies!Q17) -> No
B18: =IF(ISBLANK(Iowa_Retail_Pharmacies!D18),"",Iowa_Retail_Pharmacies!D18) -> 2025-12-08 | C18: =IF(ISBLANK(Iowa_Retail_Pharmacies!E18),"",Iowa_Retail_Pharmacies!E18) -> 30 | D18: =IF(ISBLANK(Iowa_Retail_Pharmacies!H18),"",Iowa_Retail_Pharmacies!H18) -> $0.09 | E18: =IF(ISBLANK(Iowa_Retail_Pharmacies!K18),"",Iowa_Retail_Pharmacies!K18) -> $0.02 | F18: =IF(ISBLANK(Iowa_Retail_Pharmacies!M18),"",Iowa_Retail_Pharmacies!M18) -> 2025-11-19 | G18: =IF(ISBLANK(Iowa_Retail_Pharmacies!P18),"",Iowa_Retail_Pharmacies!P18) -> No | H18: =IF(ISBLANK(Iowa_Retail_Pharmacies!Q18),"",Iowa_Retail_Pharmacies!Q18) -> No
B19: =IF(ISBLANK(Iowa_Retail_Pharmacies!D19),"",Iowa_Retail_Pharmacies!D19) -> 2025-12-08 | C19: =IF(ISBLANK(Iowa_Retail_Pharmacies!E19),"",Iowa_Retail_Pharmacies!E19) -> 30 | D19: =IF(ISBLANK(Iowa_Retail_Pharmacies!H19),"",Iowa_Retail_Pharmacies!H19) -> $0.16 | E19: =IF(ISBLANK(Iowa_Retail_Pharmacies!K19),"",Iowa_Retail_Pharmacies!K19) -> $0.06 | F19: =IF(ISBLANK(Iowa_Retail_Pharmacies!M19),"",Iowa_Retail_Pharmacies!M19) -> 2025-11-19 | G19: =IF(ISBLANK(Iowa_Retail_Pharmacies!P19),"",Iowa_Retail_Pharmacies!P19) -> No | H19: =IF(ISBLANK(Iowa_Retail_Pharmacies!Q19),"",Iowa_Retail_Pharmacies!Q19) -> No
B20: =IF(ISBLANK(Iowa_Retail_Pharmacies!D20),"",Iowa_Retail_Pharmacies!D20) -> 2025-10-10 | C20: =IF(ISBLANK(Iowa_Retail_Pharmacies!E20),"",Iowa_Retail_Pharmacies!E20) -> 30 | D20: =IF(ISBLANK(Iowa_Retail_Pharmacies!H20),"",Iowa_Retail_Pharmacies!H20) -> $0.31 | E20: =IF(ISBLANK(Iowa_Retail_Pharmacies!K20),"",Iowa_Retail_Pharmacies!K20) -> $0.04 | F20: =IF(ISBLANK(Iowa_Retail_Pharmacies!M20),"",Iowa_Retail_Pharmacies!M20) -> 2025-09-17 | G20: =IF(ISBLANK(Iowa_Retail_Pharmacies!P20),"",Iowa_Retail_Pharmacies!P20) -> No | H20: =IF(ISBLANK(Iowa_Retail_Pharmacies!Q20),"",Iowa_Retail_Pharmacies!Q20) -> No
B21: =IF(ISBLANK(Iowa_Retail_Pharmacies!D21),"",Iowa_Retail_Pharmacies!D21) -> 2025-12-08 | C21: =IF(ISBLANK(Iowa_Retail_Pharmacies!E21),"",Iowa_Retail_Pharmacies!E21) -> 45 | D21: =IF(ISBLANK(Iowa_Retail_Pharmacies!H21),"",Iowa_Retail_Pharmacies!H21) -> $0.30 | E21: =IF(ISBLANK(Iowa_Retail_Pharmacies!K21),"",Iowa_Retail_Pharmacies!K21) -> $0.05 | F21: =IF(ISBLANK(Iowa_Retail_Pharmacies!M21),"",Iowa_Retail_Pharmacies!M21) -> 2025-11-19 | G21: =IF(ISBLANK(Iowa_Retail_Pharmacies!P21),"",Iowa_Retail_Pharmacies!P21) -> No | H21: =IF(ISBLANK(Iowa_Retail_Pharmacies!Q21),"",Iowa_Retail_Pharmacies!Q21) -> No
B22: =IF(ISBLANK(Iowa_Retail_Pharmacies!D22),"",Iowa_Retail_Pharmacies!D22) -> 2025-10-04 | C22: =IF(ISBLANK(Iowa_Retail_Pharmacies!E22),"",Iowa_Retail_Pharmacies!E22) -> 84 | D22: =IF(ISBLANK(Iowa_Retail_Pharmacies!H22),"",Iowa_Retail_Pharmacies!H22) -> $0.25 | E22: =IF(ISBLANK(Iowa_Retail_Pharmacies!K22),"",Iowa_Retail_Pharmacies!K22) -> $0.16 | F22: =IF(ISBLANK(Iowa_Retail_Pharmacies!M22),"",Iowa_Retail_Pharmacies!M22) -> 2025-09-17 | G22: =IF(ISBLANK(Iowa_Retail_Pharmacies!P22),"",Iowa_Retail_Pharmacies!P22) -> No | H22: =IF(ISBLANK(Iowa_Retail_Pharmacies!Q22),"",Iowa_Retail_Pharmacies!Q22) -> No
B23: =IF(ISBLANK(Iowa_Retail_Pharmacies!D23),"",Iowa_Retail_Pharmacies!D23) -> 2025-10-10 | C23: =IF(ISBLANK(Iowa_Retail_Pharmacies!E23),"",Iowa_Retail_Pharmacies!E23) -> 30 | D23: =IF(ISBLANK(Iowa_Retail_Pharmacies!H23),"",Iowa_Retail_Pharmacies!H23) -> $0.96 | E23: =IF(ISBLANK(Iowa_Retail_Pharmacies!K23),"",Iowa_Retail_Pharmacies!K23) -> $0.56 | F23: =IF(ISBLANK(Iowa_Retail_Pharmacies!M23),"",Iowa_Retail_Pharmacies!M23) -> 2025-09-17 | G23: =IF(ISBLANK(Iowa_Retail_Pharmacies!P23),"",Iowa_Retail_Pharmacies!P23) -> No | H23: =IF(ISBLANK(Iowa_Retail_Pharmacies!Q23),"",Iowa_Retail_Pharmacies!Q23) -> No
B24: =IF(ISBLANK(Iowa_Retail_Pharmacies!D24),"",Iowa_Retail_Pharmacies!D24) -> 2025-10-10 | C24: =IF(ISBLANK(Iowa_Retail_Pharmacies!E24),"",Iowa_Retail_Pharmacies!E24) -> 90 | D24: =IF(ISBLANK(Iowa_Retail_Pharmacies!H24),"",Iowa_Retail_Pharmacies!H24) -> $0.67 | E24: =IF(ISBLANK(Iowa_Retail_Pharmacies!K24),"",Iowa_Retail_Pharmacies!K24) -> $0.01 | F24: =IF(ISBLANK(Iowa_Retail_Pharmacies!M24),"",Iowa_Retail_Pharmacies!M24) -> 2025-09-17 | G24: =IF(ISBLANK(Iowa_Retail_Pharmacies!P24),"",Iowa_Retail_Pharmacies!P24) -> No | H24: =IF(ISBLANK(Iowa_Retail_Pharmacies!Q24),"",Iowa_Retail_Pharmacies!Q24) -> No
B25: =IF(ISBLANK(Iowa_Retail_Pharmacies!D25),"",Iowa_Retail_Pharmacies!D25) -> 2025-10-03 | C25: =IF(ISBLANK(Iowa_Retail_Pharmacies!E25),"",Iowa_Retail_Pharmacies!E25) -> 45 | D25: =IF(ISBLANK(Iowa_Retail_Pharmacies!H25),"",Iowa_Retail_Pharmacies!H25) -> $0.30 | E25: =IF(ISBLANK(Iowa_Retail_Pharmacies!K25),"",Iowa_Retail_Pharmacies!K25) -> $0.05 | F25: =IF(ISBLANK(Iowa_Retail_Pharmacies!M25),"",Iowa_Retail_Pharmacies!M25) -> 2025-09-17 | G25: =IF(ISBLANK(Iowa_Retail_Pharmacies!P25),"",Iowa_Retail_Pharmacies!P25) -> No | H25: =IF(ISBLANK(Iowa_Retail_Pharmacies!Q25),"",Iowa_Retail_Pharmacies!Q25) -> No
B26: =IF(ISBLANK(Iowa_Retail_Pharmacies!D26),"",Iowa_Retail_Pharmacies!D26) -> 2025-12-06 | C26: =IF(ISBLANK(Iowa_Retail_Pharmacies!E26),"",Iowa_Retail_Pharmacies!E26) -> 84 | D26: =IF(ISBLANK(Iowa_Retail_Pharmacies!H26),"",Iowa_Retail_Pharmacies!H26) -> $0.25 | E26: =IF(ISBLANK(Iowa_Retail_Pharmacies!K26),"",Iowa_Retail_Pharmacies!K26) -> $0.17 | F26: =IF(ISBLANK(Iowa_Retail_Pharmacies!M26),"",Iowa_Retail_Pharmacies!M26) -> 2025-11-19 | G26: =IF(ISBLANK(Iowa_Retail_Pharmacies!P26),"",Iowa_Retail_Pharmacies!P26) -> No | H26: =IF(ISBLANK(Iowa_Retail_Pharmacies!Q26),"",Iowa_Retail_Pharmacies!Q26) -> No
B27: =IF(ISBLANK(Iowa_Retail_Pharmacies!D27),"",Iowa_Retail_Pharmacies!D27) -> 2025-10-01 | C27: =IF(ISBLANK(Iowa_Retail_Pharmacies!E27),"",Iowa_Retail_Pharmacies!E27) -> 90 | D27: =IF(ISBLANK(Iowa_Retail_Pharmacies!H27),"",Iowa_Retail_Pharmacies!H27) -> $0.30 | E27: =IF(ISBLANK(Iowa_Retail_Pharmacies!K27),"",Iowa_Retail_Pharmacies!K27) -> $0.04 | F27: =IF(ISBLANK(Iowa_Retail_Pharmacies!M27),"",Iowa_Retail_Pharmacies!M27) -> 2025-09-17 | G27: =IF(ISBLANK(Iowa_Retail_Pharmacies!P27),"",Iowa_Retail_Pharmacies!P27) -> No | H27: =IF(ISBLANK(Iowa_Retail_Pharmacies!Q27),"",Iowa_Retail_Pharmacies!Q27) -> No
B28: =IF(ISBLANK(Iowa_Retail_Pharmacies!D28),"",Iowa_Retail_Pharmacies!D28) -> 2025-11-10 | C28: =IF(ISBLANK(Iowa_Retail_Pharmacies!E28),"",Iowa_Retail_Pharmacies!E28) -> 30 | D28: =IF(ISBLANK(Iowa_Retail_Pharmacies!H28),"",Iowa_Retail_Pharmacies!H28) -> $0.96 | E28: =IF(ISBLANK(Iowa_Retail_Pharmacies!K28),"",Iowa_Retail_Pharmacies!K28) -> $0.49 | F28: =IF(ISBLANK(Iowa_Retail_Pharmacies!M28),"",Iowa_Retail_Pharmacies!M28) -> 2025-10-22 | G28: =IF(ISBLANK(Iowa_Retail_Pharmacies!P28),"",Iowa_Retail_Pharmacies!P28) -> No | H28: =IF(ISBLANK(Iowa_Retail_Pharmacies!Q28),"",Iowa_Retail_Pharmacies!Q28) -> No
B29: =IF(ISBLANK(Iowa_Retail_Pharmacies!D29),"",Iowa_Retail_Pharmacies!D29) -> 2025-11-07 | C29: =IF(ISBLANK(Iowa_Retail_Pharmacies!E29),"",Iowa_Retail_Pharmacies!E29) -> 30 | D29: =IF(ISBLANK(Iowa_Retail_Pharmacies!H29),"",Iowa_Retail_Pharmacies!H29) -> $0.16 | E29: =IF(ISBLANK(Iowa_Retail_Pharmacies!K29),"",Iowa_Retail_Pharmacies!K29) -> $0.06 | F29: =IF(ISBLANK(Iowa_Retail_Pharmacies!M29),"",Iowa_Retail_Pharmacies!M29) -> 2025-10-22 | G29: =IF(ISBLANK(Iowa_Retail_Pharmacies!P29),"",Iowa_Retail_Pharmacies!P29) -> No | H29: =IF(ISBLANK(Iowa_Retail_Pharmacies!Q29),"",Iowa_Retail_Pharmacies!Q29) -> No
B30: =IF(ISBLANK(Iowa_Retail_Pharmacies!D30),"",Iowa_Retail_Pharmacies!D30) -> 2025-12-09 | C30: =IF(ISBLANK(Iowa_Retail_Pharmacies!E30),"",Iowa_Retail_Pharmacies!E30) -> 60 | D30: =IF(ISBLANK(Iowa_Retail_Pharmacies!H30),"",Iowa_Retail_Pharmacies!H30) -> $0.11 | E30: =IF(ISBLANK(Iowa_Retail_Pharmacies!K30),"",Iowa_Retail_Pharmacies!K30) -> $0.02 | F30: =IF(ISBLANK(Iowa_Retail_Pharmacies!M30),"",Iowa_Retail_Pharmacies!M30) -> 2025-11-19 | G30: =IF(ISBLANK(Iowa_Retail_Pharmacies!P30),"",Iowa_Retail_Pharmacies!P30) -> No | H30: =IF(ISBLANK(Iowa_Retail_Pharmacies!Q30),"",Iowa_Retail_Pharmacies!Q30) -> No
B31: =IF(ISBLANK(Iowa_Retail_Pharmacies!D31),"",Iowa_Retail_Pharmacies!D31) -> 2025-10-13 | C31: =IF(ISBLANK(Iowa_Retail_Pharmacies!E31),"",Iowa_Retail_Pharmacies!E31) -> 20 | D31: =IF(ISBLANK(Iowa_Retail_Pharmacies!H31),"",Iowa_Retail_Pharmacies!H31) -> $0.51 | E31: =IF(ISBLANK(Iowa_Retail_Pharmacies!K31),"",Iowa_Retail_Pharmacies!K31) -> $0.29 | F31: =IF(ISBLANK(Iowa_Retail_Pharmacies!M31),"",Iowa_Retail_Pharmacies!M31) -> 2025-09-17 | G31: =IF(ISBLANK(Iowa_Retail_Pharmacies!P31),"",Iowa_Retail_Pharmacies!P31) -> No | H31: =IF(ISBLANK(Iowa_Retail_Pharmacies!Q31),"",Iowa_Retail_Pharmacies!Q31) -> No
B32: =IF(ISBLANK(Iowa_Retail_Pharmacies!D32),"",Iowa_Retail_Pharmacies!D32) -> 2025-10-14 | C32: =IF(ISBLANK(Iowa_Retail_Pharmacies!E32),"",Iowa_Retail_Pharmacies!E32) -> 90 | D32: =IF(ISBLANK(Iowa_Retail_Pharmacies!H32),"",Iowa_Retail_Pharmacies!H32) -> $0.08 | E32: =IF(ISBLANK(Iowa_Retail_Pharmacies!K32),"",Iowa_Retail_Pharmacies!K32) -> $0.04 | F32: =IF(ISBLANK(Iowa_Retail_Pharmacies!M32),"",Iowa_Retail_Pharmacies!M32) -> 2025-09-17 | G32: =IF(ISBLANK(Iowa_Retail_Pharmacies!P32),"",Iowa_Retail_Pharmacies!P32) -> No | H32: =IF(ISBLANK(Iowa_Retail_Pharmacies!Q32),"",Iowa_Retail_Pharmacies!Q32) -> No
B33: =IF(ISBLANK(Iowa_Retail_Pharmacies!D33),"",Iowa_Retail_Pharmacies!D33) -> 2025-10-14 | C33: =IF(ISBLANK(Iowa_Retail_Pharmacies!E33),"",Iowa_Retail_Pharmacies!E33) -> 30 | D33: =IF(ISBLANK(Iowa_Retail_Pharmacies!H33),"",Iowa_Retail_Pharmacies!H33) -> $0.11 | E33: =IF(ISBLANK(Iowa_Retail_Pharmacies!K33),"",Iowa_Retail_Pharmacies!K33) -> $0.03 | F33: =IF(ISBLANK(Iowa_Retail_Pharmacies!M33),"",Iowa_Retail_Pharmacies!M33) -> 2025-09-17 | G33: =IF(ISBLANK(Iowa_Retail_Pharmacies!P33),"",Iowa_Retail_Pharmacies!P33) -> No | H33: =IF(ISBLANK(Iowa_Retail_Pharmacies!Q33),"",Iowa_Retail_Pharmacies!Q33) -> No
B34: =IF(ISBLANK(Iowa_Retail_Pharmacies!D34),"",Iowa_Retail_Pharmacies!D34) -> 2025-10-10 | C34: =IF(ISBLANK(Iowa_Retail_Pharmacies!E34),"",Iowa_Retail_Pharmacies!E34) -> 60 | D34: =IF(ISBLANK(Iowa_Retail_Pharmacies!H34),"",Iowa_Retail_Pharmacies!H34) -> $0.11 | E34: =IF(ISBLANK(Iowa_Retail_Pharmacies!K34),"",Iowa_Retail_Pharmacies!K34) -> $0.02 | F34: =IF(ISBLANK(Iowa_Retail_Pharmacies!M34),"",Iowa_Retail_Pharmacies!M34) -> 2025-09-17 | G34: =IF(ISBLANK(Iowa_Retail_Pharmacies!P34),"",Iowa_Retail_Pharmacies!P34) -> No | H34: =IF(ISBLANK(Iowa_Retail_Pharmacies!Q34),"",Iowa_Retail_Pharmacies!Q34) -> No
B35: =IF(ISBLANK(Iowa_Retail_Pharmacies!D35),"",Iowa_Retail_Pharmacies!D35) -> 2025-10-07 | C35: =IF(ISBLANK(Iowa_Retail_Pharmacies!E35),"",Iowa_Retail_Pharmacies!E35) -> 90 | D35: =IF(ISBLANK(Iowa_Retail_Pharmacies!H35),"",Iowa_Retail_Pharmacies!H35) -> $0.30 | E35: =IF(ISBLANK(Iowa_Retail_Pharmacies!K35),"",Iowa_Retail_Pharmacies!K35) -> $0.04 | F35: =IF(ISBLANK(Iowa_Retail_Pharmacies!M35),"",Iowa_Retail_Pharmacies!M35) -> 2025-09-17 | G35: =IF(ISBLANK(Iowa_Retail_Pharmacies!P35),"",Iowa_Retail_Pharmacies!P35) -> No | H35: =IF(ISBLANK(Iowa_Retail_Pharmacies!Q35),"",Iowa_Retail_Pharmacies!Q35) -> No
B36: =IF(ISBLANK(Iowa_Retail_Pharmacies!D36),"",Iowa_Retail_Pharmacies!D36) -> 2025-10-03 | C36: =IF(ISBLANK(Iowa_Retail_Pharmacies!E36),"",Iowa_Retail_Pharmacies!E36) -> 30 | D36: =IF(ISBLANK(Iowa_Retail_Pharmacies!H36),"",Iowa_Retail_Pharmacies!H36) -> $0.15 | E36: =IF(ISBLANK(Iowa_Retail_Pharmacies!K36),"",Iowa_Retail_Pharmacies!K36) -> $0.08 | F36: =IF(ISBLANK(Iowa_Retail_Pharmacies!M36),"",Iowa_Retail_Pharmacies!M36) -> 2025-09-17 | G36: =IF(ISBLANK(Iowa_Retail_Pharmacies!P36),"",Iowa_Retail_Pharmacies!P36) -> No | H36: =IF(ISBLANK(Iowa_Retail_Pharmacies!Q36),"",Iowa_Retail_Pharmacies!Q36) -> No
B37: =IF(ISBLANK(Iowa_Retail_Pharmacies!D37),"",Iowa_Retail_Pharmacies!D37) -> 2025-12-29 | C37: =IF(ISBLANK(Iowa_Retail_Pharmacies!E37),"",Iowa_Retail_Pharmacies!E37) -> 90 | D37: =IF(ISBLANK(Iowa_Retail_Pharmacies!H37),"",Iowa_Retail_Pharmacies!H37) -> $0.30 | E37: =IF(ISBLANK(Iowa_Retail_Pharmacies!K37),"",Iowa_Retail_Pharmacies!K37) -> $0.04 | F37: =IF(ISBLANK(Iowa_Retail_Pharmacies!M37),"",Iowa_Retail_Pharmacies!M37) -> 2025-12-17 | G37: =IF(ISBLANK(Iowa_Retail_Pharmacies!P37),"",Iowa_Retail_Pharmacies!P37) -> No | H37: =IF(ISBLANK(Iowa_Retail_Pharmacies!Q37),"",Iowa_Retail_Pharmacies!Q37) -> No
B38: =IF(ISBLANK(Iowa_Retail_Pharmacies!D38),"",Iowa_Retail_Pharmacies!D38) -> 2025-11-07 | C38: =IF(ISBLANK(Iowa_Retail_Pharmacies!E38),"",Iowa_Retail_Pharmacies!E38) -> 60 | D38: =IF(ISBLANK(Iowa_Retail_Pharmacies!H38),"",Iowa_Retail_Pharmacies!H38) -> $0.07 | E38: =IF(ISBLANK(Iowa_Retail_Pharmacies!K38),"",Iowa_Retail_Pharmacies!K38) -> $0.03 | F38: =IF(ISBLANK(Iowa_Retail_Pharmacies!M38),"",Iowa_Retail_Pharmacies!M38) -> 2025-10-22 | G38: =IF(ISBLANK(Iowa_Retail_Pharmacies!P38),"",Iowa_Retail_Pharmacies!P38) -> No | H38: =IF(ISBLANK(Iowa_Retail_Pharmacies!Q38),"",Iowa_Retail_Pharmacies!Q38) -> No
B39: =IF(ISBLANK(Iowa_Retail_Pharmacies!D39),"",Iowa_Retail_Pharmacies!D39) -> 2025-10-03 | C39: =IF(ISBLANK(Iowa_Retail_Pharmacies!E39),"",Iowa_Retail_Pharmacies!E39) -> 30 | D39: =IF(ISBLANK(Iowa_Retail_Pharmacies!H39),"",Iowa_Retail_Pharmacies!H39) -> $0.09 | E39: =IF(ISBLANK(Iowa_Retail_Pharmacies!K39),"",Iowa_Retail_Pharmacies!K39) -> $0.02 | F39: =IF(ISBLANK(Iowa_Retail_Pharmacies!M39),"",Iowa_Retail_Pharmacies!M39) -> 2025-09-17 | G39: =IF(ISBLANK(Iowa_Retail_Pharmacies!P39),"",Iowa_Retail_Pharmacies!P39) -> No | H39: =IF(ISBLANK(Iowa_Retail_Pharmacies!Q39),"",Iowa_Retail_Pharmacies!Q39) -> No
B40: =IF(ISBLANK(Iowa_Retail_Pharmacies!D40),"",Iowa_Retail_Pharmacies!D40) -> 2025-11-05 | C40: =IF(ISBLANK(Iowa_Retail_Pharmacies!E40),"",Iowa_Retail_Pharmacies!E40) -> 90 | D40: =IF(ISBLANK(Iowa_Retail_Pharmacies!H40),"",Iowa_Retail_Pharmacies!H40) -> $0.31 | E40: =IF(ISBLANK(Iowa_Retail_Pharmacies!K40),"",Iowa_Retail_Pharmacies!K40) -> $0.04 | F40: =IF(ISBLANK(Iowa_Retail_Pharmacies!M40),"",Iowa_Retail_Pharmacies!M40) -> 2025-10-22 | G40: =IF(ISBLANK(Iowa_Retail_Pharmacies!P40),"",Iowa_Retail_Pharmacies!P40) -> No | H40: =IF(ISBLANK(Iowa_Retail_Pharmacies!Q40),"",Iowa_Retail_Pharmacies!Q40) -> No
B41: =IF(ISBLANK(Iowa_Retail_Pharmacies!D41),"",Iowa_Retail_Pharmacies!D41) -> 2025-10-03 | C41: =IF(ISBLANK(Iowa_Retail_Pharmacies!E41),"",Iowa_Retail_Pharmacies!E41) -> 30 | D41: =IF(ISBLANK(Iowa_Retail_Pharmacies!H41),"",Iowa_Retail_Pharmacies!H41) -> $0.16 | E41: =IF(ISBLANK(Iowa_Retail_Pharmacies!K41),"",Iowa_Retail_Pharmacies!K41) -> $0.05 | F41: =IF(ISBLANK(Iowa_Retail_Pharmacies!M41),"",Iowa_Retail_Pharmacies!M41) -> 2025-09-17 | G41: =IF(ISBLANK(Iowa_Retail_Pharmacies!P41),"",Iowa_Retail_Pharmacies!P41) -> No | H41: =IF(ISBLANK(Iowa_Retail_Pharmacies!Q41),"",Iowa_Retail_Pharmacies!Q41) -> No
B42: =IF(ISBLANK(Iowa_Retail_Pharmacies!D42),"",Iowa_Retail_Pharmacies!D42) -> 2025-12-08 | C42: =IF(ISBLANK(Iowa_Retail_Pharmacies!E42),"",Iowa_Retail_Pharmacies!E42) -> 30 | D42: =IF(ISBLANK(Iowa_Retail_Pharmacies!H42),"",Iowa_Retail_Pharmacies!H42) -> $0.31 | E42: =IF(ISBLANK(Iowa_Retail_Pharmacies!K42),"",Iowa_Retail_Pharmacies!K42) -> $0.04 | F42: =IF(ISBLANK(Iowa_Retail_Pharmacies!M42),"",Iowa_Retail_Pharmacies!M42) -> 2025-11-19 | G42: =IF(ISBLANK(Iowa_Retail_Pharmacies!P42),"",Iowa_Retail_Pharmacies!P42) -> No | H42: =IF(ISBLANK(Iowa_Retail_Pharmacies!Q42),"",Iowa_Retail_Pharmacies!Q42) -> No
B43: =IF(ISBLANK(Iowa_Retail_Pharmacies!D43),"",Iowa_Retail_Pharmacies!D43) -> 2025-12-08 | C43: =IF(ISBLANK(Iowa_Retail_Pharmacies!E43),"",Iowa_Retail_Pharmacies!E43) -> 60 | D43: =IF(ISBLANK(Iowa_Retail_Pharmacies!H43),"",Iowa_Retail_Pharmacies!H43) -> $0.15 | E43: =IF(ISBLANK(Iowa_Retail_Pharmacies!K43),"",Iowa_Retail_Pharmacies!K43) -> $0.09 | F43: =IF(ISBLANK(Iowa_Retail_Pharmacies!M43),"",Iowa_Retail_Pharmacies!M43) -> 2025-11-19 | G43: =IF(ISBLANK(Iowa_Retail_Pharmacies!P43),"",Iowa_Retail_Pharmacies!P43) -> No | H43: =IF(ISBLANK(Iowa_Retail_Pharmacies!Q43),"",Iowa_Retail_Pharmacies!Q43) -> No
B44: =IF(ISBLANK(Iowa_Retail_Pharmacies!D44),"",Iowa_Retail_Pharmacies!D44) -> 2025-12-08 | C44: =IF(ISBLANK(Iowa_Retail_Pharmacies!E44),"",Iowa_Retail_Pharmacies!E44) -> 60 | D44: =IF(ISBLANK(Iowa_Retail_Pharmacies!H44),"",Iowa_Retail_Pharmacies!H44) -> $0.07 | E44: =IF(ISBLANK(Iowa_Retail_Pharmacies!K44),"",Iowa_Retail_Pharmacies!K44) -> $0.03 | F44: =IF(ISBLANK(Iowa_Retail_Pharmacies!M44),"",Iowa_Retail_Pharmacies!M44) -> 2025-11-19 | G44: =IF(ISBLANK(Iowa_Retail_Pharmacies!P44),"",Iowa_Retail_Pharmacies!P44) -> No | H44: =IF(ISBLANK(Iowa_Retail_Pharmacies!Q44),"",Iowa_Retail_Pharmacies!Q44) -> No
B45: =IF(ISBLANK(Iowa_Retail_Pharmacies!D45),"",Iowa_Retail_Pharmacies!D45) -> 2025-10-14 | C45: =IF(ISBLANK(Iowa_Retail_Pharmacies!E45),"",Iowa_Retail_Pharmacies!E45) -> 60 | D45: =IF(ISBLANK(Iowa_Retail_Pharmacies!H45),"",Iowa_Retail_Pharmacies!H45) -> $0.07 | E45: =IF(ISBLANK(Iowa_Retail_Pharmacies!K45),"",Iowa_Retail_Pharmacies!K45) -> $0.04 | F45: =IF(ISBLANK(Iowa_Retail_Pharmacies!M45),"",Iowa_Retail_Pharmacies!M45) -> 2025-09-17 | G45: =IF(ISBLANK(Iowa_Retail_Pharmacies!P45),"",Iowa_Retail_Pharmacies!P45) -> No | H45: =IF(ISBLANK(Iowa_Retail_Pharmacies!Q45),"",Iowa_Retail_Pharmacies!Q45) -> No
B46: =IF(ISBLANK(Iowa_Retail_Pharmacies!D46),"",Iowa_Retail_Pharmacies!D46) -> 2025-12-11 | C46: =IF(ISBLANK(Iowa_Retail_Pharmacies!E46),"",Iowa_Retail_Pharmacies!E46) -> 30 | D46: =IF(ISBLANK(Iowa_Retail_Pharmacies!H46),"",Iowa_Retail_Pharmacies!H46) -> $0.96 | E46: =IF(ISBLANK(Iowa_Retail_Pharmacies!K46),"",Iowa_Retail_Pharmacies!K46) -> $0.47 | F46: =IF(ISBLANK(Iowa_Retail_Pharmacies!M46),"",Iowa_Retail_Pharmacies!M46) -> 2025-11-19 | G46: =IF(ISBLANK(Iowa_Retail_Pharmacies!P46),"",Iowa_Retail_Pharmacies!P46) -> No | H46: =IF(ISBLANK(Iowa_Retail_Pharmacies!Q46),"",Iowa_Retail_Pharmacies!Q46) -> No
B47: =IF(ISBLANK(Iowa_Retail_Pharmacies!D47),"",Iowa_Retail_Pharmacies!D47) -> 2025-10-03 | C47: =IF(ISBLANK(Iowa_Retail_Pharmacies!E47),"",Iowa_Retail_Pharmacies!E47) -> 60 | D47: =IF(ISBLANK(Iowa_Retail_Pharmacies!H47),"",Iowa_Retail_Pharmacies!H47) -> $0.22 | E47: =IF(ISBLANK(Iowa_Retail_Pharmacies!K47),"",Iowa_Retail_Pharmacies!K47) -> $0.10 | F47: =IF(ISBLANK(Iowa_Retail_Pharmacies!M47),"",Iowa_Retail_Pharmacies!M47) -> 2025-09-17 | G47: =IF(ISBLANK(Iowa_Retail_Pharmacies!P47),"",Iowa_Retail_Pharmacies!P47) -> No | H47: =IF(ISBLANK(Iowa_Retail_Pharmacies!Q47),"",Iowa_Retail_Pharmacies!Q47) -> No
B48: =IF(ISBLANK(Iowa_Retail_Pharmacies!D48),"",Iowa_Retail_Pharmacies!D48) -> 2025-10-10 | C48: =IF(ISBLANK(Iowa_Retail_Pharmacies!E48),"",Iowa_Retail_Pharmacies!E48) -> 360 | D48: =IF(ISBLANK(Iowa_Retail_Pharmacies!H48),"",Iowa_Retail_Pharmacies!H48) -> $0.14 | E48: =IF(ISBLANK(Iowa_Retail_Pharmacies!K48),"",Iowa_Retail_Pharmacies!K48) -> $0.04 | F48: =IF(ISBLANK(Iowa_Retail_Pharmacies!M48),"",Iowa_Retail_Pharmacies!M48) -> 2025-09-17 | G48: =IF(ISBLANK(Iowa_Retail_Pharmacies!P48),"",Iowa_Retail_Pharmacies!P48) -> No | H48: =IF(ISBLANK(Iowa_Retail_Pharmacies!Q48),"",Iowa_Retail_Pharmacies!Q48) -> No
B49: =IF(ISBLANK(Iowa_Retail_Pharmacies!D49),"",Iowa_Retail_Pharmacies!D49) -> 2025-11-07 | C49: =IF(ISBLANK(Iowa_Retail_Pharmacies!E49),"",Iowa_Retail_Pharmacies!E49) -> 30 | D49: =IF(ISBLANK(Iowa_Retail_Pharmacies!H49),"",Iowa_Retail_Pharmacies!H49) -> $0.31 | E49: =IF(ISBLANK(Iowa_Retail_Pharmacies!K49),"",Iowa_Retail_Pharmacies!K49) -> $0.04 | F49: =IF(ISBLANK(Iowa_Retail_Pharmacies!M49),"",Iowa_Retail_Pharmacies!M49) -> 2025-10-22 | G49: =IF(ISBLANK(Iowa_Retail_Pharmacies!P49),"",Iowa_Retail_Pharmacies!P49) -> No | H49: =IF(ISBLANK(Iowa_Retail_Pharmacies!Q49),"",Iowa_Retail_Pharmacies!Q49) -> No
B50: =IF(ISBLANK(Iowa_Retail_Pharmacies!D50),"",Iowa_Retail_Pharmacies!D50) -> 2025-12-09 | C50: =IF(ISBLANK(Iowa_Retail_Pharmacies!E50),"",Iowa_Retail_Pharmacies!E50) -> 90 | D50: =IF(ISBLANK(Iowa_Retail_Pharmacies!H50),"",Iowa_Retail_Pharmacies!H50) -> $0.29 | E50: =IF(ISBLANK(Iowa_Retail_Pharmacies!K50),"",Iowa_Retail_Pharmacies!K50) -> $0.03 | F50: =IF(ISBLANK(Iowa_Retail_Pharmacies!M50),"",Iowa_Retail_Pharmacies!M50) -> 2025-11-19 | G50: =IF(ISBLANK(Iowa_Retail_Pharmacies!P50),"",Iowa_Retail_Pharmacies!P50) -> No | H50: =IF(ISBLANK(Iowa_Retail_Pharmacies!Q50),"",Iowa_Retail_Pharmacies!Q50) -> No
B51: =IF(ISBLANK(Iowa_Retail_Pharmacies!D51),"",Iowa_Retail_Pharmacies!D51) -> 2025-10-14 | C51: =IF(ISBLANK(Iowa_Retail_Pharmacies!E51),"",Iowa_Retail_Pharmacies!E51) -> 90 | D51: =IF(ISBLANK(Iowa_Retail_Pharmacies!H51),"",Iowa_Retail_Pharmacies!H51) -> $0.32 | E51: =IF(ISBLANK(Iowa_Retail_Pharmacies!K51),"",Iowa_Retail_Pharmacies!K51) -> $0.04 | F51: =IF(ISBLANK(Iowa_Retail_Pharmacies!M51),"",Iowa_Retail_Pharmacies!M51) -> 2025-09-17 | G51: =IF(ISBLANK(Iowa_Retail_Pharmacies!P51),"",Iowa_Retail_Pharmacies!P51) -> No | H51: =IF(ISBLANK(Iowa_Retail_Pharmacies!Q51),"",Iowa_Retail_Pharmacies!Q51) -> No
B52: =IF(ISBLANK(Iowa_Retail_Pharmacies!D52),"",Iowa_Retail_Pharmacies!D52) -> 2025-12-08 | C52: =IF(ISBLANK(Iowa_Retail_Pharmacies!E52),"",Iowa_Retail_Pharmacies!E52) -> 30 | D52: =IF(ISBLANK(Iowa_Retail_Pharmacies!H52),"",Iowa_Retail_Pharmacies!H52) -> $0.15 | E52: =IF(ISBLANK(Iowa_Retail_Pharmacies!K52),"",Iowa_Retail_Pharmacies!K52) -> $0.08 | F52: =IF(ISBLANK(Iowa_Retail_Pharmacies!M52),"",Iowa_Retail_Pharmacies!M52) -> 2025-11-19 | G52: =IF(ISBLANK(Iowa_Retail_Pharmacies!P52),"",Iowa_Retail_Pharmacies!P52) -> No | H52: =IF(ISBLANK(Iowa_Retail_Pharmacies!Q52),"",Iowa_Retail_Pharmacies!Q52) -> No
B53: =IF(ISBLANK(Iowa_Retail_Pharmacies!D53),"",Iowa_Retail_Pharmacies!D53) -> 2025-11-07 | C53: =IF(ISBLANK(Iowa_Retail_Pharmacies!E53),"",Iowa_Retail_Pharmacies!E53) -> 30 | D53: =IF(ISBLANK(Iowa_Retail_Pharmacies!H53),"",Iowa_Retail_Pharmacies!H53) -> $0.15 | E53: =IF(ISBLANK(Iowa_Retail_Pharmacies!K53),"",Iowa_Retail_Pharmacies!K53) -> $0.08 | F53: =IF(ISBLANK(Iowa_Retail_Pharmacies!M53),"",Iowa_Retail_Pharmacies!M53) -> 2025-10-22 | G53: =IF(ISBLANK(Iowa_Retail_Pharmacies!P53),"",Iowa_Retail_Pharmacies!P53) -> No | H53: =IF(ISBLANK(Iowa_Retail_Pharmacies!Q53),"",Iowa_Retail_Pharmacies!Q53) -> No
B54: =IF(ISBLANK(Iowa_Retail_Pharmacies!D54),"",Iowa_Retail_Pharmacies!D54) -> 2025-10-14 | C54: =IF(ISBLANK(Iowa_Retail_Pharmacies!E54),"",Iowa_Retail_Pharmacies!E54) -> 90 | D54: =IF(ISBLANK(Iowa_Retail_Pharmacies!H54),"",Iowa_Retail_Pharmacies!H54) -> $0.16 | E54: =IF(ISBLANK(Iowa_Retail_Pharmacies!K54),"",Iowa_Retail_Pharmacies!K54) -> $0.06 | F54: =IF(ISBLANK(Iowa_Retail_Pharmacies!M54),"",Iowa_Retail_Pharmacies!M54) -> 2025-09-17 | G54: =IF(ISBLANK(Iowa_Retail_Pharmacies!P54),"",Iowa_Retail_Pharmacies!P54) -> No | H54: =IF(ISBLANK(Iowa_Retail_Pharmacies!Q54),"",Iowa_Retail_Pharmacies!Q54) -> No
B55: =IF(ISBLANK(Iowa_Retail_Pharmacies!D55),"",Iowa_Retail_Pharmacies!D55) -> 2025-12-09 | C55: =IF(ISBLANK(Iowa_Retail_Pharmacies!E55),"",Iowa_Retail_Pharmacies!E55) -> 360 | D55: =IF(ISBLANK(Iowa_Retail_Pharmacies!H55),"",Iowa_Retail_Pharmacies!H55) -> $0.07 | E55: =IF(ISBLANK(Iowa_Retail_Pharmacies!K55),"",Iowa_Retail_Pharmacies!K55) -> $0.01 | F55: =IF(ISBLANK(Iowa_Retail_Pharmacies!M55),"",Iowa_Retail_Pharmacies!M55) -> 2025-11-19 | G55: =IF(ISBLANK(Iowa_Retail_Pharmacies!P55),"",Iowa_Retail_Pharmacies!P55) -> No | H55: =IF(ISBLANK(Iowa_Retail_Pharmacies!Q55),"",Iowa_Retail_Pharmacies!Q55) -> No
B56: =IF(ISBLANK(Iowa_Retail_Pharmacies!D56),"",Iowa_Retail_Pharmacies!D56) -> 2025-11-10 | C56: =IF(ISBLANK(Iowa_Retail_Pharmacies!E56),"",Iowa_Retail_Pharmacies!E56) -> 60 | D56: =IF(ISBLANK(Iowa_Retail_Pharmacies!H56),"",Iowa_Retail_Pharmacies!H56) -> $0.11 | E56: =IF(ISBLANK(Iowa_Retail_Pharmacies!K56),"",Iowa_Retail_Pharmacies!K56) -> $0.02 | F56: =IF(ISBLANK(Iowa_Retail_Pharmacies!M56),"",Iowa_Retail_Pharmacies!M56) -> 2025-10-22 | G56: =IF(ISBLANK(Iowa_Retail_Pharmacies!P56),"",Iowa_Retail_Pharmacies!P56) -> No | H56: =IF(ISBLANK(Iowa_Retail_Pharmacies!Q56),"",Iowa_Retail_Pharmacies!Q56) -> No
B57: =IF(ISBLANK(Iowa_Retail_Pharmacies!D57),"",Iowa_Retail_Pharmacies!D57) -> 2025-12-09 | C57: =IF(ISBLANK(Iowa_Retail_Pharmacies!E57),"",Iowa_Retail_Pharmacies!E57) -> 90 | D57: =IF(ISBLANK(Iowa_Retail_Pharmacies!H57),"",Iowa_Retail_Pharmacies!H57) -> $0.28 | E57: =IF(ISBLANK(Iowa_Retail_Pharmacies!K57),"",Iowa_Retail_Pharmacies!K57) -> $0.03 | F57: =IF(ISBLANK(Iowa_Retail_Pharmacies!M57),"",Iowa_Retail_Pharmacies!M57) -> 2025-11-19 | G57: =IF(ISBLANK(Iowa_Retail_Pharmacies!P57),"",Iowa_Retail_Pharmacies!P57) -> No | H57: =IF(ISBLANK(Iowa_Retail_Pharmacies!Q57),"",Iowa_Retail_Pharmacies!Q57) -> No
B58: =IF(ISBLANK(Iowa_Retail_Pharmacies!D58),"",Iowa_Retail_Pharmacies!D58) -> 2025-12-26 | C58: =IF(ISBLANK(Iowa_Retail_Pharmacies!E58),"",Iowa_Retail_Pharmacies!E58) -> 90 | D58: =IF(ISBLANK(Iowa_Retail_Pharmacies!H58),"",Iowa_Retail_Pharmacies!H58) -> $0.07 | E58: =IF(ISBLANK(Iowa_Retail_Pharmacies!K58),"",Iowa_Retail_Pharmacies!K58) -> $0.02 | F58: =IF(ISBLANK(Iowa_Retail_Pharmacies!M58),"",Iowa_Retail_Pharmacies!M58) -> 2025-12-17 | G58: =IF(ISBLANK(Iowa_Retail_Pharmacies!P58),"",Iowa_Retail_Pharmacies!P58) -> No | H58: =IF(ISBLANK(Iowa_Retail_Pharmacies!Q58),"",Iowa_Retail_Pharmacies!Q58) -> No
B59: =IF(ISBLANK(Iowa_Retail_Pharmacies!D59),"",Iowa_Retail_Pharmacies!D59) -> 2025-10-09 | C59: =IF(ISBLANK(Iowa_Retail_Pharmacies!E59),"",Iowa_Retail_Pharmacies!E59) -> 90 | D59: =IF(ISBLANK(Iowa_Retail_Pharmacies!H59),"",Iowa_Retail_Pharmacies!H59) -> $0.11 | E59: =IF(ISBLANK(Iowa_Retail_Pharmacies!K59),"",Iowa_Retail_Pharmacies!K59) -> $0.03 | F59: =IF(ISBLANK(Iowa_Retail_Pharmacies!M59),"",Iowa_Retail_Pharmacies!M59) -> 2025-09-17 | G59: =IF(ISBLANK(Iowa_Retail_Pharmacies!P59),"",Iowa_Retail_Pharmacies!P59) -> No | H59: =IF(ISBLANK(Iowa_Retail_Pharmacies!Q59),"",Iowa_Retail_Pharmacies!Q59) -> No
B60: =IF(ISBLANK(Iowa_Retail_Pharmacies!D60),"",Iowa_Retail_Pharmacies!D60) -> 2025-12-09 | C60: =IF(ISBLANK(Iowa_Retail_Pharmacies!E60),"",Iowa_Retail_Pharmacies!E60) -> 90 | D60: =IF(ISBLANK(Iowa_Retail_Pharmacies!H60),"",Iowa_Retail_Pharmacies!H60) -> $0.07 | E60: =IF(ISBLANK(Iowa_Retail_Pharmacies!K60),"",Iowa_Retail_Pharmacies!K60) -> $0.07 | F60: =IF(ISBLANK(Iowa_Retail_Pharmacies!M60),"",Iowa_Retail_Pharmacies!M60) -> 2025-11-19 | G60: =IF(ISBLANK(Iowa_Retail_Pharmacies!P60),"",Iowa_Retail_Pharmacies!P60) -> No | H60: =IF(ISBLANK(Iowa_Retail_Pharmacies!Q60),"",Iowa_Retail_Pharmacies!Q60) -> No
B61: =IF(ISBLANK(Iowa_Retail_Pharmacies!D61),"",Iowa_Retail_Pharmacies!D61) -> 2025-10-03 | C61: =IF(ISBLANK(Iowa_Retail_Pharmacies!E61),"",Iowa_Retail_Pharmacies!E61) -> 90 | D61: =IF(ISBLANK(Iowa_Retail_Pharmacies!H61),"",Iowa_Retail_Pharmacies!H61) -> $0.71 | E61: =IF(ISBLANK(Iowa_Retail_Pharmacies!K61),"",Iowa_Retail_Pharmacies!K61) -> $0.31 | F61: =IF(ISBLANK(Iowa_Retail_Pharmacies!M61),"",Iowa_Retail_Pharmacies!M61) -> 2025-09-17 | G61: =IF(ISBLANK(Iowa_Retail_Pharmacies!P61),"",Iowa_Retail_Pharmacies!P61) -> No | H61: =IF(ISBLANK(Iowa_Retail_Pharmacies!Q61),"",Iowa_Retail_Pharmacies!Q61) -> No
B62: =IF(ISBLANK(Iowa_Retail_Pharmacies!D62),"",Iowa_Retail_Pharmacies!D62) -> 2025-12-09 | C62: =IF(ISBLANK(Iowa_Retail_Pharmacies!E62),"",Iowa_Retail_Pharmacies!E62) -> 10 | D62: =IF(ISBLANK(Iowa_Retail_Pharmacies!H62),"",Iowa_Retail_Pharmacies!H62) -> $0.66 | E62: =IF(ISBLANK(Iowa_Retail_Pharmacies!K62),"",Iowa_Retail_Pharmacies!K62) -> $0.08 | F62: =IF(ISBLANK(Iowa_Retail_Pharmacies!M62),"",Iowa_Retail_Pharmacies!M62) -> 2025-11-19 | G62: =IF(ISBLANK(Iowa_Retail_Pharmacies!P62),"",Iowa_Retail_Pharmacies!P62) -> No | H62: =IF(ISBLANK(Iowa_Retail_Pharmacies!Q62),"",Iowa_Retail_Pharmacies!Q62) -> No
B63: =IF(ISBLANK(Iowa_Retail_Pharmacies!D63),"",Iowa_Retail_Pharmacies!D63) -> 2025-10-03 | C63: =IF(ISBLANK(Iowa_Retail_Pharmacies!E63),"",Iowa_Retail_Pharmacies!E63) -> 8.5 | D63: =IF(ISBLANK(Iowa_Retail_Pharmacies!H63),"",Iowa_Retail_Pharmacies!H63) -> $2.52 | E63: =IF(ISBLANK(Iowa_Retail_Pharmacies!K63),"",Iowa_Retail_Pharmacies!K63) -> $1.93 | F63: =IF(ISBLANK(Iowa_Retail_Pharmacies!M63),"",Iowa_Retail_Pharmacies!M63) -> 2025-09-17 | G63: =IF(ISBLANK(Iowa_Retail_Pharmacies!P63),"",Iowa_Retail_Pharmacies!P63) -> No | H63: =IF(ISBLANK(Iowa_Retail_Pharmacies!Q63),"",Iowa_Retail_Pharmacies!Q63) -> No
B64: =IF(ISBLANK(Iowa_Retail_Pharmacies!D64),"",Iowa_Retail_Pharmacies!D64) -> 2025-12-09 | C64: =IF(ISBLANK(Iowa_Retail_Pharmacies!E64),"",Iowa_Retail_Pharmacies!E64) -> 15 | D64: =IF(ISBLANK(Iowa_Retail_Pharmacies!H64),"",Iowa_Retail_Pharmacies!H64) -> $0.44 | E64: =IF(ISBLANK(Iowa_Retail_Pharmacies!K64),"",Iowa_Retail_Pharmacies!K64) -> $0.18 | F64: =IF(ISBLANK(Iowa_Retail_Pharmacies!M64),"",Iowa_Retail_Pharmacies!M64) -> 2025-11-19 | G64: =IF(ISBLANK(Iowa_Retail_Pharmacies!P64),"",Iowa_Retail_Pharmacies!P64) -> No | H64: =IF(ISBLANK(Iowa_Retail_Pharmacies!Q64),"",Iowa_Retail_Pharmacies!Q64) -> No
B65: =IF(ISBLANK(Iowa_Retail_Pharmacies!D65),"",Iowa_Retail_Pharmacies!D65) -> 2025-12-09 | C65: =IF(ISBLANK(Iowa_Retail_Pharmacies!E65),"",Iowa_Retail_Pharmacies!E65) -> 90 | D65: =IF(ISBLANK(Iowa_Retail_Pharmacies!H65),"",Iowa_Retail_Pharmacies!H65) -> $0.24 | E65: =IF(ISBLANK(Iowa_Retail_Pharmacies!K65),"",Iowa_Retail_Pharmacies!K65) -> $0.15 | F65: =IF(ISBLANK(Iowa_Retail_Pharmacies!M65),"",Iowa_Retail_Pharmacies!M65) -> 2025-11-19 | G65: =IF(ISBLANK(Iowa_Retail_Pharmacies!P65),"",Iowa_Retail_Pharmacies!P65) -> No | H65: =IF(ISBLANK(Iowa_Retail_Pharmacies!Q65),"",Iowa_Retail_Pharmacies!Q65) -> No
B66: =IF(ISBLANK(Iowa_Retail_Pharmacies!D66),"",Iowa_Retail_Pharmacies!D66) -> 2025-12-09 | C66: =IF(ISBLANK(Iowa_Retail_Pharmacies!E66),"",Iowa_Retail_Pharmacies!E66) -> 56 | D66: =IF(ISBLANK(Iowa_Retail_Pharmacies!H66),"",Iowa_Retail_Pharmacies!H66) -> $2.05 | E66: =IF(ISBLANK(Iowa_Retail_Pharmacies!K66),"",Iowa_Retail_Pharmacies!K66) -> $0.44 | F66: =IF(ISBLANK(Iowa_Retail_Pharmacies!M66),"",Iowa_Retail_Pharmacies!M66) -> 2025-11-19 | G66: =IF(ISBLANK(Iowa_Retail_Pharmacies!P66),"",Iowa_Retail_Pharmacies!P66) -> No | H66: =IF(ISBLANK(Iowa_Retail_Pharmacies!Q66),"",Iowa_Retail_Pharmacies!Q66) -> No
B67: =IF(ISBLANK(Iowa_Retail_Pharmacies!D67),"",Iowa_Retail_Pharmacies!D67) -> 2025-12-16 | C67: =IF(ISBLANK(Iowa_Retail_Pharmacies!E67),"",Iowa_Retail_Pharmacies!E67) -> 10 | D67: =IF(ISBLANK(Iowa_Retail_Pharmacies!H67),"",Iowa_Retail_Pharmacies!H67) -> $0.08 | E67: =IF(ISBLANK(Iowa_Retail_Pharmacies!K67),"",Iowa_Retail_Pharmacies!K67) -> $0.02 | F67: =IF(ISBLANK(Iowa_Retail_Pharmacies!M67),"",Iowa_Retail_Pharmacies!M67) -> 2025-11-19 | G67: =IF(ISBLANK(Iowa_Retail_Pharmacies!P67),"",Iowa_Retail_Pharmacies!P67) -> No | H67: =IF(ISBLANK(Iowa_Retail_Pharmacies!Q67),"",Iowa_Retail_Pharmacies!Q67) -> No
B68: =IF(ISBLANK(Iowa_Retail_Pharmacies!D68),"",Iowa_Retail_Pharmacies!D68) -> 2025-12-09 | C68: =IF(ISBLANK(Iowa_Retail_Pharmacies!E68),"",Iowa_Retail_Pharmacies!E68) -> 90 | D68: =IF(ISBLANK(Iowa_Retail_Pharmacies!H68),"",Iowa_Retail_Pharmacies!H68) -> $0.09 | E68: =IF(ISBLANK(Iowa_Retail_Pharmacies!K68),"",Iowa_Retail_Pharmacies!K68) -> $0.03 | F68: =IF(ISBLANK(Iowa_Retail_Pharmacies!M68),"",Iowa_Retail_Pharmacies!M68) -> 2025-11-19 | G68: =IF(ISBLANK(Iowa_Retail_Pharmacies!P68),"",Iowa_Retail_Pharmacies!P68) -> No | H68: =IF(ISBLANK(Iowa_Retail_Pharmacies!Q68),"",Iowa_Retail_Pharmacies!Q68) -> No
B69: =IF(ISBLANK(Iowa_Retail_Pharmacies!D69),"",Iowa_Retail_Pharmacies!D69) -> 2025-10-31 | C69: =IF(ISBLANK(Iowa_Retail_Pharmacies!E69),"",Iowa_Retail_Pharmacies!E69) -> 180 | D69: =IF(ISBLANK(Iowa_Retail_Pharmacies!H69),"",Iowa_Retail_Pharmacies!H69) -> $0.07 | E69: =IF(ISBLANK(Iowa_Retail_Pharmacies!K69),"",Iowa_Retail_Pharmacies!K69) -> $0.01 | F69: =IF(ISBLANK(Iowa_Retail_Pharmacies!M69),"",Iowa_Retail_Pharmacies!M69) -> 2025-10-22 | G69: =IF(ISBLANK(Iowa_Retail_Pharmacies!P69),"",Iowa_Retail_Pharmacies!P69) -> No | H69: =IF(ISBLANK(Iowa_Retail_Pharmacies!Q69),"",Iowa_Retail_Pharmacies!Q69) -> No
B70: =IF(ISBLANK(Iowa_Retail_Pharmacies!D70),"",Iowa_Retail_Pharmacies!D70) -> 2025-10-01 | C70: =IF(ISBLANK(Iowa_Retail_Pharmacies!E70),"",Iowa_Retail_Pharmacies!E70) -> 84 | D70: =IF(ISBLANK(Iowa_Retail_Pharmacies!H70),"",Iowa_Retail_Pharmacies!H70) -> $0.28 | E70: =IF(ISBLANK(Iowa_Retail_Pharmacies!K70),"",Iowa_Retail_Pharmacies!K70) -> $0.16 | F70: =IF(ISBLANK(Iowa_Retail_Pharmacies!M70),"",Iowa_Retail_Pharmacies!M70) -> 2025-09-17 | G70: =IF(ISBLANK(Iowa_Retail_Pharmacies!P70),"",Iowa_Retail_Pharmacies!P70) -> No | H70: =IF(ISBLANK(Iowa_Retail_Pharmacies!Q70),"",Iowa_Retail_Pharmacies!Q70) -> No
B71: =IF(ISBLANK(Iowa_Retail_Pharmacies!D71),"",Iowa_Retail_Pharmacies!D71) -> 2025-12-16 | C71: =IF(ISBLANK(Iowa_Retail_Pharmacies!E71),"",Iowa_Retail_Pharmacies!E71) -> 2 | D71: =IF(ISBLANK(Iowa_Retail_Pharmacies!H71),"",Iowa_Retail_Pharmacies!H71) -> $14.31 | E71: =IF(ISBLANK(Iowa_Retail_Pharmacies!K71),"",Iowa_Retail_Pharmacies!K71) -> $11.59 | F71: =IF(ISBLANK(Iowa_Retail_Pharmacies!M71),"",Iowa_Retail_Pharmacies!M71) -> 2025-11-19 | G71: =IF(ISBLANK(Iowa_Retail_Pharmacies!P71),"",Iowa_Retail_Pharmacies!P71) -> No | H71: =IF(ISBLANK(Iowa_Retail_Pharmacies!Q71),"",Iowa_Retail_Pharmacies!Q71) -> No
B72: =IF(ISBLANK(Iowa_Retail_Pharmacies!D72),"",Iowa_Retail_Pharmacies!D72) -> 2025-10-01 | C72: =IF(ISBLANK(Iowa_Retail_Pharmacies!E72),"",Iowa_Retail_Pharmacies!E72) -> 90 | D72: =IF(ISBLANK(Iowa_Retail_Pharmacies!H72),"",Iowa_Retail_Pharmacies!H72) -> $0.26 | E72: =IF(ISBLANK(Iowa_Retail_Pharmacies!K72),"",Iowa_Retail_Pharmacies!K72) -> $0.15 | F72: =IF(ISBLANK(Iowa_Retail_Pharmacies!M72),"",Iowa_Retail_Pharmacies!M72) -> 2025-09-17 | G72: =IF(ISBLANK(Iowa_Retail_Pharmacies!P72),"",Iowa_Retail_Pharmacies!P72) -> No | H72: =IF(ISBLANK(Iowa_Retail_Pharmacies!Q72),"",Iowa_Retail_Pharmacies!Q72) -> No
B73: =IF(ISBLANK(Iowa_Retail_Pharmacies!D73),"",Iowa_Retail_Pharmacies!D73) -> 2025-12-15 | C73: =IF(ISBLANK(Iowa_Retail_Pharmacies!E73),"",Iowa_Retail_Pharmacies!E73) -> 28 | D73: =IF(ISBLANK(Iowa_Retail_Pharmacies!H73),"",Iowa_Retail_Pharmacies!H73) -> $0.23 | E73: =IF(ISBLANK(Iowa_Retail_Pharmacies!K73),"",Iowa_Retail_Pharmacies!K73) -> $0.13 | F73: =IF(ISBLANK(Iowa_Retail_Pharmacies!M73),"",Iowa_Retail_Pharmacies!M73) -> 2025-11-19 | G73: =IF(ISBLANK(Iowa_Retail_Pharmacies!P73),"",Iowa_Retail_Pharmacies!P73) -> No | H73: =IF(ISBLANK(Iowa_Retail_Pharmacies!Q73),"",Iowa_Retail_Pharmacies!Q73) -> No
B74: =IF(ISBLANK(Iowa_Retail_Pharmacies!D74),"",Iowa_Retail_Pharmacies!D74) -> 2025-12-08 | C74: =IF(ISBLANK(Iowa_Retail_Pharmacies!E74),"",Iowa_Retail_Pharmacies!E74) -> 90 | D74: =IF(ISBLANK(Iowa_Retail_Pharmacies!H74),"",Iowa_Retail_Pharmacies!H74) -> $0.32 | E74: =IF(ISBLANK(Iowa_Retail_Pharmacies!K74),"",Iowa_Retail_Pharmacies!K74) -> $0.05 | F74: =IF(ISBLANK(Iowa_Retail_Pharmacies!M74),"",Iowa_Retail_Pharmacies!M74) -> 2025-11-19 | G74: =IF(ISBLANK(Iowa_Retail_Pharmacies!P74),"",Iowa_Retail_Pharmacies!P74) -> No | H74: =IF(ISBLANK(Iowa_Retail_Pharmacies!Q74),"",Iowa_Retail_Pharmacies!Q74) -> No
B75: =IF(ISBLANK(Iowa_Retail_Pharmacies!D75),"",Iowa_Retail_Pharmacies!D75) -> 2025-10-30 | C75: =IF(ISBLANK(Iowa_Retail_Pharmacies!E75),"",Iowa_Retail_Pharmacies!E75) -> 90 | D75: =IF(ISBLANK(Iowa_Retail_Pharmacies!H75),"",Iowa_Retail_Pharmacies!H75) -> $0.14 | E75: =IF(ISBLANK(Iowa_Retail_Pharmacies!K75),"",Iowa_Retail_Pharmacies!K75) -> $0.09 | F75: =IF(ISBLANK(Iowa_Retail_Pharmacies!M75),"",Iowa_Retail_Pharmacies!M75) -> 2025-10-22 | G75: =IF(ISBLANK(Iowa_Retail_Pharmacies!P75),"",Iowa_Retail_Pharmacies!P75) -> No | H75: =IF(ISBLANK(Iowa_Retail_Pharmacies!Q75),"",Iowa_Retail_Pharmacies!Q75) -> No
B76: =IF(ISBLANK(Iowa_Retail_Pharmacies!D76),"",Iowa_Retail_Pharmacies!D76) -> 2025-11-26 | C76: =IF(ISBLANK(Iowa_Retail_Pharmacies!E76),"",Iowa_Retail_Pharmacies!E76) -> 90 | D76: =IF(ISBLANK(Iowa_Retail_Pharmacies!H76),"",Iowa_Retail_Pharmacies!H76) -> $0.27 | E76: =IF(ISBLANK(Iowa_Retail_Pharmacies!K76),"",Iowa_Retail_Pharmacies!K76) -> $0.14 | F76: =IF(ISBLANK(Iowa_Retail_Pharmacies!M76),"",Iowa_Retail_Pharmacies!M76) -> 2025-11-19 | G76: =IF(ISBLANK(Iowa_Retail_Pharmacies!P76),"",Iowa_Retail_Pharmacies!P76) -> No | H76: =IF(ISBLANK(Iowa_Retail_Pharmacies!Q76),"",Iowa_Retail_Pharmacies!Q76) -> No
B77: =IF(ISBLANK(Iowa_Retail_Pharmacies!D77),"",Iowa_Retail_Pharmacies!D77) -> 2025-11-13 | C77: =IF(ISBLANK(Iowa_Retail_Pharmacies!E77),"",Iowa_Retail_Pharmacies!E77) -> 2 | D77: =IF(ISBLANK(Iowa_Retail_Pharmacies!H77),"",Iowa_Retail_Pharmacies!H77) -> $14.31 | E77: =IF(ISBLANK(Iowa_Retail_Pharmacies!K77),"",Iowa_Retail_Pharmacies!K77) -> $11.76 | F77: =IF(ISBLANK(Iowa_Retail_Pharmacies!M77),"",Iowa_Retail_Pharmacies!M77) -> 2025-10-22 | G77: =IF(ISBLANK(Iowa_Retail_Pharmacies!P77),"",Iowa_Retail_Pharmacies!P77) -> No | H77: =IF(ISBLANK(Iowa_Retail_Pharmacies!Q77),"",Iowa_Retail_Pharmacies!Q77) -> No
B78: =IF(ISBLANK(Iowa_Retail_Pharmacies!D78),"",Iowa_Retail_Pharmacies!D78) -> 2025-12-08 | C78: =IF(ISBLANK(Iowa_Retail_Pharmacies!E78),"",Iowa_Retail_Pharmacies!E78) -> 90 | D78: =IF(ISBLANK(Iowa_Retail_Pharmacies!H78),"",Iowa_Retail_Pharmacies!H78) -> $0.43 | E78: =IF(ISBLANK(Iowa_Retail_Pharmacies!K78),"",Iowa_Retail_Pharmacies!K78) -> $0.12 | F78: =IF(ISBLANK(Iowa_Retail_Pharmacies!M78),"",Iowa_Retail_Pharmacies!M78) -> 2025-11-19 | G78: =IF(ISBLANK(Iowa_Retail_Pharmacies!P78),"",Iowa_Retail_Pharmacies!P78) -> No | H78: =IF(ISBLANK(Iowa_Retail_Pharmacies!Q78),"",Iowa_Retail_Pharmacies!Q78) -> No
B79: =IF(ISBLANK(Iowa_Retail_Pharmacies!D79),"",Iowa_Retail_Pharmacies!D79) -> 2025-11-21 | C79: =IF(ISBLANK(Iowa_Retail_Pharmacies!E79),"",Iowa_Retail_Pharmacies!E79) -> 28 | D79: =IF(ISBLANK(Iowa_Retail_Pharmacies!H79),"",Iowa_Retail_Pharmacies!H79) -> $0.23 | E79: =IF(ISBLANK(Iowa_Retail_Pharmacies!K79),"",Iowa_Retail_Pharmacies!K79) -> $0.13 | F79: =IF(ISBLANK(Iowa_Retail_Pharmacies!M79),"",Iowa_Retail_Pharmacies!M79) -> 2025-11-19 | G79: =IF(ISBLANK(Iowa_Retail_Pharmacies!P79),"",Iowa_Retail_Pharmacies!P79) -> No | H79: =IF(ISBLANK(Iowa_Retail_Pharmacies!Q79),"",Iowa_Retail_Pharmacies!Q79) -> No
B80: =IF(ISBLANK(Iowa_Retail_Pharmacies!D80),"",Iowa_Retail_Pharmacies!D80) -> 2025-12-17 | C80: =IF(ISBLANK(Iowa_Retail_Pharmacies!E80),"",Iowa_Retail_Pharmacies!E80) -> 90 | D80: =IF(ISBLANK(Iowa_Retail_Pharmacies!H80),"",Iowa_Retail_Pharmacies!H80) -> $0.19 | E80: =IF(ISBLANK(Iowa_Retail_Pharmacies!K80),"",Iowa_Retail_Pharmacies!K80) -> $0.11 | F80: =IF(ISBLANK(Iowa_Retail_Pharmacies!M80),"",Iowa_Retail_Pharmacies!M80) -> 2025-11-19 | G80: =IF(ISBLANK(Iowa_Retail_Pharmacies!P80),"",Iowa_Retail_Pharmacies!P80) -> No | H80: =IF(ISBLANK(Iowa_Retail_Pharmacies!Q80),"",Iowa_Retail_Pharmacies!Q80) -> No
B81: =IF(ISBLANK(Iowa_Retail_Pharmacies!D81),"",Iowa_Retail_Pharmacies!D81) -> 2025-12-04 | C81: =IF(ISBLANK(Iowa_Retail_Pharmacies!E81),"",Iowa_Retail_Pharmacies!E81) -> 28 | D81: =IF(ISBLANK(Iowa_Retail_Pharmacies!H81),"",Iowa_Retail_Pharmacies!H81) -> $0.28 | E81: =IF(ISBLANK(Iowa_Retail_Pharmacies!K81),"",Iowa_Retail_Pharmacies!K81) -> $0.15 | F81: =IF(ISBLANK(Iowa_Retail_Pharmacies!M81),"",Iowa_Retail_Pharmacies!M81) -> 2025-11-19 | G81: =IF(ISBLANK(Iowa_Retail_Pharmacies!P81),"",Iowa_Retail_Pharmacies!P81) -> No | H81: =IF(ISBLANK(Iowa_Retail_Pharmacies!Q81),"",Iowa_Retail_Pharmacies!Q81) -> No
B82: =IF(ISBLANK(Iowa_Retail_Pharmacies!D82),"",Iowa_Retail_Pharmacies!D82) -> 2025-12-02 | C82: =IF(ISBLANK(Iowa_Retail_Pharmacies!E82),"",Iowa_Retail_Pharmacies!E82) -> 180 | D82: =IF(ISBLANK(Iowa_Retail_Pharmacies!H82),"",Iowa_Retail_Pharmacies!H82) -> $0.15 | E82: =IF(ISBLANK(Iowa_Retail_Pharmacies!K82),"",Iowa_Retail_Pharmacies!K82) -> $0.08 | F82: =IF(ISBLANK(Iowa_Retail_Pharmacies!M82),"",Iowa_Retail_Pharmacies!M82) -> 2025-11-19 | G82: =IF(ISBLANK(Iowa_Retail_Pharmacies!P82),"",Iowa_Retail_Pharmacies!P82) -> No | H82: =IF(ISBLANK(Iowa_Retail_Pharmacies!Q82),"",Iowa_Retail_Pharmacies!Q82) -> No
B83: =IF(ISBLANK(Iowa_Retail_Pharmacies!D83),"",Iowa_Retail_Pharmacies!D83) -> 2025-10-24 | C83: =IF(ISBLANK(Iowa_Retail_Pharmacies!E83),"",Iowa_Retail_Pharmacies!E83) -> 30 | D83: =IF(ISBLANK(Iowa_Retail_Pharmacies!H83),"",Iowa_Retail_Pharmacies!H83) -> $1.57 | E83: =IF(ISBLANK(Iowa_Retail_Pharmacies!K83),"",Iowa_Retail_Pharmacies!K83) -> $0.47 | F83: =IF(ISBLANK(Iowa_Retail_Pharmacies!M83),"",Iowa_Retail_Pharmacies!M83) -> 2025-10-22 | G83: =IF(ISBLANK(Iowa_Retail_Pharmacies!P83),"",Iowa_Retail_Pharmacies!P83) -> No | H83: =IF(ISBLANK(Iowa_Retail_Pharmacies!Q83),"",Iowa_Retail_Pharmacies!Q83) -> No
B84: =IF(ISBLANK(Iowa_Retail_Pharmacies!D84),"",Iowa_Retail_Pharmacies!D84) -> 2025-11-15 | C84: =IF(ISBLANK(Iowa_Retail_Pharmacies!E84),"",Iowa_Retail_Pharmacies!E84) -> 90 | D84: =IF(ISBLANK(Iowa_Retail_Pharmacies!H84),"",Iowa_Retail_Pharmacies!H84) -> $0.14 | E84: =IF(ISBLANK(Iowa_Retail_Pharmacies!K84),"",Iowa_Retail_Pharmacies!K84) -> $0.06 | F84: =IF(ISBLANK(Iowa_Retail_Pharmacies!M84),"",Iowa_Retail_Pharmacies!M84) -> 2025-10-22 | G84: =IF(ISBLANK(Iowa_Retail_Pharmacies!P84),"",Iowa_Retail_Pharmacies!P84) -> No | H84: =IF(ISBLANK(Iowa_Retail_Pharmacies!Q84),"",Iowa_Retail_Pharmacies!Q84) -> No
B85: =IF(ISBLANK(Iowa_Retail_Pharmacies!D85),"",Iowa_Retail_Pharmacies!D85) -> 2025-10-06 | C85: =IF(ISBLANK(Iowa_Retail_Pharmacies!E85),"",Iowa_Retail_Pharmacies!E85) -> 30 | D85: =IF(ISBLANK(Iowa_Retail_Pharmacies!H85),"",Iowa_Retail_Pharmacies!H85) -> $0.24 | E85: =IF(ISBLANK(Iowa_Retail_Pharmacies!K85),"",Iowa_Retail_Pharmacies!K85) -> $0.15 | F85: =IF(ISBLANK(Iowa_Retail_Pharmacies!M85),"",Iowa_Retail_Pharmacies!M85) -> 2025-09-17 | G85: =IF(ISBLANK(Iowa_Retail_Pharmacies!P85),"",Iowa_Retail_Pharmacies!P85) -> No | H85: =IF(ISBLANK(Iowa_Retail_Pharmacies!Q85),"",Iowa_Retail_Pharmacies!Q85) -> No
B86: =IF(ISBLANK(Iowa_Retail_Pharmacies!D86),"",Iowa_Retail_Pharmacies!D86) -> 2025-12-16 | C86: =IF(ISBLANK(Iowa_Retail_Pharmacies!E86),"",Iowa_Retail_Pharmacies!E86) -> 20 | D86: =IF(ISBLANK(Iowa_Retail_Pharmacies!H86),"",Iowa_Retail_Pharmacies!H86) -> $0.08 | E86: =IF(ISBLANK(Iowa_Retail_Pharmacies!K86),"",Iowa_Retail_Pharmacies!K86) -> $0.02 | F86: =IF(ISBLANK(Iowa_Retail_Pharmacies!M86),"",Iowa_Retail_Pharmacies!M86) -> 2025-11-19 | G86: =IF(ISBLANK(Iowa_Retail_Pharmacies!P86),"",Iowa_Retail_Pharmacies!P86) -> No | H86: =IF(ISBLANK(Iowa_Retail_Pharmacies!Q86),"",Iowa_Retail_Pharmacies!Q86) -> No
B87: =IF(ISBLANK(Iowa_Retail_Pharmacies!D87),"",Iowa_Retail_Pharmacies!D87) -> 2025-11-28 | C87: =IF(ISBLANK(Iowa_Retail_Pharmacies!E87),"",Iowa_Retail_Pharmacies!E87) -> 90 | D87: =IF(ISBLANK(Iowa_Retail_Pharmacies!H87),"",Iowa_Retail_Pharmacies!H87) -> $0.32 | E87: =IF(ISBLANK(Iowa_Retail_Pharmacies!K87),"",Iowa_Retail_Pharmacies!K87) -> $0.05 | F87: =IF(ISBLANK(Iowa_Retail_Pharmacies!M87),"",Iowa_Retail_Pharmacies!M87) -> 2025-11-19 | G87: =IF(ISBLANK(Iowa_Retail_Pharmacies!P87),"",Iowa_Retail_Pharmacies!P87) -> No | H87: =IF(ISBLANK(Iowa_Retail_Pharmacies!Q87),"",Iowa_Retail_Pharmacies!Q87) -> No
B88: =IF(ISBLANK(Iowa_Retail_Pharmacies!D88),"",Iowa_Retail_Pharmacies!D88) -> 2025-12-16 | C88: =IF(ISBLANK(Iowa_Retail_Pharmacies!E88),"",Iowa_Retail_Pharmacies!E88) -> 90 | D88: =IF(ISBLANK(Iowa_Retail_Pharmacies!H88),"",Iowa_Retail_Pharmacies!H88) -> $0.27 | E88: =IF(ISBLANK(Iowa_Retail_Pharmacies!K88),"",Iowa_Retail_Pharmacies!K88) -> $0.14 | F88: =IF(ISBLANK(Iowa_Retail_Pharmacies!M88),"",Iowa_Retail_Pharmacies!M88) -> 2025-11-19 | G88: =IF(ISBLANK(Iowa_Retail_Pharmacies!P88),"",Iowa_Retail_Pharmacies!P88) -> No | H88: =IF(ISBLANK(Iowa_Retail_Pharmacies!Q88),"",Iowa_Retail_Pharmacies!Q88) -> No
B89: =IF(ISBLANK(Iowa_Retail_Pharmacies!D89),"",Iowa_Retail_Pharmacies!D89) -> 2025-10-08 | C89: =IF(ISBLANK(Iowa_Retail_Pharmacies!E89),"",Iowa_Retail_Pharmacies!E89) -> 21 | D89: =IF(ISBLANK(Iowa_Retail_Pharmacies!H89),"",Iowa_Retail_Pharmacies!H89) -> $0.35 | E89: =IF(ISBLANK(Iowa_Retail_Pharmacies!K89),"",Iowa_Retail_Pharmacies!K89) -> $0.13 | F89: =IF(ISBLANK(Iowa_Retail_Pharmacies!M89),"",Iowa_Retail_Pharmacies!M89) -> 2025-09-17 | G89: =IF(ISBLANK(Iowa_Retail_Pharmacies!P89),"",Iowa_Retail_Pharmacies!P89) -> No | H89: =IF(ISBLANK(Iowa_Retail_Pharmacies!Q89),"",Iowa_Retail_Pharmacies!Q89) -> No
B90: =IF(ISBLANK(Iowa_Retail_Pharmacies!D90),"",Iowa_Retail_Pharmacies!D90) -> 2025-11-11 | C90: =IF(ISBLANK(Iowa_Retail_Pharmacies!E90),"",Iowa_Retail_Pharmacies!E90) -> 30 | D90: =IF(ISBLANK(Iowa_Retail_Pharmacies!H90),"",Iowa_Retail_Pharmacies!H90) -> $0.27 | E90: =IF(ISBLANK(Iowa_Retail_Pharmacies!K90),"",Iowa_Retail_Pharmacies!K90) -> $0.14 | F90: =IF(ISBLANK(Iowa_Retail_Pharmacies!M90),"",Iowa_Retail_Pharmacies!M90) -> 2025-10-22 | G90: =IF(ISBLANK(Iowa_Retail_Pharmacies!P90),"",Iowa_Retail_Pharmacies!P90) -> No | H90: =IF(ISBLANK(Iowa_Retail_Pharmacies!Q90),"",Iowa_Retail_Pharmacies!Q90) -> No
B91: =IF(ISBLANK(Iowa_Retail_Pharmacies!D91),"",Iowa_Retail_Pharmacies!D91) -> 2025-10-06 | C91: =IF(ISBLANK(Iowa_Retail_Pharmacies!E91),"",Iowa_Retail_Pharmacies!E91) -> 60 | D91: =IF(ISBLANK(Iowa_Retail_Pharmacies!H91),"",Iowa_Retail_Pharmacies!H91) -> $0.15 | E91: =IF(ISBLANK(Iowa_Retail_Pharmacies!K91),"",Iowa_Retail_Pharmacies!K91) -> $0.09 | F91: =IF(ISBLANK(Iowa_Retail_Pharmacies!M91),"",Iowa_Retail_Pharmacies!M91) -> 2025-09-17 | G91: =IF(ISBLANK(Iowa_Retail_Pharmacies!P91),"",Iowa_Retail_Pharmacies!P91) -> No | H91: =IF(ISBLANK(Iowa_Retail_Pharmacies!Q91),"",Iowa_Retail_Pharmacies!Q91) -> No
B92: =IF(ISBLANK(Iowa_Retail_Pharmacies!D92),"",Iowa_Retail_Pharmacies!D92) -> 2025-10-21 | C92: =IF(ISBLANK(Iowa_Retail_Pharmacies!E92),"",Iowa_Retail_Pharmacies!E92) -> 30 | D92: =IF(ISBLANK(Iowa_Retail_Pharmacies!H92),"",Iowa_Retail_Pharmacies!H92) -> $1.19 | E92: =IF(ISBLANK(Iowa_Retail_Pharmacies!K92),"",Iowa_Retail_Pharmacies!K92) -> $0.70 | F92: =IF(ISBLANK(Iowa_Retail_Pharmacies!M92),"",Iowa_Retail_Pharmacies!M92) -> 2025-09-17 | G92: =IF(ISBLANK(Iowa_Retail_Pharmacies!P92),"",Iowa_Retail_Pharmacies!P92) -> No | H92: =IF(ISBLANK(Iowa_Retail_Pharmacies!Q92),"",Iowa_Retail_Pharmacies!Q92) -> No
B93: =IF(ISBLANK(Iowa_Retail_Pharmacies!D93),"",Iowa_Retail_Pharmacies!D93) -> 2025-12-18 | C93: =IF(ISBLANK(Iowa_Retail_Pharmacies!E93),"",Iowa_Retail_Pharmacies!E93) -> 90 | D93: =IF(ISBLANK(Iowa_Retail_Pharmacies!H93),"",Iowa_Retail_Pharmacies!H93) -> $0.16 | E93: =IF(ISBLANK(Iowa_Retail_Pharmacies!K93),"",Iowa_Retail_Pharmacies!K93) -> $0.06 | F93: =IF(ISBLANK(Iowa_Retail_Pharmacies!M93),"",Iowa_Retail_Pharmacies!M93) -> 2025-12-17 | G93: =IF(ISBLANK(Iowa_Retail_Pharmacies!P93),"",Iowa_Retail_Pharmacies!P93) -> No | H93: =IF(ISBLANK(Iowa_Retail_Pharmacies!Q93),"",Iowa_Retail_Pharmacies!Q93) -> No
B94: =IF(ISBLANK(Iowa_Retail_Pharmacies!D94),"",Iowa_Retail_Pharmacies!D94) -> 2025-11-15 | C94: =IF(ISBLANK(Iowa_Retail_Pharmacies!E94),"",Iowa_Retail_Pharmacies!E94) -> 30 | D94: =IF(ISBLANK(Iowa_Retail_Pharmacies!H94),"",Iowa_Retail_Pharmacies!H94) -> $0.29 | E94: =IF(ISBLANK(Iowa_Retail_Pharmacies!K94),"",Iowa_Retail_Pharmacies!K94) -> $0.02 | F94: =IF(ISBLANK(Iowa_Retail_Pharmacies!M94),"",Iowa_Retail_Pharmacies!M94) -> 2025-10-22 | G94: =IF(ISBLANK(Iowa_Retail_Pharmacies!P94),"",Iowa_Retail_Pharmacies!P94) -> No | H94: =IF(ISBLANK(Iowa_Retail_Pharmacies!Q94),"",Iowa_Retail_Pharmacies!Q94) -> No
B95: =IF(ISBLANK(Iowa_Retail_Pharmacies!D95),"",Iowa_Retail_Pharmacies!D95) -> 2025-10-29 | C95: =IF(ISBLANK(Iowa_Retail_Pharmacies!E95),"",Iowa_Retail_Pharmacies!E95) -> 30 | D95: =IF(ISBLANK(Iowa_Retail_Pharmacies!H95),"",Iowa_Retail_Pharmacies!H95) -> $0.09 | E95: =IF(ISBLANK(Iowa_Retail_Pharmacies!K95),"",Iowa_Retail_Pharmacies!K95) -> $0.02 | F95: =IF(ISBLANK(Iowa_Retail_Pharmacies!M95),"",Iowa_Retail_Pharmacies!M95) -> 2025-10-22 | G95: =IF(ISBLANK(Iowa_Retail_Pharmacies!P95),"",Iowa_Retail_Pharmacies!P95) -> No | H95: =IF(ISBLANK(Iowa_Retail_Pharmacies!Q95),"",Iowa_Retail_Pharmacies!Q95) -> No
B96: =IF(ISBLANK(Iowa_Retail_Pharmacies!D96),"",Iowa_Retail_Pharmacies!D96) -> 2025-10-08 | C96: =IF(ISBLANK(Iowa_Retail_Pharmacies!E96),"",Iowa_Retail_Pharmacies!E96) -> 28 | D96: =IF(ISBLANK(Iowa_Retail_Pharmacies!H96),"",Iowa_Retail_Pharmacies!H96) -> $0.18 | E96: =IF(ISBLANK(Iowa_Retail_Pharmacies!K96),"",Iowa_Retail_Pharmacies!K96) -> $0.08 | F96: =IF(ISBLANK(Iowa_Retail_Pharmacies!M96),"",Iowa_Retail_Pharmacies!M96) -> 2025-09-17 | G96: =IF(ISBLANK(Iowa_Retail_Pharmacies!P96),"",Iowa_Retail_Pharmacies!P96) -> No | H96: =IF(ISBLANK(Iowa_Retail_Pharmacies!Q96),"",Iowa_Retail_Pharmacies!Q96) -> No
B97: =IF(ISBLANK(Iowa_Retail_Pharmacies!D97),"",Iowa_Retail_Pharmacies!D97) -> 2025-11-20 | C97: =IF(ISBLANK(Iowa_Retail_Pharmacies!E97),"",Iowa_Retail_Pharmacies!E97) -> 30 | D97: =IF(ISBLANK(Iowa_Retail_Pharmacies!H97),"",Iowa_Retail_Pharmacies!H97) -> $1.19 | E97: =IF(ISBLANK(Iowa_Retail_Pharmacies!K97),"",Iowa_Retail_Pharmacies!K97) -> $0.68 | F97: =IF(ISBLANK(Iowa_Retail_Pharmacies!M97),"",Iowa_Retail_Pharmacies!M97) -> 2025-11-19 | G97: =IF(ISBLANK(Iowa_Retail_Pharmacies!P97),"",Iowa_Retail_Pharmacies!P97) -> No | H97: =IF(ISBLANK(Iowa_Retail_Pharmacies!Q97),"",Iowa_Retail_Pharmacies!Q97) -> No
B98: =IF(ISBLANK(Iowa_Retail_Pharmacies!D98),"",Iowa_Retail_Pharmacies!D98) -> 2025-11-04 | C98: =IF(ISBLANK(Iowa_Retail_Pharmacies!E98),"",Iowa_Retail_Pharmacies!E98) -> 30 | D98: =IF(ISBLANK(Iowa_Retail_Pharmacies!H98),"",Iowa_Retail_Pharmacies!H98) -> $0.24 | E98: =IF(ISBLANK(Iowa_Retail_Pharmacies!K98),"",Iowa_Retail_Pharmacies!K98) -> $0.15 | F98: =IF(ISBLANK(Iowa_Retail_Pharmacies!M98),"",Iowa_Retail_Pharmacies!M98) -> 2025-10-22 | G98: =IF(ISBLANK(Iowa_Retail_Pharmacies!P98),"",Iowa_Retail_Pharmacies!P98) -> No | H98: =IF(ISBLANK(Iowa_Retail_Pharmacies!Q98),"",Iowa_Retail_Pharmacies!Q98) -> No
B99: =IF(ISBLANK(Iowa_Retail_Pharmacies!D99),"",Iowa_Retail_Pharmacies!D99) -> 2025-10-06 | C99: =IF(ISBLANK(Iowa_Retail_Pharmacies!E99),"",Iowa_Retail_Pharmacies!E99) -> 30 | D99: =IF(ISBLANK(Iowa_Retail_Pharmacies!H99),"",Iowa_Retail_Pharmacies!H99) -> $1.31 | E99: =IF(ISBLANK(Iowa_Retail_Pharmacies!K99),"",Iowa_Retail_Pharmacies!K99) -> $0.74 | F99: =IF(ISBLANK(Iowa_Retail_Pharmacies!M99),"",Iowa_Retail_Pharmacies!M99) -> 2025-09-17 | G99: =IF(ISBLANK(Iowa_Retail_Pharmacies!P99),"",Iowa_Retail_Pharmacies!P99) -> No | H99: =IF(ISBLANK(Iowa_Retail_Pharmacies!Q99),"",Iowa_Retail_Pharmacies!Q99) -> No
B100: =IF(ISBLANK(Iowa_Retail_Pharmacies!D100),"",Iowa_Retail_Pharmacies!D100) -> 2025-11-28 | C100: =IF(ISBLANK(Iowa_Retail_Pharmacies!E100),"",Iowa_Retail_Pharmacies!E100) -> 90 | D100: =IF(ISBLANK(Iowa_Retail_Pharmacies!H100),"",Iowa_Retail_Pharmacies!H100) -> $0.13 | E100: =IF(ISBLANK(Iowa_Retail_Pharmacies!K100),"",Iowa_Retail_Pharmacies!K100) -> $0.07 | F100: =IF(ISBLANK(Iowa_Retail_Pharmacies!M100),"",Iowa_Retail_Pharmacies!M100) -> 2025-11-19 | G100: =IF(ISBLANK(Iowa_Retail_Pharmacies!P100),"",Iowa_Retail_Pharmacies!P100) -> No | H100: =IF(ISBLANK(Iowa_Retail_Pharmacies!Q100),"",Iowa_Retail_Pharmacies!Q100) -> No
B101: =IF(ISBLANK(Iowa_Retail_Pharmacies!D101),"",Iowa_Retail_Pharmacies!D101) -> 2025-10-06 | C101: =IF(ISBLANK(Iowa_Retail_Pharmacies!E101),"",Iowa_Retail_Pharmacies!E101) -> 30 | D101: =IF(ISBLANK(Iowa_Retail_Pharmacies!H101),"",Iowa_Retail_Pharmacies!H101) -> $0.16 | E101: =IF(ISBLANK(Iowa_Retail_Pharmacies!K101),"",Iowa_Retail_Pharmacies!K101) -> $0.09 | F101: =IF(ISBLANK(Iowa_Retail_Pharmacies!M101),"",Iowa_Retail_Pharmacies!M101) -> 2025-09-17 | G101: =IF(ISBLANK(Iowa_Retail_Pharmacies!P101),"",Iowa_Retail_Pharmacies!P101) -> No | H101: =IF(ISBLANK(Iowa_Retail_Pharmacies!Q101),"",Iowa_Retail_Pharmacies!Q101) -> No
B102: =IF(ISBLANK(Iowa_Retail_Pharmacies!D102),"",Iowa_Retail_Pharmacies!D102) -> 2025-10-06 | C102: =IF(ISBLANK(Iowa_Retail_Pharmacies!E102),"",Iowa_Retail_Pharmacies!E102) -> 21 | D102: =IF(ISBLANK(Iowa_Retail_Pharmacies!H102),"",Iowa_Retail_Pharmacies!H102) -> $0.63 | E102: =IF(ISBLANK(Iowa_Retail_Pharmacies!K102),"",Iowa_Retail_Pharmacies!K102) -> $0.41 | F102: =IF(ISBLANK(Iowa_Retail_Pharmacies!M102),"",Iowa_Retail_Pharmacies!M102) -> 2025-09-17 | G102: =IF(ISBLANK(Iowa_Retail_Pharmacies!P102),"",Iowa_Retail_Pharmacies!P102) -> No | H102: =IF(ISBLANK(Iowa_Retail_Pharmacies!Q102),"",Iowa_Retail_Pharmacies!Q102) -> No
B103: =IF(ISBLANK(Iowa_Retail_Pharmacies!D103),"",Iowa_Retail_Pharmacies!D103) -> 2025-11-04 | C103: =IF(ISBLANK(Iowa_Retail_Pharmacies!E103),"",Iowa_Retail_Pharmacies!E103) -> 30 | D103: =IF(ISBLANK(Iowa_Retail_Pharmacies!H103),"",Iowa_Retail_Pharmacies!H103) -> $0.16 | E103: =IF(ISBLANK(Iowa_Retail_Pharmacies!K103),"",Iowa_Retail_Pharmacies!K103) -> $0.09 | F103: =IF(ISBLANK(Iowa_Retail_Pharmacies!M103),"",Iowa_Retail_Pharmacies!M103) -> 2025-10-22 | G103: =IF(ISBLANK(Iowa_Retail_Pharmacies!P103),"",Iowa_Retail_Pharmacies!P103) -> No | H103: =IF(ISBLANK(Iowa_Retail_Pharmacies!Q103),"",Iowa_Retail_Pharmacies!Q103) -> No
B104: =IF(ISBLANK(Iowa_Retail_Pharmacies!D104),"",Iowa_Retail_Pharmacies!D104) -> 2025-11-28 | C104: =IF(ISBLANK(Iowa_Retail_Pharmacies!E104),"",Iowa_Retail_Pharmacies!E104) -> 90 | D104: =IF(ISBLANK(Iowa_Retail_Pharmacies!H104),"",Iowa_Retail_Pharmacies!H104) -> $0.42 | E104: =IF(ISBLANK(Iowa_Retail_Pharmacies!K104),"",Iowa_Retail_Pharmacies!K104) -> $0.07 | F104: =IF(ISBLANK(Iowa_Retail_Pharmacies!M104),"",Iowa_Retail_Pharmacies!M104) -> 2025-11-19 | G104: =IF(ISBLANK(Iowa_Retail_Pharmacies!P104),"",Iowa_Retail_Pharmacies!P104) -> No | H104: =IF(ISBLANK(Iowa_Retail_Pharmacies!Q104),"",Iowa_Retail_Pharmacies!Q104) -> No
B105: =IF(ISBLANK(Iowa_Retail_Pharmacies!D105),"",Iowa_Retail_Pharmacies!D105) -> 2025-12-10 | C105: =IF(ISBLANK(Iowa_Retail_Pharmacies!E105),"",Iowa_Retail_Pharmacies!E105) -> 20 | D105: =IF(ISBLANK(Iowa_Retail_Pharmacies!H105),"",Iowa_Retail_Pharmacies!H105) -> $0.08 | E105: =IF(ISBLANK(Iowa_Retail_Pharmacies!K105),"",Iowa_Retail_Pharmacies!K105) -> $0.02 | F105: =IF(ISBLANK(Iowa_Retail_Pharmacies!M105),"",Iowa_Retail_Pharmacies!M105) -> 2025-11-19 | G105: =IF(ISBLANK(Iowa_Retail_Pharmacies!P105),"",Iowa_Retail_Pharmacies!P105) -> No | H105: =IF(ISBLANK(Iowa_Retail_Pharmacies!Q105),"",Iowa_Retail_Pharmacies!Q105) -> No
B106: =IF(ISBLANK(Iowa_Retail_Pharmacies!D106),"",Iowa_Retail_Pharmacies!D106) -> 2025-10-13 | C106: =IF(ISBLANK(Iowa_Retail_Pharmacies!E106),"",Iowa_Retail_Pharmacies!E106) -> 20 | D106: =IF(ISBLANK(Iowa_Retail_Pharmacies!H106),"",Iowa_Retail_Pharmacies!H106) -> $0.51 | E106: =IF(ISBLANK(Iowa_Retail_Pharmacies!K106),"",Iowa_Retail_Pharmacies!K106) -> $0.29 | F106: =IF(ISBLANK(Iowa_Retail_Pharmacies!M106),"",Iowa_Retail_Pharmacies!M106) -> 2025-09-17 | G106: =IF(ISBLANK(Iowa_Retail_Pharmacies!P106),"",Iowa_Retail_Pharmacies!P106) -> No | H106: =IF(ISBLANK(Iowa_Retail_Pharmacies!Q106),"",Iowa_Retail_Pharmacies!Q106) -> No
B107: =IF(ISBLANK(Iowa_Retail_Pharmacies!D107),"",Iowa_Retail_Pharmacies!D107) -> 2025-11-28 | C107: =IF(ISBLANK(Iowa_Retail_Pharmacies!E107),"",Iowa_Retail_Pharmacies!E107) -> 90 | D107: =IF(ISBLANK(Iowa_Retail_Pharmacies!H107),"",Iowa_Retail_Pharmacies!H107) -> $0.34 | E107: =IF(ISBLANK(Iowa_Retail_Pharmacies!K107),"",Iowa_Retail_Pharmacies!K107) -> $0.05 | F107: =IF(ISBLANK(Iowa_Retail_Pharmacies!M107),"",Iowa_Retail_Pharmacies!M107) -> 2025-11-19 | G107: =IF(ISBLANK(Iowa_Retail_Pharmacies!P107),"",Iowa_Retail_Pharmacies!P107) -> No | H107: =IF(ISBLANK(Iowa_Retail_Pharmacies!Q107),"",Iowa_Retail_Pharmacies!Q107) -> No
B108: =IF(ISBLANK(Iowa_Retail_Pharmacies!D108),"",Iowa_Retail_Pharmacies!D108) -> 2025-11-03 | C108: =IF(ISBLANK(Iowa_Retail_Pharmacies!E108),"",Iowa_Retail_Pharmacies!E108) -> 90 | D108: =IF(ISBLANK(Iowa_Retail_Pharmacies!H108),"",Iowa_Retail_Pharmacies!H108) -> $0.30 | E108: =IF(ISBLANK(Iowa_Retail_Pharmacies!K108),"",Iowa_Retail_Pharmacies!K108) -> $0.04 | F108: =IF(ISBLANK(Iowa_Retail_Pharmacies!M108),"",Iowa_Retail_Pharmacies!M108) -> 2025-10-22 | G108: =IF(ISBLANK(Iowa_Retail_Pharmacies!P108),"",Iowa_Retail_Pharmacies!P108) -> No | H108: =IF(ISBLANK(Iowa_Retail_Pharmacies!Q108),"",Iowa_Retail_Pharmacies!Q108) -> No
B109: =IF(ISBLANK(Iowa_Retail_Pharmacies!D109),"",Iowa_Retail_Pharmacies!D109) -> 2025-10-13 | C109: =IF(ISBLANK(Iowa_Retail_Pharmacies!E109),"",Iowa_Retail_Pharmacies!E109) -> 30 | D109: =IF(ISBLANK(Iowa_Retail_Pharmacies!H109),"",Iowa_Retail_Pharmacies!H109) -> $0.27 | E109: =IF(ISBLANK(Iowa_Retail_Pharmacies!K109),"",Iowa_Retail_Pharmacies!K109) -> $0.15 | F109: =IF(ISBLANK(Iowa_Retail_Pharmacies!M109),"",Iowa_Retail_Pharmacies!M109) -> 2025-09-17 | G109: =IF(ISBLANK(Iowa_Retail_Pharmacies!P109),"",Iowa_Retail_Pharmacies!P109) -> No | H109: =IF(ISBLANK(Iowa_Retail_Pharmacies!Q109),"",Iowa_Retail_Pharmacies!Q109) -> No
B110: =IF(ISBLANK(Iowa_Retail_Pharmacies!D110),"",Iowa_Retail_Pharmacies!D110) -> 2025-11-11 | C110: =IF(ISBLANK(Iowa_Retail_Pharmacies!E110),"",Iowa_Retail_Pharmacies!E110) -> 60 | D110: =IF(ISBLANK(Iowa_Retail_Pharmacies!H110),"",Iowa_Retail_Pharmacies!H110) -> $0.11 | E110: =IF(ISBLANK(Iowa_Retail_Pharmacies!K110),"",Iowa_Retail_Pharmacies!K110) -> $0.03 | F110: =IF(ISBLANK(Iowa_Retail_Pharmacies!M110),"",Iowa_Retail_Pharmacies!M110) -> 2025-10-22 | G110: =IF(ISBLANK(Iowa_Retail_Pharmacies!P110),"",Iowa_Retail_Pharmacies!P110) -> No | H110: =IF(ISBLANK(Iowa_Retail_Pharmacies!Q110),"",Iowa_Retail_Pharmacies!Q110) -> No
B111: =IF(ISBLANK(Iowa_Retail_Pharmacies!D111),"",Iowa_Retail_Pharmacies!D111) -> 2025-12-18 | C111: =IF(ISBLANK(Iowa_Retail_Pharmacies!E111),"",Iowa_Retail_Pharmacies!E111) -> 30 | D111: =IF(ISBLANK(Iowa_Retail_Pharmacies!H111),"",Iowa_Retail_Pharmacies!H111) -> $0.31 | E111: =IF(ISBLANK(Iowa_Retail_Pharmacies!K111),"",Iowa_Retail_Pharmacies!K111) -> $0.04 | F111: =IF(ISBLANK(Iowa_Retail_Pharmacies!M111),"",Iowa_Retail_Pharmacies!M111) -> 2025-12-17 | G111: =IF(ISBLANK(Iowa_Retail_Pharmacies!P111),"",Iowa_Retail_Pharmacies!P111) -> No | H111: =IF(ISBLANK(Iowa_Retail_Pharmacies!Q111),"",Iowa_Retail_Pharmacies!Q111) -> No
B112: =IF(ISBLANK(Iowa_Retail_Pharmacies!D112),"",Iowa_Retail_Pharmacies!D112) -> 2025-11-15 | C112: =IF(ISBLANK(Iowa_Retail_Pharmacies!E112),"",Iowa_Retail_Pharmacies!E112) -> 90 | D112: =IF(ISBLANK(Iowa_Retail_Pharmacies!H112),"",Iowa_Retail_Pharmacies!H112) -> $0.30 | E112: =IF(ISBLANK(Iowa_Retail_Pharmacies!K112),"",Iowa_Retail_Pharmacies!K112) -> $0.04 | F112: =IF(ISBLANK(Iowa_Retail_Pharmacies!M112),"",Iowa_Retail_Pharmacies!M112) -> 2025-10-22 | G112: =IF(ISBLANK(Iowa_Retail_Pharmacies!P112),"",Iowa_Retail_Pharmacies!P112) -> No | H112: =IF(ISBLANK(Iowa_Retail_Pharmacies!Q112),"",Iowa_Retail_Pharmacies!Q112) -> No
B113: =IF(ISBLANK(Iowa_Retail_Pharmacies!D113),"",Iowa_Retail_Pharmacies!D113) -> 2025-11-07 | C113: =IF(ISBLANK(Iowa_Retail_Pharmacies!E113),"",Iowa_Retail_Pharmacies!E113) -> 30 | D113: =IF(ISBLANK(Iowa_Retail_Pharmacies!H113),"",Iowa_Retail_Pharmacies!H113) -> $1.31 | E113: =IF(ISBLANK(Iowa_Retail_Pharmacies!K113),"",Iowa_Retail_Pharmacies!K113) -> $0.75 | F113: =IF(ISBLANK(Iowa_Retail_Pharmacies!M113),"",Iowa_Retail_Pharmacies!M113) -> 2025-10-22 | G113: =IF(ISBLANK(Iowa_Retail_Pharmacies!P113),"",Iowa_Retail_Pharmacies!P113) -> No | H113: =IF(ISBLANK(Iowa_Retail_Pharmacies!Q113),"",Iowa_Retail_Pharmacies!Q113) -> No
B114: =IF(ISBLANK(Iowa_Retail_Pharmacies!D114),"",Iowa_Retail_Pharmacies!D114) -> 2025-12-08 | C114: =IF(ISBLANK(Iowa_Retail_Pharmacies!E114),"",Iowa_Retail_Pharmacies!E114) -> 30 | D114: =IF(ISBLANK(Iowa_Retail_Pharmacies!H114),"",Iowa_Retail_Pharmacies!H114) -> $1.31 | E114: =IF(ISBLANK(Iowa_Retail_Pharmacies!K114),"",Iowa_Retail_Pharmacies!K114) -> $0.74 | F114: =IF(ISBLANK(Iowa_Retail_Pharmacies!M114),"",Iowa_Retail_Pharmacies!M114) -> 2025-11-19 | G114: =IF(ISBLANK(Iowa_Retail_Pharmacies!P114),"",Iowa_Retail_Pharmacies!P114) -> No | H114: =IF(ISBLANK(Iowa_Retail_Pharmacies!Q114),"",Iowa_Retail_Pharmacies!Q114) -> No
B115: =IF(ISBLANK(Iowa_Retail_Pharmacies!D115),"",Iowa_Retail_Pharmacies!D115) -> 2025-10-13 | C115: =IF(ISBLANK(Iowa_Retail_Pharmacies!E115),"",Iowa_Retail_Pharmacies!E115) -> 30 | D115: =IF(ISBLANK(Iowa_Retail_Pharmacies!H115),"",Iowa_Retail_Pharmacies!H115) -> $0.26 | E115: =IF(ISBLANK(Iowa_Retail_Pharmacies!K115),"",Iowa_Retail_Pharmacies!K115) -> $0.16 | F115: =IF(ISBLANK(Iowa_Retail_Pharmacies!M115),"",Iowa_Retail_Pharmacies!M115) -> 2025-09-17 | G115: =IF(ISBLANK(Iowa_Retail_Pharmacies!P115),"",Iowa_Retail_Pharmacies!P115) -> No | H115: =IF(ISBLANK(Iowa_Retail_Pharmacies!Q115),"",Iowa_Retail_Pharmacies!Q115) -> No
B116: =IF(ISBLANK(Iowa_Retail_Pharmacies!D116),"",Iowa_Retail_Pharmacies!D116) -> 2025-10-29 | C116: =IF(ISBLANK(Iowa_Retail_Pharmacies!E116),"",Iowa_Retail_Pharmacies!E116) -> 90 | D116: =IF(ISBLANK(Iowa_Retail_Pharmacies!H116),"",Iowa_Retail_Pharmacies!H116) -> $0.44 | E116: =IF(ISBLANK(Iowa_Retail_Pharmacies!K116),"",Iowa_Retail_Pharmacies!K116) -> $0.15 | F116: =IF(ISBLANK(Iowa_Retail_Pharmacies!M116),"",Iowa_Retail_Pharmacies!M116) -> 2025-10-22 | G116: =IF(ISBLANK(Iowa_Retail_Pharmacies!P116),"",Iowa_Retail_Pharmacies!P116) -> No | H116: =IF(ISBLANK(Iowa_Retail_Pharmacies!Q116),"",Iowa_Retail_Pharmacies!Q116) -> No
B117: =IF(ISBLANK(Iowa_Retail_Pharmacies!D117),"",Iowa_Retail_Pharmacies!D117) -> 2025-10-24 | C117: =IF(ISBLANK(Iowa_Retail_Pharmacies!E117),"",Iowa_Retail_Pharmacies!E117) -> 30 | D117: =IF(ISBLANK(Iowa_Retail_Pharmacies!H117),"",Iowa_Retail_Pharmacies!H117) -> $0.26 | E117: =IF(ISBLANK(Iowa_Retail_Pharmacies!K117),"",Iowa_Retail_Pharmacies!K117) -> $0.18 | F117: =IF(ISBLANK(Iowa_Retail_Pharmacies!M117),"",Iowa_Retail_Pharmacies!M117) -> 2025-10-22 | G117: =IF(ISBLANK(Iowa_Retail_Pharmacies!P117),"",Iowa_Retail_Pharmacies!P117) -> No | H117: =IF(ISBLANK(Iowa_Retail_Pharmacies!Q117),"",Iowa_Retail_Pharmacies!Q117) -> No
B118: =IF(ISBLANK(Iowa_Retail_Pharmacies!D118),"",Iowa_Retail_Pharmacies!D118) -> 2025-11-11 | C118: =IF(ISBLANK(Iowa_Retail_Pharmacies!E118),"",Iowa_Retail_Pharmacies!E118) -> 90 | D118: =IF(ISBLANK(Iowa_Retail_Pharmacies!H118),"",Iowa_Retail_Pharmacies!H118) -> $0.35 | E118: =IF(ISBLANK(Iowa_Retail_Pharmacies!K118),"",Iowa_Retail_Pharmacies!K118) -> $0.26 | F118: =IF(ISBLANK(Iowa_Retail_Pharmacies!M118),"",Iowa_Retail_Pharmacies!M118) -> 2025-10-22 | G118: =IF(ISBLANK(Iowa_Retail_Pharmacies!P118),"",Iowa_Retail_Pharmacies!P118) -> No | H118: =IF(ISBLANK(Iowa_Retail_Pharmacies!Q118),"",Iowa_Retail_Pharmacies!Q118) -> No
B119: =IF(ISBLANK(Iowa_Retail_Pharmacies!D119),"",Iowa_Retail_Pharmacies!D119) -> 2025-11-15 | C119: =IF(ISBLANK(Iowa_Retail_Pharmacies!E119),"",Iowa_Retail_Pharmacies!E119) -> 90 | D119: =IF(ISBLANK(Iowa_Retail_Pharmacies!H119),"",Iowa_Retail_Pharmacies!H119) -> $0.34 | E119: =IF(ISBLANK(Iowa_Retail_Pharmacies!K119),"",Iowa_Retail_Pharmacies!K119) -> $0.05 | F119: =IF(ISBLANK(Iowa_Retail_Pharmacies!M119),"",Iowa_Retail_Pharmacies!M119) -> 2025-10-22 | G119: =IF(ISBLANK(Iowa_Retail_Pharmacies!P119),"",Iowa_Retail_Pharmacies!P119) -> No | H119: =IF(ISBLANK(Iowa_Retail_Pharmacies!Q119),"",Iowa_Retail_Pharmacies!Q119) -> No
B120: =IF(ISBLANK(Iowa_Retail_Pharmacies!D120),"",Iowa_Retail_Pharmacies!D120) -> 2025-11-01 | C120: =IF(ISBLANK(Iowa_Retail_Pharmacies!E120),"",Iowa_Retail_Pharmacies!E120) -> 90 | D120: =IF(ISBLANK(Iowa_Retail_Pharmacies!H120),"",Iowa_Retail_Pharmacies!H120) -> $0.27 | E120: =IF(ISBLANK(Iowa_Retail_Pharmacies!K120),"",Iowa_Retail_Pharmacies!K120) -> $0.14 | F120: =IF(ISBLANK(Iowa_Retail_Pharmacies!M120),"",Iowa_Retail_Pharmacies!M120) -> 2025-10-22 | G120: =IF(ISBLANK(Iowa_Retail_Pharmacies!P120),"",Iowa_Retail_Pharmacies!P120) -> No | H120: =IF(ISBLANK(Iowa_Retail_Pharmacies!Q120),"",Iowa_Retail_Pharmacies!Q120) -> No
B121: =IF(ISBLANK(Iowa_Retail_Pharmacies!D121),"",Iowa_Retail_Pharmacies!D121) -> 2025-12-17 | C121: =IF(ISBLANK(Iowa_Retail_Pharmacies!E121),"",Iowa_Retail_Pharmacies!E121) -> 30 | D121: =IF(ISBLANK(Iowa_Retail_Pharmacies!H121),"",Iowa_Retail_Pharmacies!H121) -> $0.16 | E121: =IF(ISBLANK(Iowa_Retail_Pharmacies!K121),"",Iowa_Retail_Pharmacies!K121) -> $0.09 | F121: =IF(ISBLANK(Iowa_Retail_Pharmacies!M121),"",Iowa_Retail_Pharmacies!M121) -> 2025-11-19 | G121: =IF(ISBLANK(Iowa_Retail_Pharmacies!P121),"",Iowa_Retail_Pharmacies!P121) -> No | H121: =IF(ISBLANK(Iowa_Retail_Pharmacies!Q121),"",Iowa_Retail_Pharmacies!Q121) -> No
B122: =IF(ISBLANK(Iowa_Retail_Pharmacies!D122),"",Iowa_Retail_Pharmacies!D122) -> 2025-12-03 | C122: =IF(ISBLANK(Iowa_Retail_Pharmacies!E122),"",Iowa_Retail_Pharmacies!E122) -> 90 | D122: =IF(ISBLANK(Iowa_Retail_Pharmacies!H122),"",Iowa_Retail_Pharmacies!H122) -> $0.30 | E122: =IF(ISBLANK(Iowa_Retail_Pharmacies!K122),"",Iowa_Retail_Pharmacies!K122) -> $0.04 | F122: =IF(ISBLANK(Iowa_Retail_Pharmacies!M122),"",Iowa_Retail_Pharmacies!M122) -> 2025-11-19 | G122: =IF(ISBLANK(Iowa_Retail_Pharmacies!P122),"",Iowa_Retail_Pharmacies!P122) -> No | H122: =IF(ISBLANK(Iowa_Retail_Pharmacies!Q122),"",Iowa_Retail_Pharmacies!Q122) -> No
B123: =IF(ISBLANK(Iowa_Retail_Pharmacies!D123),"",Iowa_Retail_Pharmacies!D123) -> 2025-12-08 | C123: =IF(ISBLANK(Iowa_Retail_Pharmacies!E123),"",Iowa_Retail_Pharmacies!E123) -> 30 | D123: =IF(ISBLANK(Iowa_Retail_Pharmacies!H123),"",Iowa_Retail_Pharmacies!H123) -> $0.26 | E123: =IF(ISBLANK(Iowa_Retail_Pharmacies!K123),"",Iowa_Retail_Pharmacies!K123) -> $0.19 | F123: =IF(ISBLANK(Iowa_Retail_Pharmacies!M123),"",Iowa_Retail_Pharmacies!M123) -> 2025-11-19 | G123: =IF(ISBLANK(Iowa_Retail_Pharmacies!P123),"",Iowa_Retail_Pharmacies!P123) -> No | H123: =IF(ISBLANK(Iowa_Retail_Pharmacies!Q123),"",Iowa_Retail_Pharmacies!Q123) -> No
B124: =IF(ISBLANK(Iowa_Retail_Pharmacies!D124),"",Iowa_Retail_Pharmacies!D124) -> 2025-11-25 | C124: =IF(ISBLANK(Iowa_Retail_Pharmacies!E124),"",Iowa_Retail_Pharmacies!E124) -> 30 | D124: =IF(ISBLANK(Iowa_Retail_Pharmacies!H124),"",Iowa_Retail_Pharmacies!H124) -> $1.57 | E124: =IF(ISBLANK(Iowa_Retail_Pharmacies!K124),"",Iowa_Retail_Pharmacies!K124) -> $0.49 | F124: =IF(ISBLANK(Iowa_Retail_Pharmacies!M124),"",Iowa_Retail_Pharmacies!M124) -> 2025-11-19 | G124: =IF(ISBLANK(Iowa_Retail_Pharmacies!P124),"",Iowa_Retail_Pharmacies!P124) -> No | H124: =IF(ISBLANK(Iowa_Retail_Pharmacies!Q124),"",Iowa_Retail_Pharmacies!Q124) -> No
B125: =IF(ISBLANK(Iowa_Retail_Pharmacies!D125),"",Iowa_Retail_Pharmacies!D125) -> 2025-11-11 | C125: =IF(ISBLANK(Iowa_Retail_Pharmacies!E125),"",Iowa_Retail_Pharmacies!E125) -> 90 | D125: =IF(ISBLANK(Iowa_Retail_Pharmacies!H125),"",Iowa_Retail_Pharmacies!H125) -> $0.71 | E125: =IF(ISBLANK(Iowa_Retail_Pharmacies!K125),"",Iowa_Retail_Pharmacies!K125) -> $0.52 | F125: =IF(ISBLANK(Iowa_Retail_Pharmacies!M125),"",Iowa_Retail_Pharmacies!M125) -> 2025-10-22 | G125: =IF(ISBLANK(Iowa_Retail_Pharmacies!P125),"",Iowa_Retail_Pharmacies!P125) -> No | H125: =IF(ISBLANK(Iowa_Retail_Pharmacies!Q125),"",Iowa_Retail_Pharmacies!Q125) -> No
B126: =IF(ISBLANK(Iowa_Retail_Pharmacies!D126),"",Iowa_Retail_Pharmacies!D126) -> 2025-11-11 | C126: =IF(ISBLANK(Iowa_Retail_Pharmacies!E126),"",Iowa_Retail_Pharmacies!E126) -> 90 | D126: =IF(ISBLANK(Iowa_Retail_Pharmacies!H126),"",Iowa_Retail_Pharmacies!H126) -> $0.92 | E126: =IF(ISBLANK(Iowa_Retail_Pharmacies!K126),"",Iowa_Retail_Pharmacies!K126) -> $0.67 | F126: =IF(ISBLANK(Iowa_Retail_Pharmacies!M126),"",Iowa_Retail_Pharmacies!M126) -> 2025-10-22 | G126: =IF(ISBLANK(Iowa_Retail_Pharmacies!P126),"",Iowa_Retail_Pharmacies!P126) -> No | H126: =IF(ISBLANK(Iowa_Retail_Pharmacies!Q126),"",Iowa_Retail_Pharmacies!Q126) -> No
B127: =IF(ISBLANK(Iowa_Retail_Pharmacies!D127),"",Iowa_Retail_Pharmacies!D127) -> 2025-11-28 | C127: =IF(ISBLANK(Iowa_Retail_Pharmacies!E127),"",Iowa_Retail_Pharmacies!E127) -> 90 | D127: =IF(ISBLANK(Iowa_Retail_Pharmacies!H127),"",Iowa_Retail_Pharmacies!H127) -> $0.27 | E127: =IF(ISBLANK(Iowa_Retail_Pharmacies!K127),"",Iowa_Retail_Pharmacies!K127) -> $0.02 | F127: =IF(ISBLANK(Iowa_Retail_Pharmacies!M127),"",Iowa_Retail_Pharmacies!M127) -> 2025-11-19 | G127: =IF(ISBLANK(Iowa_Retail_Pharmacies!P127),"",Iowa_Retail_Pharmacies!P127) -> No | H127: =IF(ISBLANK(Iowa_Retail_Pharmacies!Q127),"",Iowa_Retail_Pharmacies!Q127) -> No
B128: =IF(ISBLANK(Iowa_Retail_Pharmacies!D128),"",Iowa_Retail_Pharmacies!D128) -> 2025-12-22 | C128: =IF(ISBLANK(Iowa_Retail_Pharmacies!E128),"",Iowa_Retail_Pharmacies!E128) -> 30 | D128: =IF(ISBLANK(Iowa_Retail_Pharmacies!H128),"",Iowa_Retail_Pharmacies!H128) -> $1.19 | E128: =IF(ISBLANK(Iowa_Retail_Pharmacies!K128),"",Iowa_Retail_Pharmacies!K128) -> $0.66 | F128: =IF(ISBLANK(Iowa_Retail_Pharmacies!M128),"",Iowa_Retail_Pharmacies!M128) -> 2025-12-17 | G128: =IF(ISBLANK(Iowa_Retail_Pharmacies!P128),"",Iowa_Retail_Pharmacies!P128) -> No | H128: =IF(ISBLANK(Iowa_Retail_Pharmacies!Q128),"",Iowa_Retail_Pharmacies!Q128) -> No
B129: =IF(ISBLANK(Iowa_Retail_Pharmacies!D129),"",Iowa_Retail_Pharmacies!D129) -> 2025-12-17 | C129: =IF(ISBLANK(Iowa_Retail_Pharmacies!E129),"",Iowa_Retail_Pharmacies!E129) -> 30 | D129: =IF(ISBLANK(Iowa_Retail_Pharmacies!H129),"",Iowa_Retail_Pharmacies!H129) -> $0.24 | E129: =IF(ISBLANK(Iowa_Retail_Pharmacies!K129),"",Iowa_Retail_Pharmacies!K129) -> $0.15 | F129: =IF(ISBLANK(Iowa_Retail_Pharmacies!M129),"",Iowa_Retail_Pharmacies!M129) -> 2025-11-19 | G129: =IF(ISBLANK(Iowa_Retail_Pharmacies!P129),"",Iowa_Retail_Pharmacies!P129) -> No | H129: =IF(ISBLANK(Iowa_Retail_Pharmacies!Q129),"",Iowa_Retail_Pharmacies!Q129) -> No
B130: =IF(ISBLANK(Iowa_Retail_Pharmacies!D130),"",Iowa_Retail_Pharmacies!D130) -> 2025-10-06 | C130: =IF(ISBLANK(Iowa_Retail_Pharmacies!E130),"",Iowa_Retail_Pharmacies!E130) -> 90 | D130: =IF(ISBLANK(Iowa_Retail_Pharmacies!H130),"",Iowa_Retail_Pharmacies!H130) -> $0.13 | E130: =IF(ISBLANK(Iowa_Retail_Pharmacies!K130),"",Iowa_Retail_Pharmacies!K130) -> $0.07 | F130: =IF(ISBLANK(Iowa_Retail_Pharmacies!M130),"",Iowa_Retail_Pharmacies!M130) -> 2025-09-17 | G130: =IF(ISBLANK(Iowa_Retail_Pharmacies!P130),"",Iowa_Retail_Pharmacies!P130) -> No | H130: =IF(ISBLANK(Iowa_Retail_Pharmacies!Q130),"",Iowa_Retail_Pharmacies!Q130) -> No
B131: =IF(ISBLANK(Iowa_Retail_Pharmacies!D131),"",Iowa_Retail_Pharmacies!D131) -> 2025-10-09 | C131: =IF(ISBLANK(Iowa_Retail_Pharmacies!E131),"",Iowa_Retail_Pharmacies!E131) -> 90 | D131: =IF(ISBLANK(Iowa_Retail_Pharmacies!H131),"",Iowa_Retail_Pharmacies!H131) -> $0.14 | E131: =IF(ISBLANK(Iowa_Retail_Pharmacies!K131),"",Iowa_Retail_Pharmacies!K131) -> $0.02 | F131: =IF(ISBLANK(Iowa_Retail_Pharmacies!M131),"",Iowa_Retail_Pharmacies!M131) -> 2025-09-17 | G131: =IF(ISBLANK(Iowa_Retail_Pharmacies!P131),"",Iowa_Retail_Pharmacies!P131) -> No | H131: =IF(ISBLANK(Iowa_Retail_Pharmacies!Q131),"",Iowa_Retail_Pharmacies!Q131) -> No
B132: =IF(ISBLANK(Iowa_Retail_Pharmacies!D132),"",Iowa_Retail_Pharmacies!D132) -> 2025-10-22 | C132: =IF(ISBLANK(Iowa_Retail_Pharmacies!E132),"",Iowa_Retail_Pharmacies!E132) -> 10 | D132: =IF(ISBLANK(Iowa_Retail_Pharmacies!H132),"",Iowa_Retail_Pharmacies!H132) -> $0.60 | E132: =IF(ISBLANK(Iowa_Retail_Pharmacies!K132),"",Iowa_Retail_Pharmacies!K132) -> $0.33 | F132: =IF(ISBLANK(Iowa_Retail_Pharmacies!M132),"",Iowa_Retail_Pharmacies!M132) -> 2025-09-17 | G132: =IF(ISBLANK(Iowa_Retail_Pharmacies!P132),"",Iowa_Retail_Pharmacies!P132) -> No | H132: =IF(ISBLANK(Iowa_Retail_Pharmacies!Q132),"",Iowa_Retail_Pharmacies!Q132) -> No
B133: =IF(ISBLANK(Iowa_Retail_Pharmacies!D133),"",Iowa_Retail_Pharmacies!D133) -> 2025-10-22 | C133: =IF(ISBLANK(Iowa_Retail_Pharmacies!E133),"",Iowa_Retail_Pharmacies!E133) -> 90 | D133: =IF(ISBLANK(Iowa_Retail_Pharmacies!H133),"",Iowa_Retail_Pharmacies!H133) -> $0.69 | E133: =IF(ISBLANK(Iowa_Retail_Pharmacies!K133),"",Iowa_Retail_Pharmacies!K133) -> $0.03 | F133: =IF(ISBLANK(Iowa_Retail_Pharmacies!M133),"",Iowa_Retail_Pharmacies!M133) -> 2025-09-17 | G133: =IF(ISBLANK(Iowa_Retail_Pharmacies!P133),"",Iowa_Retail_Pharmacies!P133) -> No | H133: =IF(ISBLANK(Iowa_Retail_Pharmacies!Q133),"",Iowa_Retail_Pharmacies!Q133) -> No
B134: =IF(ISBLANK(Iowa_Retail_Pharmacies!D134),"",Iowa_Retail_Pharmacies!D134) -> 2025-11-10 | C134: =IF(ISBLANK(Iowa_Retail_Pharmacies!E134),"",Iowa_Retail_Pharmacies!E134) -> 90 | D134: =IF(ISBLANK(Iowa_Retail_Pharmacies!H134),"",Iowa_Retail_Pharmacies!H134) -> $0.14 | E134: =IF(ISBLANK(Iowa_Retail_Pharmacies!K134),"",Iowa_Retail_Pharmacies!K134) -> $0.04 | F134: =IF(ISBLANK(Iowa_Retail_Pharmacies!M134),"",Iowa_Retail_Pharmacies!M134) -> 2025-10-22 | G134: =IF(ISBLANK(Iowa_Retail_Pharmacies!P134),"",Iowa_Retail_Pharmacies!P134) -> No | H134: =IF(ISBLANK(Iowa_Retail_Pharmacies!Q134),"",Iowa_Retail_Pharmacies!Q134) -> No
B135: =IF(ISBLANK(Iowa_Retail_Pharmacies!D135),"",Iowa_Retail_Pharmacies!D135) -> 2025-12-03 | C135: =IF(ISBLANK(Iowa_Retail_Pharmacies!E135),"",Iowa_Retail_Pharmacies!E135) -> 270 | D135: =IF(ISBLANK(Iowa_Retail_Pharmacies!H135),"",Iowa_Retail_Pharmacies!H135) -> $0.07 | E135: =IF(ISBLANK(Iowa_Retail_Pharmacies!K135),"",Iowa_Retail_Pharmacies!K135) -> $0.03 | F135: =IF(ISBLANK(Iowa_Retail_Pharmacies!M135),"",Iowa_Retail_Pharmacies!M135) -> 2025-11-19 | G135: =IF(ISBLANK(Iowa_Retail_Pharmacies!P135),"",Iowa_Retail_Pharmacies!P135) -> No | H135: =IF(ISBLANK(Iowa_Retail_Pharmacies!Q135),"",Iowa_Retail_Pharmacies!Q135) -> No
B136: =IF(ISBLANK(Iowa_Retail_Pharmacies!D136),"",Iowa_Retail_Pharmacies!D136) -> 2025-12-15 | C136: =IF(ISBLANK(Iowa_Retail_Pharmacies!E136),"",Iowa_Retail_Pharmacies!E136) -> 30 | D136: =IF(ISBLANK(Iowa_Retail_Pharmacies!H136),"",Iowa_Retail_Pharmacies!H136) -> $0.17 | E136: =IF(ISBLANK(Iowa_Retail_Pharmacies!K136),"",Iowa_Retail_Pharmacies!K136) -> $0.04 | F136: =IF(ISBLANK(Iowa_Retail_Pharmacies!M136),"",Iowa_Retail_Pharmacies!M136) -> 2025-11-19 | G136: =IF(ISBLANK(Iowa_Retail_Pharmacies!P136),"",Iowa_Retail_Pharmacies!P136) -> No | H136: =IF(ISBLANK(Iowa_Retail_Pharmacies!Q136),"",Iowa_Retail_Pharmacies!Q136) -> No
B137: =IF(ISBLANK(Iowa_Retail_Pharmacies!D137),"",Iowa_Retail_Pharmacies!D137) -> 2025-10-02 | C137: =IF(ISBLANK(Iowa_Retail_Pharmacies!E137),"",Iowa_Retail_Pharmacies!E137) -> 10 | D137: =IF(ISBLANK(Iowa_Retail_Pharmacies!H137),"",Iowa_Retail_Pharmacies!H137) -> $1.39 | E137: =IF(ISBLANK(Iowa_Retail_Pharmacies!K137),"",Iowa_Retail_Pharmacies!K137) -> $0.16 | F137: =IF(ISBLANK(Iowa_Retail_Pharmacies!M137),"",Iowa_Retail_Pharmacies!M137) -> 2025-09-17 | G137: =IF(ISBLANK(Iowa_Retail_Pharmacies!P137),"",Iowa_Retail_Pharmacies!P137) -> No | H137: =IF(ISBLANK(Iowa_Retail_Pharmacies!Q137),"",Iowa_Retail_Pharmacies!Q137) -> No
B138: =IF(ISBLANK(Iowa_Retail_Pharmacies!D138),"",Iowa_Retail_Pharmacies!D138) -> 2025-12-11 | C138: =IF(ISBLANK(Iowa_Retail_Pharmacies!E138),"",Iowa_Retail_Pharmacies!E138) -> 10 | D138: =IF(ISBLANK(Iowa_Retail_Pharmacies!H138),"",Iowa_Retail_Pharmacies!H138) -> $0.50 | E138: =IF(ISBLANK(Iowa_Retail_Pharmacies!K138),"",Iowa_Retail_Pharmacies!K138) -> $0.08 | F138: =IF(ISBLANK(Iowa_Retail_Pharmacies!M138),"",Iowa_Retail_Pharmacies!M138) -> 2025-11-19 | G138: =IF(ISBLANK(Iowa_Retail_Pharmacies!P138),"",Iowa_Retail_Pharmacies!P138) -> No | H138: =IF(ISBLANK(Iowa_Retail_Pharmacies!Q138),"",Iowa_Retail_Pharmacies!Q138) -> No
B139: =IF(ISBLANK(Iowa_Retail_Pharmacies!D139),"",Iowa_Retail_Pharmacies!D139) -> 2025-12-15 | C139: =IF(ISBLANK(Iowa_Retail_Pharmacies!E139),"",Iowa_Retail_Pharmacies!E139) -> 20 | D139: =IF(ISBLANK(Iowa_Retail_Pharmacies!H139),"",Iowa_Retail_Pharmacies!H139) -> $1.39 | E139: =IF(ISBLANK(Iowa_Retail_Pharmacies!K139),"",Iowa_Retail_Pharmacies!K139) -> $0.41 | F139: =IF(ISBLANK(Iowa_Retail_Pharmacies!M139),"",Iowa_Retail_Pharmacies!M139) -> 2025-11-19 | G139: =IF(ISBLANK(Iowa_Retail_Pharmacies!P139),"",Iowa_Retail_Pharmacies!P139) -> No | H139: =IF(ISBLANK(Iowa_Retail_Pharmacies!Q139),"",Iowa_Retail_Pharmacies!Q139) -> No
B140: =IF(ISBLANK(Iowa_Retail_Pharmacies!D140),"",Iowa_Retail_Pharmacies!D140) -> 2025-11-04 | C140: =IF(ISBLANK(Iowa_Retail_Pharmacies!E140),"",Iowa_Retail_Pharmacies!E140) -> 4 | D140: =IF(ISBLANK(Iowa_Retail_Pharmacies!H140),"",Iowa_Retail_Pharmacies!H140) -> $1.25 | E140: =IF(ISBLANK(Iowa_Retail_Pharmacies!K140),"",Iowa_Retail_Pharmacies!K140) -> $0.09 | F140: =IF(ISBLANK(Iowa_Retail_Pharmacies!M140),"",Iowa_Retail_Pharmacies!M140) -> 2025-10-22 | G140: =IF(ISBLANK(Iowa_Retail_Pharmacies!P140),"",Iowa_Retail_Pharmacies!P140) -> No | H140: =IF(ISBLANK(Iowa_Retail_Pharmacies!Q140),"",Iowa_Retail_Pharmacies!Q140) -> No
B141: =IF(ISBLANK(Iowa_Retail_Pharmacies!D141),"",Iowa_Retail_Pharmacies!D141) -> 2025-10-02 | C141: =IF(ISBLANK(Iowa_Retail_Pharmacies!E141),"",Iowa_Retail_Pharmacies!E141) -> 12 | D141: =IF(ISBLANK(Iowa_Retail_Pharmacies!H141),"",Iowa_Retail_Pharmacies!H141) -> $0.42 | E141: =IF(ISBLANK(Iowa_Retail_Pharmacies!K141),"",Iowa_Retail_Pharmacies!K141) -> $0.09 | F141: =IF(ISBLANK(Iowa_Retail_Pharmacies!M141),"",Iowa_Retail_Pharmacies!M141) -> 2025-09-17 | G141: =IF(ISBLANK(Iowa_Retail_Pharmacies!P141),"",Iowa_Retail_Pharmacies!P141) -> No | H141: =IF(ISBLANK(Iowa_Retail_Pharmacies!Q141),"",Iowa_Retail_Pharmacies!Q141) -> No
B142: =IF(ISBLANK(Iowa_Retail_Pharmacies!D142),"",Iowa_Retail_Pharmacies!D142) -> 2025-11-13 | C142: =IF(ISBLANK(Iowa_Retail_Pharmacies!E142),"",Iowa_Retail_Pharmacies!E142) -> 20 | D142: =IF(ISBLANK(Iowa_Retail_Pharmacies!H142),"",Iowa_Retail_Pharmacies!H142) -> $0.75 | E142: =IF(ISBLANK(Iowa_Retail_Pharmacies!K142),"",Iowa_Retail_Pharmacies!K142) -> $0.46 | F142: =IF(ISBLANK(Iowa_Retail_Pharmacies!M142),"",Iowa_Retail_Pharmacies!M142) -> 2025-10-22 | G142: =IF(ISBLANK(Iowa_Retail_Pharmacies!P142),"",Iowa_Retail_Pharmacies!P142) -> No | H142: =IF(ISBLANK(Iowa_Retail_Pharmacies!Q142),"",Iowa_Retail_Pharmacies!Q142) -> No
B143: =IF(ISBLANK(Iowa_Retail_Pharmacies!D143),"",Iowa_Retail_Pharmacies!D143) -> 2025-12-11 | C143: =IF(ISBLANK(Iowa_Retail_Pharmacies!E143),"",Iowa_Retail_Pharmacies!E143) -> 6 | D143: =IF(ISBLANK(Iowa_Retail_Pharmacies!H143),"",Iowa_Retail_Pharmacies!H143) -> $1.00 | E143: =IF(ISBLANK(Iowa_Retail_Pharmacies!K143),"",Iowa_Retail_Pharmacies!K143) -> $0.33 | F143: =IF(ISBLANK(Iowa_Retail_Pharmacies!M143),"",Iowa_Retail_Pharmacies!M143) -> 2025-11-19 | G143: =IF(ISBLANK(Iowa_Retail_Pharmacies!P143),"",Iowa_Retail_Pharmacies!P143) -> No | H143: =IF(ISBLANK(Iowa_Retail_Pharmacies!Q143),"",Iowa_Retail_Pharmacies!Q143) -> No
B144: =IF(ISBLANK(Iowa_Retail_Pharmacies!D144),"",Iowa_Retail_Pharmacies!D144) -> 2025-12-08 | C144: =IF(ISBLANK(Iowa_Retail_Pharmacies!E144),"",Iowa_Retail_Pharmacies!E144) -> 91 | D144: =IF(ISBLANK(Iowa_Retail_Pharmacies!H144),"",Iowa_Retail_Pharmacies!H144) -> $0.32 | E144: =IF(ISBLANK(Iowa_Retail_Pharmacies!K144),"",Iowa_Retail_Pharmacies!K144) -> $0.19 | F144: =IF(ISBLANK(Iowa_Retail_Pharmacies!M144),"",Iowa_Retail_Pharmacies!M144) -> 2025-11-19 | G144: =IF(ISBLANK(Iowa_Retail_Pharmacies!P144),"",Iowa_Retail_Pharmacies!P144) -> No | H144: =IF(ISBLANK(Iowa_Retail_Pharmacies!Q144),"",Iowa_Retail_Pharmacies!Q144) -> No
B145: =IF(ISBLANK(Iowa_Retail_Pharmacies!D145),"",Iowa_Retail_Pharmacies!D145) -> 2025-12-19 | C145: =IF(ISBLANK(Iowa_Retail_Pharmacies!E145),"",Iowa_Retail_Pharmacies!E145) -> 60 | D145: =IF(ISBLANK(Iowa_Retail_Pharmacies!H145),"",Iowa_Retail_Pharmacies!H145) -> $0.36 | E145: =IF(ISBLANK(Iowa_Retail_Pharmacies!K145),"",Iowa_Retail_Pharmacies!K145) -> $0.28 | F145: =IF(ISBLANK(Iowa_Retail_Pharmacies!M145),"",Iowa_Retail_Pharmacies!M145) -> 2025-12-17 | G145: =IF(ISBLANK(Iowa_Retail_Pharmacies!P145),"",Iowa_Retail_Pharmacies!P145) -> No | H145: =IF(ISBLANK(Iowa_Retail_Pharmacies!Q145),"",Iowa_Retail_Pharmacies!Q145) -> No
B146: =IF(ISBLANK(Iowa_Retail_Pharmacies!D146),"",Iowa_Retail_Pharmacies!D146) -> 2025-11-14 | C146: =IF(ISBLANK(Iowa_Retail_Pharmacies!E146),"",Iowa_Retail_Pharmacies!E146) -> 60 | D146: =IF(ISBLANK(Iowa_Retail_Pharmacies!H146),"",Iowa_Retail_Pharmacies!H146) -> $0.36 | E146: =IF(ISBLANK(Iowa_Retail_Pharmacies!K146),"",Iowa_Retail_Pharmacies!K146) -> $0.25 | F146: =IF(ISBLANK(Iowa_Retail_Pharmacies!M146),"",Iowa_Retail_Pharmacies!M146) -> 2025-10-22 | G146: =IF(ISBLANK(Iowa_Retail_Pharmacies!P146),"",Iowa_Retail_Pharmacies!P146) -> No | H146: =IF(ISBLANK(Iowa_Retail_Pharmacies!Q146),"",Iowa_Retail_Pharmacies!Q146) -> No
B147: =IF(ISBLANK(Iowa_Retail_Pharmacies!D147),"",Iowa_Retail_Pharmacies!D147) -> 2025-10-22 | C147: =IF(ISBLANK(Iowa_Retail_Pharmacies!E147),"",Iowa_Retail_Pharmacies!E147) -> 6 | D147: =IF(ISBLANK(Iowa_Retail_Pharmacies!H147),"",Iowa_Retail_Pharmacies!H147) -> $0.96 | E147: =IF(ISBLANK(Iowa_Retail_Pharmacies!K147),"",Iowa_Retail_Pharmacies!K147) -> $0.36 | F147: =IF(ISBLANK(Iowa_Retail_Pharmacies!M147),"",Iowa_Retail_Pharmacies!M147) -> 2025-09-17 | G147: =IF(ISBLANK(Iowa_Retail_Pharmacies!P147),"",Iowa_Retail_Pharmacies!P147) -> No | H147: =IF(ISBLANK(Iowa_Retail_Pharmacies!Q147),"",Iowa_Retail_Pharmacies!Q147) -> No
B148: =IF(ISBLANK(Iowa_Retail_Pharmacies!D148),"",Iowa_Retail_Pharmacies!D148) -> 2025-10-24 | C148: =IF(ISBLANK(Iowa_Retail_Pharmacies!E148),"",Iowa_Retail_Pharmacies!E148) -> 120 | D148: =IF(ISBLANK(Iowa_Retail_Pharmacies!H148),"",Iowa_Retail_Pharmacies!H148) -> $0.07 | E148: =IF(ISBLANK(Iowa_Retail_Pharmacies!K148),"",Iowa_Retail_Pharmacies!K148) -> $0.03 | F148: =IF(ISBLANK(Iowa_Retail_Pharmacies!M148),"",Iowa_Retail_Pharmacies!M148) -> 2025-10-22 | G148: =IF(ISBLANK(Iowa_Retail_Pharmacies!P148),"",Iowa_Retail_Pharmacies!P148) -> No | H148: =IF(ISBLANK(Iowa_Retail_Pharmacies!Q148),"",Iowa_Retail_Pharmacies!Q148) -> No
B149: =IF(ISBLANK(Iowa_Retail_Pharmacies!D149),"",Iowa_Retail_Pharmacies!D149) -> 2025-12-10 | C149: =IF(ISBLANK(Iowa_Retail_Pharmacies!E149),"",Iowa_Retail_Pharmacies!E149) -> 120 | D149: =IF(ISBLANK(Iowa_Retail_Pharmacies!H149),"",Iowa_Retail_Pharmacies!H149) -> $0.34 | E149: =IF(ISBLANK(Iowa_Retail_Pharmacies!K149),"",Iowa_Retail_Pharmacies!K149) -> $0.16 | F149: =IF(ISBLANK(Iowa_Retail_Pharmacies!M149),"",Iowa_Retail_Pharmacies!M149) -> 2025-11-19 | G149: =IF(ISBLANK(Iowa_Retail_Pharmacies!P149),"",Iowa_Retail_Pharmacies!P149) -> No | H149: =IF(ISBLANK(Iowa_Retail_Pharmacies!Q149),"",Iowa_Retail_Pharmacies!Q149) -> No
B150: =IF(ISBLANK(Iowa_Retail_Pharmacies!D150),"",Iowa_Retail_Pharmacies!D150) -> 2025-10-20 | C150: =IF(ISBLANK(Iowa_Retail_Pharmacies!E150),"",Iowa_Retail_Pharmacies!E150) -> 15 | D150: =IF(ISBLANK(Iowa_Retail_Pharmacies!H150),"",Iowa_Retail_Pharmacies!H150) -> $0.18 | E150: =IF(ISBLANK(Iowa_Retail_Pharmacies!K150),"",Iowa_Retail_Pharmacies!K150) -> $0.06 | F150: =IF(ISBLANK(Iowa_Retail_Pharmacies!M150),"",Iowa_Retail_Pharmacies!M150) -> 2025-09-17 | G150: =IF(ISBLANK(Iowa_Retail_Pharmacies!P150),"",Iowa_Retail_Pharmacies!P150) -> No | H150: =IF(ISBLANK(Iowa_Retail_Pharmacies!Q150),"",Iowa_Retail_Pharmacies!Q150) -> No
B151: =IF(ISBLANK(Iowa_Retail_Pharmacies!D151),"",Iowa_Retail_Pharmacies!D151) -> 2025-10-10 | C151: =IF(ISBLANK(Iowa_Retail_Pharmacies!E151),"",Iowa_Retail_Pharmacies!E151) -> 30 | D151: =IF(ISBLANK(Iowa_Retail_Pharmacies!H151),"",Iowa_Retail_Pharmacies!H151) -> $0.96 | E151: =IF(ISBLANK(Iowa_Retail_Pharmacies!K151),"",Iowa_Retail_Pharmacies!K151) -> $0.52 | F151: =IF(ISBLANK(Iowa_Retail_Pharmacies!M151),"",Iowa_Retail_Pharmacies!M151) -> 2025-09-17 | G151: =IF(ISBLANK(Iowa_Retail_Pharmacies!P151),"",Iowa_Retail_Pharmacies!P151) -> No | H151: =IF(ISBLANK(Iowa_Retail_Pharmacies!Q151),"",Iowa_Retail_Pharmacies!Q151) -> No
B152: =IF(ISBLANK(Iowa_Retail_Pharmacies!D152),"",Iowa_Retail_Pharmacies!D152) -> 2025-11-10 | C152: =IF(ISBLANK(Iowa_Retail_Pharmacies!E152),"",Iowa_Retail_Pharmacies!E152) -> 120 | D152: =IF(ISBLANK(Iowa_Retail_Pharmacies!H152),"",Iowa_Retail_Pharmacies!H152) -> $0.34 | E152: =IF(ISBLANK(Iowa_Retail_Pharmacies!K152),"",Iowa_Retail_Pharmacies!K152) -> $0.16 | F152: =IF(ISBLANK(Iowa_Retail_Pharmacies!M152),"",Iowa_Retail_Pharmacies!M152) -> 2025-10-22 | G152: =IF(ISBLANK(Iowa_Retail_Pharmacies!P152),"",Iowa_Retail_Pharmacies!P152) -> No | H152: =IF(ISBLANK(Iowa_Retail_Pharmacies!Q152),"",Iowa_Retail_Pharmacies!Q152) -> No
B153: =IF(ISBLANK(Iowa_Retail_Pharmacies!D153),"",Iowa_Retail_Pharmacies!D153) -> 2025-11-10 | C153: =IF(ISBLANK(Iowa_Retail_Pharmacies!E153),"",Iowa_Retail_Pharmacies!E153) -> 30 | D153: =IF(ISBLANK(Iowa_Retail_Pharmacies!H153),"",Iowa_Retail_Pharmacies!H153) -> $0.96 | E153: =IF(ISBLANK(Iowa_Retail_Pharmacies!K153),"",Iowa_Retail_Pharmacies!K153) -> $0.47 | F153: =IF(ISBLANK(Iowa_Retail_Pharmacies!M153),"",Iowa_Retail_Pharmacies!M153) -> 2025-10-22 | G153: =IF(ISBLANK(Iowa_Retail_Pharmacies!P153),"",Iowa_Retail_Pharmacies!P153) -> No | H153: =IF(ISBLANK(Iowa_Retail_Pharmacies!Q153),"",Iowa_Retail_Pharmacies!Q153) -> No
B154: =IF(ISBLANK(Iowa_Retail_Pharmacies!D154),"",Iowa_Retail_Pharmacies!D154) -> 2025-10-24 | C154: =IF(ISBLANK(Iowa_Retail_Pharmacies!E154),"",Iowa_Retail_Pharmacies!E154) -> 20 | D154: =IF(ISBLANK(Iowa_Retail_Pharmacies!H154),"",Iowa_Retail_Pharmacies!H154) -> $0.44 | E154: =IF(ISBLANK(Iowa_Retail_Pharmacies!K154),"",Iowa_Retail_Pharmacies!K154) -> $0.24 | F154: =IF(ISBLANK(Iowa_Retail_Pharmacies!M154),"",Iowa_Retail_Pharmacies!M154) -> 2025-10-22 | G154: =IF(ISBLANK(Iowa_Retail_Pharmacies!P154),"",Iowa_Retail_Pharmacies!P154) -> No | H154: =IF(ISBLANK(Iowa_Retail_Pharmacies!Q154),"",Iowa_Retail_Pharmacies!Q154) -> No
B155: =IF(ISBLANK(Iowa_Retail_Pharmacies!D155),"",Iowa_Retail_Pharmacies!D155) -> 2025-12-10 | C155: =IF(ISBLANK(Iowa_Retail_Pharmacies!E155),"",Iowa_Retail_Pharmacies!E155) -> 30 | D155: =IF(ISBLANK(Iowa_Retail_Pharmacies!H155),"",Iowa_Retail_Pharmacies!H155) -> $0.96 | E155: =IF(ISBLANK(Iowa_Retail_Pharmacies!K155),"",Iowa_Retail_Pharmacies!K155) -> $0.44 | F155: =IF(ISBLANK(Iowa_Retail_Pharmacies!M155),"",Iowa_Retail_Pharmacies!M155) -> 2025-11-19 | G155: =IF(ISBLANK(Iowa_Retail_Pharmacies!P155),"",Iowa_Retail_Pharmacies!P155) -> No | H155: =IF(ISBLANK(Iowa_Retail_Pharmacies!Q155),"",Iowa_Retail_Pharmacies!Q155) -> No
B156: =IF(ISBLANK(Iowa_Retail_Pharmacies!D156),"",Iowa_Retail_Pharmacies!D156) -> 2025-10-24 | C156: =IF(ISBLANK(Iowa_Retail_Pharmacies!E156),"",Iowa_Retail_Pharmacies!E156) -> 30 | D156: =IF(ISBLANK(Iowa_Retail_Pharmacies!H156),"",Iowa_Retail_Pharmacies!H156) -> $0.18 | E156: =IF(ISBLANK(Iowa_Retail_Pharmacies!K156),"",Iowa_Retail_Pharmacies!K156) -> $0.06 | F156: =IF(ISBLANK(Iowa_Retail_Pharmacies!M156),"",Iowa_Retail_Pharmacies!M156) -> 2025-10-22 | G156: =IF(ISBLANK(Iowa_Retail_Pharmacies!P156),"",Iowa_Retail_Pharmacies!P156) -> No | H156: =IF(ISBLANK(Iowa_Retail_Pharmacies!Q156),"",Iowa_Retail_Pharmacies!Q156) -> No
B157: =IF(ISBLANK(Iowa_Retail_Pharmacies!D157),"",Iowa_Retail_Pharmacies!D157) -> 2025-12-26 | C157: =IF(ISBLANK(Iowa_Retail_Pharmacies!E157),"",Iowa_Retail_Pharmacies!E157) -> 30 | D157: =IF(ISBLANK(Iowa_Retail_Pharmacies!H157),"",Iowa_Retail_Pharmacies!H157) -> $1.04 | E157: =IF(ISBLANK(Iowa_Retail_Pharmacies!K157),"",Iowa_Retail_Pharmacies!K157) -> $0.51 | F157: =IF(ISBLANK(Iowa_Retail_Pharmacies!M157),"",Iowa_Retail_Pharmacies!M157) -> 2025-12-17 | G157: =IF(ISBLANK(Iowa_Retail_Pharmacies!P157),"",Iowa_Retail_Pharmacies!P157) -> No | H157: =IF(ISBLANK(Iowa_Retail_Pharmacies!Q157),"",Iowa_Retail_Pharmacies!Q157) -> No
B158: =IF(ISBLANK(Iowa_Retail_Pharmacies!D158),"",Iowa_Retail_Pharmacies!D158) -> 2025-10-10 | C158: =IF(ISBLANK(Iowa_Retail_Pharmacies!E158),"",Iowa_Retail_Pharmacies!E158) -> 120 | D158: =IF(ISBLANK(Iowa_Retail_Pharmacies!H158),"",Iowa_Retail_Pharmacies!H158) -> $0.34 | E158: =IF(ISBLANK(Iowa_Retail_Pharmacies!K158),"",Iowa_Retail_Pharmacies!K158) -> $0.15 | F158: =IF(ISBLANK(Iowa_Retail_Pharmacies!M158),"",Iowa_Retail_Pharmacies!M158) -> 2025-09-17 | G158: =IF(ISBLANK(Iowa_Retail_Pharmacies!P158),"",Iowa_Retail_Pharmacies!P158) -> No | H158: =IF(ISBLANK(Iowa_Retail_Pharmacies!Q158),"",Iowa_Retail_Pharmacies!Q158) -> No
B159: =IF(ISBLANK(Iowa_Retail_Pharmacies!D159),"",Iowa_Retail_Pharmacies!D159) -> 2025-12-26 | C159: =IF(ISBLANK(Iowa_Retail_Pharmacies!E159),"",Iowa_Retail_Pharmacies!E159) -> 60 | D159: =IF(ISBLANK(Iowa_Retail_Pharmacies!H159),"",Iowa_Retail_Pharmacies!H159) -> $0.55 | E159: =IF(ISBLANK(Iowa_Retail_Pharmacies!K159),"",Iowa_Retail_Pharmacies!K159) -> $0.28 | F159: =IF(ISBLANK(Iowa_Retail_Pharmacies!M159),"",Iowa_Retail_Pharmacies!M159) -> 2025-12-17 | G159: =IF(ISBLANK(Iowa_Retail_Pharmacies!P159),"",Iowa_Retail_Pharmacies!P159) -> No | H159: =IF(ISBLANK(Iowa_Retail_Pharmacies!Q159),"",Iowa_Retail_Pharmacies!Q159) -> No
B160: =IF(ISBLANK(Iowa_Retail_Pharmacies!D160),"",Iowa_Retail_Pharmacies!D160) -> 2025-10-29 | C160: =IF(ISBLANK(Iowa_Retail_Pharmacies!E160),"",Iowa_Retail_Pharmacies!E160) -> 30 | D160: =IF(ISBLANK(Iowa_Retail_Pharmacies!H160),"",Iowa_Retail_Pharmacies!H160) -> $0.40 | E160: =IF(ISBLANK(Iowa_Retail_Pharmacies!K160),"",Iowa_Retail_Pharmacies!K160) -> $0.22 | F160: =IF(ISBLANK(Iowa_Retail_Pharmacies!M160),"",Iowa_Retail_Pharmacies!M160) -> 2025-10-22 | G160: =IF(ISBLANK(Iowa_Retail_Pharmacies!P160),"",Iowa_Retail_Pharmacies!P160) -> No | H160: =IF(ISBLANK(Iowa_Retail_Pharmacies!Q160),"",Iowa_Retail_Pharmacies!Q160) -> No
B161: =IF(ISBLANK(Iowa_Retail_Pharmacies!D161),"",Iowa_Retail_Pharmacies!D161) -> 2025-10-29 | C161: =IF(ISBLANK(Iowa_Retail_Pharmacies!E161),"",Iowa_Retail_Pharmacies!E161) -> 25 | D161: =IF(ISBLANK(Iowa_Retail_Pharmacies!H161),"",Iowa_Retail_Pharmacies!H161) -> $0.61 | E161: =IF(ISBLANK(Iowa_Retail_Pharmacies!K161),"",Iowa_Retail_Pharmacies!K161) -> $0.12 | F161: =IF(ISBLANK(Iowa_Retail_Pharmacies!M161),"",Iowa_Retail_Pharmacies!M161) -> 2025-10-22 | G161: =IF(ISBLANK(Iowa_Retail_Pharmacies!P161),"",Iowa_Retail_Pharmacies!P161) -> No | H161: =IF(ISBLANK(Iowa_Retail_Pharmacies!Q161),"",Iowa_Retail_Pharmacies!Q161) -> No
B162: =IF(ISBLANK(Iowa_Retail_Pharmacies!D162),"",Iowa_Retail_Pharmacies!D162) -> 2025-12-01 | C162: =IF(ISBLANK(Iowa_Retail_Pharmacies!E162),"",Iowa_Retail_Pharmacies!E162) -> 60 | D162: =IF(ISBLANK(Iowa_Retail_Pharmacies!H162),"",Iowa_Retail_Pharmacies!H162) -> $0.08 | E162: =IF(ISBLANK(Iowa_Retail_Pharmacies!K162),"",Iowa_Retail_Pharmacies!K162) -> $0.05 | F162: =IF(ISBLANK(Iowa_Retail_Pharmacies!M162),"",Iowa_Retail_Pharmacies!M162) -> 2025-11-19 | G162: =IF(ISBLANK(Iowa_Retail_Pharmacies!P162),"",Iowa_Retail_Pharmacies!P162) -> No | H162: =IF(ISBLANK(Iowa_Retail_Pharmacies!Q162),"",Iowa_Retail_Pharmacies!Q162) -> No
B163: =IF(ISBLANK(Iowa_Retail_Pharmacies!D163),"",Iowa_Retail_Pharmacies!D163) -> 2025-11-05 | C163: =IF(ISBLANK(Iowa_Retail_Pharmacies!E163),"",Iowa_Retail_Pharmacies!E163) -> 30 | D163: =IF(ISBLANK(Iowa_Retail_Pharmacies!H163),"",Iowa_Retail_Pharmacies!H163) -> $0.07 | E163: =IF(ISBLANK(Iowa_Retail_Pharmacies!K163),"",Iowa_Retail_Pharmacies!K163) -> $0.04 | F163: =IF(ISBLANK(Iowa_Retail_Pharmacies!M163),"",Iowa_Retail_Pharmacies!M163) -> 2025-10-22 | G163: =IF(ISBLANK(Iowa_Retail_Pharmacies!P163),"",Iowa_Retail_Pharmacies!P163) -> No | H163: =IF(ISBLANK(Iowa_Retail_Pharmacies!Q163),"",Iowa_Retail_Pharmacies!Q163) -> No
B164: =IF(ISBLANK(Iowa_Retail_Pharmacies!D164),"",Iowa_Retail_Pharmacies!D164) -> 2025-11-13 | C164: =IF(ISBLANK(Iowa_Retail_Pharmacies!E164),"",Iowa_Retail_Pharmacies!E164) -> 135 | D164: =IF(ISBLANK(Iowa_Retail_Pharmacies!H164),"",Iowa_Retail_Pharmacies!H164) -> $0.23 | E164: =IF(ISBLANK(Iowa_Retail_Pharmacies!K164),"",Iowa_Retail_Pharmacies!K164) -> $0.08 | F164: =IF(ISBLANK(Iowa_Retail_Pharmacies!M164),"",Iowa_Retail_Pharmacies!M164) -> 2025-10-22 | G164: =IF(ISBLANK(Iowa_Retail_Pharmacies!P164),"",Iowa_Retail_Pharmacies!P164) -> No | H164: =IF(ISBLANK(Iowa_Retail_Pharmacies!Q164),"",Iowa_Retail_Pharmacies!Q164) -> No
B165: =IF(ISBLANK(Iowa_Retail_Pharmacies!D165),"",Iowa_Retail_Pharmacies!D165) -> 2025-10-06 | C165: =IF(ISBLANK(Iowa_Retail_Pharmacies!E165),"",Iowa_Retail_Pharmacies!E165) -> 30 | D165: =IF(ISBLANK(Iowa_Retail_Pharmacies!H165),"",Iowa_Retail_Pharmacies!H165) -> $0.07 | E165: =IF(ISBLANK(Iowa_Retail_Pharmacies!K165),"",Iowa_Retail_Pharmacies!K165) -> $0.04 | F165: =IF(ISBLANK(Iowa_Retail_Pharmacies!M165),"",Iowa_Retail_Pharmacies!M165) -> 2025-09-17 | G165: =IF(ISBLANK(Iowa_Retail_Pharmacies!P165),"",Iowa_Retail_Pharmacies!P165) -> No | H165: =IF(ISBLANK(Iowa_Retail_Pharmacies!Q165),"",Iowa_Retail_Pharmacies!Q165) -> No
B166: =IF(ISBLANK(Iowa_Retail_Pharmacies!D166),"",Iowa_Retail_Pharmacies!D166) -> 2025-12-31 | C166: =IF(ISBLANK(Iowa_Retail_Pharmacies!E166),"",Iowa_Retail_Pharmacies!E166) -> 30 | D166: =IF(ISBLANK(Iowa_Retail_Pharmacies!H166),"",Iowa_Retail_Pharmacies!H166) -> $0.07 | E166: =IF(ISBLANK(Iowa_Retail_Pharmacies!K166),"",Iowa_Retail_Pharmacies!K166) -> $0.04 | F166: =IF(ISBLANK(Iowa_Retail_Pharmacies!M166),"",Iowa_Retail_Pharmacies!M166) -> 2025-12-17 | G166: =IF(ISBLANK(Iowa_Retail_Pharmacies!P166),"",Iowa_Retail_Pharmacies!P166) -> No | H166: =IF(ISBLANK(Iowa_Retail_Pharmacies!Q166),"",Iowa_Retail_Pharmacies!Q166) -> No
B167: =IF(ISBLANK(Iowa_Retail_Pharmacies!D167),"",Iowa_Retail_Pharmacies!D167) -> 2025-12-03 | C167: =IF(ISBLANK(Iowa_Retail_Pharmacies!E167),"",Iowa_Retail_Pharmacies!E167) -> 30 | D167: =IF(ISBLANK(Iowa_Retail_Pharmacies!H167),"",Iowa_Retail_Pharmacies!H167) -> $0.07 | E167: =IF(ISBLANK(Iowa_Retail_Pharmacies!K167),"",Iowa_Retail_Pharmacies!K167) -> $0.04 | F167: =IF(ISBLANK(Iowa_Retail_Pharmacies!M167),"",Iowa_Retail_Pharmacies!M167) -> 2025-11-19 | G167: =IF(ISBLANK(Iowa_Retail_Pharmacies!P167),"",Iowa_Retail_Pharmacies!P167) -> No | H167: =IF(ISBLANK(Iowa_Retail_Pharmacies!Q167),"",Iowa_Retail_Pharmacies!Q167) -> No
B168: =IF(ISBLANK(Iowa_Retail_Pharmacies!D168),"",Iowa_Retail_Pharmacies!D168) -> 2025-10-02 | C168: =IF(ISBLANK(Iowa_Retail_Pharmacies!E168),"",Iowa_Retail_Pharmacies!E168) -> 20 | D168: =IF(ISBLANK(Iowa_Retail_Pharmacies!H168),"",Iowa_Retail_Pharmacies!H168) -> $0.13 | E168: =IF(ISBLANK(Iowa_Retail_Pharmacies!K168),"",Iowa_Retail_Pharmacies!K168) -> $0.03 | F168: =IF(ISBLANK(Iowa_Retail_Pharmacies!M168),"",Iowa_Retail_Pharmacies!M168) -> 2025-09-17 | G168: =IF(ISBLANK(Iowa_Retail_Pharmacies!P168),"",Iowa_Retail_Pharmacies!P168) -> No | H168: =IF(ISBLANK(Iowa_Retail_Pharmacies!Q168),"",Iowa_Retail_Pharmacies!Q168) -> No
B169: =IF(ISBLANK(Iowa_Retail_Pharmacies!D169),"",Iowa_Retail_Pharmacies!D169) -> 2025-11-24 | C169: =IF(ISBLANK(Iowa_Retail_Pharmacies!E169),"",Iowa_Retail_Pharmacies!E169) -> 15 | D169: =IF(ISBLANK(Iowa_Retail_Pharmacies!H169),"",Iowa_Retail_Pharmacies!H169) -> $3.49 | E169: =IF(ISBLANK(Iowa_Retail_Pharmacies!K169),"",Iowa_Retail_Pharmacies!K169) -> $0.07 | F169: =IF(ISBLANK(Iowa_Retail_Pharmacies!M169),"",Iowa_Retail_Pharmacies!M169) -> 2025-11-19 | G169: =IF(ISBLANK(Iowa_Retail_Pharmacies!P169),"",Iowa_Retail_Pharmacies!P169) -> No | H169: =IF(ISBLANK(Iowa_Retail_Pharmacies!Q169),"",Iowa_Retail_Pharmacies!Q169) -> No
B170: =IF(ISBLANK(Iowa_Retail_Pharmacies!D170),"",Iowa_Retail_Pharmacies!D170) -> 2025-11-24 | C170: =IF(ISBLANK(Iowa_Retail_Pharmacies!E170),"",Iowa_Retail_Pharmacies!E170) -> 84 | D170: =IF(ISBLANK(Iowa_Retail_Pharmacies!H170),"",Iowa_Retail_Pharmacies!H170) -> $0.09 | E170: =IF(ISBLANK(Iowa_Retail_Pharmacies!K170),"",Iowa_Retail_Pharmacies!K170) -> $0.03 | F170: =IF(ISBLANK(Iowa_Retail_Pharmacies!M170),"",Iowa_Retail_Pharmacies!M170) -> 2025-11-19 | G170: =IF(ISBLANK(Iowa_Retail_Pharmacies!P170),"",Iowa_Retail_Pharmacies!P170) -> No | H170: =IF(ISBLANK(Iowa_Retail_Pharmacies!Q170),"",Iowa_Retail_Pharmacies!Q170) -> No
B171: =IF(ISBLANK(Iowa_Retail_Pharmacies!D171),"",Iowa_Retail_Pharmacies!D171) -> 2025-12-29 | C171: =IF(ISBLANK(Iowa_Retail_Pharmacies!E171),"",Iowa_Retail_Pharmacies!E171) -> 30 | D171: =IF(ISBLANK(Iowa_Retail_Pharmacies!H171),"",Iowa_Retail_Pharmacies!H171) -> $0.07 | E171: =IF(ISBLANK(Iowa_Retail_Pharmacies!K171),"",Iowa_Retail_Pharmacies!K171) -> $0.03 | F171: =IF(ISBLANK(Iowa_Retail_Pharmacies!M171),"",Iowa_Retail_Pharmacies!M171) -> 2025-12-17 | G171: =IF(ISBLANK(Iowa_Retail_Pharmacies!P171),"",Iowa_Retail_Pharmacies!P171) -> No | H171: =IF(ISBLANK(Iowa_Retail_Pharmacies!Q171),"",Iowa_Retail_Pharmacies!Q171) -> No
B172: =IF(ISBLANK(Iowa_Retail_Pharmacies!D172),"",Iowa_Retail_Pharmacies!D172) -> 2025-11-24 | C172: =IF(ISBLANK(Iowa_Retail_Pharmacies!E172),"",Iowa_Retail_Pharmacies!E172) -> 30 | D172: =IF(ISBLANK(Iowa_Retail_Pharmacies!H172),"",Iowa_Retail_Pharmacies!H172) -> $0.09 | E172: =IF(ISBLANK(Iowa_Retail_Pharmacies!K172),"",Iowa_Retail_Pharmacies!K172) -> $0.03 | F172: =IF(ISBLANK(Iowa_Retail_Pharmacies!M172),"",Iowa_Retail_Pharmacies!M172) -> 2025-11-19 | G172: =IF(ISBLANK(Iowa_Retail_Pharmacies!P172),"",Iowa_Retail_Pharmacies!P172) -> No | H172: =IF(ISBLANK(Iowa_Retail_Pharmacies!Q172),"",Iowa_Retail_Pharmacies!Q172) -> No
B173: =IF(ISBLANK(Iowa_Retail_Pharmacies!D173),"",Iowa_Retail_Pharmacies!D173) -> 2025-12-01 | C173: =IF(ISBLANK(Iowa_Retail_Pharmacies!E173),"",Iowa_Retail_Pharmacies!E173) -> 8.5 | D173: =IF(ISBLANK(Iowa_Retail_Pharmacies!H173),"",Iowa_Retail_Pharmacies!H173) -> $4.52 | E173: =IF(ISBLANK(Iowa_Retail_Pharmacies!K173),"",Iowa_Retail_Pharmacies!K173) -> $1.94 | F173: =IF(ISBLANK(Iowa_Retail_Pharmacies!M173),"",Iowa_Retail_Pharmacies!M173) -> 2025-11-19 | G173: =IF(ISBLANK(Iowa_Retail_Pharmacies!P173),"",Iowa_Retail_Pharmacies!P173) -> No | H173: =IF(ISBLANK(Iowa_Retail_Pharmacies!Q173),"",Iowa_Retail_Pharmacies!Q173) -> No
B174: =IF(ISBLANK(Iowa_Retail_Pharmacies!D174),"",Iowa_Retail_Pharmacies!D174) -> 2025-10-01 | C174: =IF(ISBLANK(Iowa_Retail_Pharmacies!E174),"",Iowa_Retail_Pharmacies!E174) -> 75 | D174: =IF(ISBLANK(Iowa_Retail_Pharmacies!H174),"",Iowa_Retail_Pharmacies!H174) -> $0.09 | E174: =IF(ISBLANK(Iowa_Retail_Pharmacies!K174),"",Iowa_Retail_Pharmacies!K174) -> $0.04 | F174: =IF(ISBLANK(Iowa_Retail_Pharmacies!M174),"",Iowa_Retail_Pharmacies!M174) -> 2025-09-17 | G174: =IF(ISBLANK(Iowa_Retail_Pharmacies!P174),"",Iowa_Retail_Pharmacies!P174) -> No | H174: =IF(ISBLANK(Iowa_Retail_Pharmacies!Q174),"",Iowa_Retail_Pharmacies!Q174) -> No
B175: =IF(ISBLANK(Iowa_Retail_Pharmacies!D175),"",Iowa_Retail_Pharmacies!D175) -> 2025-12-05 | C175: =IF(ISBLANK(Iowa_Retail_Pharmacies!E175),"",Iowa_Retail_Pharmacies!E175) -> 60 | D175: =IF(ISBLANK(Iowa_Retail_Pharmacies!H175),"",Iowa_Retail_Pharmacies!H175) -> $0.09 | E175: =IF(ISBLANK(Iowa_Retail_Pharmacies!K175),"",Iowa_Retail_Pharmacies!K175) -> $0.03 | F175: =IF(ISBLANK(Iowa_Retail_Pharmacies!M175),"",Iowa_Retail_Pharmacies!M175) -> 2025-11-19 | G175: =IF(ISBLANK(Iowa_Retail_Pharmacies!P175),"",Iowa_Retail_Pharmacies!P175) -> No | H175: =IF(ISBLANK(Iowa_Retail_Pharmacies!Q175),"",Iowa_Retail_Pharmacies!Q175) -> No
B176: =IF(ISBLANK(Iowa_Retail_Pharmacies!D176),"",Iowa_Retail_Pharmacies!D176) -> 2025-10-30 | C176: =IF(ISBLANK(Iowa_Retail_Pharmacies!E176),"",Iowa_Retail_Pharmacies!E176) -> 60 | D176: =IF(ISBLANK(Iowa_Retail_Pharmacies!H176),"",Iowa_Retail_Pharmacies!H176) -> $0.41 | E176: =IF(ISBLANK(Iowa_Retail_Pharmacies!K176),"",Iowa_Retail_Pharmacies!K176) -> $0.05 | F176: =IF(ISBLANK(Iowa_Retail_Pharmacies!M176),"",Iowa_Retail_Pharmacies!M176) -> 2025-10-22 | G176: =IF(ISBLANK(Iowa_Retail_Pharmacies!P176),"",Iowa_Retail_Pharmacies!P176) -> No | H176: =IF(ISBLANK(Iowa_Retail_Pharmacies!Q176),"",Iowa_Retail_Pharmacies!Q176) -> No
B177: =IF(ISBLANK(Iowa_Retail_Pharmacies!D177),"",Iowa_Retail_Pharmacies!D177) -> 2025-10-30 | C177: =IF(ISBLANK(Iowa_Retail_Pharmacies!E177),"",Iowa_Retail_Pharmacies!E177) -> 120 | D177: =IF(ISBLANK(Iowa_Retail_Pharmacies!H177),"",Iowa_Retail_Pharmacies!H177) -> $0.12 | E177: =IF(ISBLANK(Iowa_Retail_Pharmacies!K177),"",Iowa_Retail_Pharmacies!K177) -> $0.03 | F177: =IF(ISBLANK(Iowa_Retail_Pharmacies!M177),"",Iowa_Retail_Pharmacies!M177) -> 2025-10-22 | G177: =IF(ISBLANK(Iowa_Retail_Pharmacies!P177),"",Iowa_Retail_Pharmacies!P177) -> No | H177: =IF(ISBLANK(Iowa_Retail_Pharmacies!Q177),"",Iowa_Retail_Pharmacies!Q177) -> No
B178: =IF(ISBLANK(Iowa_Retail_Pharmacies!D178),"",Iowa_Retail_Pharmacies!D178) -> 2025-12-05 | C178: =IF(ISBLANK(Iowa_Retail_Pharmacies!E178),"",Iowa_Retail_Pharmacies!E178) -> 30 | D178: =IF(ISBLANK(Iowa_Retail_Pharmacies!H178),"",Iowa_Retail_Pharmacies!H178) -> $0.07 | E178: =IF(ISBLANK(Iowa_Retail_Pharmacies!K178),"",Iowa_Retail_Pharmacies!K178) -> $0.03 | F178: =IF(ISBLANK(Iowa_Retail_Pharmacies!M178),"",Iowa_Retail_Pharmacies!M178) -> 2025-11-19 | G178: =IF(ISBLANK(Iowa_Retail_Pharmacies!P178),"",Iowa_Retail_Pharmacies!P178) -> No | H178: =IF(ISBLANK(Iowa_Retail_Pharmacies!Q178),"",Iowa_Retail_Pharmacies!Q178) -> No
B179: =IF(ISBLANK(Iowa_Retail_Pharmacies!D179),"",Iowa_Retail_Pharmacies!D179) -> 2025-10-01 | C179: =IF(ISBLANK(Iowa_Retail_Pharmacies!E179),"",Iowa_Retail_Pharmacies!E179) -> 30 | D179: =IF(ISBLANK(Iowa_Retail_Pharmacies!H179),"",Iowa_Retail_Pharmacies!H179) -> $0.17 | E179: =IF(ISBLANK(Iowa_Retail_Pharmacies!K179),"",Iowa_Retail_Pharmacies!K179) -> $0.03 | F179: =IF(ISBLANK(Iowa_Retail_Pharmacies!M179),"",Iowa_Retail_Pharmacies!M179) -> 2025-09-17 | G179: =IF(ISBLANK(Iowa_Retail_Pharmacies!P179),"",Iowa_Retail_Pharmacies!P179) -> No | H179: =IF(ISBLANK(Iowa_Retail_Pharmacies!Q179),"",Iowa_Retail_Pharmacies!Q179) -> No
B180: =IF(ISBLANK(Iowa_Retail_Pharmacies!D180),"",Iowa_Retail_Pharmacies!D180) -> 2025-12-05 | C180: =IF(ISBLANK(Iowa_Retail_Pharmacies!E180),"",Iowa_Retail_Pharmacies!E180) -> 30 | D180: =IF(ISBLANK(Iowa_Retail_Pharmacies!H180),"",Iowa_Retail_Pharmacies!H180) -> $0.06 | E180: =IF(ISBLANK(Iowa_Retail_Pharmacies!K180),"",Iowa_Retail_Pharmacies!K180) -> $0.01 | F180: =IF(ISBLANK(Iowa_Retail_Pharmacies!M180),"",Iowa_Retail_Pharmacies!M180) -> 2025-11-19 | G180: =IF(ISBLANK(Iowa_Retail_Pharmacies!P180),"",Iowa_Retail_Pharmacies!P180) -> No | H180: =IF(ISBLANK(Iowa_Retail_Pharmacies!Q180),"",Iowa_Retail_Pharmacies!Q180) -> No
B181: =IF(ISBLANK(Iowa_Retail_Pharmacies!D181),"",Iowa_Retail_Pharmacies!D181) -> 2025-10-30 | C181: =IF(ISBLANK(Iowa_Retail_Pharmacies!E181),"",Iowa_Retail_Pharmacies!E181) -> 30 | D181: =IF(ISBLANK(Iowa_Retail_Pharmacies!H181),"",Iowa_Retail_Pharmacies!H181) -> $0.17 | E181: =IF(ISBLANK(Iowa_Retail_Pharmacies!K181),"",Iowa_Retail_Pharmacies!K181) -> $0.03 | F181: =IF(ISBLANK(Iowa_Retail_Pharmacies!M181),"",Iowa_Retail_Pharmacies!M181) -> 2025-10-22 | G181: =IF(ISBLANK(Iowa_Retail_Pharmacies!P181),"",Iowa_Retail_Pharmacies!P181) -> No | H181: =IF(ISBLANK(Iowa_Retail_Pharmacies!Q181),"",Iowa_Retail_Pharmacies!Q181) -> No
B182: =IF(ISBLANK(Iowa_Retail_Pharmacies!D182),"",Iowa_Retail_Pharmacies!D182) -> 2025-10-30 | C182: =IF(ISBLANK(Iowa_Retail_Pharmacies!E182),"",Iowa_Retail_Pharmacies!E182) -> 30 | D182: =IF(ISBLANK(Iowa_Retail_Pharmacies!H182),"",Iowa_Retail_Pharmacies!H182) -> $0.85 | E182: =IF(ISBLANK(Iowa_Retail_Pharmacies!K182),"",Iowa_Retail_Pharmacies!K182) -> $0.03 | F182: =IF(ISBLANK(Iowa_Retail_Pharmacies!M182),"",Iowa_Retail_Pharmacies!M182) -> 2025-10-22 | G182: =IF(ISBLANK(Iowa_Retail_Pharmacies!P182),"",Iowa_Retail_Pharmacies!P182) -> No | H182: =IF(ISBLANK(Iowa_Retail_Pharmacies!Q182),"",Iowa_Retail_Pharmacies!Q182) -> No
B183: =IF(ISBLANK(Iowa_Retail_Pharmacies!D183),"",Iowa_Retail_Pharmacies!D183) -> 2025-10-01 | C183: =IF(ISBLANK(Iowa_Retail_Pharmacies!E183),"",Iowa_Retail_Pharmacies!E183) -> 30 | D183: =IF(ISBLANK(Iowa_Retail_Pharmacies!H183),"",Iowa_Retail_Pharmacies!H183) -> $0.27 | E183: =IF(ISBLANK(Iowa_Retail_Pharmacies!K183),"",Iowa_Retail_Pharmacies!K183) -> $0.01 | F183: =IF(ISBLANK(Iowa_Retail_Pharmacies!M183),"",Iowa_Retail_Pharmacies!M183) -> 2025-09-17 | G183: =IF(ISBLANK(Iowa_Retail_Pharmacies!P183),"",Iowa_Retail_Pharmacies!P183) -> No | H183: =IF(ISBLANK(Iowa_Retail_Pharmacies!Q183),"",Iowa_Retail_Pharmacies!Q183) -> No
B184: =IF(ISBLANK(Iowa_Retail_Pharmacies!D184),"",Iowa_Retail_Pharmacies!D184) -> 2025-10-01 | C184: =IF(ISBLANK(Iowa_Retail_Pharmacies!E184),"",Iowa_Retail_Pharmacies!E184) -> 60 | D184: =IF(ISBLANK(Iowa_Retail_Pharmacies!H184),"",Iowa_Retail_Pharmacies!H184) -> $0.41 | E184: =IF(ISBLANK(Iowa_Retail_Pharmacies!K184),"",Iowa_Retail_Pharmacies!K184) -> $0.05 | F184: =IF(ISBLANK(Iowa_Retail_Pharmacies!M184),"",Iowa_Retail_Pharmacies!M184) -> 2025-09-17 | G184: =IF(ISBLANK(Iowa_Retail_Pharmacies!P184),"",Iowa_Retail_Pharmacies!P184) -> No | H184: =IF(ISBLANK(Iowa_Retail_Pharmacies!Q184),"",Iowa_Retail_Pharmacies!Q184) -> No
B185: =IF(ISBLANK(Iowa_Retail_Pharmacies!D185),"",Iowa_Retail_Pharmacies!D185) -> 2025-12-05 | C185: =IF(ISBLANK(Iowa_Retail_Pharmacies!E185),"",Iowa_Retail_Pharmacies!E185) -> 60 | D185: =IF(ISBLANK(Iowa_Retail_Pharmacies!H185),"",Iowa_Retail_Pharmacies!H185) -> $0.10 | E185: =IF(ISBLANK(Iowa_Retail_Pharmacies!K185),"",Iowa_Retail_Pharmacies!K185) -> $0.05 | F185: =IF(ISBLANK(Iowa_Retail_Pharmacies!M185),"",Iowa_Retail_Pharmacies!M185) -> 2025-11-19 | G185: =IF(ISBLANK(Iowa_Retail_Pharmacies!P185),"",Iowa_Retail_Pharmacies!P185) -> No | H185: =IF(ISBLANK(Iowa_Retail_Pharmacies!Q185),"",Iowa_Retail_Pharmacies!Q185) -> No
B186: =IF(ISBLANK(Iowa_Retail_Pharmacies!D186),"",Iowa_Retail_Pharmacies!D186) -> 2025-12-05 | C186: =IF(ISBLANK(Iowa_Retail_Pharmacies!E186),"",Iowa_Retail_Pharmacies!E186) -> 30 | D186: =IF(ISBLANK(Iowa_Retail_Pharmacies!H186),"",Iowa_Retail_Pharmacies!H186) -> $0.80 | E186: =IF(ISBLANK(Iowa_Retail_Pharmacies!K186),"",Iowa_Retail_Pharmacies!K186) -> $0.03 | F186: =IF(ISBLANK(Iowa_Retail_Pharmacies!M186),"",Iowa_Retail_Pharmacies!M186) -> 2025-11-19 | G186: =IF(ISBLANK(Iowa_Retail_Pharmacies!P186),"",Iowa_Retail_Pharmacies!P186) -> No | H186: =IF(ISBLANK(Iowa_Retail_Pharmacies!Q186),"",Iowa_Retail_Pharmacies!Q186) -> No
B187: =IF(ISBLANK(Iowa_Retail_Pharmacies!D187),"",Iowa_Retail_Pharmacies!D187) -> 2025-10-01 | C187: =IF(ISBLANK(Iowa_Retail_Pharmacies!E187),"",Iowa_Retail_Pharmacies!E187) -> 30 | D187: =IF(ISBLANK(Iowa_Retail_Pharmacies!H187),"",Iowa_Retail_Pharmacies!H187) -> $0.02 | E187: =IF(ISBLANK(Iowa_Retail_Pharmacies!K187),"",Iowa_Retail_Pharmacies!K187) -> $0.01 | F187: =IF(ISBLANK(Iowa_Retail_Pharmacies!M187),"",Iowa_Retail_Pharmacies!M187) -> 2025-09-17 | G187: =IF(ISBLANK(Iowa_Retail_Pharmacies!P187),"",Iowa_Retail_Pharmacies!P187) -> No | H187: =IF(ISBLANK(Iowa_Retail_Pharmacies!Q187),"",Iowa_Retail_Pharmacies!Q187) -> No
B188: =IF(ISBLANK(Iowa_Retail_Pharmacies!D188),"",Iowa_Retail_Pharmacies!D188) -> 2025-10-30 | C188: =IF(ISBLANK(Iowa_Retail_Pharmacies!E188),"",Iowa_Retail_Pharmacies!E188) -> 60 | D188: =IF(ISBLANK(Iowa_Retail_Pharmacies!H188),"",Iowa_Retail_Pharmacies!H188) -> $0.09 | E188: =IF(ISBLANK(Iowa_Retail_Pharmacies!K188),"",Iowa_Retail_Pharmacies!K188) -> $0.03 | F188: =IF(ISBLANK(Iowa_Retail_Pharmacies!M188),"",Iowa_Retail_Pharmacies!M188) -> 2025-10-22 | G188: =IF(ISBLANK(Iowa_Retail_Pharmacies!P188),"",Iowa_Retail_Pharmacies!P188) -> No | H188: =IF(ISBLANK(Iowa_Retail_Pharmacies!Q188),"",Iowa_Retail_Pharmacies!Q188) -> No
B189: =IF(ISBLANK(Iowa_Retail_Pharmacies!D189),"",Iowa_Retail_Pharmacies!D189) -> 2025-12-05 | C189: =IF(ISBLANK(Iowa_Retail_Pharmacies!E189),"",Iowa_Retail_Pharmacies!E189) -> 120 | D189: =IF(ISBLANK(Iowa_Retail_Pharmacies!H189),"",Iowa_Retail_Pharmacies!H189) -> $0.04 | E189: =IF(ISBLANK(Iowa_Retail_Pharmacies!K189),"",Iowa_Retail_Pharmacies!K189) -> $0.03 | F189: =IF(ISBLANK(Iowa_Retail_Pharmacies!M189),"",Iowa_Retail_Pharmacies!M189) -> 2025-11-19 | G189: =IF(ISBLANK(Iowa_Retail_Pharmacies!P189),"",Iowa_Retail_Pharmacies!P189) -> No | H189: =IF(ISBLANK(Iowa_Retail_Pharmacies!Q189),"",Iowa_Retail_Pharmacies!Q189) -> No
B190: =IF(ISBLANK(Iowa_Retail_Pharmacies!D190),"",Iowa_Retail_Pharmacies!D190) -> 2025-10-30 | C190: =IF(ISBLANK(Iowa_Retail_Pharmacies!E190),"",Iowa_Retail_Pharmacies!E190) -> 30 | D190: =IF(ISBLANK(Iowa_Retail_Pharmacies!H190),"",Iowa_Retail_Pharmacies!H190) -> $0.27 | E190: =IF(ISBLANK(Iowa_Retail_Pharmacies!K190),"",Iowa_Retail_Pharmacies!K190) -> $0.01 | F190: =IF(ISBLANK(Iowa_Retail_Pharmacies!M190),"",Iowa_Retail_Pharmacies!M190) -> 2025-10-22 | G190: =IF(ISBLANK(Iowa_Retail_Pharmacies!P190),"",Iowa_Retail_Pharmacies!P190) -> No | H190: =IF(ISBLANK(Iowa_Retail_Pharmacies!Q190),"",Iowa_Retail_Pharmacies!Q190) -> No
B191: =IF(ISBLANK(Iowa_Retail_Pharmacies!D191),"",Iowa_Retail_Pharmacies!D191) -> 2025-10-01 | C191: =IF(ISBLANK(Iowa_Retail_Pharmacies!E191),"",Iowa_Retail_Pharmacies!E191) -> 30 | D191: =IF(ISBLANK(Iowa_Retail_Pharmacies!H191),"",Iowa_Retail_Pharmacies!H191) -> $0.85 | E191: =IF(ISBLANK(Iowa_Retail_Pharmacies!K191),"",Iowa_Retail_Pharmacies!K191) -> $0.03 | F191: =IF(ISBLANK(Iowa_Retail_Pharmacies!M191),"",Iowa_Retail_Pharmacies!M191) -> 2025-09-17 | G191: =IF(ISBLANK(Iowa_Retail_Pharmacies!P191),"",Iowa_Retail_Pharmacies!P191) -> No | H191: =IF(ISBLANK(Iowa_Retail_Pharmacies!Q191),"",Iowa_Retail_Pharmacies!Q191) -> No
B192: =IF(ISBLANK(Iowa_Retail_Pharmacies!D192),"",Iowa_Retail_Pharmacies!D192) -> 2025-10-30 | C192: =IF(ISBLANK(Iowa_Retail_Pharmacies!E192),"",Iowa_Retail_Pharmacies!E192) -> 30 | D192: =IF(ISBLANK(Iowa_Retail_Pharmacies!H192),"",Iowa_Retail_Pharmacies!H192) -> $0.02 | E192: =IF(ISBLANK(Iowa_Retail_Pharmacies!K192),"",Iowa_Retail_Pharmacies!K192) -> $0.01 | F192: =IF(ISBLANK(Iowa_Retail_Pharmacies!M192),"",Iowa_Retail_Pharmacies!M192) -> 2025-10-22 | G192: =IF(ISBLANK(Iowa_Retail_Pharmacies!P192),"",Iowa_Retail_Pharmacies!P192) -> No | H192: =IF(ISBLANK(Iowa_Retail_Pharmacies!Q192),"",Iowa_Retail_Pharmacies!Q192) -> No
B193: =IF(ISBLANK(Iowa_Retail_Pharmacies!D193),"",Iowa_Retail_Pharmacies!D193) -> 2025-12-15 | C193: =IF(ISBLANK(Iowa_Retail_Pharmacies!E193),"",Iowa_Retail_Pharmacies!E193) -> 4 | D193: =IF(ISBLANK(Iowa_Retail_Pharmacies!H193),"",Iowa_Retail_Pharmacies!H193) -> $0.63 | E193: =IF(ISBLANK(Iowa_Retail_Pharmacies!K193),"",Iowa_Retail_Pharmacies!K193) -> $0.41 | F193: =IF(ISBLANK(Iowa_Retail_Pharmacies!M193),"",Iowa_Retail_Pharmacies!M193) -> 2025-11-19 | G193: =IF(ISBLANK(Iowa_Retail_Pharmacies!P193),"",Iowa_Retail_Pharmacies!P193) -> No | H193: =IF(ISBLANK(Iowa_Retail_Pharmacies!Q193),"",Iowa_Retail_Pharmacies!Q193) -> No
B194: =IF(ISBLANK(Iowa_Retail_Pharmacies!D194),"",Iowa_Retail_Pharmacies!D194) -> 2025-12-15 | C194: =IF(ISBLANK(Iowa_Retail_Pharmacies!E194),"",Iowa_Retail_Pharmacies!E194) -> 20 | D194: =IF(ISBLANK(Iowa_Retail_Pharmacies!H194),"",Iowa_Retail_Pharmacies!H194) -> $0.51 | E194: =IF(ISBLANK(Iowa_Retail_Pharmacies!K194),"",Iowa_Retail_Pharmacies!K194) -> $0.31 | F194: =IF(ISBLANK(Iowa_Retail_Pharmacies!M194),"",Iowa_Retail_Pharmacies!M194) -> 2025-11-19 | G194: =IF(ISBLANK(Iowa_Retail_Pharmacies!P194),"",Iowa_Retail_Pharmacies!P194) -> No | H194: =IF(ISBLANK(Iowa_Retail_Pharmacies!Q194),"",Iowa_Retail_Pharmacies!Q194) -> No
B195: =IF(ISBLANK(Iowa_Retail_Pharmacies!D195),"",Iowa_Retail_Pharmacies!D195) -> 2025-11-10 | C195: =IF(ISBLANK(Iowa_Retail_Pharmacies!E195),"",Iowa_Retail_Pharmacies!E195) -> 6.6 | D195: =IF(ISBLANK(Iowa_Retail_Pharmacies!H195),"",Iowa_Retail_Pharmacies!H195) -> $2.32 | E195: =IF(ISBLANK(Iowa_Retail_Pharmacies!K195),"",Iowa_Retail_Pharmacies!K195) -> $1.40 | F195: =IF(ISBLANK(Iowa_Retail_Pharmacies!M195),"",Iowa_Retail_Pharmacies!M195) -> 2025-10-22 | G195: =IF(ISBLANK(Iowa_Retail_Pharmacies!P195),"",Iowa_Retail_Pharmacies!P195) -> No | H195: =IF(ISBLANK(Iowa_Retail_Pharmacies!Q195),"",Iowa_Retail_Pharmacies!Q195) -> No
B196: =IF(ISBLANK(Iowa_Retail_Pharmacies!D196),"",Iowa_Retail_Pharmacies!D196) -> 2025-11-26 | C196: =IF(ISBLANK(Iowa_Retail_Pharmacies!E196),"",Iowa_Retail_Pharmacies!E196) -> 4 | D196: =IF(ISBLANK(Iowa_Retail_Pharmacies!H196),"",Iowa_Retail_Pharmacies!H196) -> $0.63 | E196: =IF(ISBLANK(Iowa_Retail_Pharmacies!K196),"",Iowa_Retail_Pharmacies!K196) -> $0.41 | F196: =IF(ISBLANK(Iowa_Retail_Pharmacies!M196),"",Iowa_Retail_Pharmacies!M196) -> 2025-11-19 | G196: =IF(ISBLANK(Iowa_Retail_Pharmacies!P196),"",Iowa_Retail_Pharmacies!P196) -> No | H196: =IF(ISBLANK(Iowa_Retail_Pharmacies!Q196),"",Iowa_Retail_Pharmacies!Q196) -> No
B197: =IF(ISBLANK(Iowa_Retail_Pharmacies!D197),"",Iowa_Retail_Pharmacies!D197) -> 2025-12-19 | C197: =IF(ISBLANK(Iowa_Retail_Pharmacies!E197),"",Iowa_Retail_Pharmacies!E197) -> 12 | D197: =IF(ISBLANK(Iowa_Retail_Pharmacies!H197),"",Iowa_Retail_Pharmacies!H197) -> $0.57 | E197: =IF(ISBLANK(Iowa_Retail_Pharmacies!K197),"",Iowa_Retail_Pharmacies!K197) -> $0.15 | F197: =IF(ISBLANK(Iowa_Retail_Pharmacies!M197),"",Iowa_Retail_Pharmacies!M197) -> 2025-12-17 | G197: =IF(ISBLANK(Iowa_Retail_Pharmacies!P197),"",Iowa_Retail_Pharmacies!P197) -> No | H197: =IF(ISBLANK(Iowa_Retail_Pharmacies!Q197),"",Iowa_Retail_Pharmacies!Q197) -> No
B198: =IF(ISBLANK(Iowa_Retail_Pharmacies!D198),"",Iowa_Retail_Pharmacies!D198) -> 2025-12-26 | C198: =IF(ISBLANK(Iowa_Retail_Pharmacies!E198),"",Iowa_Retail_Pharmacies!E198) -> 30 | D198: =IF(ISBLANK(Iowa_Retail_Pharmacies!H198),"",Iowa_Retail_Pharmacies!H198) -> $0.16 | E198: =IF(ISBLANK(Iowa_Retail_Pharmacies!K198),"",Iowa_Retail_Pharmacies!K198) -> $0.06 | F198: =IF(ISBLANK(Iowa_Retail_Pharmacies!M198),"",Iowa_Retail_Pharmacies!M198) -> 2025-12-17 | G198: =IF(ISBLANK(Iowa_Retail_Pharmacies!P198),"",Iowa_Retail_Pharmacies!P198) -> No | H198: =IF(ISBLANK(Iowa_Retail_Pharmacies!Q198),"",Iowa_Retail_Pharmacies!Q198) -> No
B199: =IF(ISBLANK(Iowa_Retail_Pharmacies!D199),"",Iowa_Retail_Pharmacies!D199) -> 2025-12-19 | C199: =IF(ISBLANK(Iowa_Retail_Pharmacies!E199),"",Iowa_Retail_Pharmacies!E199) -> 10 | D199: =IF(ISBLANK(Iowa_Retail_Pharmacies!H199),"",Iowa_Retail_Pharmacies!H199) -> $0.18 | E199: =IF(ISBLANK(Iowa_Retail_Pharmacies!K199),"",Iowa_Retail_Pharmacies!K199) -> $0.08 | F199: =IF(ISBLANK(Iowa_Retail_Pharmacies!M199),"",Iowa_Retail_Pharmacies!M199) -> 2025-12-17 | G199: =IF(ISBLANK(Iowa_Retail_Pharmacies!P199),"",Iowa_Retail_Pharmacies!P199) -> No | H199: =IF(ISBLANK(Iowa_Retail_Pharmacies!Q199),"",Iowa_Retail_Pharmacies!Q199) -> No
B200: =IF(ISBLANK(Iowa_Retail_Pharmacies!D200),"",Iowa_Retail_Pharmacies!D200) -> 2025-10-09 | C200: =IF(ISBLANK(Iowa_Retail_Pharmacies!E200),"",Iowa_Retail_Pharmacies!E200) -> 30 | D200: =IF(ISBLANK(Iowa_Retail_Pharmacies!H200),"",Iowa_Retail_Pharmacies!H200) -> $0.16 | E200: =IF(ISBLANK(Iowa_Retail_Pharmacies!K200),"",Iowa_Retail_Pharmacies!K200) -> $0.05 | F200: =IF(ISBLANK(Iowa_Retail_Pharmacies!M200),"",Iowa_Retail_Pharmacies!M200) -> 2025-09-17 | G200: =IF(ISBLANK(Iowa_Retail_Pharmacies!P200),"",Iowa_Retail_Pharmacies!P200) -> No | H200: =IF(ISBLANK(Iowa_Retail_Pharmacies!Q200),"",Iowa_Retail_Pharmacies!Q200) -> No
... 4300 more rows

Sheet All Other Pharmacies_Web
A1: Pharmacy Benefits Manager Company Name | B1: Prescription claim date | C1: Quantity of the Drug Dispensed (expressed in metric decimal units) | D1: Amount the Pharmacy was Reimbursed $ (per Unit) | E1: NADAC per unit $ (from CMS survey report as provided by the OIC) | F1: NADAC Report Date (date of the CMS Report used to to determine the "NADAC" rate) | G1: Affiliate Pharmacy (Yes / No) | H1: Dispensed Pursuant to Government Health Plan (Yes / No)
A2: =IF(ISBLANK(All_Other_Pharmacies!A2),"",All_Other_Pharmacies!A2) -> Smith Health, Inc | B2: =IF(ISBLANK(All_Other_Pharmacies!D2),"",All_Other_Pharmacies!D2) -> 2025-12-07 | C2: =IF(ISBLANK(All_Other_Pharmacies!E2),"",All_Other_Pharmacies!E2) -> 180 | D2: =IF(ISBLANK(All_Other_Pharmacies!H2),"",All_Other_Pharmacies!H2) -> $0.09 | E2: =IF(ISBLANK(All_Other_Pharmacies!K2),"",All_Other_Pharmacies!K2) -> $0.03 | F2: =IF(ISBLANK(All_Other_Pharmacies!M2),"",All_Other_Pharmacies!M2) -> 2025-11-19 | G2: =IF(ISBLANK(All_Other_Pharmacies!P2),"",All_Other_Pharmacies!P2) -> No | H2: =IF(ISBLANK(All_Other_Pharmacies!Q2),"",All_Other_Pharmacies!Q2) -> No
B3: =IF(ISBLANK(All_Other_Pharmacies!D3),"",All_Other_Pharmacies!D3) -> 2025-12-11 | C3: =IF(ISBLANK(All_Other_Pharmacies!E3),"",All_Other_Pharmacies!E3) -> 90 | D3: =IF(ISBLANK(All_Other_Pharmacies!H3),"",All_Other_Pharmacies!H3) -> $0.93 | E3: =IF(ISBLANK(All_Other_Pharmacies!K3),"",All_Other_Pharmacies!K3) -> $0.04 | F3: =IF(ISBLANK(All_Other_Pharmacies!M3),"",All_Other_Pharmacies!M3) -> 2025-11-19 | G3: =IF(ISBLANK(All_Other_Pharmacies!P3),"",All_Other_Pharmacies!P3) -> No | H3: =IF(ISBLANK(All_Other_Pharmacies!Q3),"",All_Other_Pharmacies!Q3) -> No
B4: =IF(ISBLANK(All_Other_Pharmacies!D4),"",All_Other_Pharmacies!D4) -> 2025-12-15 | C4: =IF(ISBLANK(All_Other_Pharmacies!E4),"",All_Other_Pharmacies!E4) -> 12 | D4: =IF(ISBLANK(All_Other_Pharmacies!H4),"",All_Other_Pharmacies!H4) -> $2.61 | E4: =IF(ISBLANK(All_Other_Pharmacies!K4),"",All_Other_Pharmacies!K4) -> $13.58 | F4: =IF(ISBLANK(All_Other_Pharmacies!M4),"",All_Other_Pharmacies!M4) -> 2025-11-19 | G4: =IF(ISBLANK(All_Other_Pharmacies!P4),"",All_Other_Pharmacies!P4) -> No | H4: =IF(ISBLANK(All_Other_Pharmacies!Q4),"",All_Other_Pharmacies!Q4) -> No
B5: =IF(ISBLANK(All_Other_Pharmacies!D5),"",All_Other_Pharmacies!D5) -> 2025-12-11 | C5: =IF(ISBLANK(All_Other_Pharmacies!E5),"",All_Other_Pharmacies!E5) -> 90 | D5: =IF(ISBLANK(All_Other_Pharmacies!H5),"",All_Other_Pharmacies!H5) -> $0.07 | E5: =IF(ISBLANK(All_Other_Pharmacies!K5),"",All_Other_Pharmacies!K5) -> $0.03 | F5: =IF(ISBLANK(All_Other_Pharmacies!M5),"",All_Other_Pharmacies!M5) -> 2025-11-19 | G5: =IF(ISBLANK(All_Other_Pharmacies!P5),"",All_Other_Pharmacies!P5) -> No | H5: =IF(ISBLANK(All_Other_Pharmacies!Q5),"",All_Other_Pharmacies!Q5) -> No
B6: =IF(ISBLANK(All_Other_Pharmacies!D6),"",All_Other_Pharmacies!D6) -> 2025-12-07 | C6: =IF(ISBLANK(All_Other_Pharmacies!E6),"",All_Other_Pharmacies!E6) -> 270 | D6: =IF(ISBLANK(All_Other_Pharmacies!H6),"",All_Other_Pharmacies!H6) -> $0.43 | E6: =IF(ISBLANK(All_Other_Pharmacies!K6),"",All_Other_Pharmacies!K6) -> $0.12 | F6: =IF(ISBLANK(All_Other_Pharmacies!M6),"",All_Other_Pharmacies!M6) -> 2025-11-19 | G6: =IF(ISBLANK(All_Other_Pharmacies!P6),"",All_Other_Pharmacies!P6) -> No | H6: =IF(ISBLANK(All_Other_Pharmacies!Q6),"",All_Other_Pharmacies!Q6) -> No
B7: =IF(ISBLANK(All_Other_Pharmacies!D7),"",All_Other_Pharmacies!D7) -> 2025-12-09 | C7: =IF(ISBLANK(All_Other_Pharmacies!E7),"",All_Other_Pharmacies!E7) -> 10 | D7: =IF(ISBLANK(All_Other_Pharmacies!H7),"",All_Other_Pharmacies!H7) -> $1.06 | E7: =IF(ISBLANK(All_Other_Pharmacies!K7),"",All_Other_Pharmacies!K7) -> $0.35 | F7: =IF(ISBLANK(All_Other_Pharmacies!M7),"",All_Other_Pharmacies!M7) -> 2025-11-19 | G7: =IF(ISBLANK(All_Other_Pharmacies!P7),"",All_Other_Pharmacies!P7) -> No | H7: =IF(ISBLANK(All_Other_Pharmacies!Q7),"",All_Other_Pharmacies!Q7) -> No
B8: =IF(ISBLANK(All_Other_Pharmacies!D8),"",All_Other_Pharmacies!D8) -> 2025-12-11 | C8: =IF(ISBLANK(All_Other_Pharmacies!E8),"",All_Other_Pharmacies!E8) -> 90 | D8: =IF(ISBLANK(All_Other_Pharmacies!H8),"",All_Other_Pharmacies!H8) -> $0.49 | E8: =IF(ISBLANK(All_Other_Pharmacies!K8),"",All_Other_Pharmacies!K8) -> $0.09 | F8: =IF(ISBLANK(All_Other_Pharmacies!M8),"",All_Other_Pharmacies!M8) -> 2025-11-19 | G8: =IF(ISBLANK(All_Other_Pharmacies!P8),"",All_Other_Pharmacies!P8) -> No | H8: =IF(ISBLANK(All_Other_Pharmacies!Q8),"",All_Other_Pharmacies!Q8) -> No
B9: =IF(ISBLANK(All_Other_Pharmacies!D9),"",All_Other_Pharmacies!D9) -> 2025-12-03 | C9: =IF(ISBLANK(All_Other_Pharmacies!E9),"",All_Other_Pharmacies!E9) -> 90 | D9: =IF(ISBLANK(All_Other_Pharmacies!H9),"",All_Other_Pharmacies!H9) -> $0.21 | E9: =IF(ISBLANK(All_Other_Pharmacies!K9),"",All_Other_Pharmacies!K9) -> $0.04 | F9: =IF(ISBLANK(All_Other_Pharmacies!M9),"",All_Other_Pharmacies!M9) -> 2025-11-19 | G9: =IF(ISBLANK(All_Other_Pharmacies!P9),"",All_Other_Pharmacies!P9) -> No | H9: =IF(ISBLANK(All_Other_Pharmacies!Q9),"",All_Other_Pharmacies!Q9) -> No
B10: =IF(ISBLANK(All_Other_Pharmacies!D10),"",All_Other_Pharmacies!D10) -> 2025-12-15 | C10: =IF(ISBLANK(All_Other_Pharmacies!E10),"",All_Other_Pharmacies!E10) -> 8.5 | D10: =IF(ISBLANK(All_Other_Pharmacies!H10),"",All_Other_Pharmacies!H10) -> $0.67 | E10: =IF(ISBLANK(All_Other_Pharmacies!K10),"",All_Other_Pharmacies!K10) -> $1.94 | F10: =IF(ISBLANK(All_Other_Pharmacies!M10),"",All_Other_Pharmacies!M10) -> 2025-11-19 | G10: =IF(ISBLANK(All_Other_Pharmacies!P10),"",All_Other_Pharmacies!P10) -> No | H10: =IF(ISBLANK(All_Other_Pharmacies!Q10),"",All_Other_Pharmacies!Q10) -> No
B11: =IF(ISBLANK(All_Other_Pharmacies!D11),"",All_Other_Pharmacies!D11) -> 2025-12-03 | C11: =IF(ISBLANK(All_Other_Pharmacies!E11),"",All_Other_Pharmacies!E11) -> 90 | D11: =IF(ISBLANK(All_Other_Pharmacies!H11),"",All_Other_Pharmacies!H11) -> $0.08 | E11: =IF(ISBLANK(All_Other_Pharmacies!K11),"",All_Other_Pharmacies!K11) -> $0.05 | F11: =IF(ISBLANK(All_Other_Pharmacies!M11),"",All_Other_Pharmacies!M11) -> 2025-11-19 | G11: =IF(ISBLANK(All_Other_Pharmacies!P11),"",All_Other_Pharmacies!P11) -> No | H11: =IF(ISBLANK(All_Other_Pharmacies!Q11),"",All_Other_Pharmacies!Q11) -> No
B12: =IF(ISBLANK(All_Other_Pharmacies!D12),"",All_Other_Pharmacies!D12) -> 2025-12-07 | C12: =IF(ISBLANK(All_Other_Pharmacies!E12),"",All_Other_Pharmacies!E12) -> 90 | D12: =IF(ISBLANK(All_Other_Pharmacies!H12),"",All_Other_Pharmacies!H12) -> $0.38 | E12: =IF(ISBLANK(All_Other_Pharmacies!K12),"",All_Other_Pharmacies!K12) -> $0.10 | F12: =IF(ISBLANK(All_Other_Pharmacies!M12),"",All_Other_Pharmacies!M12) -> 2025-11-19 | G12: =IF(ISBLANK(All_Other_Pharmacies!P12),"",All_Other_Pharmacies!P12) -> No | H12: =IF(ISBLANK(All_Other_Pharmacies!Q12),"",All_Other_Pharmacies!Q12) -> No
B13: =IF(ISBLANK(All_Other_Pharmacies!D13),"",All_Other_Pharmacies!D13) -> 2025-12-03 | C13: =IF(ISBLANK(All_Other_Pharmacies!E13),"",All_Other_Pharmacies!E13) -> 90 | D13: =IF(ISBLANK(All_Other_Pharmacies!H13),"",All_Other_Pharmacies!H13) -> $0.93 | E13: =IF(ISBLANK(All_Other_Pharmacies!K13),"",All_Other_Pharmacies!K13) -> $0.04 | F13: =IF(ISBLANK(All_Other_Pharmacies!M13),"",All_Other_Pharmacies!M13) -> 2025-11-19 | G13: =IF(ISBLANK(All_Other_Pharmacies!P13),"",All_Other_Pharmacies!P13) -> No | H13: =IF(ISBLANK(All_Other_Pharmacies!Q13),"",All_Other_Pharmacies!Q13) -> No
B14: =IF(ISBLANK(All_Other_Pharmacies!D14),"",All_Other_Pharmacies!D14) -> 2025-12-05 | C14: =IF(ISBLANK(All_Other_Pharmacies!E14),"",All_Other_Pharmacies!E14) -> 90 | D14: =IF(ISBLANK(All_Other_Pharmacies!H14),"",All_Other_Pharmacies!H14) -> $2.25 | E14: =IF(ISBLANK(All_Other_Pharmacies!K14),"",All_Other_Pharmacies!K14) -> $0.76 | F14: =IF(ISBLANK(All_Other_Pharmacies!M14),"",All_Other_Pharmacies!M14) -> 2025-10-22 | G14: =IF(ISBLANK(All_Other_Pharmacies!P14),"",All_Other_Pharmacies!P14) -> No | H14: =IF(ISBLANK(All_Other_Pharmacies!Q14),"",All_Other_Pharmacies!Q14) -> No
B15: =IF(ISBLANK(All_Other_Pharmacies!D15),"",All_Other_Pharmacies!D15) -> 2025-12-05 | C15: =IF(ISBLANK(All_Other_Pharmacies!E15),"",All_Other_Pharmacies!E15) -> 60 | D15: =IF(ISBLANK(All_Other_Pharmacies!H15),"",All_Other_Pharmacies!H15) -> $0.80 | E15: =IF(ISBLANK(All_Other_Pharmacies!K15),"",All_Other_Pharmacies!K15) -> $2.40 | F15: =IF(ISBLANK(All_Other_Pharmacies!M15),"",All_Other_Pharmacies!M15) -> 2025-11-19 | G15: =IF(ISBLANK(All_Other_Pharmacies!P15),"",All_Other_Pharmacies!P15) -> No | H15: =IF(ISBLANK(All_Other_Pharmacies!Q15),"",All_Other_Pharmacies!Q15) -> No
B16: =IF(ISBLANK(All_Other_Pharmacies!D16),"",All_Other_Pharmacies!D16) -> 2025-12-10 | C16: =IF(ISBLANK(All_Other_Pharmacies!E16),"",All_Other_Pharmacies!E16) -> 90 | D16: =IF(ISBLANK(All_Other_Pharmacies!H16),"",All_Other_Pharmacies!H16) -> $0.81 | E16: =IF(ISBLANK(All_Other_Pharmacies!K16),"",All_Other_Pharmacies!K16) -> $1.20 | F16: =IF(ISBLANK(All_Other_Pharmacies!M16),"",All_Other_Pharmacies!M16) -> 2025-11-19 | G16: =IF(ISBLANK(All_Other_Pharmacies!P16),"",All_Other_Pharmacies!P16) -> No | H16: =IF(ISBLANK(All_Other_Pharmacies!Q16),"",All_Other_Pharmacies!Q16) -> No
B17: =IF(ISBLANK(All_Other_Pharmacies!D17),"",All_Other_Pharmacies!D17) -> 2025-12-11 | C17: =IF(ISBLANK(All_Other_Pharmacies!E17),"",All_Other_Pharmacies!E17) -> 90 | D17: =IF(ISBLANK(All_Other_Pharmacies!H17),"",All_Other_Pharmacies!H17) -> $0.06 | E17: =IF(ISBLANK(All_Other_Pharmacies!K17),"",All_Other_Pharmacies!K17) -> $0.01 | F17: =IF(ISBLANK(All_Other_Pharmacies!M17),"",All_Other_Pharmacies!M17) -> 2025-11-19 | G17: =IF(ISBLANK(All_Other_Pharmacies!P17),"",All_Other_Pharmacies!P17) -> No | H17: =IF(ISBLANK(All_Other_Pharmacies!Q17),"",All_Other_Pharmacies!Q17) -> No
B18: =IF(ISBLANK(All_Other_Pharmacies!D18),"",All_Other_Pharmacies!D18) -> 2025-12-04 | C18: =IF(ISBLANK(All_Other_Pharmacies!E18),"",All_Other_Pharmacies!E18) -> 84 | D18: =IF(ISBLANK(All_Other_Pharmacies!H18),"",All_Other_Pharmacies!H18) -> $0.14 | E18: =IF(ISBLANK(All_Other_Pharmacies!K18),"",All_Other_Pharmacies!K18) -> $0.09 | F18: =IF(ISBLANK(All_Other_Pharmacies!M18),"",All_Other_Pharmacies!M18) -> 2025-11-19 | G18: =IF(ISBLANK(All_Other_Pharmacies!P18),"",All_Other_Pharmacies!P18) -> No | H18: =IF(ISBLANK(All_Other_Pharmacies!Q18),"",All_Other_Pharmacies!Q18) -> No
B19: =IF(ISBLANK(All_Other_Pharmacies!D19),"",All_Other_Pharmacies!D19) -> 2025-12-15 | C19: =IF(ISBLANK(All_Other_Pharmacies!E19),"",All_Other_Pharmacies!E19) -> 30 | D19: =IF(ISBLANK(All_Other_Pharmacies!H19),"",All_Other_Pharmacies!H19) -> $0.35 | E19: =IF(ISBLANK(All_Other_Pharmacies!K19),"",All_Other_Pharmacies!K19) -> $0.09 | F19: =IF(ISBLANK(All_Other_Pharmacies!M19),"",All_Other_Pharmacies!M19) -> 2025-11-19 | G19: =IF(ISBLANK(All_Other_Pharmacies!P19),"",All_Other_Pharmacies!P19) -> No | H19: =IF(ISBLANK(All_Other_Pharmacies!Q19),"",All_Other_Pharmacies!Q19) -> No
B20: =IF(ISBLANK(All_Other_Pharmacies!D20),"",All_Other_Pharmacies!D20) -> 2025-10-17 | C20: =IF(ISBLANK(All_Other_Pharmacies!E20),"",All_Other_Pharmacies!E20) -> 28 | D20: =IF(ISBLANK(All_Other_Pharmacies!H20),"",All_Other_Pharmacies!H20) -> $0.18 | E20: =IF(ISBLANK(All_Other_Pharmacies!K20),"",All_Other_Pharmacies!K20) -> $0.09 | F20: =IF(ISBLANK(All_Other_Pharmacies!M20),"",All_Other_Pharmacies!M20) -> 2025-09-17 | G20: =IF(ISBLANK(All_Other_Pharmacies!P20),"",All_Other_Pharmacies!P20) -> No | H20: =IF(ISBLANK(All_Other_Pharmacies!Q20),"",All_Other_Pharmacies!Q20) -> No
B21: =IF(ISBLANK(All_Other_Pharmacies!D21),"",All_Other_Pharmacies!D21) -> 2025-11-10 | C21: =IF(ISBLANK(All_Other_Pharmacies!E21),"",All_Other_Pharmacies!E21) -> 30 | D21: =IF(ISBLANK(All_Other_Pharmacies!H21),"",All_Other_Pharmacies!H21) -> $0.29 | E21: =IF(ISBLANK(All_Other_Pharmacies!K21),"",All_Other_Pharmacies!K21) -> $0.03 | F21: =IF(ISBLANK(All_Other_Pharmacies!M21),"",All_Other_Pharmacies!M21) -> 2025-10-22 | G21: =IF(ISBLANK(All_Other_Pharmacies!P21),"",All_Other_Pharmacies!P21) -> No | H21: =IF(ISBLANK(All_Other_Pharmacies!Q21),"",All_Other_Pharmacies!Q21) -> No
B22: =IF(ISBLANK(All_Other_Pharmacies!D22),"",All_Other_Pharmacies!D22) -> 2025-11-12 | C22: =IF(ISBLANK(All_Other_Pharmacies!E22),"",All_Other_Pharmacies!E22) -> 30 | D22: =IF(ISBLANK(All_Other_Pharmacies!H22),"",All_Other_Pharmacies!H22) -> $7.65 | E22: =IF(ISBLANK(All_Other_Pharmacies!K22),"",All_Other_Pharmacies!K22) -> $3.46 | F22: =IF(ISBLANK(All_Other_Pharmacies!M22),"",All_Other_Pharmacies!M22) -> 2025-10-22 | G22: =IF(ISBLANK(All_Other_Pharmacies!P22),"",All_Other_Pharmacies!P22) -> No | H22: =IF(ISBLANK(All_Other_Pharmacies!Q22),"",All_Other_Pharmacies!Q22) -> No
B23: =IF(ISBLANK(All_Other_Pharmacies!D23),"",All_Other_Pharmacies!D23) -> 2025-10-27 | C23: =IF(ISBLANK(All_Other_Pharmacies!E23),"",All_Other_Pharmacies!E23) -> 30 | D23: =IF(ISBLANK(All_Other_Pharmacies!H23),"",All_Other_Pharmacies!H23) -> $0.19 | E23: =IF(ISBLANK(All_Other_Pharmacies!K23),"",All_Other_Pharmacies!K23) -> $0.11 | F23: =IF(ISBLANK(All_Other_Pharmacies!M23),"",All_Other_Pharmacies!M23) -> 2025-10-22 | G23: =IF(ISBLANK(All_Other_Pharmacies!P23),"",All_Other_Pharmacies!P23) -> No | H23: =IF(ISBLANK(All_Other_Pharmacies!Q23),"",All_Other_Pharmacies!Q23) -> No
B24: =IF(ISBLANK(All_Other_Pharmacies!D24),"",All_Other_Pharmacies!D24) -> 2025-11-04 | C24: =IF(ISBLANK(All_Other_Pharmacies!E24),"",All_Other_Pharmacies!E24) -> 30 | D24: =IF(ISBLANK(All_Other_Pharmacies!H24),"",All_Other_Pharmacies!H24) -> $0.78 | E24: =IF(ISBLANK(All_Other_Pharmacies!K24),"",All_Other_Pharmacies!K24) -> $0.43 | F24: =IF(ISBLANK(All_Other_Pharmacies!M24),"",All_Other_Pharmacies!M24) -> 2025-10-22 | G24: =IF(ISBLANK(All_Other_Pharmacies!P24),"",All_Other_Pharmacies!P24) -> No | H24: =IF(ISBLANK(All_Other_Pharmacies!Q24),"",All_Other_Pharmacies!Q24) -> No
B25: =IF(ISBLANK(All_Other_Pharmacies!D25),"",All_Other_Pharmacies!D25) -> 2025-11-12 | C25: =IF(ISBLANK(All_Other_Pharmacies!E25),"",All_Other_Pharmacies!E25) -> 30 | D25: =IF(ISBLANK(All_Other_Pharmacies!H25),"",All_Other_Pharmacies!H25) -> $0.25 | E25: =IF(ISBLANK(All_Other_Pharmacies!K25),"",All_Other_Pharmacies!K25) -> $0.13 | F25: =IF(ISBLANK(All_Other_Pharmacies!M25),"",All_Other_Pharmacies!M25) -> 2025-10-22 | G25: =IF(ISBLANK(All_Other_Pharmacies!P25),"",All_Other_Pharmacies!P25) -> No | H25: =IF(ISBLANK(All_Other_Pharmacies!Q25),"",All_Other_Pharmacies!Q25) -> No
B26: =IF(ISBLANK(All_Other_Pharmacies!D26),"",All_Other_Pharmacies!D26) -> 2025-12-03 | C26: =IF(ISBLANK(All_Other_Pharmacies!E26),"",All_Other_Pharmacies!E26) -> 30 | D26: =IF(ISBLANK(All_Other_Pharmacies!H26),"",All_Other_Pharmacies!H26) -> $0.46 | E26: =IF(ISBLANK(All_Other_Pharmacies!K26),"",All_Other_Pharmacies!K26) -> $0.27 | F26: =IF(ISBLANK(All_Other_Pharmacies!M26),"",All_Other_Pharmacies!M26) -> 2025-11-19 | G26: =IF(ISBLANK(All_Other_Pharmacies!P26),"",All_Other_Pharmacies!P26) -> No | H26: =IF(ISBLANK(All_Other_Pharmacies!Q26),"",All_Other_Pharmacies!Q26) -> No
B27: =IF(ISBLANK(All_Other_Pharmacies!D27),"",All_Other_Pharmacies!D27) -> 2025-11-22 | C27: =IF(ISBLANK(All_Other_Pharmacies!E27),"",All_Other_Pharmacies!E27) -> 30 | D27: =IF(ISBLANK(All_Other_Pharmacies!H27),"",All_Other_Pharmacies!H27) -> $0.13 | E27: =IF(ISBLANK(All_Other_Pharmacies!K27),"",All_Other_Pharmacies!K27) -> $0.12 | F27: =IF(ISBLANK(All_Other_Pharmacies!M27),"",All_Other_Pharmacies!M27) -> 2025-11-19 | G27: =IF(ISBLANK(All_Other_Pharmacies!P27),"",All_Other_Pharmacies!P27) -> No | H27: =IF(ISBLANK(All_Other_Pharmacies!Q27),"",All_Other_Pharmacies!Q27) -> No
B28: =IF(ISBLANK(All_Other_Pharmacies!D28),"",All_Other_Pharmacies!D28) -> 2025-11-04 | C28: =IF(ISBLANK(All_Other_Pharmacies!E28),"",All_Other_Pharmacies!E28) -> 30 | D28: =IF(ISBLANK(All_Other_Pharmacies!H28),"",All_Other_Pharmacies!H28) -> $0.26 | E28: =IF(ISBLANK(All_Other_Pharmacies!K28),"",All_Other_Pharmacies!K28) -> $0.14 | F28: =IF(ISBLANK(All_Other_Pharmacies!M28),"",All_Other_Pharmacies!M28) -> 2025-10-22 | G28: =IF(ISBLANK(All_Other_Pharmacies!P28),"",All_Other_Pharmacies!P28) -> No | H28: =IF(ISBLANK(All_Other_Pharmacies!Q28),"",All_Other_Pharmacies!Q28) -> No
B29: =IF(ISBLANK(All_Other_Pharmacies!D29),"",All_Other_Pharmacies!D29) -> 2025-12-02 | C29: =IF(ISBLANK(All_Other_Pharmacies!E29),"",All_Other_Pharmacies!E29) -> 70 | D29: =IF(ISBLANK(All_Other_Pharmacies!H29),"",All_Other_Pharmacies!H29) -> $2.10 | E29: =IF(ISBLANK(All_Other_Pharmacies!K29),"",All_Other_Pharmacies!K29) -> $2.40 | F29: =IF(ISBLANK(All_Other_Pharmacies!M29),"",All_Other_Pharmacies!M29) -> 2025-11-19 | G29: =IF(ISBLANK(All_Other_Pharmacies!P29),"",All_Other_Pharmacies!P29) -> No | H29: =IF(ISBLANK(All_Other_Pharmacies!Q29),"",All_Other_Pharmacies!Q29) -> No
B30: =IF(ISBLANK(All_Other_Pharmacies!D30),"",All_Other_Pharmacies!D30) -> 2025-11-13 | C30: =IF(ISBLANK(All_Other_Pharmacies!E30),"",All_Other_Pharmacies!E30) -> 15 | D30: =IF(ISBLANK(All_Other_Pharmacies!H30),"",All_Other_Pharmacies!H30) -> $0.57 | E30: =IF(ISBLANK(All_Other_Pharmacies!K30),"",All_Other_Pharmacies!K30) -> $0.16 | F30: =IF(ISBLANK(All_Other_Pharmacies!M30),"",All_Other_Pharmacies!M30) -> 2025-10-22 | G30: =IF(ISBLANK(All_Other_Pharmacies!P30),"",All_Other_Pharmacies!P30) -> No | H30: =IF(ISBLANK(All_Other_Pharmacies!Q30),"",All_Other_Pharmacies!Q30) -> No
B31: =IF(ISBLANK(All_Other_Pharmacies!D31),"",All_Other_Pharmacies!D31) -> 2025-11-26 | C31: =IF(ISBLANK(All_Other_Pharmacies!E31),"",All_Other_Pharmacies!E31) -> 30 | D31: =IF(ISBLANK(All_Other_Pharmacies!H31),"",All_Other_Pharmacies!H31) -> $0.96 | E31: =IF(ISBLANK(All_Other_Pharmacies!K31),"",All_Other_Pharmacies!K31) -> $0.51 | F31: =IF(ISBLANK(All_Other_Pharmacies!M31),"",All_Other_Pharmacies!M31) -> 2025-11-19 | G31: =IF(ISBLANK(All_Other_Pharmacies!P31),"",All_Other_Pharmacies!P31) -> No | H31: =IF(ISBLANK(All_Other_Pharmacies!Q31),"",All_Other_Pharmacies!Q31) -> No
B32: =IF(ISBLANK(All_Other_Pharmacies!D32),"",All_Other_Pharmacies!D32) -> 2025-10-14 | C32: =IF(ISBLANK(All_Other_Pharmacies!E32),"",All_Other_Pharmacies!E32) -> 30 | D32: =IF(ISBLANK(All_Other_Pharmacies!H32),"",All_Other_Pharmacies!H32) -> $0.35 | E32: =IF(ISBLANK(All_Other_Pharmacies!K32),"",All_Other_Pharmacies!K32) -> $0.09 | F32: =IF(ISBLANK(All_Other_Pharmacies!M32),"",All_Other_Pharmacies!M32) -> 2025-09-17 | G32: =IF(ISBLANK(All_Other_Pharmacies!P32),"",All_Other_Pharmacies!P32) -> No | H32: =IF(ISBLANK(All_Other_Pharmacies!Q32),"",All_Other_Pharmacies!Q32) -> No
B33: =IF(ISBLANK(All_Other_Pharmacies!D33),"",All_Other_Pharmacies!D33) -> 2025-12-03 | C33: =IF(ISBLANK(All_Other_Pharmacies!E33),"",All_Other_Pharmacies!E33) -> 30 | D33: =IF(ISBLANK(All_Other_Pharmacies!H33),"",All_Other_Pharmacies!H33) -> $0.29 | E33: =IF(ISBLANK(All_Other_Pharmacies!K33),"",All_Other_Pharmacies!K33) -> $0.03 | F33: =IF(ISBLANK(All_Other_Pharmacies!M33),"",All_Other_Pharmacies!M33) -> 2025-11-19 | G33: =IF(ISBLANK(All_Other_Pharmacies!P33),"",All_Other_Pharmacies!P33) -> No | H33: =IF(ISBLANK(All_Other_Pharmacies!Q33),"",All_Other_Pharmacies!Q33) -> No
B34: =IF(ISBLANK(All_Other_Pharmacies!D34),"",All_Other_Pharmacies!D34) -> 2025-12-15 | C34: =IF(ISBLANK(All_Other_Pharmacies!E34),"",All_Other_Pharmacies!E34) -> 30 | D34: =IF(ISBLANK(All_Other_Pharmacies!H34),"",All_Other_Pharmacies!H34) -> $7.65 | E34: =IF(ISBLANK(All_Other_Pharmacies!K34),"",All_Other_Pharmacies!K34) -> $3.44 | F34: =IF(ISBLANK(All_Other_Pharmacies!M34),"",All_Other_Pharmacies!M34) -> 2025-11-19 | G34: =IF(ISBLANK(All_Other_Pharmacies!P34),"",All_Other_Pharmacies!P34) -> No | H34: =IF(ISBLANK(All_Other_Pharmacies!Q34),"",All_Other_Pharmacies!Q34) -> No
B35: =IF(ISBLANK(All_Other_Pharmacies!D35),"",All_Other_Pharmacies!D35) -> 2025-10-08 | C35: =IF(ISBLANK(All_Other_Pharmacies!E35),"",All_Other_Pharmacies!E35) -> 30 | D35: =IF(ISBLANK(All_Other_Pharmacies!H35),"",All_Other_Pharmacies!H35) -> $7.65 | E35: =IF(ISBLANK(All_Other_Pharmacies!K35),"",All_Other_Pharmacies!K35) -> $3.53 | F35: =IF(ISBLANK(All_Other_Pharmacies!M35),"",All_Other_Pharmacies!M35) -> 2025-09-17 | G35: =IF(ISBLANK(All_Other_Pharmacies!P35),"",All_Other_Pharmacies!P35) -> No | H35: =IF(ISBLANK(All_Other_Pharmacies!Q35),"",All_Other_Pharmacies!Q35) -> No
B36: =IF(ISBLANK(All_Other_Pharmacies!D36),"",All_Other_Pharmacies!D36) -> 2025-10-27 | C36: =IF(ISBLANK(All_Other_Pharmacies!E36),"",All_Other_Pharmacies!E36) -> 180 | D36: =IF(ISBLANK(All_Other_Pharmacies!H36),"",All_Other_Pharmacies!H36) -> $0.03 | E36: =IF(ISBLANK(All_Other_Pharmacies!K36),"",All_Other_Pharmacies!K36) -> $0.11 | F36: =IF(ISBLANK(All_Other_Pharmacies!M36),"",All_Other_Pharmacies!M36) -> 2025-10-22 | G36: =IF(ISBLANK(All_Other_Pharmacies!P36),"",All_Other_Pharmacies!P36) -> No | H36: =IF(ISBLANK(All_Other_Pharmacies!Q36),"",All_Other_Pharmacies!Q36) -> No
B37: =IF(ISBLANK(All_Other_Pharmacies!D37),"",All_Other_Pharmacies!D37) -> 2025-10-23 | C37: =IF(ISBLANK(All_Other_Pharmacies!E37),"",All_Other_Pharmacies!E37) -> 30 | D37: =IF(ISBLANK(All_Other_Pharmacies!H37),"",All_Other_Pharmacies!H37) -> $1.48 | E37: =IF(ISBLANK(All_Other_Pharmacies!K37),"",All_Other_Pharmacies!K37) -> $0.18 | F37: =IF(ISBLANK(All_Other_Pharmacies!M37),"",All_Other_Pharmacies!M37) -> 2025-10-22 | G37: =IF(ISBLANK(All_Other_Pharmacies!P37),"",All_Other_Pharmacies!P37) -> No | H37: =IF(ISBLANK(All_Other_Pharmacies!Q37),"",All_Other_Pharmacies!Q37) -> No
B38: =IF(ISBLANK(All_Other_Pharmacies!D38),"",All_Other_Pharmacies!D38) -> 2025-12-18 | C38: =IF(ISBLANK(All_Other_Pharmacies!E38),"",All_Other_Pharmacies!E38) -> 30 | D38: =IF(ISBLANK(All_Other_Pharmacies!H38),"",All_Other_Pharmacies!H38) -> $0.89 | E38: =IF(ISBLANK(All_Other_Pharmacies!K38),"",All_Other_Pharmacies!K38) -> $0.58 | F38: =IF(ISBLANK(All_Other_Pharmacies!M38),"",All_Other_Pharmacies!M38) -> 2025-12-17 | G38: =IF(ISBLANK(All_Other_Pharmacies!P38),"",All_Other_Pharmacies!P38) -> No | H38: =IF(ISBLANK(All_Other_Pharmacies!Q38),"",All_Other_Pharmacies!Q38) -> No
B39: =IF(ISBLANK(All_Other_Pharmacies!D39),"",All_Other_Pharmacies!D39) -> 2025-10-24 | C39: =IF(ISBLANK(All_Other_Pharmacies!E39),"",All_Other_Pharmacies!E39) -> 30 | D39: =IF(ISBLANK(All_Other_Pharmacies!H39),"",All_Other_Pharmacies!H39) -> $0.09 | E39: =IF(ISBLANK(All_Other_Pharmacies!K39),"",All_Other_Pharmacies!K39) -> $0.02 | F39: =IF(ISBLANK(All_Other_Pharmacies!M39),"",All_Other_Pharmacies!M39) -> 2025-10-22 | G39: =IF(ISBLANK(All_Other_Pharmacies!P39),"",All_Other_Pharmacies!P39) -> No | H39: =IF(ISBLANK(All_Other_Pharmacies!Q39),"",All_Other_Pharmacies!Q39) -> No
B40: =IF(ISBLANK(All_Other_Pharmacies!D40),"",All_Other_Pharmacies!D40) -> 2025-11-22 | C40: =IF(ISBLANK(All_Other_Pharmacies!E40),"",All_Other_Pharmacies!E40) -> 30 | D40: =IF(ISBLANK(All_Other_Pharmacies!H40),"",All_Other_Pharmacies!H40) -> $0.16 | E40: =IF(ISBLANK(All_Other_Pharmacies!K40),"",All_Other_Pharmacies!K40) -> $0.03 | F40: =IF(ISBLANK(All_Other_Pharmacies!M40),"",All_Other_Pharmacies!M40) -> 2025-11-19 | G40: =IF(ISBLANK(All_Other_Pharmacies!P40),"",All_Other_Pharmacies!P40) -> No | H40: =IF(ISBLANK(All_Other_Pharmacies!Q40),"",All_Other_Pharmacies!Q40) -> No
B41: =IF(ISBLANK(All_Other_Pharmacies!D41),"",All_Other_Pharmacies!D41) -> 2025-12-15 | C41: =IF(ISBLANK(All_Other_Pharmacies!E41),"",All_Other_Pharmacies!E41) -> 28 | D41: =IF(ISBLANK(All_Other_Pharmacies!H41),"",All_Other_Pharmacies!H41) -> $0.18 | E41: =IF(ISBLANK(All_Other_Pharmacies!K41),"",All_Other_Pharmacies!K41) -> $0.09 | F41: =IF(ISBLANK(All_Other_Pharmacies!M41),"",All_Other_Pharmacies!M41) -> 2025-11-19 | G41: =IF(ISBLANK(All_Other_Pharmacies!P41),"",All_Other_Pharmacies!P41) -> No | H41: =IF(ISBLANK(All_Other_Pharmacies!Q41),"",All_Other_Pharmacies!Q41) -> No
B42: =IF(ISBLANK(All_Other_Pharmacies!D42),"",All_Other_Pharmacies!D42) -> 2025-12-01 | C42: =IF(ISBLANK(All_Other_Pharmacies!E42),"",All_Other_Pharmacies!E42) -> 270 | D42: =IF(ISBLANK(All_Other_Pharmacies!H42),"",All_Other_Pharmacies!H42) -> $0.11 | E42: =IF(ISBLANK(All_Other_Pharmacies!K42),"",All_Other_Pharmacies!K42) -> $0.02 | F42: =IF(ISBLANK(All_Other_Pharmacies!M42),"",All_Other_Pharmacies!M42) -> 2025-11-19 | G42: =IF(ISBLANK(All_Other_Pharmacies!P42),"",All_Other_Pharmacies!P42) -> No | H42: =IF(ISBLANK(All_Other_Pharmacies!Q42),"",All_Other_Pharmacies!Q42) -> No
B43: =IF(ISBLANK(All_Other_Pharmacies!D43),"",All_Other_Pharmacies!D43) -> 2025-11-12 | C43: =IF(ISBLANK(All_Other_Pharmacies!E43),"",All_Other_Pharmacies!E43) -> 30 | D43: =IF(ISBLANK(All_Other_Pharmacies!H43),"",All_Other_Pharmacies!H43) -> $0.35 | E43: =IF(ISBLANK(All_Other_Pharmacies!K43),"",All_Other_Pharmacies!K43) -> $0.09 | F43: =IF(ISBLANK(All_Other_Pharmacies!M43),"",All_Other_Pharmacies!M43) -> 2025-10-22 | G43: =IF(ISBLANK(All_Other_Pharmacies!P43),"",All_Other_Pharmacies!P43) -> No | H43: =IF(ISBLANK(All_Other_Pharmacies!Q43),"",All_Other_Pharmacies!Q43) -> No
B44: =IF(ISBLANK(All_Other_Pharmacies!D44),"",All_Other_Pharmacies!D44) -> 2025-12-15 | C44: =IF(ISBLANK(All_Other_Pharmacies!E44),"",All_Other_Pharmacies!E44) -> 12 | D44: =IF(ISBLANK(All_Other_Pharmacies!H44),"",All_Other_Pharmacies!H44) -> $4.47 | E44: =IF(ISBLANK(All_Other_Pharmacies!K44),"",All_Other_Pharmacies!K44) -> $20.56 | F44: =IF(ISBLANK(All_Other_Pharmacies!M44),"",All_Other_Pharmacies!M44) -> 2025-11-19 | G44: =IF(ISBLANK(All_Other_Pharmacies!P44),"",All_Other_Pharmacies!P44) -> No | H44: =IF(ISBLANK(All_Other_Pharmacies!Q44),"",All_Other_Pharmacies!Q44) -> No
B45: =IF(ISBLANK(All_Other_Pharmacies!D45),"",All_Other_Pharmacies!D45) -> 2025-10-23 | C45: =IF(ISBLANK(All_Other_Pharmacies!E45),"",All_Other_Pharmacies!E45) -> 30 | D45: =IF(ISBLANK(All_Other_Pharmacies!H45),"",All_Other_Pharmacies!H45) -> $0.10 | E45: =IF(ISBLANK(All_Other_Pharmacies!K45),"",All_Other_Pharmacies!K45) -> $0.03 | F45: =IF(ISBLANK(All_Other_Pharmacies!M45),"",All_Other_Pharmacies!M45) -> 2025-10-22 | G45: =IF(ISBLANK(All_Other_Pharmacies!P45),"",All_Other_Pharmacies!P45) -> No | H45: =IF(ISBLANK(All_Other_Pharmacies!Q45),"",All_Other_Pharmacies!Q45) -> No
B46: =IF(ISBLANK(All_Other_Pharmacies!D46),"",All_Other_Pharmacies!D46) -> 2025-11-13 | C46: =IF(ISBLANK(All_Other_Pharmacies!E46),"",All_Other_Pharmacies!E46) -> 14 | D46: =IF(ISBLANK(All_Other_Pharmacies!H46),"",All_Other_Pharmacies!H46) -> $0.44 | E46: =IF(ISBLANK(All_Other_Pharmacies!K46),"",All_Other_Pharmacies!K46) -> $0.15 | F46: =IF(ISBLANK(All_Other_Pharmacies!M46),"",All_Other_Pharmacies!M46) -> 2025-10-22 | G46: =IF(ISBLANK(All_Other_Pharmacies!P46),"",All_Other_Pharmacies!P46) -> No | H46: =IF(ISBLANK(All_Other_Pharmacies!Q46),"",All_Other_Pharmacies!Q46) -> No
B47: =IF(ISBLANK(All_Other_Pharmacies!D47),"",All_Other_Pharmacies!D47) -> 2025-10-30 | C47: =IF(ISBLANK(All_Other_Pharmacies!E47),"",All_Other_Pharmacies!E47) -> 30 | D47: =IF(ISBLANK(All_Other_Pharmacies!H47),"",All_Other_Pharmacies!H47) -> $0.96 | E47: =IF(ISBLANK(All_Other_Pharmacies!K47),"",All_Other_Pharmacies!K47) -> $0.49 | F47: =IF(ISBLANK(All_Other_Pharmacies!M47),"",All_Other_Pharmacies!M47) -> 2025-10-22 | G47: =IF(ISBLANK(All_Other_Pharmacies!P47),"",All_Other_Pharmacies!P47) -> No | H47: =IF(ISBLANK(All_Other_Pharmacies!Q47),"",All_Other_Pharmacies!Q47) -> No
B48: =IF(ISBLANK(All_Other_Pharmacies!D48),"",All_Other_Pharmacies!D48) -> 2025-12-23 | C48: =IF(ISBLANK(All_Other_Pharmacies!E48),"",All_Other_Pharmacies!E48) -> 30 | D48: =IF(ISBLANK(All_Other_Pharmacies!H48),"",All_Other_Pharmacies!H48) -> $0.96 | E48: =IF(ISBLANK(All_Other_Pharmacies!K48),"",All_Other_Pharmacies!K48) -> $0.54 | F48: =IF(ISBLANK(All_Other_Pharmacies!M48),"",All_Other_Pharmacies!M48) -> 2025-12-17 | G48: =IF(ISBLANK(All_Other_Pharmacies!P48),"",All_Other_Pharmacies!P48) -> No | H48: =IF(ISBLANK(All_Other_Pharmacies!Q48),"",All_Other_Pharmacies!Q48) -> No
B49: =IF(ISBLANK(All_Other_Pharmacies!D49),"",All_Other_Pharmacies!D49) -> 2025-11-15 | C49: =IF(ISBLANK(All_Other_Pharmacies!E49),"",All_Other_Pharmacies!E49) -> 30 | D49: =IF(ISBLANK(All_Other_Pharmacies!H49),"",All_Other_Pharmacies!H49) -> $0.29 | E49: =IF(ISBLANK(All_Other_Pharmacies!K49),"",All_Other_Pharmacies!K49) -> $0.03 | F49: =IF(ISBLANK(All_Other_Pharmacies!M49),"",All_Other_Pharmacies!M49) -> 2025-10-22 | G49: =IF(ISBLANK(All_Other_Pharmacies!P49),"",All_Other_Pharmacies!P49) -> No | H49: =IF(ISBLANK(All_Other_Pharmacies!Q49),"",All_Other_Pharmacies!Q49) -> No
B50: =IF(ISBLANK(All_Other_Pharmacies!D50),"",All_Other_Pharmacies!D50) -> 2025-10-06 | C50: =IF(ISBLANK(All_Other_Pharmacies!E50),"",All_Other_Pharmacies!E50) -> 30 | D50: =IF(ISBLANK(All_Other_Pharmacies!H50),"",All_Other_Pharmacies!H50) -> $0.25 | E50: =IF(ISBLANK(All_Other_Pharmacies!K50),"",All_Other_Pharmacies!K50) -> $0.13 | F50: =IF(ISBLANK(All_Other_Pharmacies!M50),"",All_Other_Pharmacies!M50) -> 2025-09-17 | G50: =IF(ISBLANK(All_Other_Pharmacies!P50),"",All_Other_Pharmacies!P50) -> No | H50: =IF(ISBLANK(All_Other_Pharmacies!Q50),"",All_Other_Pharmacies!Q50) -> No
B51: =IF(ISBLANK(All_Other_Pharmacies!D51),"",All_Other_Pharmacies!D51) -> 2025-11-15 | C51: =IF(ISBLANK(All_Other_Pharmacies!E51),"",All_Other_Pharmacies!E51) -> 30 | D51: =IF(ISBLANK(All_Other_Pharmacies!H51),"",All_Other_Pharmacies!H51) -> $0.10 | E51: =IF(ISBLANK(All_Other_Pharmacies!K51),"",All_Other_Pharmacies!K51) -> $0.03 | F51: =IF(ISBLANK(All_Other_Pharmacies!M51),"",All_Other_Pharmacies!M51) -> 2025-10-22 | G51: =IF(ISBLANK(All_Other_Pharmacies!P51),"",All_Other_Pharmacies!P51) -> No | H51: =IF(ISBLANK(All_Other_Pharmacies!Q51),"",All_Other_Pharmacies!Q51) -> No
B52: =IF(ISBLANK(All_Other_Pharmacies!D52),"",All_Other_Pharmacies!D52) -> 2025-11-24 | C52: =IF(ISBLANK(All_Other_Pharmacies!E52),"",All_Other_Pharmacies!E52) -> 90 | D52: =IF(ISBLANK(All_Other_Pharmacies!H52),"",All_Other_Pharmacies!H52) -> $0.19 | E52: =IF(ISBLANK(All_Other_Pharmacies!K52),"",All_Other_Pharmacies!K52) -> $0.10 | F52: =IF(ISBLANK(All_Other_Pharmacies!M52),"",All_Other_Pharmacies!M52) -> 2025-11-19 | G52: =IF(ISBLANK(All_Other_Pharmacies!P52),"",All_Other_Pharmacies!P52) -> No | H52: =IF(ISBLANK(All_Other_Pharmacies!Q52),"",All_Other_Pharmacies!Q52) -> No
B53: =IF(ISBLANK(All_Other_Pharmacies!D53),"",All_Other_Pharmacies!D53) -> 2025-12-29 | C53: =IF(ISBLANK(All_Other_Pharmacies!E53),"",All_Other_Pharmacies!E53) -> 30 | D53: =IF(ISBLANK(All_Other_Pharmacies!H53),"",All_Other_Pharmacies!H53) -> $0.25 | E53: =IF(ISBLANK(All_Other_Pharmacies!K53),"",All_Other_Pharmacies!K53) -> $0.13 | F53: =IF(ISBLANK(All_Other_Pharmacies!M53),"",All_Other_Pharmacies!M53) -> 2025-12-17 | G53: =IF(ISBLANK(All_Other_Pharmacies!P53),"",All_Other_Pharmacies!P53) -> No | H53: =IF(ISBLANK(All_Other_Pharmacies!Q53),"",All_Other_Pharmacies!Q53) -> No
B54: =IF(ISBLANK(All_Other_Pharmacies!D54),"",All_Other_Pharmacies!D54) -> 2025-10-29 | C54: =IF(ISBLANK(All_Other_Pharmacies!E54),"",All_Other_Pharmacies!E54) -> 30 | D54: =IF(ISBLANK(All_Other_Pharmacies!H54),"",All_Other_Pharmacies!H54) -> $0.23 | E54: =IF(ISBLANK(All_Other_Pharmacies!K54),"",All_Other_Pharmacies!K54) -> $0.10 | F54: =IF(ISBLANK(All_Other_Pharmacies!M54),"",All_Other_Pharmacies!M54) -> 2025-10-22 | G54: =IF(ISBLANK(All_Other_Pharmacies!P54),"",All_Other_Pharmacies!P54) -> No | H54: =IF(ISBLANK(All_Other_Pharmacies!Q54),"",All_Other_Pharmacies!Q54) -> No
B55: =IF(ISBLANK(All_Other_Pharmacies!D55),"",All_Other_Pharmacies!D55) -> 2025-12-01 | C55: =IF(ISBLANK(All_Other_Pharmacies!E55),"",All_Other_Pharmacies!E55) -> 29 | D55: =IF(ISBLANK(All_Other_Pharmacies!H55),"",All_Other_Pharmacies!H55) -> $0.96 | E55: =IF(ISBLANK(All_Other_Pharmacies!K55),"",All_Other_Pharmacies!K55) -> $0.47 | F55: =IF(ISBLANK(All_Other_Pharmacies!M55),"",All_Other_Pharmacies!M55) -> 2025-11-19 | G55: =IF(ISBLANK(All_Other_Pharmacies!P55),"",All_Other_Pharmacies!P55) -> No | H55: =IF(ISBLANK(All_Other_Pharmacies!Q55),"",All_Other_Pharmacies!Q55) -> No
B56: =IF(ISBLANK(All_Other_Pharmacies!D56),"",All_Other_Pharmacies!D56) -> 2025-10-17 | C56: =IF(ISBLANK(All_Other_Pharmacies!E56),"",All_Other_Pharmacies!E56) -> 30 | D56: =IF(ISBLANK(All_Other_Pharmacies!H56),"",All_Other_Pharmacies!H56) -> $0.29 | E56: =IF(ISBLANK(All_Other_Pharmacies!K56),"",All_Other_Pharmacies!K56) -> $0.03 | F56: =IF(ISBLANK(All_Other_Pharmacies!M56),"",All_Other_Pharmacies!M56) -> 2025-09-17 | G56: =IF(ISBLANK(All_Other_Pharmacies!P56),"",All_Other_Pharmacies!P56) -> No | H56: =IF(ISBLANK(All_Other_Pharmacies!Q56),"",All_Other_Pharmacies!Q56) -> No
B57: =IF(ISBLANK(All_Other_Pharmacies!D57),"",All_Other_Pharmacies!D57) -> 2025-10-22 | C57: =IF(ISBLANK(All_Other_Pharmacies!E57),"",All_Other_Pharmacies!E57) -> 30 | D57: =IF(ISBLANK(All_Other_Pharmacies!H57),"",All_Other_Pharmacies!H57) -> $0.29 | E57: =IF(ISBLANK(All_Other_Pharmacies!K57),"",All_Other_Pharmacies!K57) -> $0.03 | F57: =IF(ISBLANK(All_Other_Pharmacies!M57),"",All_Other_Pharmacies!M57) -> 2025-09-17 | G57: =IF(ISBLANK(All_Other_Pharmacies!P57),"",All_Other_Pharmacies!P57) -> No | H57: =IF(ISBLANK(All_Other_Pharmacies!Q57),"",All_Other_Pharmacies!Q57) -> No
B58: =IF(ISBLANK(All_Other_Pharmacies!D58),"",All_Other_Pharmacies!D58) -> 2025-12-03 | C58: =IF(ISBLANK(All_Other_Pharmacies!E58),"",All_Other_Pharmacies!E58) -> 14 | D58: =IF(ISBLANK(All_Other_Pharmacies!H58),"",All_Other_Pharmacies!H58) -> $0.44 | E58: =IF(ISBLANK(All_Other_Pharmacies!K58),"",All_Other_Pharmacies!K58) -> $0.15 | F58: =IF(ISBLANK(All_Other_Pharmacies!M58),"",All_Other_Pharmacies!M58) -> 2025-11-19 | G58: =IF(ISBLANK(All_Other_Pharmacies!P58),"",All_Other_Pharmacies!P58) -> No | H58: =IF(ISBLANK(All_Other_Pharmacies!Q58),"",All_Other_Pharmacies!Q58) -> No
B59: =IF(ISBLANK(All_Other_Pharmacies!D59),"",All_Other_Pharmacies!D59) -> 2025-11-24 | C59: =IF(ISBLANK(All_Other_Pharmacies!E59),"",All_Other_Pharmacies!E59) -> 90 | D59: =IF(ISBLANK(All_Other_Pharmacies!H59),"",All_Other_Pharmacies!H59) -> $0.36 | E59: =IF(ISBLANK(All_Other_Pharmacies!K59),"",All_Other_Pharmacies!K59) -> $0.06 | F59: =IF(ISBLANK(All_Other_Pharmacies!M59),"",All_Other_Pharmacies!M59) -> 2025-11-19 | G59: =IF(ISBLANK(All_Other_Pharmacies!P59),"",All_Other_Pharmacies!P59) -> No | H59: =IF(ISBLANK(All_Other_Pharmacies!Q59),"",All_Other_Pharmacies!Q59) -> No
B60: =IF(ISBLANK(All_Other_Pharmacies!D60),"",All_Other_Pharmacies!D60) -> 2025-11-15 | C60: =IF(ISBLANK(All_Other_Pharmacies!E60),"",All_Other_Pharmacies!E60) -> 12 | D60: =IF(ISBLANK(All_Other_Pharmacies!H60),"",All_Other_Pharmacies!H60) -> $4.47 | E60: =IF(ISBLANK(All_Other_Pharmacies!K60),"",All_Other_Pharmacies!K60) -> $20.49 | F60: =IF(ISBLANK(All_Other_Pharmacies!M60),"",All_Other_Pharmacies!M60) -> 2025-10-22 | G60: =IF(ISBLANK(All_Other_Pharmacies!P60),"",All_Other_Pharmacies!P60) -> No | H60: =IF(ISBLANK(All_Other_Pharmacies!Q60),"",All_Other_Pharmacies!Q60) -> No
B61: =IF(ISBLANK(All_Other_Pharmacies!D61),"",All_Other_Pharmacies!D61) -> 2025-10-24 | C61: =IF(ISBLANK(All_Other_Pharmacies!E61),"",All_Other_Pharmacies!E61) -> 84 | D61: =IF(ISBLANK(All_Other_Pharmacies!H61),"",All_Other_Pharmacies!H61) -> $0.18 | E61: =IF(ISBLANK(All_Other_Pharmacies!K61),"",All_Other_Pharmacies!K61) -> $0.09 | F61: =IF(ISBLANK(All_Other_Pharmacies!M61),"",All_Other_Pharmacies!M61) -> 2025-10-22 | G61: =IF(ISBLANK(All_Other_Pharmacies!P61),"",All_Other_Pharmacies!P61) -> No | H61: =IF(ISBLANK(All_Other_Pharmacies!Q61),"",All_Other_Pharmacies!Q61) -> No
B62: =IF(ISBLANK(All_Other_Pharmacies!D62),"",All_Other_Pharmacies!D62) -> 2025-10-23 | C62: =IF(ISBLANK(All_Other_Pharmacies!E62),"",All_Other_Pharmacies!E62) -> 30 | D62: =IF(ISBLANK(All_Other_Pharmacies!H62),"",All_Other_Pharmacies!H62) -> $0.96 | E62: =IF(ISBLANK(All_Other_Pharmacies!K62),"",All_Other_Pharmacies!K62) -> $0.50 | F62: =IF(ISBLANK(All_Other_Pharmacies!M62),"",All_Other_Pharmacies!M62) -> 2025-10-22 | G62: =IF(ISBLANK(All_Other_Pharmacies!P62),"",All_Other_Pharmacies!P62) -> No | H62: =IF(ISBLANK(All_Other_Pharmacies!Q62),"",All_Other_Pharmacies!Q62) -> No
B63: =IF(ISBLANK(All_Other_Pharmacies!D63),"",All_Other_Pharmacies!D63) -> 2025-11-10 | C63: =IF(ISBLANK(All_Other_Pharmacies!E63),"",All_Other_Pharmacies!E63) -> 90 | D63: =IF(ISBLANK(All_Other_Pharmacies!H63),"",All_Other_Pharmacies!H63) -> $0.30 | E63: =IF(ISBLANK(All_Other_Pharmacies!K63),"",All_Other_Pharmacies!K63) -> $0.04 | F63: =IF(ISBLANK(All_Other_Pharmacies!M63),"",All_Other_Pharmacies!M63) -> 2025-10-22 | G63: =IF(ISBLANK(All_Other_Pharmacies!P63),"",All_Other_Pharmacies!P63) -> No | H63: =IF(ISBLANK(All_Other_Pharmacies!Q63),"",All_Other_Pharmacies!Q63) -> No
B64: =IF(ISBLANK(All_Other_Pharmacies!D64),"",All_Other_Pharmacies!D64) -> 2025-11-01 | C64: =IF(ISBLANK(All_Other_Pharmacies!E64),"",All_Other_Pharmacies!E64) -> 70 | D64: =IF(ISBLANK(All_Other_Pharmacies!H64),"",All_Other_Pharmacies!H64) -> $2.10 | E64: =IF(ISBLANK(All_Other_Pharmacies!K64),"",All_Other_Pharmacies!K64) -> $2.40 | F64: =IF(ISBLANK(All_Other_Pharmacies!M64),"",All_Other_Pharmacies!M64) -> 2025-10-22 | G64: =IF(ISBLANK(All_Other_Pharmacies!P64),"",All_Other_Pharmacies!P64) -> No | H64: =IF(ISBLANK(All_Other_Pharmacies!Q64),"",All_Other_Pharmacies!Q64) -> No
B65: =IF(ISBLANK(All_Other_Pharmacies!D65),"",All_Other_Pharmacies!D65) -> 2025-11-15 | C65: =IF(ISBLANK(All_Other_Pharmacies!E65),"",All_Other_Pharmacies!E65) -> 28 | D65: =IF(ISBLANK(All_Other_Pharmacies!H65),"",All_Other_Pharmacies!H65) -> $0.18 | E65: =IF(ISBLANK(All_Other_Pharmacies!K65),"",All_Other_Pharmacies!K65) -> $0.09 | F65: =IF(ISBLANK(All_Other_Pharmacies!M65),"",All_Other_Pharmacies!M65) -> 2025-10-22 | G65: =IF(ISBLANK(All_Other_Pharmacies!P65),"",All_Other_Pharmacies!P65) -> No | H65: =IF(ISBLANK(All_Other_Pharmacies!Q65),"",All_Other_Pharmacies!Q65) -> No
B66: =IF(ISBLANK(All_Other_Pharmacies!D66),"",All_Other_Pharmacies!D66) -> 2025-12-05 | C66: =IF(ISBLANK(All_Other_Pharmacies!E66),"",All_Other_Pharmacies!E66) -> 30 | D66: =IF(ISBLANK(All_Other_Pharmacies!H66),"",All_Other_Pharmacies!H66) -> $0.25 | E66: =IF(ISBLANK(All_Other_Pharmacies!K66),"",All_Other_Pharmacies!K66) -> $0.13 | F66: =IF(ISBLANK(All_Other_Pharmacies!M66),"",All_Other_Pharmacies!M66) -> 2025-11-19 | G66: =IF(ISBLANK(All_Other_Pharmacies!P66),"",All_Other_Pharmacies!P66) -> No | H66: =IF(ISBLANK(All_Other_Pharmacies!Q66),"",All_Other_Pharmacies!Q66) -> No
B67: =IF(ISBLANK(All_Other_Pharmacies!D67),"",All_Other_Pharmacies!D67) -> 2025-11-12 | C67: =IF(ISBLANK(All_Other_Pharmacies!E67),"",All_Other_Pharmacies!E67) -> 90 | D67: =IF(ISBLANK(All_Other_Pharmacies!H67),"",All_Other_Pharmacies!H67) -> $0.10 | E67: =IF(ISBLANK(All_Other_Pharmacies!K67),"",All_Other_Pharmacies!K67) -> $0.03 | F67: =IF(ISBLANK(All_Other_Pharmacies!M67),"",All_Other_Pharmacies!M67) -> 2025-10-22 | G67: =IF(ISBLANK(All_Other_Pharmacies!P67),"",All_Other_Pharmacies!P67) -> No | H67: =IF(ISBLANK(All_Other_Pharmacies!Q67),"",All_Other_Pharmacies!Q67) -> No
B68: =IF(ISBLANK(All_Other_Pharmacies!D68),"",All_Other_Pharmacies!D68) -> 2025-12-17 | C68: =IF(ISBLANK(All_Other_Pharmacies!E68),"",All_Other_Pharmacies!E68) -> 1 | D68: =IF(ISBLANK(All_Other_Pharmacies!H68),"",All_Other_Pharmacies!H68) -> $0.21 | E68: =IF(ISBLANK(All_Other_Pharmacies!K68),"",All_Other_Pharmacies!K68) -> $0.17 | F68: =IF(ISBLANK(All_Other_Pharmacies!M68),"",All_Other_Pharmacies!M68) -> 2025-11-19 | G68: =IF(ISBLANK(All_Other_Pharmacies!P68),"",All_Other_Pharmacies!P68) -> No | H68: =IF(ISBLANK(All_Other_Pharmacies!Q68),"",All_Other_Pharmacies!Q68) -> No
B69: =IF(ISBLANK(All_Other_Pharmacies!D69),"",All_Other_Pharmacies!D69) -> 2025-12-23 | C69: =IF(ISBLANK(All_Other_Pharmacies!E69),"",All_Other_Pharmacies!E69) -> 90 | D69: =IF(ISBLANK(All_Other_Pharmacies!H69),"",All_Other_Pharmacies!H69) -> $0.30 | E69: =IF(ISBLANK(All_Other_Pharmacies!K69),"",All_Other_Pharmacies!K69) -> $0.24 | F69: =IF(ISBLANK(All_Other_Pharmacies!M69),"",All_Other_Pharmacies!M69) -> 2025-12-17 | G69: =IF(ISBLANK(All_Other_Pharmacies!P69),"",All_Other_Pharmacies!P69) -> No | H69: =IF(ISBLANK(All_Other_Pharmacies!Q69),"",All_Other_Pharmacies!Q69) -> No
B70: =IF(ISBLANK(All_Other_Pharmacies!D70),"",All_Other_Pharmacies!D70) -> 2025-10-03 | C70: =IF(ISBLANK(All_Other_Pharmacies!E70),"",All_Other_Pharmacies!E70) -> 5 | D70: =IF(ISBLANK(All_Other_Pharmacies!H70),"",All_Other_Pharmacies!H70) -> $7.66 | E70: =IF(ISBLANK(All_Other_Pharmacies!K70),"",All_Other_Pharmacies!K70) -> $6.35 | F70: =IF(ISBLANK(All_Other_Pharmacies!M70),"",All_Other_Pharmacies!M70) -> 2025-09-17 | G70: =IF(ISBLANK(All_Other_Pharmacies!P70),"",All_Other_Pharmacies!P70) -> No | H70: =IF(ISBLANK(All_Other_Pharmacies!Q70),"",All_Other_Pharmacies!Q70) -> No
B71: =IF(ISBLANK(All_Other_Pharmacies!D71),"",All_Other_Pharmacies!D71) -> 2025-11-10 | C71: =IF(ISBLANK(All_Other_Pharmacies!E71),"",All_Other_Pharmacies!E71) -> 60 | D71: =IF(ISBLANK(All_Other_Pharmacies!H71),"",All_Other_Pharmacies!H71) -> $0.41 | E71: =IF(ISBLANK(All_Other_Pharmacies!K71),"",All_Other_Pharmacies!K71) -> $0.08 | F71: =IF(ISBLANK(All_Other_Pharmacies!M71),"",All_Other_Pharmacies!M71) -> 2025-10-22 | G71: =IF(ISBLANK(All_Other_Pharmacies!P71),"",All_Other_Pharmacies!P71) -> No | H71: =IF(ISBLANK(All_Other_Pharmacies!Q71),"",All_Other_Pharmacies!Q71) -> No
B72: =IF(ISBLANK(All_Other_Pharmacies!D72),"",All_Other_Pharmacies!D72) -> 2025-12-01 | C72: =IF(ISBLANK(All_Other_Pharmacies!E72),"",All_Other_Pharmacies!E72) -> 90 | D72: =IF(ISBLANK(All_Other_Pharmacies!H72),"",All_Other_Pharmacies!H72) -> $0.30 | E72: =IF(ISBLANK(All_Other_Pharmacies!K72),"",All_Other_Pharmacies!K72) -> $0.04 | F72: =IF(ISBLANK(All_Other_Pharmacies!M72),"",All_Other_Pharmacies!M72) -> 2025-11-19 | G72: =IF(ISBLANK(All_Other_Pharmacies!P72),"",All_Other_Pharmacies!P72) -> No | H72: =IF(ISBLANK(All_Other_Pharmacies!Q72),"",All_Other_Pharmacies!Q72) -> No
B73: =IF(ISBLANK(All_Other_Pharmacies!D73),"",All_Other_Pharmacies!D73) -> 2025-11-07 | C73: =IF(ISBLANK(All_Other_Pharmacies!E73),"",All_Other_Pharmacies!E73) -> 90 | D73: =IF(ISBLANK(All_Other_Pharmacies!H73),"",All_Other_Pharmacies!H73) -> $0.32 | E73: =IF(ISBLANK(All_Other_Pharmacies!K73),"",All_Other_Pharmacies!K73) -> $0.05 | F73: =IF(ISBLANK(All_Other_Pharmacies!M73),"",All_Other_Pharmacies!M73) -> 2025-10-22 | G73: =IF(ISBLANK(All_Other_Pharmacies!P73),"",All_Other_Pharmacies!P73) -> No | H73: =IF(ISBLANK(All_Other_Pharmacies!Q73),"",All_Other_Pharmacies!Q73) -> No
B74: =IF(ISBLANK(All_Other_Pharmacies!D74),"",All_Other_Pharmacies!D74) -> 2025-10-14 | C74: =IF(ISBLANK(All_Other_Pharmacies!E74),"",All_Other_Pharmacies!E74) -> 30 | D74: =IF(ISBLANK(All_Other_Pharmacies!H74),"",All_Other_Pharmacies!H74) -> $0.07 | E74: =IF(ISBLANK(All_Other_Pharmacies!K74),"",All_Other_Pharmacies!K74) -> $0.02 | F74: =IF(ISBLANK(All_Other_Pharmacies!M74),"",All_Other_Pharmacies!M74) -> 2025-09-17 | G74: =IF(ISBLANK(All_Other_Pharmacies!P74),"",All_Other_Pharmacies!P74) -> No | H74: =IF(ISBLANK(All_Other_Pharmacies!Q74),"",All_Other_Pharmacies!Q74) -> No
B75: =IF(ISBLANK(All_Other_Pharmacies!D75),"",All_Other_Pharmacies!D75) -> 2025-11-07 | C75: =IF(ISBLANK(All_Other_Pharmacies!E75),"",All_Other_Pharmacies!E75) -> 30 | D75: =IF(ISBLANK(All_Other_Pharmacies!H75),"",All_Other_Pharmacies!H75) -> $0.31 | E75: =IF(ISBLANK(All_Other_Pharmacies!K75),"",All_Other_Pharmacies!K75) -> $0.02 | F75: =IF(ISBLANK(All_Other_Pharmacies!M75),"",All_Other_Pharmacies!M75) -> 2025-10-22 | G75: =IF(ISBLANK(All_Other_Pharmacies!P75),"",All_Other_Pharmacies!P75) -> No | H75: =IF(ISBLANK(All_Other_Pharmacies!Q75),"",All_Other_Pharmacies!Q75) -> No
B76: =IF(ISBLANK(All_Other_Pharmacies!D76),"",All_Other_Pharmacies!D76) -> 2025-11-10 | C76: =IF(ISBLANK(All_Other_Pharmacies!E76),"",All_Other_Pharmacies!E76) -> 90 | D76: =IF(ISBLANK(All_Other_Pharmacies!H76),"",All_Other_Pharmacies!H76) -> $1.12 | E76: =IF(ISBLANK(All_Other_Pharmacies!K76),"",All_Other_Pharmacies!K76) -> $0.58 | F76: =IF(ISBLANK(All_Other_Pharmacies!M76),"",All_Other_Pharmacies!M76) -> 2025-10-22 | G76: =IF(ISBLANK(All_Other_Pharmacies!P76),"",All_Other_Pharmacies!P76) -> No | H76: =IF(ISBLANK(All_Other_Pharmacies!Q76),"",All_Other_Pharmacies!Q76) -> No
B77: =IF(ISBLANK(All_Other_Pharmacies!D77),"",All_Other_Pharmacies!D77) -> 2025-11-10 | C77: =IF(ISBLANK(All_Other_Pharmacies!E77),"",All_Other_Pharmacies!E77) -> 90 | D77: =IF(ISBLANK(All_Other_Pharmacies!H77),"",All_Other_Pharmacies!H77) -> $0.29 | E77: =IF(ISBLANK(All_Other_Pharmacies!K77),"",All_Other_Pharmacies!K77) -> $0.03 | F77: =IF(ISBLANK(All_Other_Pharmacies!M77),"",All_Other_Pharmacies!M77) -> 2025-10-22 | G77: =IF(ISBLANK(All_Other_Pharmacies!P77),"",All_Other_Pharmacies!P77) -> No | H77: =IF(ISBLANK(All_Other_Pharmacies!Q77),"",All_Other_Pharmacies!Q77) -> No
B78: =IF(ISBLANK(All_Other_Pharmacies!D78),"",All_Other_Pharmacies!D78) -> 2025-12-31 | C78: =IF(ISBLANK(All_Other_Pharmacies!E78),"",All_Other_Pharmacies!E78) -> 30 | D78: =IF(ISBLANK(All_Other_Pharmacies!H78),"",All_Other_Pharmacies!H78) -> $0.31 | E78: =IF(ISBLANK(All_Other_Pharmacies!K78),"",All_Other_Pharmacies!K78) -> $0.02 | F78: =IF(ISBLANK(All_Other_Pharmacies!M78),"",All_Other_Pharmacies!M78) -> 2025-12-17 | G78: =IF(ISBLANK(All_Other_Pharmacies!P78),"",All_Other_Pharmacies!P78) -> No | H78: =IF(ISBLANK(All_Other_Pharmacies!Q78),"",All_Other_Pharmacies!Q78) -> No
B79: =IF(ISBLANK(All_Other_Pharmacies!D79),"",All_Other_Pharmacies!D79) -> 2025-12-08 | C79: =IF(ISBLANK(All_Other_Pharmacies!E79),"",All_Other_Pharmacies!E79) -> 60 | D79: =IF(ISBLANK(All_Other_Pharmacies!H79),"",All_Other_Pharmacies!H79) -> $0.41 | E79: =IF(ISBLANK(All_Other_Pharmacies!K79),"",All_Other_Pharmacies!K79) -> $0.08 | F79: =IF(ISBLANK(All_Other_Pharmacies!M79),"",All_Other_Pharmacies!M79) -> 2025-11-19 | G79: =IF(ISBLANK(All_Other_Pharmacies!P79),"",All_Other_Pharmacies!P79) -> No | H79: =IF(ISBLANK(All_Other_Pharmacies!Q79),"",All_Other_Pharmacies!Q79) -> No
B80: =IF(ISBLANK(All_Other_Pharmacies!D80),"",All_Other_Pharmacies!D80) -> 2025-10-16 | C80: =IF(ISBLANK(All_Other_Pharmacies!E80),"",All_Other_Pharmacies!E80) -> 90 | D80: =IF(ISBLANK(All_Other_Pharmacies!H80),"",All_Other_Pharmacies!H80) -> $0.17 | E80: =IF(ISBLANK(All_Other_Pharmacies!K80),"",All_Other_Pharmacies!K80) -> $0.05 | F80: =IF(ISBLANK(All_Other_Pharmacies!M80),"",All_Other_Pharmacies!M80) -> 2025-09-17 | G80: =IF(ISBLANK(All_Other_Pharmacies!P80),"",All_Other_Pharmacies!P80) -> No | H80: =IF(ISBLANK(All_Other_Pharmacies!Q80),"",All_Other_Pharmacies!Q80) -> No
B81: =IF(ISBLANK(All_Other_Pharmacies!D81),"",All_Other_Pharmacies!D81) -> 2025-11-07 | C81: =IF(ISBLANK(All_Other_Pharmacies!E81),"",All_Other_Pharmacies!E81) -> 30 | D81: =IF(ISBLANK(All_Other_Pharmacies!H81),"",All_Other_Pharmacies!H81) -> $0.07 | E81: =IF(ISBLANK(All_Other_Pharmacies!K81),"",All_Other_Pharmacies!K81) -> $0.02 | F81: =IF(ISBLANK(All_Other_Pharmacies!M81),"",All_Other_Pharmacies!M81) -> 2025-10-22 | G81: =IF(ISBLANK(All_Other_Pharmacies!P81),"",All_Other_Pharmacies!P81) -> No | H81: =IF(ISBLANK(All_Other_Pharmacies!Q81),"",All_Other_Pharmacies!Q81) -> No
B82: =IF(ISBLANK(All_Other_Pharmacies!D82),"",All_Other_Pharmacies!D82) -> 2025-12-15 | C82: =IF(ISBLANK(All_Other_Pharmacies!E82),"",All_Other_Pharmacies!E82) -> 20 | D82: =IF(ISBLANK(All_Other_Pharmacies!H82),"",All_Other_Pharmacies!H82) -> $0.60 | E82: =IF(ISBLANK(All_Other_Pharmacies!K82),"",All_Other_Pharmacies!K82) -> $0.17 | F82: =IF(ISBLANK(All_Other_Pharmacies!M82),"",All_Other_Pharmacies!M82) -> 2025-11-19 | G82: =IF(ISBLANK(All_Other_Pharmacies!P82),"",All_Other_Pharmacies!P82) -> No | H82: =IF(ISBLANK(All_Other_Pharmacies!Q82),"",All_Other_Pharmacies!Q82) -> No
B83: =IF(ISBLANK(All_Other_Pharmacies!D83),"",All_Other_Pharmacies!D83) -> 2025-11-22 | C83: =IF(ISBLANK(All_Other_Pharmacies!E83),"",All_Other_Pharmacies!E83) -> 90 | D83: =IF(ISBLANK(All_Other_Pharmacies!H83),"",All_Other_Pharmacies!H83) -> $0.19 | E83: =IF(ISBLANK(All_Other_Pharmacies!K83),"",All_Other_Pharmacies!K83) -> $0.10 | F83: =IF(ISBLANK(All_Other_Pharmacies!M83),"",All_Other_Pharmacies!M83) -> 2025-11-19 | G83: =IF(ISBLANK(All_Other_Pharmacies!P83),"",All_Other_Pharmacies!P83) -> No | H83: =IF(ISBLANK(All_Other_Pharmacies!Q83),"",All_Other_Pharmacies!Q83) -> No
B84: =IF(ISBLANK(All_Other_Pharmacies!D84),"",All_Other_Pharmacies!D84) -> 2025-10-08 | C84: =IF(ISBLANK(All_Other_Pharmacies!E84),"",All_Other_Pharmacies!E84) -> 90 | D84: =IF(ISBLANK(All_Other_Pharmacies!H84),"",All_Other_Pharmacies!H84) -> $0.13 | E84: =IF(ISBLANK(All_Other_Pharmacies!K84),"",All_Other_Pharmacies!K84) -> $0.07 | F84: =IF(ISBLANK(All_Other_Pharmacies!M84),"",All_Other_Pharmacies!M84) -> 2025-09-17 | G84: =IF(ISBLANK(All_Other_Pharmacies!P84),"",All_Other_Pharmacies!P84) -> No | H84: =IF(ISBLANK(All_Other_Pharmacies!Q84),"",All_Other_Pharmacies!Q84) -> No
B85: =IF(ISBLANK(All_Other_Pharmacies!D85),"",All_Other_Pharmacies!D85) -> 2025-12-06 | C85: =IF(ISBLANK(All_Other_Pharmacies!E85),"",All_Other_Pharmacies!E85) -> 30 | D85: =IF(ISBLANK(All_Other_Pharmacies!H85),"",All_Other_Pharmacies!H85) -> $0.07 | E85: =IF(ISBLANK(All_Other_Pharmacies!K85),"",All_Other_Pharmacies!K85) -> $0.02 | F85: =IF(ISBLANK(All_Other_Pharmacies!M85),"",All_Other_Pharmacies!M85) -> 2025-11-19 | G85: =IF(ISBLANK(All_Other_Pharmacies!P85),"",All_Other_Pharmacies!P85) -> No | H85: =IF(ISBLANK(All_Other_Pharmacies!Q85),"",All_Other_Pharmacies!Q85) -> No
B86: =IF(ISBLANK(All_Other_Pharmacies!D86),"",All_Other_Pharmacies!D86) -> 2025-12-06 | C86: =IF(ISBLANK(All_Other_Pharmacies!E86),"",All_Other_Pharmacies!E86) -> 30 | D86: =IF(ISBLANK(All_Other_Pharmacies!H86),"",All_Other_Pharmacies!H86) -> $0.31 | E86: =IF(ISBLANK(All_Other_Pharmacies!K86),"",All_Other_Pharmacies!K86) -> $0.02 | F86: =IF(ISBLANK(All_Other_Pharmacies!M86),"",All_Other_Pharmacies!M86) -> 2025-11-19 | G86: =IF(ISBLANK(All_Other_Pharmacies!P86),"",All_Other_Pharmacies!P86) -> No | H86: =IF(ISBLANK(All_Other_Pharmacies!Q86),"",All_Other_Pharmacies!Q86) -> No
B87: =IF(ISBLANK(All_Other_Pharmacies!D87),"",All_Other_Pharmacies!D87) -> 2025-10-14 | C87: =IF(ISBLANK(All_Other_Pharmacies!E87),"",All_Other_Pharmacies!E87) -> 60 | D87: =IF(ISBLANK(All_Other_Pharmacies!H87),"",All_Other_Pharmacies!H87) -> $0.41 | E87: =IF(ISBLANK(All_Other_Pharmacies!K87),"",All_Other_Pharmacies!K87) -> $0.08 | F87: =IF(ISBLANK(All_Other_Pharmacies!M87),"",All_Other_Pharmacies!M87) -> 2025-09-17 | G87: =IF(ISBLANK(All_Other_Pharmacies!P87),"",All_Other_Pharmacies!P87) -> No | H87: =IF(ISBLANK(All_Other_Pharmacies!Q87),"",All_Other_Pharmacies!Q87) -> No
B88: =IF(ISBLANK(All_Other_Pharmacies!D88),"",All_Other_Pharmacies!D88) -> 2025-10-14 | C88: =IF(ISBLANK(All_Other_Pharmacies!E88),"",All_Other_Pharmacies!E88) -> 30 | D88: =IF(ISBLANK(All_Other_Pharmacies!H88),"",All_Other_Pharmacies!H88) -> $0.31 | E88: =IF(ISBLANK(All_Other_Pharmacies!K88),"",All_Other_Pharmacies!K88) -> $0.02 | F88: =IF(ISBLANK(All_Other_Pharmacies!M88),"",All_Other_Pharmacies!M88) -> 2025-09-17 | G88: =IF(ISBLANK(All_Other_Pharmacies!P88),"",All_Other_Pharmacies!P88) -> No | H88: =IF(ISBLANK(All_Other_Pharmacies!Q88),"",All_Other_Pharmacies!Q88) -> No
B89: =IF(ISBLANK(All_Other_Pharmacies!D89),"",All_Other_Pharmacies!D89) -> 2025-12-11 | C89: =IF(ISBLANK(All_Other_Pharmacies!E89),"",All_Other_Pharmacies!E89) -> 30 | D89: =IF(ISBLANK(All_Other_Pharmacies!H89),"",All_Other_Pharmacies!H89) -> $0.50 | E89: =IF(ISBLANK(All_Other_Pharmacies!K89),"",All_Other_Pharmacies!K89) -> $0.01 | F89: =IF(ISBLANK(All_Other_Pharmacies!M89),"",All_Other_Pharmacies!M89) -> 2025-11-19 | G89: =IF(ISBLANK(All_Other_Pharmacies!P89),"",All_Other_Pharmacies!P89) -> No | H89: =IF(ISBLANK(All_Other_Pharmacies!Q89),"",All_Other_Pharmacies!Q89) -> No
B90: =IF(ISBLANK(All_Other_Pharmacies!D90),"",All_Other_Pharmacies!D90) -> 2025-12-29 | C90: =IF(ISBLANK(All_Other_Pharmacies!E90),"",All_Other_Pharmacies!E90) -> 30 | D90: =IF(ISBLANK(All_Other_Pharmacies!H90),"",All_Other_Pharmacies!H90) -> $0.04 | E90: =IF(ISBLANK(All_Other_Pharmacies!K90),"",All_Other_Pharmacies!K90) -> $0.06 | F90: =IF(ISBLANK(All_Other_Pharmacies!M90),"",All_Other_Pharmacies!M90) -> 2025-12-17 | G90: =IF(ISBLANK(All_Other_Pharmacies!P90),"",All_Other_Pharmacies!P90) -> No | H90: =IF(ISBLANK(All_Other_Pharmacies!Q90),"",All_Other_Pharmacies!Q90) -> No
B91: =IF(ISBLANK(All_Other_Pharmacies!D91),"",All_Other_Pharmacies!D91) -> 2025-12-31 | C91: =IF(ISBLANK(All_Other_Pharmacies!E91),"",All_Other_Pharmacies!E91) -> 30 | D91: =IF(ISBLANK(All_Other_Pharmacies!H91),"",All_Other_Pharmacies!H91) -> $0.03 | E91: =IF(ISBLANK(All_Other_Pharmacies!K91),"",All_Other_Pharmacies!K91) -> $0.04 | F91: =IF(ISBLANK(All_Other_Pharmacies!M91),"",All_Other_Pharmacies!M91) -> 2025-12-17 | G91: =IF(ISBLANK(All_Other_Pharmacies!P91),"",All_Other_Pharmacies!P91) -> No | H91: =IF(ISBLANK(All_Other_Pharmacies!Q91),"",All_Other_Pharmacies!Q91) -> No
B92: =IF(ISBLANK(All_Other_Pharmacies!D92),"",All_Other_Pharmacies!D92) -> 2025-12-09 | C92: =IF(ISBLANK(All_Other_Pharmacies!E92),"",All_Other_Pharmacies!E92) -> 30 | D92: =IF(ISBLANK(All_Other_Pharmacies!H92),"",All_Other_Pharmacies!H92) -> $0.06 | E92: =IF(ISBLANK(All_Other_Pharmacies!K92),"",All_Other_Pharmacies!K92) -> $0.11 | F92: =IF(ISBLANK(All_Other_Pharmacies!M92),"",All_Other_Pharmacies!M92) -> 2025-11-19 | G92: =IF(ISBLANK(All_Other_Pharmacies!P92),"",All_Other_Pharmacies!P92) -> No | H92: =IF(ISBLANK(All_Other_Pharmacies!Q92),"",All_Other_Pharmacies!Q92) -> No
B93: =IF(ISBLANK(All_Other_Pharmacies!D93),"",All_Other_Pharmacies!D93) -> 2025-12-08 | C93: =IF(ISBLANK(All_Other_Pharmacies!E93),"",All_Other_Pharmacies!E93) -> 60 | D93: =IF(ISBLANK(All_Other_Pharmacies!H93),"",All_Other_Pharmacies!H93) -> $0.02 | E93: =IF(ISBLANK(All_Other_Pharmacies!K93),"",All_Other_Pharmacies!K93) -> $0.03 | F93: =IF(ISBLANK(All_Other_Pharmacies!M93),"",All_Other_Pharmacies!M93) -> 2025-11-19 | G93: =IF(ISBLANK(All_Other_Pharmacies!P93),"",All_Other_Pharmacies!P93) -> No | H93: =IF(ISBLANK(All_Other_Pharmacies!Q93),"",All_Other_Pharmacies!Q93) -> No
B94: =IF(ISBLANK(All_Other_Pharmacies!D94),"",All_Other_Pharmacies!D94) -> 2025-10-03 | C94: =IF(ISBLANK(All_Other_Pharmacies!E94),"",All_Other_Pharmacies!E94) -> 56 | D94: =IF(ISBLANK(All_Other_Pharmacies!H94),"",All_Other_Pharmacies!H94) -> $0.12 | E94: =IF(ISBLANK(All_Other_Pharmacies!K94),"",All_Other_Pharmacies!K94) -> $0.18 | F94: =IF(ISBLANK(All_Other_Pharmacies!M94),"",All_Other_Pharmacies!M94) -> 2025-09-17 | G94: =IF(ISBLANK(All_Other_Pharmacies!P94),"",All_Other_Pharmacies!P94) -> No | H94: =IF(ISBLANK(All_Other_Pharmacies!Q94),"",All_Other_Pharmacies!Q94) -> No
B95: =IF(ISBLANK(All_Other_Pharmacies!D95),"",All_Other_Pharmacies!D95) -> 2025-11-24 | C95: =IF(ISBLANK(All_Other_Pharmacies!E95),"",All_Other_Pharmacies!E95) -> 30 | D95: =IF(ISBLANK(All_Other_Pharmacies!H95),"",All_Other_Pharmacies!H95) -> $0.04 | E95: =IF(ISBLANK(All_Other_Pharmacies!K95),"",All_Other_Pharmacies!K95) -> $0.08 | F95: =IF(ISBLANK(All_Other_Pharmacies!M95),"",All_Other_Pharmacies!M95) -> 2025-11-19 | G95: =IF(ISBLANK(All_Other_Pharmacies!P95),"",All_Other_Pharmacies!P95) -> No | H95: =IF(ISBLANK(All_Other_Pharmacies!Q95),"",All_Other_Pharmacies!Q95) -> No
B96: =IF(ISBLANK(All_Other_Pharmacies!D96),"",All_Other_Pharmacies!D96) -> 2025-11-14 | C96: =IF(ISBLANK(All_Other_Pharmacies!E96),"",All_Other_Pharmacies!E96) -> 30 | D96: =IF(ISBLANK(All_Other_Pharmacies!H96),"",All_Other_Pharmacies!H96) -> $0.01 | E96: =IF(ISBLANK(All_Other_Pharmacies!K96),"",All_Other_Pharmacies!K96) -> $0.02 | F96: =IF(ISBLANK(All_Other_Pharmacies!M96),"",All_Other_Pharmacies!M96) -> 2025-10-22 | G96: =IF(ISBLANK(All_Other_Pharmacies!P96),"",All_Other_Pharmacies!P96) -> No | H96: =IF(ISBLANK(All_Other_Pharmacies!Q96),"",All_Other_Pharmacies!Q96) -> No
B97: =IF(ISBLANK(All_Other_Pharmacies!D97),"",All_Other_Pharmacies!D97) -> 2025-10-27 | C97: =IF(ISBLANK(All_Other_Pharmacies!E97),"",All_Other_Pharmacies!E97) -> 75 | D97: =IF(ISBLANK(All_Other_Pharmacies!H97),"",All_Other_Pharmacies!H97) -> $0.21 | E97: =IF(ISBLANK(All_Other_Pharmacies!K97),"",All_Other_Pharmacies!K97) -> $0.43 | F97: =IF(ISBLANK(All_Other_Pharmacies!M97),"",All_Other_Pharmacies!M97) -> 2025-10-22 | G97: =IF(ISBLANK(All_Other_Pharmacies!P97),"",All_Other_Pharmacies!P97) -> No | H97: =IF(ISBLANK(All_Other_Pharmacies!Q97),"",All_Other_Pharmacies!Q97) -> No
B98: =IF(ISBLANK(All_Other_Pharmacies!D98),"",All_Other_Pharmacies!D98) -> 2025-10-04 | C98: =IF(ISBLANK(All_Other_Pharmacies!E98),"",All_Other_Pharmacies!E98) -> 12 | D98: =IF(ISBLANK(All_Other_Pharmacies!H98),"",All_Other_Pharmacies!H98) -> $0.02 | E98: =IF(ISBLANK(All_Other_Pharmacies!K98),"",All_Other_Pharmacies!K98) -> $0.03 | F98: =IF(ISBLANK(All_Other_Pharmacies!M98),"",All_Other_Pharmacies!M98) -> 2025-09-17 | G98: =IF(ISBLANK(All_Other_Pharmacies!P98),"",All_Other_Pharmacies!P98) -> No | H98: =IF(ISBLANK(All_Other_Pharmacies!Q98),"",All_Other_Pharmacies!Q98) -> No
B99: =IF(ISBLANK(All_Other_Pharmacies!D99),"",All_Other_Pharmacies!D99) -> 2025-12-27 | C99: =IF(ISBLANK(All_Other_Pharmacies!E99),"",All_Other_Pharmacies!E99) -> 30 | D99: =IF(ISBLANK(All_Other_Pharmacies!H99),"",All_Other_Pharmacies!H99) -> $0.04 | E99: =IF(ISBLANK(All_Other_Pharmacies!K99),"",All_Other_Pharmacies!K99) -> $0.08 | F99: =IF(ISBLANK(All_Other_Pharmacies!M99),"",All_Other_Pharmacies!M99) -> 2025-12-17 | G99: =IF(ISBLANK(All_Other_Pharmacies!P99),"",All_Other_Pharmacies!P99) -> No | H99: =IF(ISBLANK(All_Other_Pharmacies!Q99),"",All_Other_Pharmacies!Q99) -> No
B100: =IF(ISBLANK(All_Other_Pharmacies!D100),"",All_Other_Pharmacies!D100) -> 2025-11-25 | C100: =IF(ISBLANK(All_Other_Pharmacies!E100),"",All_Other_Pharmacies!E100) -> 30 | D100: =IF(ISBLANK(All_Other_Pharmacies!H100),"",All_Other_Pharmacies!H100) -> $0.06 | E100: =IF(ISBLANK(All_Other_Pharmacies!K100),"",All_Other_Pharmacies!K100) -> $0.04 | F100: =IF(ISBLANK(All_Other_Pharmacies!M100),"",All_Other_Pharmacies!M100) -> 2025-11-19 | G100: =IF(ISBLANK(All_Other_Pharmacies!P100),"",All_Other_Pharmacies!P100) -> No | H100: =IF(ISBLANK(All_Other_Pharmacies!Q100),"",All_Other_Pharmacies!Q100) -> No
B101: =IF(ISBLANK(All_Other_Pharmacies!D101),"",All_Other_Pharmacies!D101) -> 2025-12-05 | C101: =IF(ISBLANK(All_Other_Pharmacies!E101),"",All_Other_Pharmacies!E101) -> 30 | D101: =IF(ISBLANK(All_Other_Pharmacies!H101),"",All_Other_Pharmacies!H101) -> $0.04 | E101: =IF(ISBLANK(All_Other_Pharmacies!K101),"",All_Other_Pharmacies!K101) -> $0.09 | F101: =IF(ISBLANK(All_Other_Pharmacies!M101),"",All_Other_Pharmacies!M101) -> 2025-11-19 | G101: =IF(ISBLANK(All_Other_Pharmacies!P101),"",All_Other_Pharmacies!P101) -> No | H101: =IF(ISBLANK(All_Other_Pharmacies!Q101),"",All_Other_Pharmacies!Q101) -> No
B102: =IF(ISBLANK(All_Other_Pharmacies!D102),"",All_Other_Pharmacies!D102) -> 2025-10-23 | C102: =IF(ISBLANK(All_Other_Pharmacies!E102),"",All_Other_Pharmacies!E102) -> 90 | D102: =IF(ISBLANK(All_Other_Pharmacies!H102),"",All_Other_Pharmacies!H102) -> $0.06 | E102: =IF(ISBLANK(All_Other_Pharmacies!K102),"",All_Other_Pharmacies!K102) -> $0.12 | F102: =IF(ISBLANK(All_Other_Pharmacies!M102),"",All_Other_Pharmacies!M102) -> 2025-10-22 | G102: =IF(ISBLANK(All_Other_Pharmacies!P102),"",All_Other_Pharmacies!P102) -> No | H102: =IF(ISBLANK(All_Other_Pharmacies!Q102),"",All_Other_Pharmacies!Q102) -> No
B103: =IF(ISBLANK(All_Other_Pharmacies!D103),"",All_Other_Pharmacies!D103) -> 2025-10-07 | C103: =IF(ISBLANK(All_Other_Pharmacies!E103),"",All_Other_Pharmacies!E103) -> 90 | D103: =IF(ISBLANK(All_Other_Pharmacies!H103),"",All_Other_Pharmacies!H103) -> $0.01 | E103: =IF(ISBLANK(All_Other_Pharmacies!K103),"",All_Other_Pharmacies!K103) -> $0.03 | F103: =IF(ISBLANK(All_Other_Pharmacies!M103),"",All_Other_Pharmacies!M103) -> 2025-09-17 | G103: =IF(ISBLANK(All_Other_Pharmacies!P103),"",All_Other_Pharmacies!P103) -> No | H103: =IF(ISBLANK(All_Other_Pharmacies!Q103),"",All_Other_Pharmacies!Q103) -> No
B104: =IF(ISBLANK(All_Other_Pharmacies!D104),"",All_Other_Pharmacies!D104) -> 2025-12-02 | C104: =IF(ISBLANK(All_Other_Pharmacies!E104),"",All_Other_Pharmacies!E104) -> 30 | D104: =IF(ISBLANK(All_Other_Pharmacies!H104),"",All_Other_Pharmacies!H104) -> $0.04 | E104: =IF(ISBLANK(All_Other_Pharmacies!K104),"",All_Other_Pharmacies!K104) -> $0.06 | F104: =IF(ISBLANK(All_Other_Pharmacies!M104),"",All_Other_Pharmacies!M104) -> 2025-11-19 | G104: =IF(ISBLANK(All_Other_Pharmacies!P104),"",All_Other_Pharmacies!P104) -> No | H104: =IF(ISBLANK(All_Other_Pharmacies!Q104),"",All_Other_Pharmacies!Q104) -> No
B105: =IF(ISBLANK(All_Other_Pharmacies!D105),"",All_Other_Pharmacies!D105) -> 2025-11-14 | C105: =IF(ISBLANK(All_Other_Pharmacies!E105),"",All_Other_Pharmacies!E105) -> 30 | D105: =IF(ISBLANK(All_Other_Pharmacies!H105),"",All_Other_Pharmacies!H105) -> $0.01 | E105: =IF(ISBLANK(All_Other_Pharmacies!K105),"",All_Other_Pharmacies!K105) -> $0.01 | F105: =IF(ISBLANK(All_Other_Pharmacies!M105),"",All_Other_Pharmacies!M105) -> 2025-10-22 | G105: =IF(ISBLANK(All_Other_Pharmacies!P105),"",All_Other_Pharmacies!P105) -> No | H105: =IF(ISBLANK(All_Other_Pharmacies!Q105),"",All_Other_Pharmacies!Q105) -> No
B106: =IF(ISBLANK(All_Other_Pharmacies!D106),"",All_Other_Pharmacies!D106) -> 2025-12-06 | C106: =IF(ISBLANK(All_Other_Pharmacies!E106),"",All_Other_Pharmacies!E106) -> 30 | D106: =IF(ISBLANK(All_Other_Pharmacies!H106),"",All_Other_Pharmacies!H106) -> $0.02 | E106: =IF(ISBLANK(All_Other_Pharmacies!K106),"",All_Other_Pharmacies!K106) -> $0.03 | F106: =IF(ISBLANK(All_Other_Pharmacies!M106),"",All_Other_Pharmacies!M106) -> 2025-11-19 | G106: =IF(ISBLANK(All_Other_Pharmacies!P106),"",All_Other_Pharmacies!P106) -> No | H106: =IF(ISBLANK(All_Other_Pharmacies!Q106),"",All_Other_Pharmacies!Q106) -> No
B107: =IF(ISBLANK(All_Other_Pharmacies!D107),"",All_Other_Pharmacies!D107) -> 2025-10-23 | C107: =IF(ISBLANK(All_Other_Pharmacies!E107),"",All_Other_Pharmacies!E107) -> 90 | D107: =IF(ISBLANK(All_Other_Pharmacies!H107),"",All_Other_Pharmacies!H107) -> $0.06 | E107: =IF(ISBLANK(All_Other_Pharmacies!K107),"",All_Other_Pharmacies!K107) -> $0.14 | F107: =IF(ISBLANK(All_Other_Pharmacies!M107),"",All_Other_Pharmacies!M107) -> 2025-10-22 | G107: =IF(ISBLANK(All_Other_Pharmacies!P107),"",All_Other_Pharmacies!P107) -> No | H107: =IF(ISBLANK(All_Other_Pharmacies!Q107),"",All_Other_Pharmacies!Q107) -> No
B108: =IF(ISBLANK(All_Other_Pharmacies!D108),"",All_Other_Pharmacies!D108) -> 2025-11-11 | C108: =IF(ISBLANK(All_Other_Pharmacies!E108),"",All_Other_Pharmacies!E108) -> 30 | D108: =IF(ISBLANK(All_Other_Pharmacies!H108),"",All_Other_Pharmacies!H108) -> $0.01 | E108: =IF(ISBLANK(All_Other_Pharmacies!K108),"",All_Other_Pharmacies!K108) -> $0.03 | F108: =IF(ISBLANK(All_Other_Pharmacies!M108),"",All_Other_Pharmacies!M108) -> 2025-10-22 | G108: =IF(ISBLANK(All_Other_Pharmacies!P108),"",All_Other_Pharmacies!P108) -> No | H108: =IF(ISBLANK(All_Other_Pharmacies!Q108),"",All_Other_Pharmacies!Q108) -> No
B109: =IF(ISBLANK(All_Other_Pharmacies!D109),"",All_Other_Pharmacies!D109) -> 2025-12-11 | C109: =IF(ISBLANK(All_Other_Pharmacies!E109),"",All_Other_Pharmacies!E109) -> 30 | D109: =IF(ISBLANK(All_Other_Pharmacies!H109),"",All_Other_Pharmacies!H109) -> $0.50 | E109: =IF(ISBLANK(All_Other_Pharmacies!K109),"",All_Other_Pharmacies!K109) -> $0.01 | F109: =IF(ISBLANK(All_Other_Pharmacies!M109),"",All_Other_Pharmacies!M109) -> 2025-11-19 | G109: =IF(ISBLANK(All_Other_Pharmacies!P109),"",All_Other_Pharmacies!P109) -> No | H109: =IF(ISBLANK(All_Other_Pharmacies!Q109),"",All_Other_Pharmacies!Q109) -> No
B110: =IF(ISBLANK(All_Other_Pharmacies!D110),"",All_Other_Pharmacies!D110) -> 2025-10-26 | C110: =IF(ISBLANK(All_Other_Pharmacies!E110),"",All_Other_Pharmacies!E110) -> 6.6 | D110: =IF(ISBLANK(All_Other_Pharmacies!H110),"",All_Other_Pharmacies!H110) -> $0.49 | E110: =IF(ISBLANK(All_Other_Pharmacies!K110),"",All_Other_Pharmacies!K110) -> $1.40 | F110: =IF(ISBLANK(All_Other_Pharmacies!M110),"",All_Other_Pharmacies!M110) -> 2025-10-22 | G110: =IF(ISBLANK(All_Other_Pharmacies!P110),"",All_Other_Pharmacies!P110) -> No | H110: =IF(ISBLANK(All_Other_Pharmacies!Q110),"",All_Other_Pharmacies!Q110) -> No
B111: =IF(ISBLANK(All_Other_Pharmacies!D111),"",All_Other_Pharmacies!D111) -> 2025-10-27 | C111: =IF(ISBLANK(All_Other_Pharmacies!E111),"",All_Other_Pharmacies!E111) -> 30 | D111: =IF(ISBLANK(All_Other_Pharmacies!H111),"",All_Other_Pharmacies!H111) -> $0.06 | E111: =IF(ISBLANK(All_Other_Pharmacies!K111),"",All_Other_Pharmacies!K111) -> $0.04 | F111: =IF(ISBLANK(All_Other_Pharmacies!M111),"",All_Other_Pharmacies!M111) -> 2025-10-22 | G111: =IF(ISBLANK(All_Other_Pharmacies!P111),"",All_Other_Pharmacies!P111) -> No | H111: =IF(ISBLANK(All_Other_Pharmacies!Q111),"",All_Other_Pharmacies!Q111) -> No
B112: =IF(ISBLANK(All_Other_Pharmacies!D112),"",All_Other_Pharmacies!D112) -> 2025-10-04 | C112: =IF(ISBLANK(All_Other_Pharmacies!E112),"",All_Other_Pharmacies!E112) -> 30 | D112: =IF(ISBLANK(All_Other_Pharmacies!H112),"",All_Other_Pharmacies!H112) -> $0.01 | E112: =IF(ISBLANK(All_Other_Pharmacies!K112),"",All_Other_Pharmacies!K112) -> $0.03 | F112: =IF(ISBLANK(All_Other_Pharmacies!M112),"",All_Other_Pharmacies!M112) -> 2025-09-17 | G112: =IF(ISBLANK(All_Other_Pharmacies!P112),"",All_Other_Pharmacies!P112) -> No | H112: =IF(ISBLANK(All_Other_Pharmacies!Q112),"",All_Other_Pharmacies!Q112) -> No
B113: =IF(ISBLANK(All_Other_Pharmacies!D113),"",All_Other_Pharmacies!D113) -> 2025-11-09 | C113: =IF(ISBLANK(All_Other_Pharmacies!E113),"",All_Other_Pharmacies!E113) -> 30 | D113: =IF(ISBLANK(All_Other_Pharmacies!H113),"",All_Other_Pharmacies!H113) -> $0.06 | E113: =IF(ISBLANK(All_Other_Pharmacies!K113),"",All_Other_Pharmacies!K113) -> $0.12 | F113: =IF(ISBLANK(All_Other_Pharmacies!M113),"",All_Other_Pharmacies!M113) -> 2025-10-22 | G113: =IF(ISBLANK(All_Other_Pharmacies!P113),"",All_Other_Pharmacies!P113) -> No | H113: =IF(ISBLANK(All_Other_Pharmacies!Q113),"",All_Other_Pharmacies!Q113) -> No
B114: =IF(ISBLANK(All_Other_Pharmacies!D114),"",All_Other_Pharmacies!D114) -> 2025-12-11 | C114: =IF(ISBLANK(All_Other_Pharmacies!E114),"",All_Other_Pharmacies!E114) -> 30 | D114: =IF(ISBLANK(All_Other_Pharmacies!H114),"",All_Other_Pharmacies!H114) -> $0.01 | E114: =IF(ISBLANK(All_Other_Pharmacies!K114),"",All_Other_Pharmacies!K114) -> $0.02 | F114: =IF(ISBLANK(All_Other_Pharmacies!M114),"",All_Other_Pharmacies!M114) -> 2025-11-19 | G114: =IF(ISBLANK(All_Other_Pharmacies!P114),"",All_Other_Pharmacies!P114) -> No | H114: =IF(ISBLANK(All_Other_Pharmacies!Q114),"",All_Other_Pharmacies!Q114) -> No
